Workbook

Sheet Instructions & Controls
B2: Instructions
A3: 1 | B3: Only edit the sheet labelled "All Running Order", the other sheets will automatically work themselves out or be created by macro
A4: 2 | B4: The names of the classes can be changed by editing the Constants tab (see separate note on that tab). The column headings will change accordingly.
A5: 3 | B5: Fill in the Trial Name, Date, Driver, passenger, Car, CC etc
A6: 4 | B6: Use the macro buttons below to show and hide columns on all the sheets.
A7: 5 | B7: There is enough space for 59 competitors
A8: 6 | B8: The Class and axle configuration can be selected by clicking on the cell in the Class or Live/IRS column, it will provide you with a small arrow, click that and it will give you options, click the correct one
A9: 7 | B9: If a competitor retires or is a non starter, click the relevant cell in the Ret/NS column and from the drop down menu select Ret/NS - they will be excluded from the results
A10: 8 | B10: Countback is done automatically up to competitors tying on 6's
A11: 9 | B11: When all the results have been entered click on the "Build Finishing Order By Class & Axle" button to build that sheet. It can be run as many times as you like. Each time it is run it deletes all existing data on that sheet
A12: 10 | B12: The Finishing Order By Class & Axle and All Finishing Order sheets can be exported to PDF files by clicking on the macro buttons below

Sheet All Running Order
D1: J B Taylor
D2: 2026-03-15
I3: START HILL | N3: Ret/NS | P3: BTRDA CLASS | Q3: ROUND 1: HILL NO. | AA3: ROUND TOTAL | AB3: ROUND 2: HILL NO. | AL3: ROUND TOTAL | AM3: SUB TOTAL | AN3: ROUND 3: HILL NO. | AX3: ROUND TOTAL | AY3: SUB TOTAL | AZ3: ROUND 4: HILL NO. | BJ3: ROUND TOTAL | BK3: SUB TOTAL | BL3: ROUND 5: HILL NO. | BV3: ROUND TOTAL | BW3: GRAND TOTAL | BX3: POSITION AFTER ROUND | CC3: Round position pre-calculation | CH3: =CONCATENATE(,"CLASS"," ",Constants!$B$2) -> CLASS Red | CI3: =CONCATENATE("Position in ",Constants!$B$2," CLASS") -> Position in Red CLASS | CJ3: =CONCATENATE(,"CLASS"," ",Constants!$B$3) -> CLASS Blue | CK3: =CONCATENATE("Position in ",Constants!$B$3," CLASS") -> Position in Blue CLASS | CL3: =CONCATENATE(,Constants!$B$4," ","CLASS") -> Rookie CLASS | CM3: =CONCATENATE("Position in ",Constants!$B$4," ","CLASS") -> Position in Rookie CLASS | CN3: =CONCATENATE(,Constants!$C$2," ","CLASS") -> 750-A CLASS | CO3: =CONCATENATE("Position in ",Constants!$C$2," ","CLASS") -> Position in 750-A CLASS | CP3: =CONCATENATE(,Constants!$C$3," ","CLASS") -> 750-B CLASS | CQ3: =CONCATENATE("Position in ",Constants!$C$3," ","CLASS") -> Position in 750-B CLASS | CR3: =CONCATENATE(,Constants!$C$4," ","CLASS") -> 750-N CLASS | CS3: =CONCATENATE("Position in ",Constants!$C$4," ","CLASS") -> Position in 750-N CLASS | CT3: Post-Historic Class | CU3: =CONCATENATE("Position in Post Historic CLASS") -> Position in Post Historic CLASS | CV3: Live Class | CW3: Position in Live CLASS | CX3: POSITION IN CLASS | DB3: NUMBER OF 0 | DF3: NUMBER OF 1 | DJ3: NUMBER OF 2 | DN3: NUMBER OF 3 | DR3: NUMBER OF 4 | DV3: NUMBER OF 5 | DZ3: NUMBER OF 6 | EF3: NUMBER OF 0 | EJ3: NUMBER OF 1 | EN3: NUMBER OF 2 | ER3: NUMBER OF 3 | EV3: NUMBER OF 4 | EZ3: NUMBER OF 5 | FD3: NUMBER OF 6 | FI3: NUMBER OF 0 | FM3: NUMBER OF 1 | FQ3: NUMBER OF 2 | FU3: NUMBER OF 3 | FY3: NUMBER OF 4 | GC3: NUMBER OF 5 | GG3: NUMBER OF 6 | GS3: NUMBER OF 0 | GW3: NUMBER OF 1 | HA3: NUMBER OF 2 | HE3: NUMBER OF 3 | HI3: NUMBER OF 4 | HM3: NUMBER OF 5 | HQ3: NUMBER OF 6 | HW3: NUMBER OF 0 | IA3: NUMBER OF 1 | IE3: NUMBER OF 2 | II3: NUMBER OF 3 | IM3: NUMBER OF 4 | IQ3: NUMBER OF 5 | IU3: NUMBER OF 6
B4: NO. | C4: DRIVER | D4: PASSENGER | E4: CAR | F4: CC | G4: Live/IRS | H4: BTRDA Tyres | I4: 1 | J4: 2 | K4: 3 | L4: 4 | M4: 5 | O4: Club CLASS | Q4: 1 | R4: 2 | S4: 3 | T4: 4 | U4: 5 | V4: 6 | W4: 7 | X4: 8 | Y4: 9 | Z4: 10 | AB4: 1 | AC4: 2 | AD4: 3 | AE4: 4 | AF4: 5 | AG4: 6 | AH4: 7 | AI4: 8 | AJ4: 9 | AK4: 10 | AN4: 1 | AO4: 2 | AP4: 3 | AQ4: 4 | AR4: 5 | AS4: 6 | AT4: 7 | AU4: 8 | AV4: 9 | AW4: 10 | AZ4: 1 | BA4: 2 | BB4: 3 | BC4: 4 | BD4: 5 | BE4: 6 | BF4: 7 | BG4: 8 | BH4: 9 | BI4: 10 | BL4: 1 | BM4: 2 | BN4: 3 | BO4: 4 | BP4: 5 | BQ4: 6 | BR4: 7 | BS4: 8 | BT4: 9 | BU4: 10 | BX4: 1 | BY4: 2 | BZ4: 3 | CA4: 4 | CB4: 5 | CC4: 1 | CD4: 2 | CE4: 3 | CF4: 4 | CG4: 5 | CY4: Class | CZ4: Type | GN4: Cross Check 1 | GP4: Cross Check 2
C5: Best score | Q5: =MIN(Q6:Q64) -> 0 | R5: =MIN(R6:R64) -> 0 | S5: 0 | T5: 0 | U5: 1 | V5: =MIN(V6:V64) -> 1 | W5: 0 | X5: 0 | Y5: 0 | Z5: 0 | AA5: =SUM(Q5:Z5) -> 2 | AB5: =MIN(AB6:AB64) -> 0 | AC5: =MIN(AC6:AC64) -> 0 | AD5: 0 | AE5: 1 | AF5: 0 | AG5: 0 | AH5: 0 | AI5: 0 | AJ5: 0 | AK5: 0 | AL5: =SUM(AB5:AK5) -> 1 | AM5: =AL5+AA5 -> 3 | AN5: =MIN(AN6:AN64) -> 0 | AO5: =MIN(AO6:AO64) -> 0 | AP5: 0 | AQ5: 0 | AR5: 0 | AS5: 0 | AT5: 0 | AU5: 0 | AV5: 0 | AW5: 0 | AX5: =SUM(AN5:AW5) -> 0 | AY5: =AX5+AM5 -> 3 | AZ5: =MIN(AZ6:AZ64) -> 0 | BA5: =MIN(BA6:BA64) -> 0 | BB5: 0 | BC5: 0 | BD5: 0 | BE5: 0 | BF5: 0 | BG5: 0 | BH5: 0 | BI5: 0 | BJ5: =SUM(AZ5:BI5) -> 0 | BK5: =BJ5+AY5 -> 3 | BL5: =MIN(BL6:BL64) -> 0 | BM5: =MIN(BM6:BM64) -> 0 | BN5: 0 | BO5: 0 | BP5: 0 | BQ5: 0 | BR5: 0 | BS5: 0 | BT5: 0 | BU5: 0 | BV5: =SUM(BL5:BU5) -> 0 | BW5: =BV5+BK5 -> 3 | DC5: Tiebrake | DD5: Final Rank | DE5: New Rank | DG5: Tiebrake | DH5: Final Rank | DI5: New Rank | DK5: Tiebrake | DL5: Final Rank | DM5: New Rank | DO5: Tiebrake | DP5: Final Rank | DQ5: New Rank | DS5: Tiebrake | DT5: Final Rank | DU5: New Rank | DW5: Tiebrake | DX5: Final Rank | DY5: New Rank | EA5: Tiebrake | EB5: Final Rank | EC5: New Rank | EG5: Tiebrake | EH5: Final Rank | EI5: New Rank | EK5: Tiebrake | EL5: Final Rank | EM5: New Rank | EO5: Tiebrake | EP5: Final Rank | EQ5: New Rank | ES5: Tiebrake | ET5: Final Rank | EU5: New Rank | EW5: Tiebrake | EX5: Final Rank | EY5: New Rank | FA5: Tiebrake | FB5: Final Rank | FC5: New Rank | FE5: Tiebrake | FF5: Final Rank | FG5: New Rank | FJ5: Tiebrake | FK5: Final Rank | FL5: New Rank | FN5: Tiebrake | FO5: Final Rank | FP5: New Rank | FR5: Tiebrake | FS5: Final Rank | FT5: New Rank | FV5: Tiebrake | FW5: Final Rank | FX5: New Rank | FZ5: Tiebrake | GA5: Final Rank | GB5: New Rank | GD5: Tiebrake | GE5: Final Rank | GF5: New Rank | GH5: Tiebrake | GI5: Final Rank | GJ5: New Rank | GT5: Tiebrake | GU5: Final Rank | GV5: New Rank | GX5: Tiebrake | GY5: Final Rank | GZ5: New Rank | HB5: Tiebrake | HC5: Final Rank | HD5: New Rank | HF5: Tiebrake | HG5: Final Rank | HH5: New Rank | HJ5: Tiebrake | HK5: Final Rank | HL5: New Rank | HN5: Tiebrake | HO5: Final Rank | HP5: New Rank | HR5: Tiebrake | HS5: Final Rank | HT5: New Rank | HX5: Tiebrake | HY5: Final Rank | HZ5: New Rank | IB5: Tiebrake | IC5: Final Rank | ID5: New Rank | IF5: Tiebrake | IG5: Final Rank | IH5: New Rank | IJ5: Tiebrake | IK5: Final Rank | IL5: New Rank | IN5: Tiebrake | IO5: Final Rank | IP5: New Rank | IR5: Tiebrake | IS5: Final Rank | IT5: New Rank | IV5: Tiebrake | IW5: Final Rank | IX5: New Rank
A6: =CB6 -> 1 | B6: 1 | C6: Stuart Beare | D6: Sue Underwood | E6: Sherpa Indy | G6: IRS | H6: Yes | P6: Red | Q6: 0 | R6: 0 | S6: 1 | T6: 0 | U6: 1 | V6: 2 | AA6: =IF(N6="Ret/NS",1000+SUM(Q6:Z6),IF(C6="",2000,SUM(Q6:Z6))) -> 4 | AB6: 0 | AC6: 0 | AD6: 0 | AE6: 1 | AF6: 1 | AG6: 0 | AL6: =SUM(AB6:AK6) -> 2 | AM6: =IF(C6="",2000,AL6+AA6) -> 6 | AN6: 0 | AO6: 2 | AP6: 0 | AQ6: 1 | AR6: 0 | AS6: 0 | AX6: =SUM(AN6:AW6) -> 3 | AY6: =IF(C6="",2000,AM6+AX6) -> 9 | AZ6: 0 | BA6: 0 | BB6: 0 | BC6: 1 | BD6: 0 | BE6: 0 | BJ6: =SUM(AZ6:BI6) -> 1 | BK6: =IF(C6="",2000,AY6+BJ6) -> 10 | BV6: =SUM(BL6:BU6) -> 0 | BW6: =IF(C6="",2000,BK6+BV6) -> 10 | BX6: =IX6 -> 1 | BY6: =HT6 -> 1 | BZ6: =GJ6 -> 3 | CA6: =FG6 -> 1 | CB6: =EC6 -> 1 | CC6: =RANK(AA6,$AA$6:$AA$64,1) -> 1 | CD6: =RANK(AM6,$AM$6:$AM$64,1) -> 1 | CE6: =RANK(AY6,$AY$6:$AY$64,1) -> 3 | CF6: =RANK(BK6,$BK$6:$BK$64,1) -> 1 | CG6: =RANK(BW6,$BW$6:$BW$64,1) -> 1 | CH6: =IF($P6=Constants!$B$2,RANK($CB6,$CB$6:$CB$64,1),"-") -> 1 | CI6: =IFERROR(RANK(CH6,$CH$6:$CH$64,1),"") ->  | CJ6: =IF($P6=Constants!$B$3,RANK($CB6,$CB$6:$CB$64,1),"-") -> - | CK6: =IFERROR(RANK(CJ6,$CJ$6:$CJ$64,1),"") ->  | CL6: =IF($P6=Constants!$B$4,RANK($CB6,$CB$6:$CB$64,1),"-") -> - | CM6: =IFERROR(RANK(CL6,$CL$6:$CL$64,1),"") ->  | CN6: =IF($O6=Constants!$C$2,RANK($CB6,$CB$6:$CB$64,1),"-") -> - | CO6: =IFERROR(RANK(CN6,$CN$6:$CN$64,1),"") ->  | CP6: =IF($O6=Constants!$C$3,RANK($CB6,$CB$6:$CB$64,1),"-") -> - | CQ6: =IFERROR(RANK(CP6,$CP$6:$CP$64,1),"") ->  | CR6: =IF($O6=Constants!$C$4,RANK($CB6,$CB$6:$CB$64,1),"-") -> - | CS6: =IFERROR(RANK(CR6,$CR$6:$CR$64,1),"") ->  | CT6: =IF($G6=Constants!$D$4,RANK($CB6,$CB$6:$CB$64,1),"-") -> - | CU6: =IFERROR(RANK(CT6,$CT$6:$CT$64,1)," ") ->  | CV6: =IF($G6=Constants!$D$2,RANK($CB6,$CB$6:$CB$64,1),"-") -> - | CW6: =IFERROR(RANK(CV6,$CV$6:$CV$64,1)," ") ->  | CX6: =CI6&CK6&CM6&CO6&CQ6&CS6&CU6 ->  | CY6: =IF(P6<>"",P6,O6) -> Red | CZ6: =G6 -> IRS | DB6: =COUNTIF($BL6:$BU6,"0")+COUNTIF($AZ6:$BI6,"0")+COUNTIF($AN6:$AW6,"0")+COUNTIF($AB6:$AK6,"0")+COUNTIF($Q6:$Z6,"0") -> 16 | DC6: =IF(COUNTIF($BW$6:$BW$64,BW6)>1,RANK(DB6,DB$6:DB$64,0)/1000,0) -> 0 | DD6: =CG6+DC6 -> 1 | DE6: =RANK(DD6,DD$6:DD$64,1) -> 1 | DF6: =COUNTIF($BL6:$BU6,"1")+COUNTIF($AZ6:$BI6,"1")+COUNTIF($AN6:$AW6,"1")+COUNTIF($AB6:$AK6,"1")+COUNTIF($Q6:$Z6,"1") -> 6 | DG6: =IF(COUNTIF(DE$6:DE$64,DE6)>1,RANK(DF6,DF$6:DF$64,0)/1000,0) -> 0 | DH6: =DE6+DG6 -> 1 | DI6: =RANK(DH6,DH$6:DH$64,1) -> 1 | DJ6: =COUNTIF($BL6:$BU6,"2")+COUNTIF($AZ6:$BI6,"2")+COUNTIF($AN6:$AW6,"2")+COUNTIF($AB6:$AK6,"2")+COUNTIF($Q6:$Z6,"2") -> 2 | DK6: =IF(COUNTIF(DI$6:DI$64,DI6)>1,RANK(DJ6,DJ$6:DJ$64,0)/1000,0) -> 0 | DL6: =DI6+DK6 -> 1 | DM6: =RANK(DL6,DL$6:DL$64,1) -> 1 | DN6: =COUNTIF($BL6:$BU6,"3")+COUNTIF($AZ6:$BI6,"3")+COUNTIF($AN6:$AW6,"3")+COUNTIF($AB6:$AK6,"3")+COUNTIF($Q6:$Z6,"3") -> 0 | DO6: =IF(COUNTIF(DM$6:DM$64,DM6)>1,RANK(DN6,DN$6:DN$64,0)/1000,0) -> 0 | DP6: =DM6+DO6 -> 1 | DQ6: =RANK(DP6,DP$6:DP$64,1) -> 1 | DR6: =COUNTIF($BL6:$BU6,"4")+COUNTIF($AZ6:$BI6,"4")+COUNTIF($AN6:$AW6,"4")+COUNTIF($AB6:$AK6,"4")+COUNTIF($Q6:$Z6,"4") -> 0 | DS6: =IF(COUNTIF(DQ$6:DQ$64,DQ6)>1,RANK(DR6,DR$6:DR$64,0)/1000,0) -> 0 | DT6: =DQ6+DS6 -> 1 | DU6: =RANK(DT6,DT$6:DT$64,1) -> 1 | DV6: =COUNTIF($BL6:$BU6,"5")+COUNTIF($AZ6:$BI6,"5")+COUNTIF($AN6:$AW6,"5")+COUNTIF($AB6:$AK6,"5")+COUNTIF($Q6:$Z6,"5") -> 0 | DW6: =IF(COUNTIF(DU$6:DU$64,DU6)>1,RANK(DV6,DV$6:DV$64,0)/1000,0) -> 0 | DX6: =DU6+DW6 -> 1 | DY6: =RANK(DX6,DX$6:DX$64,1) -> 1 | DZ6: =COUNTIF($BL6:$BU6,"6")+COUNTIF($AZ6:$BI6,"6")+COUNTIF($AN6:$AW6,"6")+COUNTIF($AB6:$AK6,"6")+COUNTIF($Q6:$Z6,"6") -> 0 | EA6: =IF(COUNTIF(DY$6:DY$64,DY6)>1,RANK(DZ6,DZ$6:DZ$64,0)/1000,0) -> 0 | EB6: =DY6+EA6 -> 1 | EC6: =RANK(EB6,EB$6:EB$64,1) -> 1 | EF6: =COUNTIF($AZ6:$BI6,"0")+COUNTIF($AN6:$AW6,"0")+COUNTIF($AB6:$AK6,"0")+COUNTIF($Q6:$Z6,"0") -> 16 | EG6: =IF(COUNTIF($BK$6:$BK$64,BK6)>1,RANK(EF6,EF$6:EF$64,0)/1000,0) -> 0 | EH6: =CF6+EG6 -> 1 | EI6: =RANK(EH6,EH$6:EH$64,1) -> 1 | EJ6: =COUNTIF($AZ6:$BI6,"1")+COUNTIF($AN6:$AW6,"1")+COUNTIF($AB6:$AK6,"1")+COUNTIF($Q6:$Z6,"1") -> 6 | EK6: =IF(COUNTIF(EI$6:EI$64,EI6)>1,RANK(EJ6,EJ$6:EJ$64,0)/1000,0) -> 0 | EL6: =EI6+EK6 -> 1 | EM6: =RANK(EL6,EL$6:EL$64,1) -> 1 | EN6: =COUNTIF($AZ6:$BI6,"2")+COUNTIF($AN6:$AW6,"2")+COUNTIF($AB6:$AK6,"2")+COUNTIF($Q6:$Z6,"2") -> 2 | EO6: =IF(COUNTIF(EM$6:EM$64,EM6)>1,RANK(EN6,EN$6:EN$64,0)/1000,0) -> 0 | EP6: =EM6+EO6 -> 1 | EQ6: =RANK(EP6,EP$6:EP$64,1) -> 1 | ER6: =COUNTIF($AZ6:$BI6,"3")+COUNTIF($AN6:$AW6,"3")+COUNTIF($AB6:$AK6,"3")+COUNTIF($Q6:$Z6,"3") -> 0 | ES6: =IF(COUNTIF(EQ$6:EQ$64,EQ6)>1,RANK(ER6,ER$6:ER$64,0)/1000,0) -> 0 | ET6: =EQ6+ES6 -> 1 | EU6: =RANK(ET6,ET$6:ET$64,1) -> 1 | EV6: =COUNTIF($AZ6:$BI6,"4")+COUNTIF($AN6:$AW6,"4")+COUNTIF($AB6:$AK6,"4")+COUNTIF($Q6:$Z6,"4") -> 0 | EW6: =IF(COUNTIF(EU$6:EU$64,EU6)>1,RANK(EV6,EV$6:EV$64,0)/1000,0) -> 0 | EX6: =EU6+EW6 -> 1 | EY6: =RANK(EX6,EX$6:EX$64,1) -> 1 | EZ6: =COUNTIF($AZ6:$BI6,"5")+COUNTIF($AN6:$AW6,"5")+COUNTIF($AB6:$AK6,"5")+COUNTIF($Q6:$Z6,"5") -> 0 | FA6: =IF(COUNTIF(EY$6:EY$64,EY6)>1,RANK(EZ6,EZ$6:EZ$64,0)/1000,0) -> 0 | FB6: =EY6+FA6 -> 1 | FC6: =RANK(FB6,FB$6:FB$64,1) -> 1 | FD6: =COUNTIF($AZ6:$BI6,"6")+COUNTIF($AN6:$AW6,"6")+COUNTIF($AB6:$AK6,"6")+COUNTIF($Q6:$Z6,"6") -> 0 | FE6: =IF(COUNTIF(FC$6:FC$64,FC6)>1,RANK(FD6,FD$6:FD$64,0)/1000,0) -> 0 | FF6: =FC6+FE6 -> 1 | FG6: =RANK(FF6,FF$6:FF$64,1) -> 1 | FI6: =COUNTIF($AN6:$AW6,"0")+COUNTIF($AB6:$AK6,"0")+COUNTIF($Q6:$Z6,"0") -> 11 | FJ6: =IF(COUNTIF($AY$6:$AY$64,AY6)>1,RANK(FI6,FI$6:FI$64,0)/1000,0) -> 0 | FK6: =CE6+FJ6 -> 3 | FL6: =RANK(FK6,FK$6:FK$64,1) -> 3 | FM6: =COUNTIF($AN6:$AW6,"1")+COUNTIF($AB6:$AK6,"1")+COUNTIF($Q6:$Z6,"1") -> 5 | FN6: =IF(COUNTIF(FL$6:FL$64,FL6)>1,RANK(FM6,FM$6:FM$64,0)/1000,0) -> 0 | FO6: =FL6+FN6 -> 3 | FP6: =RANK(FO6,FO$6:FO$64,1) -> 3 | FQ6: =COUNTIF($AN6:$AW6,"2")+COUNTIF($AB6:$AK6,"2")+COUNTIF($Q6:$Z6,"2") -> 2 | FR6: =IF(COUNTIF(FP$6:FP$64,FP6)>1,RANK(FQ6,FQ$6:FQ$64,0)/1000,0) -> 0 | FS6: =FP6+FR6 -> 3 | FT6: =RANK(FS6,FS$6:FS$64,1) -> 3 | FU6: =COUNTIF($AN6:$AW6,"3")+COUNTIF($AB6:$AK6,"3")+COUNTIF($Q6:$Z6,"3") -> 0 | FV6: =IF(COUNTIF(FT$6:FT$64,FT6)>1,RANK(FU6,FU$6:FU$64,0)/1000,0) -> 0 | FW6: =FT6+FV6 -> 3 | FX6: =RANK(FW6,FW$6:FW$64,1) -> 3 | FY6: =COUNTIF($AN6:$AW6,"4")+COUNTIF($AB6:$AK6,"4")+COUNTIF($Q6:$Z6,"4") -> 0 | FZ6: =IF(COUNTIF(FX$6:FX$64,FX6)>1,RANK(FY6,FY$6:FY$64,0)/1000,0) -> 0 | GA6: =FX6+FZ6 -> 3 | GB6: =RANK(GA6,GA$6:GA$64,1) -> 3 | GC6: =COUNTIF($AN6:$AW6,"5")+COUNTIF($AB6:$AK6,"5")+COUNTIF($Q6:$Z6,"5") -> 0 | GD6: =IF(COUNTIF(GB$6:GB$64,GB6)>1,RANK(GC6,GC$6:GC$64,0)/1000,0) -> 0 | GE6: =GB6+GD6 -> 3 | GF6: =RANK(GE6,GE$6:GE$64,1) -> 3 | GG6: =COUNTIF($AN6:$AW6,"6")+COUNTIF($AB6:$AK6,"6")+COUNTIF($Q6:$Z6,"6") -> 0 | GH6: =IF(COUNTIF(GF$6:GF$64,GF6)>1,RANK(GG6,GG$6:GG$64,0)/1000,0) -> 0 | GI6: =GF6+GH6 -> 3 | GJ6: =RANK(GI6,GI$6:GI$64,1) -> 3 | GN6: =SUM(Q6:Z6,AB6:AK6,AN6:AW6,AZ6:BI6) -> 10 | GO6: =IF(BK6=GN6,"YES","NO") -> YES | GP6: =BJ6+AX6+AL6+AA6 -> 10 | GQ6: =IF(BK6=GP6,"YES","NO") -> YES | GS6: =COUNTIF($AB6:$AK6,"0")+COUNTIF($Q6:$Z6,"0") -> 7 | GT6: =IF(COUNTIF($AM$6:$AM$64,AM6)>1,RANK(GS6,GS$6:GS$64,0)/1000,0) -> 0 | GU6: =CD6+GT6 -> 1 | GV6: =RANK(GU6,GU$6:GU$64,1) -> 1 | GW6: =COUNTIF($AB6:$AK6,"1")+COUNTIF($Q6:$Z6,"1") -> 4 | GX6: =IF(COUNTIF(GV$6:GV$64,GV6)>1,RANK(GW6,GW$6:GW$64,0)/1000,0) -> 0 | GY6: =GV6+GX6 -> 1 | GZ6: =RANK(GY6,GY$6:GY$64,1) -> 1 | HA6: =COUNTIF($AB6:$AK6,"2")+COUNTIF($Q6:$Z6,"2") -> 1 | HB6: =IF(COUNTIF(GZ$6:GZ$64,GZ6)>1,RANK(HA6,HA$6:HA$64,0)/1000,0) -> 0 | HC6: =GZ6+HB6 -> 1 | HD6: =RANK(HC6,HC$6:HC$64,1) -> 1 | HE6: =+COUNTIF($AB6:$AK6,"3")+COUNTIF($Q6:$Z6,"3") -> 0 | HF6: =IF(COUNTIF(HD$6:HD$64,HD6)>1,RANK(HE6,HE$6:HE$64,0)/1000,0) -> 0 | HG6: =HD6+HF6 -> 1 | HH6: =RANK(HG6,HG$6:HG$64,1) -> 1 | HI6: =COUNTIF($AB6:$AK6,"4")+COUNTIF($Q6:$Z6,"4") -> 0 | HJ6: =IF(COUNTIF(HH$6:HH$64,HH6)>1,RANK(HI6,HI$6:HI$64,0)/1000,0) -> 0 | HK6: =HH6+HJ6 -> 1 | HL6: =RANK(HK6,HK$6:HK$64,1) -> 1 | HM6: =COUNTIF($AB6:$AK6,"5")+COUNTIF($Q6:$Z6,"5") -> 0 | HN6: =IF(COUNTIF(HL$6:HL$64,HL6)>1,RANK(HM6,HM$6:HM$64,0)/1000,0) -> 0 | HO6: =HL6+HN6 -> 1 | HP6: =RANK(HO6,HO$6:HO$64,1) -> 1 | HQ6: =COUNTIF($AB6:$AK6,"6")+COUNTIF($Q6:$Z6,"6") -> 0 | HR6: =IF(COUNTIF(HP$6:HP$64,HP6)>1,RANK(HQ6,HQ$6:HQ$64,0)/1000,0) -> 0 | HS6: =HP6+HR6 -> 1 | HT6: =RANK(HS6,HS$6:HS$64,1) -> 1 | HW6: =COUNTIF($Q6:$Z6,"0") -> 3 | HX6: =IF(COUNTIF($AA$6:$AA$64,AA6)>1,RANK(HW6,HW$6:HW$64,0)/1000,0) -> 0.001 | HY6: =CC6+HX6 -> 1.001 | HZ6: =RANK(HY6,HY$6:HY$64,1) -> 1 | IA6: =COUNTIF($Q6:$Z6,"1") -> 2 | IB6: =IF(COUNTIF(HZ$6:HZ$64,HZ6)>1,RANK(IA6,IA$6:IA$64,0)/1000,0) -> 0.001 | IC6: =HZ6+IB6 -> 1.001 | ID6: =RANK(IC6,IC$6:IC$64,1) -> 1 | IE6: =COUNTIF($Q6:$Z6,"2") -> 1 | IF6: =IF(COUNTIF(ID$6:ID$64,ID6)>1,RANK(IE6,IE$6:IE$64,0)/1000,0) -> 0.007 | IG6: =ID6+IF6 -> 1.007 | IH6: =RANK(IG6,IG$6:IG$64,1) -> 1 | II6: =COUNTIF($Q6:$Z6,"3") -> 0 | IJ6: =IF(COUNTIF(IH$6:IH$64,IH6)>1,RANK(II6,II$6:II$64,0)/1000,0) -> 0.001 | IK6: =IH6+IJ6 -> 1.001 | IL6: =RANK(IK6,IK$6:IK$64,1) -> 1 | IM6: =COUNTIF($Q6:$Z6,"4") -> 0 | IN6: =IF(COUNTIF(IL$6:IL$64,IL6)>1,RANK(IM6,IM$6:IM$64,0)/1000,0) -> 0.002 | IO6: =IL6+IN6 -> 1.002 | IP6: =RANK(IO6,IO$6:IO$64,1) -> 1 | IQ6: =COUNTIF($Q6:$Z6,"5") -> 0 | IR6: =IF(COUNTIF(IP$6:IP$64,IP6)>1,RANK(IQ6,IQ$6:IQ$64,0)/1000,0) -> 0.005 | IS6: =IP6+IR6 -> 1.005 | IT6: =RANK(IS6,IS$6:IS$64,1) -> 1 | IU6: =COUNTIF($Q6:$Z6,"6") -> 0 | IV6: =IF(COUNTIF(IT$6:IT$64,IT6)>1,RANK(IU6,IU$6:IU$64,0)/1000,0) -> 0.001 | IW6: =IT6+IV6 -> 1.001 | IX6: =RANK(IW6,IW$6:IW$64,1) -> 1
A7: =CB7 -> 11 | B7: 2 | C7: Darren Underwood | D7: Sue Underwood | E7: Crossle | G7: IRS | H7: Yes | N7: Ret/NS | P7: Blue | AA7: =IF(N7="Ret/NS",1000+SUM(Q7:Z7),IF(C7="",2000,SUM(Q7:Z7))) -> 1000 | AL7: =SUM(AB7:AK7) -> 0 | AM7: =IF(C7="",2000,AL7+AA7) -> 1000 | AX7: =SUM(AN7:AW7) -> 0 | AY7: =IF(C7="",2000,AM7+AX7) -> 1000 | BJ7: =SUM(AZ7:BI7) -> 0 | BK7: =IF(C7="",2000,AY7+BJ7) -> 1000 | BV7: =SUM(BL7:BU7) -> 0 | BW7: =IF(C7="",2000,BK7+BV7) -> 1000 | BX7: =IX7 -> 11 | BY7: =HT7 -> 11 | BZ7: =GJ7 -> 11 | CA7: =FG7 -> 11 | CB7: =EC7 -> 11 | CC7: 11 | CD7: 11 | CE7: 11 | CF7: 11 | CG7: 11 | CH7: =IF($P7=Constants!$B$2,RANK($CB7,$CB$6:$CB$64,1),"-") -> - | CI7: =IFERROR(RANK(CH7,$CH$6:$CH$64,1),"") ->  | CJ7: =IF($P7=Constants!$B$3,RANK($CB7,$CB$6:$CB$64,1),"-") -> 11 | CK7: =IFERROR(RANK(CJ7,$CJ$6:$CJ$64,1),"") ->  | CL7: =IF($P7=Constants!$B$4,RANK($CB7,$CB$6:$CB$64,1),"-") -> - | CM7: =IFERROR(RANK(CL7,$CL$6:$CL$64,1),"") ->  | CN7: =IF($O7=Constants!$C$2,RANK($CB7,$CB$6:$CB$64,1),"-") -> - | CO7: =IFERROR(RANK(CN7,$CN$6:$CN$64,1),"") ->  | CP7: =IF($O7=Constants!$C$3,RANK($CB7,$CB$6:$CB$64,1),"-") -> - | CQ7: =IFERROR(RANK(CP7,$CP$6:$CP$64,1),"") ->  | CR7: =IF($O7=Constants!$C$4,RANK($CB7,$CB$6:$CB$64,1),"-") -> - | CS7: =IFERROR(RANK(CR7,$CR$6:$CR$64,1),"") ->  | CT7: =IF($G7=Constants!$D$4,RANK($CB7,$CB$6:$CB$64,1),"-") -> - | CU7: =IFERROR(RANK(CT7,$CT$6:$CT$64,1)," ") ->  | CV7: =IF($G7=Constants!$D$2,RANK($CB7,$CB$6:$CB$64,1),"-") -> - | CW7: =IFERROR(RANK(CV7,$CV$6:$CV$64,1)," ") ->  | CX7: =CI7&CK7&CM7&CO7&CQ7&CS7&CU7 ->  | CY7: Blue | CZ7: IRS | DB7: 0 | DC7: 0.009 | DD7: =CG7+DC7 -> 11.009 | DE7: =RANK(DD7,DD$6:DD$64,1) -> 11 | DF7: 0 | DG7: =IF(COUNTIF(DE$6:DE$64,DE7)>1,RANK(DF7,DF$6:DF$64,0)/1000,0) -> 0.01 | DH7: =DE7+DG7 -> 11.01 | DI7: =RANK(DH7,DH$6:DH$64,1) -> 11 | DJ7: 0 | DK7: =IF(COUNTIF(DI$6:DI$64,DI7)>1,RANK(DJ7,DJ$6:DJ$64,0)/1000,0) -> 0.011 | DL7: =DI7+DK7 -> 11.011 | DM7: =RANK(DL7,DL$6:DL$64,1) -> 11 | DN7: 0 | DO7: =IF(COUNTIF(DM$6:DM$64,DM7)>1,RANK(DN7,DN$6:DN$64,0)/1000,0) -> 0.005 | DP7: =DM7+DO7 -> 11.005 | DQ7: =RANK(DP7,DP$6:DP$64,1) -> 11 | DR7: 0 | DS7: =IF(COUNTIF(DQ$6:DQ$64,DQ7)>1,RANK(DR7,DR$6:DR$64,0)/1000,0) -> 0.004 | DT7: =DQ7+DS7 -> 11.004 | DU7: =RANK(DT7,DT$6:DT$64,1) -> 11 | DV7: 0 | DW7: =IF(COUNTIF(DU$6:DU$64,DU7)>1,RANK(DV7,DV$6:DV$64,0)/1000,0) -> 0.006 | DX7: =DU7+DW7 -> 11.006 | DY7: =RANK(DX7,DX$6:DX$64,1) -> 11 | DZ7: 0 | EA7: =IF(COUNTIF(DY$6:DY$64,DY7)>1,RANK(DZ7,DZ$6:DZ$64,0)/1000,0) -> 0.004 | EB7: =DY7+EA7 -> 11.004 | EC7: =RANK(EB7,EB$6:EB$64,1) -> 11 | EF7: 0 | EG7: 0.009 | EH7: =CF7+EG7 -> 11.009 | EI7: =RANK(EH7,EH$6:EH$64,1) -> 11 | EJ7: 0 | EK7: =IF(COUNTIF(EI$6:EI$64,EI7)>1,RANK(EJ7,EJ$6:EJ$64,0)/1000,0) -> 0.01 | EL7: =EI7+EK7 -> 11.01 | EM7: =RANK(EL7,EL$6:EL$64,1) -> 11 | EN7: 0 | EO7: =IF(COUNTIF(EM$6:EM$64,EM7)>1,RANK(EN7,EN$6:EN$64,0)/1000,0) -> 0.011 | EP7: =EM7+EO7 -> 11.011 | EQ7: =RANK(EP7,EP$6:EP$64,1) -> 11 | ER7: 0 | ES7: =IF(COUNTIF(EQ$6:EQ$64,EQ7)>1,RANK(ER7,ER$6:ER$64,0)/1000,0) -> 0.005 | ET7: =EQ7+ES7 -> 11.005 | EU7: =RANK(ET7,ET$6:ET$64,1) -> 11 | EV7: 0 | EW7: =IF(COUNTIF(EU$6:EU$64,EU7)>1,RANK(EV7,EV$6:EV$64,0)/1000,0) -> 0.004 | EX7: =EU7+EW7 -> 11.004 | EY7: =RANK(EX7,EX$6:EX$64,1) -> 11 | EZ7: 0 | FA7: =IF(COUNTIF(EY$6:EY$64,EY7)>1,RANK(EZ7,EZ$6:EZ$64,0)/1000,0) -> 0.006 | FB7: =EY7+FA7 -> 11.006 | FC7: =RANK(FB7,FB$6:FB$64,1) -> 11 | FD7: 0 | FE7: =IF(COUNTIF(FC$6:FC$64,FC7)>1,RANK(FD7,FD$6:FD$64,0)/1000,0) -> 0.004 | FF7: =FC7+FE7 -> 11.004 | FG7: =RANK(FF7,FF$6:FF$64,1) -> 11 | FI7: 0 | FJ7: 0.009 | FK7: 11.009 | FL7: =RANK(FK7,FK$6:FK$64,1) -> 11 | FM7: 0 | FN7: =IF(COUNTIF(FL$6:FL$64,FL7)>1,RANK(FM7,FM$6:FM$64,0)/1000,0) -> 0.009 | FO7: =FL7+FN7 -> 11.009 | FP7: =RANK(FO7,FO$6:FO$64,1) -> 11 | FQ7: 0 | FR7: =IF(COUNTIF(FP$6:FP$64,FP7)>1,RANK(FQ7,FQ$6:FQ$64,0)/1000,0) -> 0.011 | FS7: =FP7+FR7 -> 11.011 | FT7: =RANK(FS7,FS$6:FS$64,1) -> 11 | FU7: 0 | FV7: =IF(COUNTIF(FT$6:FT$64,FT7)>1,RANK(FU7,FU$6:FU$64,0)/1000,0) -> 0.005 | FW7: =FT7+FV7 -> 11.005 | FX7: =RANK(FW7,FW$6:FW$64,1) -> 11 | FY7: 0 | FZ7: =IF(COUNTIF(FX$6:FX$64,FX7)>1,RANK(FY7,FY$6:FY$64,0)/1000,0) -> 0.004 | GA7: =FX7+FZ7 -> 11.004 | GB7: =RANK(GA7,GA$6:GA$64,1) -> 11 | GC7: 0 | GD7: =IF(COUNTIF(GB$6:GB$64,GB7)>1,RANK(GC7,GC$6:GC$64,0)/1000,0) -> 0.006 | GE7: =GB7+GD7 -> 11.006 | GF7: =RANK(GE7,GE$6:GE$64,1) -> 11 | GG7: 0 | GH7: =IF(COUNTIF(GF$6:GF$64,GF7)>1,RANK(GG7,GG$6:GG$64,0)/1000,0) -> 0.004 | GI7: =GF7+GH7 -> 11.004 | GJ7: =RANK(GI7,GI$6:GI$64,1) -> 11 | GN7: 0 | GO7: NO | GP7: 1000 | GQ7: YES | GS7: 0 | GT7: 0.009 | GU7: 11.009 | GV7: =RANK(GU7,GU$6:GU$64,1) -> 11 | GW7: 0 | GX7: =IF(COUNTIF(GV$6:GV$64,GV7)>1,RANK(GW7,GW$6:GW$64,0)/1000,0) -> 0.009 | GY7: =GV7+GX7 -> 11.009 | GZ7: =RANK(GY7,GY$6:GY$64,1) -> 11 | HA7: 0 | HB7: =IF(COUNTIF(GZ$6:GZ$64,GZ7)>1,RANK(HA7,HA$6:HA$64,0)/1000,0) -> 0.011 | HC7: =GZ7+HB7 -> 11.011 | HD7: =RANK(HC7,HC$6:HC$64,1) -> 11 | HE7: 0 | HF7: =IF(COUNTIF(HD$6:HD$64,HD7)>1,RANK(HE7,HE$6:HE$64,0)/1000,0) -> 0.003 | HG7: =HD7+HF7 -> 11.003 | HH7: =RANK(HG7,HG$6:HG$64,1) -> 11 | HI7: 0 | HJ7: =IF(COUNTIF(HH$6:HH$64,HH7)>1,RANK(HI7,HI$6:HI$64,0)/1000,0) -> 0.004 | HK7: =HH7+HJ7 -> 11.004 | HL7: =RANK(HK7,HK$6:HK$64,1) -> 11 | HM7: 0 | HN7: =IF(COUNTIF(HL$6:HL$64,HL7)>1,RANK(HM7,HM$6:HM$64,0)/1000,0) -> 0.006 | HO7: =HL7+HN7 -> 11.006 | HP7: =RANK(HO7,HO$6:HO$64,1) -> 11 | HQ7: 0 | HR7: =IF(COUNTIF(HP$6:HP$64,HP7)>1,RANK(HQ7,HQ$6:HQ$64,0)/1000,0) -> 0.002 | HS7: =HP7+HR7 -> 11.002 | HT7: =RANK(HS7,HS$6:HS$64,1) -> 11 | HW7: 0 | HX7: 0.009 | HY7: 11.009 | HZ7: =RANK(HY7,HY$6:HY$64,1) -> 11 | IA7: 0 | IB7: =IF(COUNTIF(HZ$6:HZ$64,HZ7)>1,RANK(IA7,IA$6:IA$64,0)/1000,0) -> 0.007 | IC7: =HZ7+IB7 -> 11.007 | ID7: =RANK(IC7,IC$6:IC$64,1) -> 11 | IE7: 0 | IF7: =IF(COUNTIF(ID$6:ID$64,ID7)>1,RANK(IE7,IE$6:IE$64,0)/1000,0) -> 0.011 | IG7: =ID7+IF7 -> 11.011 | IH7: =RANK(IG7,IG$6:IG$64,1) -> 11 | II7: 0 | IJ7: =IF(COUNTIF(IH$6:IH$64,IH7)>1,RANK(II7,II$6:II$64,0)/1000,0) -> 0.001 | IK7: =IH7+IJ7 -> 11.001 | IL7: =RANK(IK7,IK$6:IK$64,1) -> 11 | IM7: 0 | IN7: =IF(COUNTIF(IL$6:IL$64,IL7)>1,RANK(IM7,IM$6:IM$64,0)/1000,0) -> 0.002 | IO7: =IL7+IN7 -> 11.002 | IP7: =RANK(IO7,IO$6:IO$64,1) -> 11 | IQ7: 0 | IR7: =IF(COUNTIF(IP$6:IP$64,IP7)>1,RANK(IQ7,IQ$6:IQ$64,0)/1000,0) -> 0.005 | IS7: =IP7+IR7 -> 11.005 | IT7: =RANK(IS7,IS$6:IS$64,1) -> 11 | IU7: 0 | IV7: =IF(COUNTIF(IT$6:IT$64,IT7)>1,RANK(IU7,IU$6:IU$64,0)/1000,0) -> 0.001 | IW7: =IT7+IV7 -> 11.001 | IX7: =RANK(IW7,IW$6:IW$64,1) -> 11
A8: 5 | B8: 3 | C8: George Barnes | D8: Rob Uryc | E8: Sherpa | G8: Live | H8: Yes | P8: Red | Q8: 0 | R8: 0 | S8: 2 | T8: 0 | U8: 1 | V8: 1 | AA8: 4 | AB8: 0 | AC8: 0 | AD8: 1 | AE8: 1 | AF8: 6 | AG8: 0 | AL8: 8 | AM8: 12 | AN8: 0 | AO8: 2 | AP8: 0 | AQ8: 1 | AR8: 0 | AS8: 0 | AX8: 3 | AY8: 15 | AZ8: 0 | BA8: 2 | BB8: 0 | BC8: 1 | BD8: 1 | BE8: 0 | BJ8: 4 | BK8: 19 | BV8: 0 | BW8: 19 | BX8: 1 | BY8: 5 | BZ8: 5 | CA8: 5 | CB8: 5 | CC8: 1 | CD8: 5 | CE8: 5 | CF8: 5 | CG8: 5 | CH8: =IF($P8=Constants!$B$2,RANK($CB8,$CB$6:$CB$64,1),"-") -> 5 | CJ8: =IF($P8=Constants!$B$3,RANK($CB8,$CB$6:$CB$64,1),"-") -> - | CL8: =IF($P8=Constants!$B$4,RANK($CB8,$CB$6:$CB$64,1),"-") -> - | CN8: =IF($O8=Constants!$C$2,RANK($CB8,$CB$6:$CB$64,1),"-") -> - | CP8: =IF($O8=Constants!$C$3,RANK($CB8,$CB$6:$CB$64,1),"-") -> - | CR8: =IF($O8=Constants!$C$4,RANK($CB8,$CB$6:$CB$64,1),"-") -> - | CT8: =IF($G8=Constants!$D$4,RANK($CB8,$CB$6:$CB$64,1),"-") -> - | CV8: =IF($G8=Constants!$D$2,RANK($CB8,$CB$6:$CB$64,1),"-") -> 5 | CY8: Red | CZ8: Live | DB8: 13 | DC8: 0 | DD8: 5 | DE8: 5 | DF8: 7 | DG8: 0 | DH8: 5 | DI8: 5 | DJ8: 3 | DK8: 0 | DL8: 5 | DM8: 5 | DN8: 0 | DO8: 0 | DP8: 5 | DQ8: 5 | DR8: 0 | DS8: 0 | DT8: 5 | DU8: 5 | DV8: 0 | DW8: 0 | DX8: 5 | DY8: 5 | DZ8: 1 | EA8: 0 | EB8: 5 | EC8: 5 | EF8: 13 | EG8: 0 | EH8: 5 | EI8: 5 | EJ8: 7 | EK8: 0 | EL8: 5 | EM8: 5 | EN8: 3 | EO8: 0 | EP8: 5 | EQ8: 5 | ER8: 0 | ES8: 0 | ET8: 5 | EU8: 5 | EV8: 0 | EW8: 0 | EX8: 5 | EY8: 5 | EZ8: 0 | FA8: 0 | FB8: 5 | FC8: 5 | FD8: 1 | FE8: 0 | FF8: 5 | FG8: 5 | FI8: 10 | FJ8: 0 | FK8: 5 | FL8: 5 | FM8: 5 | FN8: 0 | FO8: 5 | FP8: 5 | FQ8: 2 | FR8: 0 | FS8: 5 | FT8: 5 | FU8: 0 | FV8: 0 | FW8: 5 | FX8: 5 | FY8: 0 | FZ8: 0 | GA8: 5 | GB8: 5 | GC8: 0 | GD8: 0 | GE8: 5 | GF8: 5 | GG8: 1 | GH8: 0 | GI8: 5 | GJ8: 5 | GN8: 19 | GO8: YES | GP8: 19 | GQ8: YES | GS8: 6 | GT8: 0 | GU8: 5 | GV8: 5 | GW8: 4 | GX8: 0 | GY8: 5 | GZ8: 5 | HA8: 1 | HB8: 0 | HC8: 5 | HD8: 5 | HE8: 0 | HF8: 0 | HG8: 5 | HH8: 5 | HI8: 0 | HJ8: 0 | HK8: 5 | HL8: 5 | HM8: 0 | HN8: 0 | HO8: 5 | HP8: 5 | HQ8: 1 | HR8: 0 | HS8: 5 | HT8: 5 | HW8: 3 | HX8: 0.001 | HY8: 1.001 | HZ8: 1 | IA8: 2 | IB8: 0.001 | IC8: 1.001 | ID8: 1 | IE8: 1 | IF8: 0.007 | IG8: 1.007 | IH8: 1 | II8: 0 | IJ8: 0.001 | IK8: 1.001 | IL8: 1 | IM8: 0 | IN8: 0.002 | IO8: 1.002 | IP8: 1 | IQ8: 0 | IR8: 0.005 | IS8: 1.005 | IT8: 1 | IU8: 0 | IV8: 0.001 | IW8: 1.001 | IX8: 1
A9: 10 | B9: 4 | C9: Trevor Wood | D9: Ralph Brown | E9: MSR | G9: IRS | H9: Yes | P9: Rookie | Q9: 9 | R9: 2 | S9: 8 | T9: 9 | U9: 10 | V9: 8 | AA9: 46 | AB9: 5 | AC9: 2 | AD9: 3 | AE9: 10 | AF9: 11 | AG9: 8 | AL9: 39 | AM9: 85 | AN9: 6 | AO9: 9 | AP9: 2 | AQ9: 9 | AR9: 10 | AS9: 11 | AX9: 47 | AY9: 132 | AZ9: 8 | BA9: 11 | BB9: 3 | BC9: 9 | BD9: 11 | BE9: 11 | BJ9: 53 | BK9: 185 | BV9: 0 | BW9: 185 | BX9: 10 | BY9: 10 | BZ9: 10 | CA9: 10 | CB9: 10 | CC9: 10 | CD9: 10 | CE9: 10 | CF9: 10 | CG9: 10 | CH9: =IF($P9=Constants!$B$2,RANK($CB9,$CB$6:$CB$64,1),"-") -> - | CJ9: =IF($P9=Constants!$B$3,RANK($CB9,$CB$6:$CB$64,1),"-") -> - | CL9: =IF($P9=Constants!$B$4,RANK($CB9,$CB$6:$CB$64,1),"-") -> 10 | CN9: =IF($O9=Constants!$C$2,RANK($CB9,$CB$6:$CB$64,1),"-") -> - | CP9: =IF($O9=Constants!$C$3,RANK($CB9,$CB$6:$CB$64,1),"-") -> - | CR9: =IF($O9=Constants!$C$4,RANK($CB9,$CB$6:$CB$64,1),"-") -> - | CT9: =IF($G9=Constants!$D$4,RANK($CB9,$CB$6:$CB$64,1),"-") -> - | CV9: =IF($G9=Constants!$D$2,RANK($CB9,$CB$6:$CB$64,1),"-") -> - | CY9: Rookie | CZ9: IRS | DB9: 0 | DC9: 0 | DD9: 10 | DE9: 10 | DF9: 0 | DG9: 0 | DH9: 10 | DI9: 10 | DJ9: 3 | DK9: 0 | DL9: 10 | DM9: 10 | DN9: 2 | DO9: 0 | DP9: 10 | DQ9: 10 | DR9: 0 | DS9: 0 | DT9: 10 | DU9: 10 | DV9: 1 | DW9: 0 | DX9: 10 | DY9: 10 | DZ9: 1 | EA9: 0 | EB9: 10 | EC9: 10 | EF9: 0 | EG9: 0 | EH9: 10 | EI9: 10 | EJ9: 0 | EK9: 0 | EL9: 10 | EM9: 10 | EN9: 3 | EO9: 0 | EP9: 10 | EQ9: 10 | ER9: 2 | ES9: 0 | ET9: 10 | EU9: 10 | EV9: 0 | EW9: 0 | EX9: 10 | EY9: 10 | EZ9: 1 | FA9: 0 | FB9: 10 | FC9: 10 | FD9: 1 | FE9: 0 | FF9: 10 | FG9: 10 | FI9: 0 | FJ9: 0 | FK9: 10 | FL9: 10 | FM9: 0 | FN9: 0 | FO9: 10 | FP9: 10 | FQ9: 3 | FR9: 0 | FS9: 10 | FT9: 10 | FU9: 1 | FV9: 0 | FW9: 10 | FX9: 10 | FY9: 0 | FZ9: 0 | GA9: 10 | GB9: 10 | GC9: 1 | GD9: 0 | GE9: 10 | GF9: 10 | GG9: 1 | GH9: 0 | GI9: 10 | GJ9: 10 | GN9: 185 | GO9: YES | GP9: 185 | GQ9: YES | GS9: 0 | GT9: 0 | GU9: 10 | GV9: 10 | GW9: 0 | GX9: 0 | GY9: 10 | GZ9: 10 | HA9: 2 | HB9: 0 | HC9: 10 | HD9: 10 | HE9: 1 | HF9: 0 | HG9: 10 | HH9: 10 | HI9: 0 | HJ9: 0 | HK9: 10 | HL9: 10 | HM9: 1 | HN9: 0 | HO9: 10 | HP9: 10 | HQ9: 0 | HR9: 0 | HS9: 10 | HT9: 10 | HW9: 0 | HX9: 0 | HY9: 10 | HZ9: 10 | IA9: 0 | IB9: 0 | IC9: 10 | ID9: 10 | IE9: 1 | IF9: 0 | IG9: 10 | IH9: 10 | II9: 0 | IJ9: 0 | IK9: 10 | IL9: 10 | IM9: 0 | IN9: 0 | IO9: 10 | IP9: 10 | IQ9: 0 | IR9: 0 | IS9: 10 | IT9: 10 | IU9: 0 | IV9: 0 | IW9: 10 | IX9: 10
A10: 2 | B10: 5 | C10: Ian Wright | D10: Chris Taylor | E10: Sherpa Indy | G10: IRS | H10: Yes | P10: Red | Q10: 0 | R10: 1 | S10: 2 | T10: 0 | U10: 2 | V10: 1 | AA10: 6 | AB10: 0 | AC10: 0 | AD10: 0 | AE10: 1 | AF10: 1 | AG10: 0 | AL10: 2 | AM10: 8 | AN10: 0 | AO10: 0 | AP10: 0 | AQ10: 0 | AR10: 0 | AS10: 0 | AX10: 0 | AY10: 8 | AZ10: 0 | BA10: 2 | BB10: 2 | BC10: 0 | BD10: 2 | BE10: 0 | BJ10: 6 | BK10: 14 | BV10: 0 | BW10: 14 | BX10: 4 | BY10: 2 | BZ10: 1 | CA10: 2 | CB10: 2 | CC10: 4 | CD10: 2 | CE10: 1 | CF10: 2 | CG10: 2 | CH10: =IF($P10=Constants!$B$2,RANK($CB10,$CB$6:$CB$64,1),"-") -> 2 | CJ10: =IF($P10=Constants!$B$3,RANK($CB10,$CB$6:$CB$64,1),"-") -> - | CL10: =IF($P10=Constants!$B$4,RANK($CB10,$CB$6:$CB$64,1),"-") -> - | CN10: =IF($O10=Constants!$C$2,RANK($CB10,$CB$6:$CB$64,1),"-") -> - | CP10: =IF($O10=Constants!$C$3,RANK($CB10,$CB$6:$CB$64,1),"-") -> - | CR10: =IF($O10=Constants!$C$4,RANK($CB10,$CB$6:$CB$64,1),"-") -> - | CT10: =IF($G10=Constants!$D$4,RANK($CB10,$CB$6:$CB$64,1),"-") -> - | CV10: =IF($G10=Constants!$D$2,RANK($CB10,$CB$6:$CB$64,1),"-") -> - | CY10: Red | CZ10: IRS | DB10: 15 | DC10: 0 | DD10: 2 | DE10: 2 | DF10: 4 | DG10: 0 | DH10: 2 | DI10: 2 | DJ10: 5 | DK10: 0 | DL10: 2 | DM10: 2 | DN10: 0 | DO10: 0 | DP10: 2 | DQ10: 2 | DR10: 0 | DS10: 0 | DT10: 2 | DU10: 2 | DV10: 0 | DW10: 0 | DX10: 2 | DY10: 2 | DZ10: 0 | EA10: 0 | EB10: 2 | EC10: 2 | EF10: 15 | EG10: 0 | EH10: 2 | EI10: 2 | EJ10: 4 | EK10: 0 | EL10: 2 | EM10: 2 | EN10: 5 | EO10: 0 | EP10: 2 | EQ10: 2 | ER10: 0 | ES10: 0 | ET10: 2 | EU10: 2 | EV10: 0 | EW10: 0 | EX10: 2 | EY10: 2 | EZ10: 0 | FA10: 0 | FB10: 2 | FC10: 2 | FD10: 0 | FE10: 0 | FF10: 2 | FG10: 2 | FI10: 12 | FJ10: 0.001 | FK10: 1.001 | FL10: 1 | FM10: 4 | FN10: 0.003 | FO10: 1.003 | FP10: 1 | FQ10: 2 | FR10: 0.006 | FS10: 1.006 | FT10: 1 | FU10: 0 | FV10: 0.005 | FW10: 1.005 | FX10: 1 | FY10: 0 | FZ10: 0.004 | GA10: 1.004 | GB10: 1 | GC10: 0 | GD10: 0.006 | GE10: 1.006 | GF10: 1 | GG10: 0 | GH10: 0.004 | GI10: 1.004 | GJ10: 1 | GN10: 14 | GO10: YES | GP10: 14 | GQ10: YES | GS10: 6 | GT10: 0.003 | GU10: 2.003 | GV10: 2 | GW10: 4 | GX10: 0.001 | GY10: 2.001 | GZ10: 2 | HA10: 2 | HB10: 0.004 | HC10: 2.004 | HD10: 2 | HE10: 0 | HF10: 0.003 | HG10: 2.003 | HH10: 2 | HI10: 0 | HJ10: 0.004 | HK10: 2.004 | HL10: 2 | HM10: 0 | HN10: 0.006 | HO10: 2.006 | HP10: 2 | HQ10: 0 | HR10: 0.002 | HS10: 2.002 | HT10: 2 | HW10: 2 | HX10: 0 | HY10: 4 | HZ10: 4 | IA10: 2 | IB10: 0 | IC10: 4 | ID10: 4 | IE10: 2 | IF10: 0 | IG10: 4 | IH10: 4 | II10: 0 | IJ10: 0 | IK10: 4 | IL10: 4 | IM10: 0 | IN10: 0 | IO10: 4 | IP10: 4 | IQ10: 0 | IR10: 0 | IS10: 4 | IT10: 4 | IU10: 0 | IV10: 0 | IW10: 4 | IX10: 4
A11: 6 | B11: 6 | C11: Peter Fensom | D11: Liz Fensom | E11: Hamilton | G11: IRS | H11: Yes | P11: Red | Q11: 0 | R11: 2 | S11: 2 | T11: 0 | U11: 2 | V11: 1 | AA11: 7 | AB11: 0 | AC11: 0 | AD11: 2 | AE11: 4 | AF11: 2 | AG11: 0 | AL11: 8 | AM11: 15 | AN11: 0 | AO11: 2 | AP11: 2 | AQ11: 1 | AR11: 0 | AS11: 0 | AX11: 5 | AY11: 20 | AZ11: 12 | BA11: 2 | BB11: 2 | BC11: 2 | BD11: 2 | BE11: 0 | BJ11: 20 | BK11: 40 | BV11: 0 | BW11: 40 | BX11: 5 | BY11: 6 | BZ11: 6 | CA11: 6 | CB11: 6 | CC11: 5 | CD11: 6 | CE11: 6 | CF11: 6 | CG11: 6 | CH11: =IF($P11=Constants!$B$2,RANK($CB11,$CB$6:$CB$64,1),"-") -> 6 | CJ11: =IF($P11=Constants!$B$3,RANK($CB11,$CB$6:$CB$64,1),"-") -> - | CL11: =IF($P11=Constants!$B$4,RANK($CB11,$CB$6:$CB$64,1),"-") -> - | CN11: =IF($O11=Constants!$C$2,RANK($CB11,$CB$6:$CB$64,1),"-") -> - | CP11: =IF($O11=Constants!$C$3,RANK($CB11,$CB$6:$CB$64,1),"-") -> - | CR11: =IF($O11=Constants!$C$4,RANK($CB11,$CB$6:$CB$64,1),"-") -> - | CT11: =IF($G11=Constants!$D$4,RANK($CB11,$CB$6:$CB$64,1),"-") -> - | CV11: =IF($G11=Constants!$D$2,RANK($CB11,$CB$6:$CB$64,1),"-") -> - | CY11: Red | CZ11: IRS | DB11: 9 | DC11: 0 | DD11: 6 | DE11: 6 | DF11: 2 | DG11: 0 | DH11: 6 | DI11: 6 | DJ11: 11 | DK11: 0 | DL11: 6 | DM11: 6 | DN11: 0 | DO11: 0 | DP11: 6 | DQ11: 6 | DR11: 1 | DS11: 0 | DT11: 6 | DU11: 6 | DV11: 0 | DW11: 0 | DX11: 6 | DY11: 6 | DZ11: 0 | EA11: 0 | EB11: 6 | EC11: 6 | EF11: 9 | EG11: 0 | EH11: 6 | EI11: 6 | EJ11: 2 | EK11: 0 | EL11: 6 | EM11: 6 | EN11: 11 | EO11: 0 | EP11: 6 | EQ11: 6 | ER11: 0 | ES11: 0 | ET11: 6 | EU11: 6 | EV11: 1 | EW11: 0 | EX11: 6 | EY11: 6 | EZ11: 0 | FA11: 0 | FB11: 6 | FC11: 6 | FD11: 0 | FE11: 0 | FF11: 6 | FG11: 6 | FI11: 8 | FJ11: 0 | FK11: 6 | FL11: 6 | FM11: 2 | FN11: 0 | FO11: 6 | FP11: 6 | FQ11: 7 | FR11: 0 | FS11: 6 | FT11: 6 | FU11: 0 | FV11: 0 | FW11: 6 | FX11: 6 | FY11: 1 | FZ11: 0 | GA11: 6 | GB11: 6 | GC11: 0 | GD11: 0 | GE11: 6 | GF11: 6 | GG11: 0 | GH11: 0 | GI11: 6 | GJ11: 6 | GN11: 40 | GO11: YES | GP11: 40 | GQ11: YES | GS11: 5 | GT11: 0 | GU11: 6 | GV11: 6 | GW11: 1 | GX11: 0 | GY11: 6 | GZ11: 6 | HA11: 5 | HB11: 0 | HC11: 6 | HD11: 6 | HE11: 0 | HF11: 0 | HG11: 6 | HH11: 6 | HI11: 1 | HJ11: 0 | HK11: 6 | HL11: 6 | HM11: 0 | HN11: 0 | HO11: 6 | HP11: 6 | HQ11: 0 | HR11: 0 | HS11: 6 | HT11: 6 | HW11: 2 | HX11: 0 | HY11: 5 | HZ11: 5 | IA11: 1 | IB11: 0 | IC11: 5 | ID11: 5 | IE11: 3 | IF11: 0 | IG11: 5 | IH11: 5 | II11: 0 | IJ11: 0 | IK11: 5 | IL11: 5 | IM11: 0 | IN11: 0 | IO11: 5 | IP11: 5 | IQ11: 0 | IR11: 0 | IS11: 5 | IT11: 5 | IU11: 0 | IV11: 0 | IW11: 5 | IX11: 5
A12: 9 | B12: 7 | C12: Ian Brooks | D12: Matt Sunderland | E12: Sabson | G12: Live | H12: Yes | P12: Rookie | Q12: 8 | R12: 2 | S12: 2 | T12: 5 | U12: 9 | V12: 8 | AA12: 34 | AB12: 8 | AC12: 3 | AD12: 4 | AE12: 9 | AF12: 9 | AG12: 1 | AL12: 34 | AM12: 68 | AN12: 2 | AO12: 8 | AP12: 4 | AQ12: 6 | AR12: 10 | AS12: 11 | AX12: 41 | AY12: 109 | AZ12: 2 | BA12: 11 | BB12: 2 | BC12: 10 | BD12: 10 | BE12: 11 | BJ12: 46 | BK12: 155 | BV12: 0 | BW12: 155 | BX12: 9 | BY12: 9 | BZ12: 9 | CA12: 9 | CB12: 9 | CC12: 9 | CD12: 9 | CE12: 9 | CF12: 9 | CG12: 9 | CH12: =IF($P12=Constants!$B$2,RANK($CB12,$CB$6:$CB$64,1),"-") -> - | CJ12: =IF($P12=Constants!$B$3,RANK($CB12,$CB$6:$CB$64,1),"-") -> - | CL12: =IF($P12=Constants!$B$4,RANK($CB12,$CB$6:$CB$64,1),"-") -> 9 | CN12: =IF($O12=Constants!$C$2,RANK($CB12,$CB$6:$CB$64,1),"-") -> - | CP12: =IF($O12=Constants!$C$3,RANK($CB12,$CB$6:$CB$64,1),"-") -> - | CR12: =IF($O12=Constants!$C$4,RANK($CB12,$CB$6:$CB$64,1),"-") -> - | CT12: =IF($G12=Constants!$D$4,RANK($CB12,$CB$6:$CB$64,1),"-") -> - | CV12: =IF($G12=Constants!$D$2,RANK($CB12,$CB$6:$CB$64,1),"-") -> 9 | CY12: Rookie | CZ12: Live | DB12: 0 | DC12: 0 | DD12: 9 | DE12: 9 | DF12: 1 | DG12: 0 | DH12: 9 | DI12: 9 | DJ12: 5 | DK12: 0 | DL12: 9 | DM12: 9 | DN12: 1 | DO12: 0 | DP12: 9 | DQ12: 9 | DR12: 2 | DS12: 0 | DT12: 9 | DU12: 9 | DV12: 1 | DW12: 0 | DX12: 9 | DY12: 9 | DZ12: 1 | EA12: 0 | EB12: 9 | EC12: 9 | EF12: 0 | EG12: 0 | EH12: 9 | EI12: 9 | EJ12: 1 | EK12: 0 | EL12: 9 | EM12: 9 | EN12: 5 | EO12: 0 | EP12: 9 | EQ12: 9 | ER12: 1 | ES12: 0 | ET12: 9 | EU12: 9 | EV12: 2 | EW12: 0 | EX12: 9 | EY12: 9 | EZ12: 1 | FA12: 0 | FB12: 9 | FC12: 9 | FD12: 1 | FE12: 0 | FF12: 9 | FG12: 9 | FI12: 0 | FJ12: 0 | FK12: 9 | FL12: 9 | FM12: 1 | FN12: 0 | FO12: 9 | FP12: 9 | FQ12: 3 | FR12: 0 | FS12: 9 | FT12: 9 | FU12: 1 | FV12: 0 | FW12: 9 | FX12: 9 | FY12: 2 | FZ12: 0 | GA12: 9 | GB12: 9 | GC12: 1 | GD12: 0 | GE12: 9 | GF12: 9 | GG12: 1 | GH12: 0 | GI12: 9 | GJ12: 9 | GN12: 155 | GO12: YES | GP12: 155 | GQ12: YES | GS12: 0 | GT12: 0 | GU12: 9 | GV12: 9 | GW12: 1 | GX12: 0 | GY12: 9 | GZ12: 9 | HA12: 2 | HB12: 0 | HC12: 9 | HD12: 9 | HE12: 1 | HF12: 0 | HG12: 9 | HH12: 9 | HI12: 1 | HJ12: 0 | HK12: 9 | HL12: 9 | HM12: 1 | HN12: 0 | HO12: 9 | HP12: 9 | HQ12: 0 | HR12: 0 | HS12: 9 | HT12: 9 | HW12: 0 | HX12: 0 | HY12: 9 | HZ12: 9 | IA12: 0 | IB12: 0 | IC12: 9 | ID12: 9 | IE12: 2 | IF12: 0 | IG12: 9 | IH12: 9 | II12: 0 | IJ12: 0 | IK12: 9 | IL12: 9 | IM12: 0 | IN12: 0 | IO12: 9 | IP12: 9 | IQ12: 1 | IR12: 0 | IS12: 9 | IT12: 9 | IU12: 0 | IV12: 0 | IW12: 9 | IX12: 9
A13: 4 | B13: 8 | C13: Tom Bricknell | D13: Andy Beveridge | E13: Crossle | G13: IRS | H13: Yes | P13: Red | Q13: 0 | R13: 0 | S13: 0 | T13: 5 | U13: 2 | V13: 2 | AA13: 9 | AB13: 0 | AC13: 0 | AD13: 0 | AE13: 1 | AF13: 0 | AG13: 0 | AL13: 1 | AM13: 10 | AN13: 3 | AO13: 0 | AP13: 0 | AQ13: 1 | AR13: 0 | AS13: 0 | AX13: 4 | AY13: 14 | AZ13: 0 | BA13: 2 | BB13: 2 | BC13: 0 | BD13: 0 | BE13: 0 | BJ13: 4 | BK13: 18 | BV13: 0 | BW13: 18 | BX13: 6 | BY13: 4 | BZ13: 4 | CA13: 4 | CB13: 4 | CC13: 6 | CD13: 4 | CE13: 4 | CF13: 3 | CG13: 3 | CH13: =IF($P13=Constants!$B$2,RANK($CB13,$CB$6:$CB$64,1),"-") -> 4 | CJ13: =IF($P13=Constants!$B$3,RANK($CB13,$CB$6:$CB$64,1),"-") -> - | CL13: =IF($P13=Constants!$B$4,RANK($CB13,$CB$6:$CB$64,1),"-") -> - | CN13: =IF($O13=Constants!$C$2,RANK($CB13,$CB$6:$CB$64,1),"-") -> - | CP13: =IF($O13=Constants!$C$3,RANK($CB13,$CB$6:$CB$64,1),"-") -> - | CR13: =IF($O13=Constants!$C$4,RANK($CB13,$CB$6:$CB$64,1),"-") -> - | CT13: =IF($G13=Constants!$D$4,RANK($CB13,$CB$6:$CB$64,1),"-") -> - | CV13: =IF($G13=Constants!$D$2,RANK($CB13,$CB$6:$CB$64,1),"-") -> - | CY13: Red | CZ13: IRS | DB13: 16 | DC13: 0.002 | DD13: 3.002 | DE13: 4 | DF13: 2 | DG13: 0 | DH13: 4 | DI13: 4 | DJ13: 4 | DK13: 0 | DL13: 4 | DM13: 4 | DN13: 1 | DO13: 0 | DP13: 4 | DQ13: 4 | DR13: 0 | DS13: 0 | DT13: 4 | DU13: 4 | DV13: 1 | DW13: 0 | DX13: 4 | DY13: 4 | DZ13: 0 | EA13: 0 | EB13: 4 | EC13: 4 | EF13: 16 | EG13: 0.002 | EH13: 3.002 | EI13: 4 | EJ13: 2 | EK13: 0 | EL13: 4 | EM13: 4 | EN13: 4 | EO13: 0 | EP13: 4 | EQ13: 4 | ER13: 1 | ES13: 0 | ET13: 4 | EU13: 4 | EV13: 0 | EW13: 0 | EX13: 4 | EY13: 4 | EZ13: 1 | FA13: 0 | FB13: 4 | FC13: 4 | FD13: 0 | FE13: 0 | FF13: 4 | FG13: 4 | FI13: 12 | FJ13: 0 | FK13: 4 | FL13: 4 | FM13: 2 | FN13: 0 | FO13: 4 | FP13: 4 | FQ13: 2 | FR13: 0 | FS13: 4 | FT13: 4 | FU13: 1 | FV13: 0 | FW13: 4 | FX13: 4 | FY13: 0 | FZ13: 0 | GA13: 4 | GB13: 4 | GC13: 1 | GD13: 0 | GE13: 4 | GF13: 4 | GG13: 0 | GH13: 0 | GI13: 4 | GJ13: 4 | GN13: 18 | GO13: YES | GP13: 18 | GQ13: YES | GS13: 8 | GT13: 0 | GU13: 4 | GV13: 4 | GW13: 1 | GX13: 0 | GY13: 4 | GZ13: 4 | HA13: 2 | HB13: 0 | HC13: 4 | HD13: 4 | HE13: 0 | HF13: 0 | HG13: 4 | HH13: 4 | HI13: 0 | HJ13: 0 | HK13: 4 | HL13: 4 | HM13: 1 | HN13: 0 | HO13: 4 | HP13: 4 | HQ13: 0 | HR13: 0 | HS13: 4 | HT13: 4 | HW13: 3 | HX13: 0.001 | HY13: 6.001 | HZ13: 6 | IA13: 0 | IB13: 0.007 | IC13: 6.007 | ID13: 6 | IE13: 2 | IF13: 0.002 | IG13: 6.002 | IH13: 6 | II13: 0 | IJ13: 0.001 | IK13: 6.001 | IL13: 6 | IM13: 0 | IN13: 0.002 | IO13: 6.002 | IP13: 6 | IQ13: 1 | IR13: 0.001 | IS13: 6.001 | IT13: 6 | IU13: 0 | IV13: 0.001 | IW13: 6.001 | IX13: 6
A14: 3 | B14: 9 | C14: Sam Beare | D14: Jemima Beare | E14: Sherpa | G14: Live | H14: Yes | P14: Red | Q14: 0 | R14: 0 | S14: 2 | T14: 0 | U14: 1 | V14: 2 | AA14: 5 | AB14: 0 | AC14: 0 | AD14: 0 | AE14: 1 | AF14: 1 | AG14: 1 | AL14: 3 | AM14: 8 | AN14: 0 | AO14: 0 | AP14: 0 | AQ14: 0 | AR14: 0 | AS14: 0 | AX14: 0 | AY14: 8 | AZ14: 0 | BA14: 0 | BB14: 0 | BC14: 10 | BD14: 0 | BE14: 0 | BJ14: 10 | BK14: 18 | BV14: 0 | BW14: 18 | BX14: 3 | BY14: 2 | BZ14: 1 | CA14: 3 | CB14: 3 | CC14: 3 | CD14: 2 | CE14: 1 | CF14: 3 | CG14: 3 | CH14: =IF($P14=Constants!$B$2,RANK($CB14,$CB$6:$CB$64,1),"-") -> 3 | CJ14: =IF($P14=Constants!$B$3,RANK($CB14,$CB$6:$CB$64,1),"-") -> - | CL14: =IF($P14=Constants!$B$4,RANK($CB14,$CB$6:$CB$64,1),"-") -> - | CN14: =IF($O14=Constants!$C$2,RANK($CB14,$CB$6:$CB$64,1),"-") -> - | CP14: =IF($O14=Constants!$C$3,RANK($CB14,$CB$6:$CB$64,1),"-") -> - | CR14: =IF($O14=Constants!$C$4,RANK($CB14,$CB$6:$CB$64,1),"-") -> - | CT14: =IF($G14=Constants!$D$4,RANK($CB14,$CB$6:$CB$64,1),"-") -> - | CV14: =IF($G14=Constants!$D$2,RANK($CB14,$CB$6:$CB$64,1),"-") -> 3 | CY14: Red | CZ14: Live | DB14: 17 | DC14: 0.001 | DD14: 3.001 | DE14: 3 | DF14: 4 | DG14: 0 | DH14: 3 | DI14: 3 | DJ14: 2 | DK14: 0 | DL14: 3 | DM14: 3 | DN14: 0 | DO14: 0 | DP14: 3 | DQ14: 3 | DR14: 0 | DS14: 0 | DT14: 3 | DU14: 3 | DV14: 0 | DW14: 0 | DX14: 3 | DY14: 3 | DZ14: 0 | EA14: 0 | EB14: 3 | EC14: 3 | EF14: 17 | EG14: 0.001 | EH14: 3.001 | EI14: 3 | EJ14: 4 | EK14: 0 | EL14: 3 | EM14: 3 | EN14: 2 | EO14: 0 | EP14: 3 | EQ14: 3 | ER14: 0 | ES14: 0 | ET14: 3 | EU14: 3 | EV14: 0 | EW14: 0 | EX14: 3 | EY14: 3 | EZ14: 0 | FA14: 0 | FB14: 3 | FC14: 3 | FD14: 0 | FE14: 0 | FF14: 3 | FG14: 3 | FI14: 12 | FJ14: 0.001 | FK14: 1.001 | FL14: 1 | FM14: 4 | FN14: 0.003 | FO14: 1.003 | FP14: 1 | FQ14: 2 | FR14: 0.006 | FS14: 1.006 | FT14: 1 | FU14: 0 | FV14: 0.005 | FW14: 1.005 | FX14: 1 | FY14: 0 | FZ14: 0.004 | GA14: 1.004 | GB14: 1 | GC14: 0 | GD14: 0.006 | GE14: 1.006 | GF14: 1 | GG14: 0 | GH14: 0.004 | GI14: 1.004 | GJ14: 1 | GN14: 18 | GO14: YES | GP14: 18 | GQ14: YES | GS14: 6 | GT14: 0.003 | GU14: 2.003 | GV14: 2 | GW14: 4 | GX14: 0.001 | GY14: 2.001 | GZ14: 2 | HA14: 2 | HB14: 0.004 | HC14: 2.004 | HD14: 2 | HE14: 0 | HF14: 0.003 | HG14: 2.003 | HH14: 2 | HI14: 0 | HJ14: 0.004 | HK14: 2.004 | HL14: 2 | HM14: 0 | HN14: 0.006 | HO14: 2.006 | HP14: 2 | HQ14: 0 | HR14: 0.002 | HS14: 2.002 | HT14: 2 | HW14: 3 | HX14: 0 | HY14: 3 | HZ14: 3 | IA14: 1 | IB14: 0 | IC14: 3 | ID14: 3 | IE14: 2 | IF14: 0 | IG14: 3 | IH14: 3 | II14: 0 | IJ14: 0 | IK14: 3 | IL14: 3 | IM14: 0 | IN14: 0 | IO14: 3 | IP14: 3 | IQ14: 0 | IR14: 0 | IS14: 3 | IT14: 3 | IU14: 0 | IV14: 0 | IW14: 3 | IX14: 3
A15: 11 | B15: 10 | C15: Mike Readings | D15: Carole Readings | E15: Sherpa Indy | G15: IRS | H15: Yes | N15: Ret/NS | P15: Red | AA15: 1000 | AL15: 0 | AM15: 1000 | AX15: 0 | AY15: 1000 | BJ15: 0 | BK15: 1000 | BV15: 0 | BW15: 1000 | BX15: 11 | BY15: 11 | BZ15: 11 | CA15: 11 | CB15: 11 | CC15: 11 | CD15: 11 | CE15: 11 | CF15: 11 | CG15: 11 | CH15: =IF($P15=Constants!$B$2,RANK($CB15,$CB$6:$CB$64,1),"-") -> 11 | CJ15: =IF($P15=Constants!$B$3,RANK($CB15,$CB$6:$CB$64,1),"-") -> - | CL15: =IF($P15=Constants!$B$4,RANK($CB15,$CB$6:$CB$64,1),"-") -> - | CN15: =IF($O15=Constants!$C$2,RANK($CB15,$CB$6:$CB$64,1),"-") -> - | CP15: =IF($O15=Constants!$C$3,RANK($CB15,$CB$6:$CB$64,1),"-") -> - | CR15: =IF($O15=Constants!$C$4,RANK($CB15,$CB$6:$CB$64,1),"-") -> - | CT15: =IF($G15=Constants!$D$4,RANK($CB15,$CB$6:$CB$64,1),"-") -> - | CV15: =IF($G15=Constants!$D$2,RANK($CB15,$CB$6:$CB$64,1),"-") -> - | CY15: Red | CZ15: IRS | DB15: 0 | DC15: 0.009 | DD15: 11.009 | DE15: 11 | DF15: 0 | DG15: 0.01 | DH15: 11.01 | DI15: 11 | DJ15: 0 | DK15: 0.011 | DL15: 11.011 | DM15: 11 | DN15: 0 | DO15: 0.005 | DP15: 11.005 | DQ15: 11 | DR15: 0 | DS15: 0.004 | DT15: 11.004 | DU15: 11 | DV15: 0 | DW15: 0.006 | DX15: 11.006 | DY15: 11 | DZ15: 0 | EA15: 0.004 | EB15: 11.004 | EC15: 11 | EF15: 0 | EG15: 0.009 | EH15: 11.009 | EI15: 11 | EJ15: 0 | EK15: 0.01 | EL15: 11.01 | EM15: 11 | EN15: 0 | EO15: 0.011 | EP15: 11.011 | EQ15: 11 | ER15: 0 | ES15: 0.005 | ET15: 11.005 | EU15: 11 | EV15: 0 | EW15: 0.004 | EX15: 11.004 | EY15: 11 | EZ15: 0 | FA15: 0.006 | FB15: 11.006 | FC15: 11 | FD15: 0 | FE15: 0.004 | FF15: 11.004 | FG15: 11 | FI15: 0 | FJ15: 0.009 | FK15: 11.009 | FL15: 11 | FM15: 0 | FN15: 0.009 | FO15: 11.009 | FP15: 11 | FQ15: 0 | FR15: 0.011 | FS15: 11.011 | FT15: 11 | FU15: 0 | FV15: 0.005 | FW15: 11.005 | FX15: 11 | FY15: 0 | FZ15: 0.004 | GA15: 11.004 | GB15: 11 | GC15: 0 | GD15: 0.006 | GE15: 11.006 | GF15: 11 | GG15: 0 | GH15: 0.004 | GI15: 11.004 | GJ15: 11 | GN15: 0 | GO15: NO | GP15: 1000 | GQ15: YES | GS15: 0 | GT15: 0.009 | GU15: 11.009 | GV15: 11 | GW15: 0 | GX15: 0.009 | GY15: 11.009 | GZ15: 11 | HA15: 0 | HB15: 0.011 | HC15: 11.011 | HD15: 11 | HE15: 0 | HF15: 0.003 | HG15: 11.003 | HH15: 11 | HI15: 0 | HJ15: 0.004 | HK15: 11.004 | HL15: 11 | HM15: 0 | HN15: 0.006 | HO15: 11.006 | HP15: 11 | HQ15: 0 | HR15: 0.002 | HS15: 11.002 | HT15: 11 | HW15: 0 | HX15: 0.009 | HY15: 11.009 | HZ15: 11 | IA15: 0 | IB15: 0.007 | IC15: 11.007 | ID15: 11 | IE15: 0 | IF15: 0.011 | IG15: 11.011 | IH15: 11 | II15: 0 | IJ15: 0.001 | IK15: 11.001 | IL15: 11 | IM15: 0 | IN15: 0.002 | IO15: 11.002 | IP15: 11 | IQ15: 0 | IR15: 0.005 | IS15: 11.005 | IT15: 11 | IU15: 0 | IV15: 0.001 | IW15: 11.001 | IX15: 11
A16: 8 | B16: 11 | C16: Jamie Bartholomew | D16: Fiona Bartholomew | E16: Avonova | G16: Live | H16: Yes | P16: Rookie | Q16: 8 | R16: 0 | S16: 4 | T16: 1 | U16: 5 | V16: 2 | AA16: 20 | AB16: 0 | AC16: 0 | AD16: 2 | AE16: 2 | AF16: 5 | AG16: 11 | AL16: 20 | AM16: 40 | AN16: 0 | AO16: 8 | AP16: 2 | AQ16: 10 | AR16: 5 | AS16: 11 | AX16: 36 | AY16: 76 | AZ16: 0 | BA16: 2 | BB16: 2 | BC16: 4 | BD16: 2 | BE16: 4 | BJ16: 14 | BK16: 90 | BV16: 0 | BW16: 90 | BX16: 8 | BY16: 8 | BZ16: 8 | CA16: 8 | CB16: 8 | CC16: 8 | CD16: 8 | CE16: 8 | CF16: 8 | CG16: 8 | CH16: =IF($P16=Constants!$B$2,RANK($CB16,$CB$6:$CB$64,1),"-") -> - | CJ16: =IF($P16=Constants!$B$3,RANK($CB16,$CB$6:$CB$64,1),"-") -> - | CL16: =IF($P16=Constants!$B$4,RANK($CB16,$CB$6:$CB$64,1),"-") -> 8 | CN16: =IF($O16=Constants!$C$2,RANK($CB16,$CB$6:$CB$64,1),"-") -> - | CP16: =IF($O16=Constants!$C$3,RANK($CB16,$CB$6:$CB$64,1),"-") -> - | CR16: =IF($O16=Constants!$C$4,RANK($CB16,$CB$6:$CB$64,1),"-") -> - | CT16: =IF($G16=Constants!$D$4,RANK($CB16,$CB$6:$CB$64,1),"-") -> - | CV16: =IF($G16=Constants!$D$2,RANK($CB16,$CB$6:$CB$64,1),"-") -> 8 | CY16: Rookie | CZ16: Live | DB16: 5 | DC16: 0 | DD16: 8 | DE16: 8 | DF16: 1 | DG16: 0 | DH16: 8 | DI16: 8 | DJ16: 7 | DK16: 0 | DL16: 8 | DM16: 8 | DN16: 0 | DO16: 0 | DP16: 8 | DQ16: 8 | DR16: 3 | DS16: 0 | DT16: 8 | DU16: 8 | DV16: 3 | DW16: 0 | DX16: 8 | DY16: 8 | DZ16: 0 | EA16: 0 | EB16: 8 | EC16: 8 | EF16: 5 | EG16: 0 | EH16: 8 | EI16: 8 | EJ16: 1 | EK16: 0 | EL16: 8 | EM16: 8 | EN16: 7 | EO16: 0 | EP16: 8 | EQ16: 8 | ER16: 0 | ES16: 0 | ET16: 8 | EU16: 8 | EV16: 3 | EW16: 0 | EX16: 8 | EY16: 8 | EZ16: 3 | FA16: 0 | FB16: 8 | FC16: 8 | FD16: 0 | FE16: 0 | FF16: 8 | FG16: 8 | FI16: 4 | FJ16: 0 | FK16: 8 | FL16: 8 | FM16: 1 | FN16: 0 | FO16: 8 | FP16: 8 | FQ16: 4 | FR16: 0 | FS16: 8 | FT16: 8 | FU16: 0 | FV16: 0 | FW16: 8 | FX16: 8 | FY16: 1 | FZ16: 0 | GA16: 8 | GB16: 8 | GC16: 3 | GD16: 0 | GE16: 8 | GF16: 8 | GG16: 0 | GH16: 0 | GI16: 8 | GJ16: 8 | GN16: 90 | GO16: YES | GP16: 90 | GQ16: YES | GS16: 3 | GT16: 0 | GU16: 8 | GV16: 8 | GW16: 1 | GX16: 0 | GY16: 8 | GZ16: 8 | HA16: 3 | HB16: 0 | HC16: 8 | HD16: 8 | HE16: 0 | HF16: 0 | HG16: 8 | HH16: 8 | HI16: 1 | HJ16: 0 | HK16: 8 | HL16: 8 | HM16: 2 | HN16: 0 | HO16: 8 | HP16: 8 | HQ16: 0 | HR16: 0 | HS16: 8 | HT16: 8 | HW16: 1 | HX16: 0 | HY16: 8 | HZ16: 8 | IA16: 1 | IB16: 0 | IC16: 8 | ID16: 8 | IE16: 1 | IF16: 0 | IG16: 8 | IH16: 8 | II16: 0 | IJ16: 0 | IK16: 8 | IL16: 8 | IM16: 1 | IN16: 0 | IO16: 8 | IP16: 8 | IQ16: 1 | IR16: 0 | IS16: 8 | IT16: 8 | IU16: 0 | IV16: 0 | IW16: 8 | IX16: 8
A17: 7 | B17: 12 | C17: Stephen Barnes | D17: John Miller | E17: Sherpa | G17: Live | H17: Yes | P17: Red | Q17: 0 | R17: 2 | S17: 0 | T17: 0 | U17: 5 | V17: 2 | AA17: 9 | AB17: 12 | AC17: 2 | AD17: 0 | AE17: 2 | AF17: 2 | AG17: 2 | AL17: 20 | AM17: 29 | AN17: 3 | AO17: 2 | AP17: 0 | AQ17: 3 | AR17: 2 | AS17: 0 | AX17: 10 | AY17: 39 | AZ17: 2 | BA17: 2 | BB17: 1 | BC17: 0 | BD17: 2 | BE17: 5 | BJ17: 12 | BK17: 51 | BV17: 0 | BW17: 51 | BX17: 6 | BY17: 7 | BZ17: 7 | CA17: 7 | CB17: 7 | CC17: 6 | CD17: 7 | CE17: 7 | CF17: 7 | CG17: 7 | CH17: =IF(#REF!=Constants!$B$2,RANK($CB17,$CB$6:$CB$64,1),"-") ->  | CJ17: =IF(#REF!=Constants!$B$3,RANK($CB17,$CB$6:$CB$64,1),"-") ->  | CL17: =IF(#REF!=Constants!$B$4,RANK($CB17,$CB$6:$CB$64,1),"-") ->  | CN17: =IF(#REF!=Constants!$C$2,RANK($CB17,$CB$6:$CB$64,1),"-") ->  | CP17: =IF(#REF!=Constants!$C$3,RANK($CB17,$CB$6:$CB$64,1),"-") ->  | CR17: =IF(#REF!=Constants!$C$4,RANK($CB17,$CB$6:$CB$64,1),"-") ->  | CT17: =IF(#REF!=Constants!$D$4,RANK($CB17,$CB$6:$CB$64,1),"-") ->  | CV17: =IF(#REF!=Constants!$D$2,RANK($CB17,$CB$6:$CB$64,1),"-") ->  | CY17: Red | CZ17: Live | DB17: 7 | DC17: 0 | DD17: 7 | DE17: 7 | DF17: 1 | DG17: 0 | DH17: 7 | DI17: 7 | DJ17: 11 | DK17: 0 | DL17: 7 | DM17: 7 | DN17: 2 | DO17: 0 | DP17: 7 | DQ17: 7 | DR17: 0 | DS17: 0 | DT17: 7 | DU17: 7 | DV17: 2 | DW17: 0 | DX17: 7 | DY17: 7 | DZ17: 0 | EA17: 0 | EB17: 7 | EC17: 7 | EF17: 7 | EG17: 0 | EH17: 7 | EI17: 7 | EJ17: 1 | EK17: 0 | EL17: 7 | EM17: 7 | EN17: 11 | EO17: 0 | EP17: 7 | EQ17: 7 | ER17: 2 | ES17: 0 | ET17: 7 | EU17: 7 | EV17: 0 | EW17: 0 | EX17: 7 | EY17: 7 | EZ17: 2 | FA17: 0 | FB17: 7 | FC17: 7 | FD17: 0 | FE17: 0 | FF17: 7 | FG17: 7 | FI17: 6 | FJ17: 0 | FK17: 7 | FL17: 7 | FM17: 0 | FN17: 0 | FO17: 7 | FP17: 7 | FQ17: 8 | FR17: 0 | FS17: 7 | FT17: 7 | FU17: 2 | FV17: 0 | FW17: 7 | FX17: 7 | FY17: 0 | FZ17: 0 | GA17: 7 | GB17: 7 | GC17: 1 | GD17: 0 | GE17: 7 | GF17: 7 | GG17: 0 | GH17: 0 | GI17: 7 | GJ17: 7 | GN17: 51 | GO17: YES | GP17: 51 | GQ17: YES | GS17: 4 | GT17: 0 | GU17: 7 | GV17: 7 | GW17: 0 | GX17: 0 | GY17: 7 | GZ17: 7 | HA17: 6 | HB17: 0 | HC17: 7 | HD17: 7 | HE17: 0 | HF17: 0 | HG17: 7 | HH17: 7 | HI17: 0 | HJ17: 0 | HK17: 7 | HL17: 7 | HM17: 1 | HN17: 0 | HO17: 7 | HP17: 7 | HQ17: 0 | HR17: 0 | HS17: 7 | HT17: 7 | HW17: 3 | HX17: 0.001 | HY17: 6.001 | HZ17: 6 | IA17: 0 | IB17: 0.007 | IC17: 6.007 | ID17: 6 | IE17: 2 | IF17: 0.002 | IG17: 6.002 | IH17: 6 | II17: 0 | IJ17: 0.001 | IK17: 6.001 | IL17: 6 | IM17: 0 | IN17: 0.002 | IO17: 6.002 | IP17: 6 | IQ17: 1 | IR17: 0.001 | IS17: 6.001 | IT17: 6 | IU17: 0 | IV17: 0.001 | IW17: 6.001 | IX17: 6
A18: 13 | B18: 14 | AA18: 2000 | AL18: 0 | AM18: 2000 | AX18: 0 | AY18: 2000 | BJ18: 0 | BK18: 2000 | BV18: 0 | BW18: 2000 | BX18: 13 | BY18: 13 | BZ18: 13 | CA18: 13 | CB18: 13 | CC18: 13 | CD18: 13 | CE18: 13 | CF18: 13 | CG18: 13 | CH18: =IF($P18=Constants!$B$2,RANK($CB18,$CB$6:$CB$64,1),"-") -> - | CJ18: =IF($P18=Constants!$B$3,RANK($CB18,$CB$6:$CB$64,1),"-") -> - | CL18: =IF($P18=Constants!$B$4,RANK($CB18,$CB$6:$CB$64,1),"-") -> - | CN18: =IF($O18=Constants!$C$2,RANK($CB18,$CB$6:$CB$64,1),"-") -> - | CP18: =IF($O18=Constants!$C$3,RANK($CB18,$CB$6:$CB$64,1),"-") -> - | CR18: =IF($O18=Constants!$C$4,RANK($CB18,$CB$6:$CB$64,1),"-") -> - | CT18: =IF($G18=Constants!$D$4,RANK($CB18,$CB$6:$CB$64,1),"-") -> - | CV18: =IF($G18=Constants!$D$2,RANK($CB18,$CB$6:$CB$64,1),"-") -> - | CY18: =IF(P18<>"",P18,O18) -> 0 | CZ18: =G18 -> 0 | DB18: 0 | DC18: 0.009 | DD18: 13.009 | DE18: 13 | DF18: 0 | DG18: 0.01 | DH18: 13.01 | DI18: 13 | DJ18: 0 | DK18: 0.011 | DL18: 13.011 | DM18: 13 | DN18: 0 | DO18: 0.005 | DP18: 13.005 | DQ18: 13 | DR18: 0 | DS18: 0.004 | DT18: 13.004 | DU18: 13 | DV18: 0 | DW18: 0.006 | DX18: 13.006 | DY18: 13 | DZ18: 0 | EA18: 0.004 | EB18: 13.004 | EC18: 13 | EF18: 0 | EG18: 0.009 | EH18: 13.009 | EI18: 13 | EJ18: 0 | EK18: 0.01 | EL18: 13.01 | EM18: 13 | EN18: 0 | EO18: 0.011 | EP18: 13.011 | EQ18: 13 | ER18: 0 | ES18: 0.005 | ET18: 13.005 | EU18: 13 | EV18: 0 | EW18: 0.004 | EX18: 13.004 | EY18: 13 | EZ18: 0 | FA18: 0.006 | FB18: 13.006 | FC18: 13 | FD18: 0 | FE18: 0.004 | FF18: 13.004 | FG18: 13 | FI18: 0 | FJ18: 0.009 | FK18: 13.009 | FL18: 13 | FM18: 0 | FN18: 0.009 | FO18: 13.009 | FP18: 13 | FQ18: 0 | FR18: 0.011 | FS18: 13.011 | FT18: 13 | FU18: 0 | FV18: 0.005 | FW18: 13.005 | FX18: 13 | FY18: 0 | FZ18: 0.004 | GA18: 13.004 | GB18: 13 | GC18: 0 | GD18: 0.006 | GE18: 13.006 | GF18: 13 | GG18: 0 | GH18: 0.004 | GI18: 13.004 | GJ18: 13 | GN18: 0 | GO18: NO | GP18: 2000 | GQ18: YES | GS18: 0 | GT18: 0.009 | GU18: 13.009 | GV18: 13 | GW18: 0 | GX18: 0.009 | GY18: 13.009 | GZ18: 13 | HA18: 0 | HB18: 0.011 | HC18: 13.011 | HD18: 13 | HE18: 0 | HF18: 0.003 | HG18: 13.003 | HH18: 13 | HI18: 0 | HJ18: 0.004 | HK18: 13.004 | HL18: 13 | HM18: 0 | HN18: 0.006 | HO18: 13.006 | HP18: 13 | HQ18: 0 | HR18: 0.002 | HS18: 13.002 | HT18: 13 | HW18: 0 | HX18: 0.009 | HY18: 13.009 | HZ18: 13 | IA18: 0 | IB18: 0.007 | IC18: 13.007 | ID18: 13 | IE18: 0 | IF18: 0.011 | IG18: 13.011 | IH18: 13 | II18: 0 | IJ18: 0.001 | IK18: 13.001 | IL18: 13 | IM18: 0 | IN18: 0.002 | IO18: 13.002 | IP18: 13 | IQ18: 0 | IR18: 0.005 | IS18: 13.005 | IT18: 13 | IU18: 0 | IV18: 0.001 | IW18: 13.001 | IX18: 13
A19: 13 | B19: 15 | AA19: 2000 | AL19: 0 | AM19: 2000 | AX19: 0 | AY19: 2000 | BJ19: 0 | BK19: 2000 | BV19: 0 | BW19: 2000 | BX19: 13 | BY19: 13 | BZ19: 13 | CA19: 13 | CB19: 13 | CC19: 13 | CD19: 13 | CE19: 13 | CF19: 13 | CG19: 13 | CH19: =IF($P19=Constants!$B$2,RANK($CB19,$CB$6:$CB$64,1),"-") -> - | CJ19: =IF($P19=Constants!$B$3,RANK($CB19,$CB$6:$CB$64,1),"-") -> - | CL19: =IF($P19=Constants!$B$4,RANK($CB19,$CB$6:$CB$64,1),"-") -> - | CN19: =IF($O19=Constants!$C$2,RANK($CB19,$CB$6:$CB$64,1),"-") -> - | CP19: =IF($O19=Constants!$C$3,RANK($CB19,$CB$6:$CB$64,1),"-") -> - | CR19: =IF($O19=Constants!$C$4,RANK($CB19,$CB$6:$CB$64,1),"-") -> - | CT19: =IF($G19=Constants!$D$4,RANK($CB19,$CB$6:$CB$64,1),"-") -> - | CV19: =IF($G19=Constants!$D$2,RANK($CB19,$CB$6:$CB$64,1),"-") -> - | CY19: 0 | CZ19: 0 | DB19: =COUNTIF($BL19:$BU19,"0")+COUNTIF($AZ19:$BI19,"0")+COUNTIF($AN19:$AW19,"0")+COUNTIF($AB19:$AK19,"0")+COUNTIF($Q19:$Z19,"0") -> 0 | DC19: 0.009 | DD19: 13.009 | DE19: 13 | DF19: =COUNTIF($BL19:$BU19,"1")+COUNTIF($AZ19:$BI19,"1")+COUNTIF($AN19:$AW19,"1")+COUNTIF($AB19:$AK19,"1")+COUNTIF($Q19:$Z19,"1") -> 0 | DG19: 0.01 | DH19: 13.01 | DI19: 13 | DJ19: =COUNTIF($BL19:$BU19,"2")+COUNTIF($AZ19:$BI19,"2")+COUNTIF($AN19:$AW19,"2")+COUNTIF($AB19:$AK19,"2")+COUNTIF($Q19:$Z19,"2") -> 0 | DK19: 0.011 | DL19: 13.011 | DM19: 13 | DN19: =COUNTIF($BL19:$BU19,"3")+COUNTIF($AZ19:$BI19,"3")+COUNTIF($AN19:$AW19,"3")+COUNTIF($AB19:$AK19,"3")+COUNTIF($Q19:$Z19,"3") -> 0 | DO19: 0.005 | DP19: 13.005 | DQ19: 13 | DR19: =COUNTIF($BL19:$BU19,"4")+COUNTIF($AZ19:$BI19,"4")+COUNTIF($AN19:$AW19,"4")+COUNTIF($AB19:$AK19,"4")+COUNTIF($Q19:$Z19,"4") -> 0 | DS19: 0.004 | DT19: 13.004 | DU19: 13 | DV19: =COUNTIF($BL19:$BU19,"5")+COUNTIF($AZ19:$BI19,"5")+COUNTIF($AN19:$AW19,"5")+COUNTIF($AB19:$AK19,"5")+COUNTIF($Q19:$Z19,"5") -> 0 | DW19: 0.006 | DX19: 13.006 | DY19: 13 | DZ19: =COUNTIF($BL19:$BU19,"6")+COUNTIF($AZ19:$BI19,"6")+COUNTIF($AN19:$AW19,"6")+COUNTIF($AB19:$AK19,"6")+COUNTIF($Q19:$Z19,"6") -> 0 | EA19: 0.004 | EB19: 13.004 | EC19: 13 | EF19: =COUNTIF($AZ19:$BI19,"0")+COUNTIF($AN19:$AW19,"0")+COUNTIF($AB19:$AK19,"0")+COUNTIF($Q19:$Z19,"0") -> 0 | EG19: 0.009 | EH19: 13.009 | EI19: 13 | EJ19: =COUNTIF($AZ19:$BI19,"1")+COUNTIF($AN19:$AW19,"1")+COUNTIF($AB19:$AK19,"1")+COUNTIF($Q19:$Z19,"1") -> 0 | EK19: 0.01 | EL19: 13.01 | EM19: 13 | EN19: =COUNTIF($AZ19:$BI19,"2")+COUNTIF($AN19:$AW19,"2")+COUNTIF($AB19:$AK19,"2")+COUNTIF($Q19:$Z19,"2") -> 0 | EO19: 0.011 | EP19: 13.011 | EQ19: 13 | ER19: =COUNTIF($AZ19:$BI19,"3")+COUNTIF($AN19:$AW19,"3")+COUNTIF($AB19:$AK19,"3")+COUNTIF($Q19:$Z19,"3") -> 0 | ES19: 0.005 | ET19: 13.005 | EU19: 13 | EV19: =COUNTIF($AZ19:$BI19,"4")+COUNTIF($AN19:$AW19,"4")+COUNTIF($AB19:$AK19,"4")+COUNTIF($Q19:$Z19,"4") -> 0 | EW19: 0.004 | EX19: 13.004 | EY19: 13 | EZ19: =COUNTIF($AZ19:$BI19,"5")+COUNTIF($AN19:$AW19,"5")+COUNTIF($AB19:$AK19,"5")+COUNTIF($Q19:$Z19,"5") -> 0 | FA19: 0.006 | FB19: 13.006 | FC19: 13 | FD19: =COUNTIF($AZ19:$BI19,"6")+COUNTIF($AN19:$AW19,"6")+COUNTIF($AB19:$AK19,"6")+COUNTIF($Q19:$Z19,"6") -> 0 | FE19: 0.004 | FF19: 13.004 | FG19: 13 | FI19: =COUNTIF($AN19:$AW19,"0")+COUNTIF($AB19:$AK19,"0")+COUNTIF($Q19:$Z19,"0") -> 0 | FJ19: 0.009 | FK19: 13.009 | FL19: 13 | FM19: =COUNTIF($AN19:$AW19,"1")+COUNTIF($AB19:$AK19,"1")+COUNTIF($Q19:$Z19,"1") -> 0 | FN19: 0.009 | FO19: 13.009 | FP19: 13 | FQ19: =COUNTIF($AN19:$AW19,"2")+COUNTIF($AB19:$AK19,"2")+COUNTIF($Q19:$Z19,"2") -> 0 | FR19: 0.011 | FS19: 13.011 | FT19: 13 | FU19: =COUNTIF($AN19:$AW19,"3")+COUNTIF($AB19:$AK19,"3")+COUNTIF($Q19:$Z19,"3") -> 0 | FV19: 0.005 | FW19: 13.005 | FX19: 13 | FY19: =COUNTIF($AN19:$AW19,"4")+COUNTIF($AB19:$AK19,"4")+COUNTIF($Q19:$Z19,"4") -> 0 | FZ19: 0.004 | GA19: 13.004 | GB19: 13 | GC19: =COUNTIF($AN19:$AW19,"5")+COUNTIF($AB19:$AK19,"5")+COUNTIF($Q19:$Z19,"5") -> 0 | GD19: 0.006 | GE19: 13.006 | GF19: 13 | GG19: =COUNTIF($AN19:$AW19,"6")+COUNTIF($AB19:$AK19,"6")+COUNTIF($Q19:$Z19,"6") -> 0 | GH19: 0.004 | GI19: 13.004 | GJ19: 13 | GN19: 0 | GO19: NO | GP19: 2000 | GQ19: YES | GS19: =COUNTIF($AB19:$AK19,"0")+COUNTIF($Q19:$Z19,"0") -> 0 | GT19: 0.009 | GU19: 13.009 | GV19: 13 | GW19: =COUNTIF($AB19:$AK19,"1")+COUNTIF($Q19:$Z19,"1") -> 0 | GX19: 0.009 | GY19: 13.009 | GZ19: 13 | HA19: =COUNTIF($AB19:$AK19,"2")+COUNTIF($Q19:$Z19,"2") -> 0 | HB19: 0.011 | HC19: 13.011 | HD19: 13 | HE19: =+COUNTIF($AB19:$AK19,"3")+COUNTIF($Q19:$Z19,"3") -> 0 | HF19: 0.003 | HG19: 13.003 | HH19: 13 | HI19: =COUNTIF($AB19:$AK19,"4")+COUNTIF($Q19:$Z19,"4") -> 0 | HJ19: 0.004 | HK19: 13.004 | HL19: 13 | HM19: =COUNTIF($AB19:$AK19,"5")+COUNTIF($Q19:$Z19,"5") -> 0 | HN19: 0.006 | HO19: 13.006 | HP19: 13 | HQ19: =COUNTIF($AB19:$AK19,"6")+COUNTIF($Q19:$Z19,"6") -> 0 | HR19: 0.002 | HS19: 13.002 | HT19: 13 | HW19: =COUNTIF($Q19:$Z19,"0") -> 0 | HX19: 0.009 | HY19: 13.009 | HZ19: 13 | IA19: =COUNTIF($Q19:$Z19,"1") -> 0 | IB19: 0.007 | IC19: 13.007 | ID19: 13 | IE19: =COUNTIF($Q19:$Z19,"2") -> 0 | IF19: 0.011 | IG19: 13.011 | IH19: 13 | II19: =COUNTIF($Q19:$Z19,"3") -> 0 | IJ19: 0.001 | IK19: 13.001 | IL19: 13 | IM19: =COUNTIF($Q19:$Z19,"4") -> 0 | IN19: 0.002 | IO19: 13.002 | IP19: 13 | IQ19: =COUNTIF($Q19:$Z19,"5") -> 0 | IR19: 0.005 | IS19: 13.005 | IT19: 13 | IU19: =COUNTIF($Q19:$Z19,"6") -> 0 | IV19: 0.001 | IW19: 13.001 | IX19: 13
A20: 13 | B20: 16 | AA20: 2000 | AL20: 0 | AM20: 2000 | AX20: 0 | AY20: 2000 | BJ20: 0 | BK20: 2000 | BV20: 0 | BW20: 2000 | BX20: 13 | BY20: 13 | BZ20: 13 | CA20: 13 | CB20: 13 | CC20: 13 | CD20: 13 | CE20: 13 | CF20: 13 | CG20: 13 | CH20: =IF($P20=Constants!$B$2,RANK($CB20,$CB$6:$CB$64,1),"-") -> - | CJ20: =IF($P20=Constants!$B$3,RANK($CB20,$CB$6:$CB$64,1),"-") -> - | CL20: =IF($P20=Constants!$B$4,RANK($CB20,$CB$6:$CB$64,1),"-") -> - | CN20: =IF($O20=Constants!$C$2,RANK($CB20,$CB$6:$CB$64,1),"-") -> - | CP20: =IF($O20=Constants!$C$3,RANK($CB20,$CB$6:$CB$64,1),"-") -> - | CR20: =IF($O20=Constants!$C$4,RANK($CB20,$CB$6:$CB$64,1),"-") -> - | CT20: =IF($G20=Constants!$D$4,RANK($CB20,$CB$6:$CB$64,1),"-") -> - | CV20: =IF($G20=Constants!$D$2,RANK($CB20,$CB$6:$CB$64,1),"-") -> - | CY20: 0 | CZ20: 0 | DB20: 0 | DC20: 0.009 | DD20: 13.009 | DE20: 13 | DF20: 0 | DG20: 0.01 | DH20: 13.01 | DI20: 13 | DJ20: 0 | DK20: 0.011 | DL20: 13.011 | DM20: 13 | DN20: 0 | DO20: 0.005 | DP20: 13.005 | DQ20: 13 | DR20: 0 | DS20: 0.004 | DT20: 13.004 | DU20: 13 | DV20: 0 | DW20: 0.006 | DX20: 13.006 | DY20: 13 | DZ20: 0 | EA20: 0.004 | EB20: 13.004 | EC20: 13 | EF20: 0 | EG20: 0.009 | EH20: 13.009 | EI20: 13 | EJ20: 0 | EK20: 0.01 | EL20: 13.01 | EM20: 13 | EN20: 0 | EO20: 0.011 | EP20: 13.011 | EQ20: 13 | ER20: 0 | ES20: 0.005 | ET20: 13.005 | EU20: 13 | EV20: 0 | EW20: 0.004 | EX20: 13.004 | EY20: 13 | EZ20: 0 | FA20: 0.006 | FB20: 13.006 | FC20: 13 | FD20: 0 | FE20: 0.004 | FF20: 13.004 | FG20: 13 | FI20: 0 | FJ20: 0.009 | FK20: 13.009 | FL20: 13 | FM20: 0 | FN20: 0.009 | FO20: 13.009 | FP20: 13 | FQ20: 0 | FR20: 0.011 | FS20: 13.011 | FT20: 13 | FU20: 0 | FV20: 0.005 | FW20: 13.005 | FX20: 13 | FY20: 0 | FZ20: 0.004 | GA20: 13.004 | GB20: 13 | GC20: 0 | GD20: 0.006 | GE20: 13.006 | GF20: 13 | GG20: 0 | GH20: 0.004 | GI20: 13.004 | GJ20: 13 | GN20: 0 | GO20: NO | GP20: 2000 | GQ20: YES | GS20: 0 | GT20: 0.009 | GU20: 13.009 | GV20: 13 | GW20: 0 | GX20: 0.009 | GY20: 13.009 | GZ20: 13 | HA20: 0 | HB20: 0.011 | HC20: 13.011 | HD20: 13 | HE20: 0 | HF20: 0.003 | HG20: 13.003 | HH20: 13 | HI20: 0 | HJ20: 0.004 | HK20: 13.004 | HL20: 13 | HM20: 0 | HN20: 0.006 | HO20: 13.006 | HP20: 13 | HQ20: 0 | HR20: 0.002 | HS20: 13.002 | HT20: 13 | HW20: 0 | HX20: 0.009 | HY20: 13.009 | HZ20: 13 | IA20: 0 | IB20: 0.007 | IC20: 13.007 | ID20: 13 | IE20: 0 | IF20: 0.011 | IG20: 13.011 | IH20: 13 | II20: 0 | IJ20: 0.001 | IK20: 13.001 | IL20: 13 | IM20: 0 | IN20: 0.002 | IO20: 13.002 | IP20: 13 | IQ20: 0 | IR20: 0.005 | IS20: 13.005 | IT20: 13 | IU20: 0 | IV20: 0.001 | IW20: 13.001 | IX20: 13
A21: 13 | B21: 17 | AA21: 2000 | AL21: 0 | AM21: 2000 | AX21: 0 | AY21: 2000 | BJ21: 0 | BK21: 2000 | BV21: 0 | BW21: 2000 | BX21: 13 | BY21: 13 | BZ21: 13 | CA21: 13 | CB21: 13 | CC21: 13 | CD21: 13 | CE21: 13 | CF21: 13 | CG21: 13 | CH21: =IF($P21=Constants!$B$2,RANK($CB21,$CB$6:$CB$64,1),"-") -> - | CJ21: =IF($P21=Constants!$B$3,RANK($CB21,$CB$6:$CB$64,1),"-") -> - | CL21: =IF($P21=Constants!$B$4,RANK($CB21,$CB$6:$CB$64,1),"-") -> - | CN21: =IF($O21=Constants!$C$2,RANK($CB21,$CB$6:$CB$64,1),"-") -> - | CP21: =IF($O21=Constants!$C$3,RANK($CB21,$CB$6:$CB$64,1),"-") -> - | CR21: =IF($O21=Constants!$C$4,RANK($CB21,$CB$6:$CB$64,1),"-") -> - | CT21: =IF($G21=Constants!$D$4,RANK($CB21,$CB$6:$CB$64,1),"-") -> - | CV21: =IF($G21=Constants!$D$2,RANK($CB21,$CB$6:$CB$64,1),"-") -> - | CY21: 0 | CZ21: 0 | DB21: 0 | DC21: 0.009 | DD21: 13.009 | DE21: 13 | DF21: 0 | DG21: 0.01 | DH21: 13.01 | DI21: 13 | DJ21: 0 | DK21: 0.011 | DL21: 13.011 | DM21: 13 | DN21: 0 | DO21: 0.005 | DP21: 13.005 | DQ21: 13 | DR21: 0 | DS21: 0.004 | DT21: 13.004 | DU21: 13 | DV21: 0 | DW21: 0.006 | DX21: 13.006 | DY21: 13 | DZ21: 0 | EA21: 0.004 | EB21: 13.004 | EC21: 13 | EF21: 0 | EG21: 0.009 | EH21: 13.009 | EI21: 13 | EJ21: 0 | EK21: 0.01 | EL21: 13.01 | EM21: 13 | EN21: 0 | EO21: 0.011 | EP21: 13.011 | EQ21: 13 | ER21: 0 | ES21: 0.005 | ET21: 13.005 | EU21: 13 | EV21: 0 | EW21: 0.004 | EX21: 13.004 | EY21: 13 | EZ21: 0 | FA21: 0.006 | FB21: 13.006 | FC21: 13 | FD21: 0 | FE21: 0.004 | FF21: 13.004 | FG21: 13 | FI21: 0 | FJ21: 0.009 | FK21: 13.009 | FL21: 13 | FM21: 0 | FN21: 0.009 | FO21: 13.009 | FP21: 13 | FQ21: 0 | FR21: 0.011 | FS21: 13.011 | FT21: 13 | FU21: 0 | FV21: 0.005 | FW21: 13.005 | FX21: 13 | FY21: 0 | FZ21: 0.004 | GA21: 13.004 | GB21: 13 | GC21: 0 | GD21: 0.006 | GE21: 13.006 | GF21: 13 | GG21: 0 | GH21: 0.004 | GI21: 13.004 | GJ21: 13 | GN21: 0 | GO21: NO | GP21: 2000 | GQ21: YES | GS21: 0 | GT21: 0.009 | GU21: 13.009 | GV21: 13 | GW21: 0 | GX21: 0.009 | GY21: 13.009 | GZ21: 13 | HA21: 0 | HB21: 0.011 | HC21: 13.011 | HD21: 13 | HE21: 0 | HF21: 0.003 | HG21: 13.003 | HH21: 13 | HI21: 0 | HJ21: 0.004 | HK21: 13.004 | HL21: 13 | HM21: 0 | HN21: 0.006 | HO21: 13.006 | HP21: 13 | HQ21: 0 | HR21: 0.002 | HS21: 13.002 | HT21: 13 | HW21: 0 | HX21: 0.009 | HY21: 13.009 | HZ21: 13 | IA21: 0 | IB21: 0.007 | IC21: 13.007 | ID21: 13 | IE21: 0 | IF21: 0.011 | IG21: 13.011 | IH21: 13 | II21: 0 | IJ21: 0.001 | IK21: 13.001 | IL21: 13 | IM21: 0 | IN21: 0.002 | IO21: 13.002 | IP21: 13 | IQ21: 0 | IR21: 0.005 | IS21: 13.005 | IT21: 13 | IU21: 0 | IV21: 0.001 | IW21: 13.001 | IX21: 13
A22: 13 | B22: 18 | AA22: 2000 | AL22: 0 | AM22: 2000 | AX22: 0 | AY22: 2000 | BJ22: 0 | BK22: 2000 | BV22: 0 | BW22: 2000 | BX22: 13 | BY22: 13 | BZ22: 13 | CA22: 13 | CB22: 13 | CC22: 13 | CD22: 13 | CE22: 13 | CF22: 13 | CG22: 13 | CH22: =IF($P22=Constants!$B$2,RANK($CB22,$CB$6:$CB$64,1),"-") -> - | CJ22: =IF($P22=Constants!$B$3,RANK($CB22,$CB$6:$CB$64,1),"-") -> - | CL22: =IF($P22=Constants!$B$4,RANK($CB22,$CB$6:$CB$64,1),"-") -> - | CN22: =IF($O22=Constants!$C$2,RANK($CB22,$CB$6:$CB$64,1),"-") -> - | CP22: =IF($O22=Constants!$C$3,RANK($CB22,$CB$6:$CB$64,1),"-") -> - | CR22: =IF($O22=Constants!$C$4,RANK($CB22,$CB$6:$CB$64,1),"-") -> - | CT22: =IF($G22=Constants!$D$4,RANK($CB22,$CB$6:$CB$64,1),"-") -> - | CV22: =IF($G22=Constants!$D$2,RANK($CB22,$CB$6:$CB$64,1),"-") -> - | CY22: 0 | CZ22: 0 | DB22: 0 | DC22: 0.009 | DD22: 13.009 | DE22: 13 | DF22: 0 | DG22: 0.01 | DH22: 13.01 | DI22: 13 | DJ22: 0 | DK22: 0.011 | DL22: 13.011 | DM22: 13 | DN22: 0 | DO22: 0.005 | DP22: 13.005 | DQ22: 13 | DR22: 0 | DS22: 0.004 | DT22: 13.004 | DU22: 13 | DV22: 0 | DW22: 0.006 | DX22: 13.006 | DY22: 13 | DZ22: 0 | EA22: 0.004 | EB22: 13.004 | EC22: 13 | EF22: 0 | EG22: 0.009 | EH22: 13.009 | EI22: 13 | EJ22: 0 | EK22: 0.01 | EL22: 13.01 | EM22: 13 | EN22: 0 | EO22: 0.011 | EP22: 13.011 | EQ22: 13 | ER22: 0 | ES22: 0.005 | ET22: 13.005 | EU22: 13 | EV22: 0 | EW22: 0.004 | EX22: 13.004 | EY22: 13 | EZ22: 0 | FA22: 0.006 | FB22: 13.006 | FC22: 13 | FD22: 0 | FE22: 0.004 | FF22: 13.004 | FG22: 13 | FI22: 0 | FJ22: 0.009 | FK22: 13.009 | FL22: 13 | FM22: 0 | FN22: 0.009 | FO22: 13.009 | FP22: 13 | FQ22: 0 | FR22: 0.011 | FS22: 13.011 | FT22: 13 | FU22: 0 | FV22: 0.005 | FW22: 13.005 | FX22: 13 | FY22: 0 | FZ22: 0.004 | GA22: 13.004 | GB22: 13 | GC22: 0 | GD22: 0.006 | GE22: 13.006 | GF22: 13 | GG22: 0 | GH22: 0.004 | GI22: 13.004 | GJ22: 13 | GN22: 0 | GO22: NO | GP22: 2000 | GQ22: YES | GS22: 0 | GT22: 0.009 | GU22: 13.009 | GV22: 13 | GW22: 0 | GX22: 0.009 | GY22: 13.009 | GZ22: 13 | HA22: 0 | HB22: 0.011 | HC22: 13.011 | HD22: 13 | HE22: 0 | HF22: 0.003 | HG22: 13.003 | HH22: 13 | HI22: 0 | HJ22: 0.004 | HK22: 13.004 | HL22: 13 | HM22: 0 | HN22: 0.006 | HO22: 13.006 | HP22: 13 | HQ22: 0 | HR22: 0.002 | HS22: 13.002 | HT22: 13 | HW22: 0 | HX22: 0.009 | HY22: 13.009 | HZ22: 13 | IA22: 0 | IB22: 0.007 | IC22: 13.007 | ID22: 13 | IE22: 0 | IF22: 0.011 | IG22: 13.011 | IH22: 13 | II22: 0 | IJ22: 0.001 | IK22: 13.001 | IL22: 13 | IM22: 0 | IN22: 0.002 | IO22: 13.002 | IP22: 13 | IQ22: 0 | IR22: 0.005 | IS22: 13.005 | IT22: 13 | IU22: 0 | IV22: 0.001 | IW22: 13.001 | IX22: 13
A23: 13 | B23: 19 | AA23: 2000 | AL23: 0 | AM23: 2000 | AX23: 0 | AY23: 2000 | BJ23: 0 | BK23: 2000 | BV23: 0 | BW23: 2000 | BX23: 13 | BY23: 13 | BZ23: 13 | CA23: 13 | CB23: 13 | CC23: 13 | CD23: 13 | CE23: 13 | CF23: 13 | CG23: 13 | CH23: =IF($P23=Constants!$B$2,RANK($CB23,$CB$6:$CB$64,1),"-") -> - | CJ23: =IF($P23=Constants!$B$3,RANK($CB23,$CB$6:$CB$64,1),"-") -> - | CL23: =IF($P23=Constants!$B$4,RANK($CB23,$CB$6:$CB$64,1),"-") -> - | CN23: =IF($O23=Constants!$C$2,RANK($CB23,$CB$6:$CB$64,1),"-") -> - | CP23: =IF($O23=Constants!$C$3,RANK($CB23,$CB$6:$CB$64,1),"-") -> - | CR23: =IF($O23=Constants!$C$4,RANK($CB23,$CB$6:$CB$64,1),"-") -> - | CT23: =IF($G23=Constants!$D$4,RANK($CB23,$CB$6:$CB$64,1),"-") -> - | CV23: =IF($G23=Constants!$D$2,RANK($CB23,$CB$6:$CB$64,1),"-") -> - | CY23: 0 | CZ23: 0 | DB23: 0 | DC23: 0.009 | DD23: 13.009 | DE23: 13 | DF23: 0 | DG23: 0.01 | DH23: 13.01 | DI23: 13 | DJ23: 0 | DK23: 0.011 | DL23: 13.011 | DM23: 13 | DN23: 0 | DO23: 0.005 | DP23: 13.005 | DQ23: 13 | DR23: 0 | DS23: 0.004 | DT23: 13.004 | DU23: 13 | DV23: 0 | DW23: 0.006 | DX23: 13.006 | DY23: 13 | DZ23: 0 | EA23: 0.004 | EB23: 13.004 | EC23: 13 | EF23: 0 | EG23: 0.009 | EH23: 13.009 | EI23: 13 | EJ23: 0 | EK23: 0.01 | EL23: 13.01 | EM23: 13 | EN23: 0 | EO23: 0.011 | EP23: 13.011 | EQ23: 13 | ER23: 0 | ES23: 0.005 | ET23: 13.005 | EU23: 13 | EV23: 0 | EW23: 0.004 | EX23: 13.004 | EY23: 13 | EZ23: 0 | FA23: 0.006 | FB23: 13.006 | FC23: 13 | FD23: 0 | FE23: 0.004 | FF23: 13.004 | FG23: 13 | FI23: 0 | FJ23: 0.009 | FK23: 13.009 | FL23: 13 | FM23: 0 | FN23: 0.009 | FO23: 13.009 | FP23: 13 | FQ23: 0 | FR23: 0.011 | FS23: 13.011 | FT23: 13 | FU23: 0 | FV23: 0.005 | FW23: 13.005 | FX23: 13 | FY23: 0 | FZ23: 0.004 | GA23: 13.004 | GB23: 13 | GC23: 0 | GD23: 0.006 | GE23: 13.006 | GF23: 13 | GG23: 0 | GH23: 0.004 | GI23: 13.004 | GJ23: 13 | GN23: 0 | GO23: NO | GP23: 2000 | GQ23: YES | GS23: 0 | GT23: 0.009 | GU23: 13.009 | GV23: 13 | GW23: 0 | GX23: 0.009 | GY23: 13.009 | GZ23: 13 | HA23: 0 | HB23: 0.011 | HC23: 13.011 | HD23: 13 | HE23: 0 | HF23: 0.003 | HG23: 13.003 | HH23: 13 | HI23: 0 | HJ23: 0.004 | HK23: 13.004 | HL23: 13 | HM23: 0 | HN23: 0.006 | HO23: 13.006 | HP23: 13 | HQ23: 0 | HR23: 0.002 | HS23: 13.002 | HT23: 13 | HW23: 0 | HX23: 0.009 | HY23: 13.009 | HZ23: 13 | IA23: 0 | IB23: 0.007 | IC23: 13.007 | ID23: 13 | IE23: 0 | IF23: 0.011 | IG23: 13.011 | IH23: 13 | II23: 0 | IJ23: 0.001 | IK23: 13.001 | IL23: 13 | IM23: 0 | IN23: 0.002 | IO23: 13.002 | IP23: 13 | IQ23: 0 | IR23: 0.005 | IS23: 13.005 | IT23: 13 | IU23: 0 | IV23: 0.001 | IW23: 13.001 | IX23: 13
A24: 13 | B24: 20 | AA24: 2000 | AL24: 0 | AM24: 2000 | AX24: 0 | AY24: 2000 | BJ24: 0 | BK24: 2000 | BV24: 0 | BW24: 2000 | BX24: 13 | BY24: 13 | BZ24: 13 | CA24: 13 | CB24: 13 | CC24: 13 | CD24: 13 | CE24: 13 | CF24: 13 | CG24: 13 | CH24: =IF($P24=Constants!$B$2,RANK($CB24,$CB$6:$CB$64,1),"-") -> - | CJ24: =IF($P24=Constants!$B$3,RANK($CB24,$CB$6:$CB$64,1),"-") -> - | CL24: =IF($P24=Constants!$B$4,RANK($CB24,$CB$6:$CB$64,1),"-") -> - | CN24: =IF($O24=Constants!$C$2,RANK($CB24,$CB$6:$CB$64,1),"-") -> - | CP24: =IF($O24=Constants!$C$3,RANK($CB24,$CB$6:$CB$64,1),"-") -> - | CR24: =IF($O24=Constants!$C$4,RANK($CB24,$CB$6:$CB$64,1),"-") -> - | CT24: =IF($G24=Constants!$D$4,RANK($CB24,$CB$6:$CB$64,1),"-") -> - | CV24: =IF($G24=Constants!$D$2,RANK($CB24,$CB$6:$CB$64,1),"-") -> - | CY24: 0 | CZ24: 0 | DB24: 0 | DC24: 0.009 | DD24: 13.009 | DE24: 13 | DF24: 0 | DG24: 0.01 | DH24: 13.01 | DI24: 13 | DJ24: 0 | DK24: 0.011 | DL24: 13.011 | DM24: 13 | DN24: 0 | DO24: 0.005 | DP24: 13.005 | DQ24: 13 | DR24: 0 | DS24: 0.004 | DT24: 13.004 | DU24: 13 | DV24: 0 | DW24: 0.006 | DX24: 13.006 | DY24: 13 | DZ24: 0 | EA24: 0.004 | EB24: 13.004 | EC24: 13 | EF24: 0 | EG24: 0.009 | EH24: 13.009 | EI24: 13 | EJ24: 0 | EK24: 0.01 | EL24: 13.01 | EM24: 13 | EN24: 0 | EO24: 0.011 | EP24: 13.011 | EQ24: 13 | ER24: 0 | ES24: 0.005 | ET24: 13.005 | EU24: 13 | EV24: 0 | EW24: 0.004 | EX24: 13.004 | EY24: 13 | EZ24: 0 | FA24: 0.006 | FB24: 13.006 | FC24: 13 | FD24: 0 | FE24: 0.004 | FF24: 13.004 | FG24: 13 | FI24: 0 | FJ24: 0.009 | FK24: 13.009 | FL24: 13 | FM24: 0 | FN24: 0.009 | FO24: 13.009 | FP24: 13 | FQ24: 0 | FR24: 0.011 | FS24: 13.011 | FT24: 13 | FU24: 0 | FV24: 0.005 | FW24: 13.005 | FX24: 13 | FY24: 0 | FZ24: 0.004 | GA24: 13.004 | GB24: 13 | GC24: 0 | GD24: 0.006 | GE24: 13.006 | GF24: 13 | GG24: 0 | GH24: 0.004 | GI24: 13.004 | GJ24: 13 | GN24: 0 | GO24: NO | GP24: 2000 | GQ24: YES | GS24: 0 | GT24: 0.009 | GU24: 13.009 | GV24: 13 | GW24: 0 | GX24: 0.009 | GY24: 13.009 | GZ24: 13 | HA24: 0 | HB24: 0.011 | HC24: 13.011 | HD24: 13 | HE24: 0 | HF24: 0.003 | HG24: 13.003 | HH24: 13 | HI24: 0 | HJ24: 0.004 | HK24: 13.004 | HL24: 13 | HM24: 0 | HN24: 0.006 | HO24: 13.006 | HP24: 13 | HQ24: 0 | HR24: 0.002 | HS24: 13.002 | HT24: 13 | HW24: 0 | HX24: 0.009 | HY24: 13.009 | HZ24: 13 | IA24: 0 | IB24: 0.007 | IC24: 13.007 | ID24: 13 | IE24: 0 | IF24: 0.011 | IG24: 13.011 | IH24: 13 | II24: 0 | IJ24: 0.001 | IK24: 13.001 | IL24: 13 | IM24: 0 | IN24: 0.002 | IO24: 13.002 | IP24: 13 | IQ24: 0 | IR24: 0.005 | IS24: 13.005 | IT24: 13 | IU24: 0 | IV24: 0.001 | IW24: 13.001 | IX24: 13
A25: 13 | B25: 21 | AA25: 2000 | AL25: 0 | AM25: 2000 | AX25: 0 | AY25: 2000 | BJ25: 0 | BK25: 2000 | BV25: 0 | BW25: 2000 | BX25: 13 | BY25: 13 | BZ25: 13 | CA25: 13 | CB25: 13 | CC25: 13 | CD25: 13 | CE25: 13 | CF25: 13 | CG25: 13 | CH25: =IF($P25=Constants!$B$2,RANK($CB25,$CB$6:$CB$64,1),"-") -> - | CJ25: =IF($P25=Constants!$B$3,RANK($CB25,$CB$6:$CB$64,1),"-") -> - | CL25: =IF($P25=Constants!$B$4,RANK($CB25,$CB$6:$CB$64,1),"-") -> - | CN25: =IF($O25=Constants!$C$2,RANK($CB25,$CB$6:$CB$64,1),"-") -> - | CP25: =IF($O25=Constants!$C$3,RANK($CB25,$CB$6:$CB$64,1),"-") -> - | CR25: =IF($O25=Constants!$C$4,RANK($CB25,$CB$6:$CB$64,1),"-") -> - | CT25: =IF($G25=Constants!$D$4,RANK($CB25,$CB$6:$CB$64,1),"-") -> - | CV25: =IF($G25=Constants!$D$2,RANK($CB25,$CB$6:$CB$64,1),"-") -> - | CY25: 0 | CZ25: 0 | DB25: 0 | DC25: 0.009 | DD25: 13.009 | DE25: 13 | DF25: 0 | DG25: 0.01 | DH25: 13.01 | DI25: 13 | DJ25: 0 | DK25: 0.011 | DL25: 13.011 | DM25: 13 | DN25: 0 | DO25: 0.005 | DP25: 13.005 | DQ25: 13 | DR25: 0 | DS25: 0.004 | DT25: 13.004 | DU25: 13 | DV25: 0 | DW25: 0.006 | DX25: 13.006 | DY25: 13 | DZ25: 0 | EA25: 0.004 | EB25: 13.004 | EC25: 13 | EF25: 0 | EG25: 0.009 | EH25: 13.009 | EI25: 13 | EJ25: 0 | EK25: 0.01 | EL25: 13.01 | EM25: 13 | EN25: 0 | EO25: 0.011 | EP25: 13.011 | EQ25: 13 | ER25: 0 | ES25: 0.005 | ET25: 13.005 | EU25: 13 | EV25: 0 | EW25: 0.004 | EX25: 13.004 | EY25: 13 | EZ25: 0 | FA25: 0.006 | FB25: 13.006 | FC25: 13 | FD25: 0 | FE25: 0.004 | FF25: 13.004 | FG25: 13 | FI25: 0 | FJ25: 0.009 | FK25: 13.009 | FL25: 13 | FM25: 0 | FN25: 0.009 | FO25: 13.009 | FP25: 13 | FQ25: 0 | FR25: 0.011 | FS25: 13.011 | FT25: 13 | FU25: 0 | FV25: 0.005 | FW25: 13.005 | FX25: 13 | FY25: 0 | FZ25: 0.004 | GA25: 13.004 | GB25: 13 | GC25: 0 | GD25: 0.006 | GE25: 13.006 | GF25: 13 | GG25: 0 | GH25: 0.004 | GI25: 13.004 | GJ25: 13 | GN25: 0 | GO25: NO | GP25: 2000 | GQ25: YES | GS25: 0 | GT25: 0.009 | GU25: 13.009 | GV25: 13 | GW25: 0 | GX25: 0.009 | GY25: 13.009 | GZ25: 13 | HA25: 0 | HB25: 0.011 | HC25: 13.011 | HD25: 13 | HE25: 0 | HF25: 0.003 | HG25: 13.003 | HH25: 13 | HI25: 0 | HJ25: 0.004 | HK25: 13.004 | HL25: 13 | HM25: 0 | HN25: 0.006 | HO25: 13.006 | HP25: 13 | HQ25: 0 | HR25: 0.002 | HS25: 13.002 | HT25: 13 | HW25: 0 | HX25: 0.009 | HY25: 13.009 | HZ25: 13 | IA25: 0 | IB25: 0.007 | IC25: 13.007 | ID25: 13 | IE25: 0 | IF25: 0.011 | IG25: 13.011 | IH25: 13 | II25: 0 | IJ25: 0.001 | IK25: 13.001 | IL25: 13 | IM25: 0 | IN25: 0.002 | IO25: 13.002 | IP25: 13 | IQ25: 0 | IR25: 0.005 | IS25: 13.005 | IT25: 13 | IU25: 0 | IV25: 0.001 | IW25: 13.001 | IX25: 13
A26: 13 | B26: 22 | AA26: 2000 | AL26: 0 | AM26: 2000 | AX26: 0 | AY26: 2000 | BJ26: 0 | BK26: 2000 | BV26: 0 | BW26: 2000 | BX26: 13 | BY26: 13 | BZ26: 13 | CA26: 13 | CB26: 13 | CC26: 13 | CD26: 13 | CE26: 13 | CF26: 13 | CG26: 13 | CH26: =IF($P26=Constants!$B$2,RANK($CB26,$CB$6:$CB$64,1),"-") -> - | CJ26: =IF($P26=Constants!$B$3,RANK($CB26,$CB$6:$CB$64,1),"-") -> - | CL26: =IF($P26=Constants!$B$4,RANK($CB26,$CB$6:$CB$64,1),"-") -> - | CN26: =IF($O26=Constants!$C$2,RANK($CB26,$CB$6:$CB$64,1),"-") -> - | CP26: =IF($O26=Constants!$C$3,RANK($CB26,$CB$6:$CB$64,1),"-") -> - | CR26: =IF($O26=Constants!$C$4,RANK($CB26,$CB$6:$CB$64,1),"-") -> - | CT26: =IF($G26=Constants!$D$4,RANK($CB26,$CB$6:$CB$64,1),"-") -> - | CV26: =IF($G26=Constants!$D$2,RANK($CB26,$CB$6:$CB$64,1),"-") -> - | CY26: 0 | CZ26: 0 | DB26: 0 | DC26: 0.009 | DD26: 13.009 | DE26: 13 | DF26: 0 | DG26: 0.01 | DH26: 13.01 | DI26: 13 | DJ26: 0 | DK26: 0.011 | DL26: 13.011 | DM26: 13 | DN26: 0 | DO26: 0.005 | DP26: 13.005 | DQ26: 13 | DR26: 0 | DS26: 0.004 | DT26: 13.004 | DU26: 13 | DV26: 0 | DW26: 0.006 | DX26: 13.006 | DY26: 13 | DZ26: 0 | EA26: 0.004 | EB26: 13.004 | EC26: 13 | EF26: 0 | EG26: 0.009 | EH26: 13.009 | EI26: 13 | EJ26: 0 | EK26: 0.01 | EL26: 13.01 | EM26: 13 | EN26: 0 | EO26: 0.011 | EP26: 13.011 | EQ26: 13 | ER26: 0 | ES26: 0.005 | ET26: 13.005 | EU26: 13 | EV26: 0 | EW26: 0.004 | EX26: 13.004 | EY26: 13 | EZ26: 0 | FA26: 0.006 | FB26: 13.006 | FC26: 13 | FD26: 0 | FE26: 0.004 | FF26: 13.004 | FG26: 13 | FI26: 0 | FJ26: 0.009 | FK26: 13.009 | FL26: 13 | FM26: 0 | FN26: 0.009 | FO26: 13.009 | FP26: 13 | FQ26: 0 | FR26: 0.011 | FS26: 13.011 | FT26: 13 | FU26: 0 | FV26: 0.005 | FW26: 13.005 | FX26: 13 | FY26: 0 | FZ26: 0.004 | GA26: 13.004 | GB26: 13 | GC26: 0 | GD26: 0.006 | GE26: 13.006 | GF26: 13 | GG26: 0 | GH26: 0.004 | GI26: 13.004 | GJ26: 13 | GN26: 0 | GO26: NO | GP26: 2000 | GQ26: YES | GS26: 0 | GT26: 0.009 | GU26: 13.009 | GV26: 13 | GW26: 0 | GX26: 0.009 | GY26: 13.009 | GZ26: 13 | HA26: 0 | HB26: 0.011 | HC26: 13.011 | HD26: 13 | HE26: 0 | HF26: 0.003 | HG26: 13.003 | HH26: 13 | HI26: 0 | HJ26: 0.004 | HK26: 13.004 | HL26: 13 | HM26: 0 | HN26: 0.006 | HO26: 13.006 | HP26: 13 | HQ26: 0 | HR26: 0.002 | HS26: 13.002 | HT26: 13 | HW26: 0 | HX26: 0.009 | HY26: 13.009 | HZ26: 13 | IA26: 0 | IB26: 0.007 | IC26: 13.007 | ID26: 13 | IE26: 0 | IF26: 0.011 | IG26: 13.011 | IH26: 13 | II26: 0 | IJ26: 0.001 | IK26: 13.001 | IL26: 13 | IM26: 0 | IN26: 0.002 | IO26: 13.002 | IP26: 13 | IQ26: 0 | IR26: 0.005 | IS26: 13.005 | IT26: 13 | IU26: 0 | IV26: 0.001 | IW26: 13.001 | IX26: 13
A27: 13 | B27: 23 | AA27: 2000 | AL27: 0 | AM27: 2000 | AX27: 0 | AY27: 2000 | BJ27: 0 | BK27: 2000 | BV27: 0 | BW27: 2000 | BX27: 13 | BY27: 13 | BZ27: 13 | CA27: 13 | CB27: 13 | CC27: 13 | CD27: 13 | CE27: 13 | CF27: 13 | CG27: 13 | CH27: =IF($P27=Constants!$B$2,RANK($CB27,$CB$6:$CB$64,1),"-") -> - | CJ27: =IF($P27=Constants!$B$3,RANK($CB27,$CB$6:$CB$64,1),"-") -> - | CL27: =IF($P27=Constants!$B$4,RANK($CB27,$CB$6:$CB$64,1),"-") -> - | CN27: =IF($O27=Constants!$C$2,RANK($CB27,$CB$6:$CB$64,1),"-") -> - | CP27: =IF($O27=Constants!$C$3,RANK($CB27,$CB$6:$CB$64,1),"-") -> - | CR27: =IF($O27=Constants!$C$4,RANK($CB27,$CB$6:$CB$64,1),"-") -> - | CT27: =IF($G27=Constants!$D$4,RANK($CB27,$CB$6:$CB$64,1),"-") -> - | CV27: =IF($G27=Constants!$D$2,RANK($CB27,$CB$6:$CB$64,1),"-") -> - | CY27: 0 | CZ27: 0 | DB27: 0 | DC27: 0.009 | DD27: 13.009 | DE27: 13 | DF27: 0 | DG27: 0.01 | DH27: 13.01 | DI27: 13 | DJ27: 0 | DK27: 0.011 | DL27: 13.011 | DM27: 13 | DN27: 0 | DO27: 0.005 | DP27: 13.005 | DQ27: 13 | DR27: 0 | DS27: 0.004 | DT27: 13.004 | DU27: 13 | DV27: 0 | DW27: 0.006 | DX27: 13.006 | DY27: 13 | DZ27: 0 | EA27: 0.004 | EB27: 13.004 | EC27: 13 | EF27: 0 | EG27: 0.009 | EH27: 13.009 | EI27: 13 | EJ27: 0 | EK27: 0.01 | EL27: 13.01 | EM27: 13 | EN27: 0 | EO27: 0.011 | EP27: 13.011 | EQ27: 13 | ER27: 0 | ES27: 0.005 | ET27: 13.005 | EU27: 13 | EV27: 0 | EW27: 0.004 | EX27: 13.004 | EY27: 13 | EZ27: 0 | FA27: 0.006 | FB27: 13.006 | FC27: 13 | FD27: 0 | FE27: 0.004 | FF27: 13.004 | FG27: 13 | FI27: 0 | FJ27: 0.009 | FK27: 13.009 | FL27: 13 | FM27: 0 | FN27: 0.009 | FO27: 13.009 | FP27: 13 | FQ27: 0 | FR27: 0.011 | FS27: 13.011 | FT27: 13 | FU27: 0 | FV27: 0.005 | FW27: 13.005 | FX27: 13 | FY27: 0 | FZ27: 0.004 | GA27: 13.004 | GB27: 13 | GC27: 0 | GD27: 0.006 | GE27: 13.006 | GF27: 13 | GG27: 0 | GH27: 0.004 | GI27: 13.004 | GJ27: 13 | GN27: 0 | GO27: NO | GP27: 2000 | GQ27: YES | GS27: 0 | GT27: 0.009 | GU27: 13.009 | GV27: 13 | GW27: 0 | GX27: 0.009 | GY27: 13.009 | GZ27: 13 | HA27: 0 | HB27: 0.011 | HC27: 13.011 | HD27: 13 | HE27: 0 | HF27: 0.003 | HG27: 13.003 | HH27: 13 | HI27: 0 | HJ27: 0.004 | HK27: 13.004 | HL27: 13 | HM27: 0 | HN27: 0.006 | HO27: 13.006 | HP27: 13 | HQ27: 0 | HR27: 0.002 | HS27: 13.002 | HT27: 13 | HW27: 0 | HX27: 0.009 | HY27: 13.009 | HZ27: 13 | IA27: 0 | IB27: 0.007 | IC27: 13.007 | ID27: 13 | IE27: 0 | IF27: 0.011 | IG27: 13.011 | IH27: 13 | II27: 0 | IJ27: 0.001 | IK27: 13.001 | IL27: 13 | IM27: 0 | IN27: 0.002 | IO27: 13.002 | IP27: 13 | IQ27: 0 | IR27: 0.005 | IS27: 13.005 | IT27: 13 | IU27: 0 | IV27: 0.001 | IW27: 13.001 | IX27: 13
A28: 13 | B28: 24 | AA28: 2000 | AL28: 0 | AM28: 2000 | AX28: 0 | AY28: 2000 | BJ28: 0 | BK28: 2000 | BV28: 0 | BW28: 2000 | BX28: 13 | BY28: 13 | BZ28: 13 | CA28: 13 | CB28: 13 | CC28: 13 | CD28: 13 | CE28: 13 | CF28: 13 | CG28: 13 | CH28: =IF($P28=Constants!$B$2,RANK($CB28,$CB$6:$CB$64,1),"-") -> - | CJ28: =IF($P28=Constants!$B$3,RANK($CB28,$CB$6:$CB$64,1),"-") -> - | CL28: =IF($P28=Constants!$B$4,RANK($CB28,$CB$6:$CB$64,1),"-") -> - | CN28: =IF($O28=Constants!$C$2,RANK($CB28,$CB$6:$CB$64,1),"-") -> - | CP28: =IF($O28=Constants!$C$3,RANK($CB28,$CB$6:$CB$64,1),"-") -> - | CR28: =IF($O28=Constants!$C$4,RANK($CB28,$CB$6:$CB$64,1),"-") -> - | CT28: =IF($G28=Constants!$D$4,RANK($CB28,$CB$6:$CB$64,1),"-") -> - | CV28: =IF($G28=Constants!$D$2,RANK($CB28,$CB$6:$CB$64,1),"-") -> - | CY28: 0 | CZ28: 0 | DB28: 0 | DC28: 0.009 | DD28: 13.009 | DE28: 13 | DF28: 0 | DG28: 0.01 | DH28: 13.01 | DI28: 13 | DJ28: 0 | DK28: 0.011 | DL28: 13.011 | DM28: 13 | DN28: 0 | DO28: 0.005 | DP28: 13.005 | DQ28: 13 | DR28: 0 | DS28: 0.004 | DT28: 13.004 | DU28: 13 | DV28: 0 | DW28: 0.006 | DX28: 13.006 | DY28: 13 | DZ28: 0 | EA28: 0.004 | EB28: 13.004 | EC28: 13 | EF28: 0 | EG28: 0.009 | EH28: 13.009 | EI28: 13 | EJ28: 0 | EK28: 0.01 | EL28: 13.01 | EM28: 13 | EN28: 0 | EO28: 0.011 | EP28: 13.011 | EQ28: 13 | ER28: 0 | ES28: 0.005 | ET28: 13.005 | EU28: 13 | EV28: 0 | EW28: 0.004 | EX28: 13.004 | EY28: 13 | EZ28: 0 | FA28: 0.006 | FB28: 13.006 | FC28: 13 | FD28: 0 | FE28: 0.004 | FF28: 13.004 | FG28: 13 | FI28: 0 | FJ28: 0.009 | FK28: 13.009 | FL28: 13 | FM28: 0 | FN28: 0.009 | FO28: 13.009 | FP28: 13 | FQ28: 0 | FR28: 0.011 | FS28: 13.011 | FT28: 13 | FU28: 0 | FV28: 0.005 | FW28: 13.005 | FX28: 13 | FY28: 0 | FZ28: 0.004 | GA28: 13.004 | GB28: 13 | GC28: 0 | GD28: 0.006 | GE28: 13.006 | GF28: 13 | GG28: 0 | GH28: 0.004 | GI28: 13.004 | GJ28: 13 | GN28: 0 | GO28: NO | GP28: 2000 | GQ28: YES | GS28: 0 | GT28: 0.009 | GU28: 13.009 | GV28: 13 | GW28: 0 | GX28: 0.009 | GY28: 13.009 | GZ28: 13 | HA28: 0 | HB28: 0.011 | HC28: 13.011 | HD28: 13 | HE28: 0 | HF28: 0.003 | HG28: 13.003 | HH28: 13 | HI28: 0 | HJ28: 0.004 | HK28: 13.004 | HL28: 13 | HM28: 0 | HN28: 0.006 | HO28: 13.006 | HP28: 13 | HQ28: 0 | HR28: 0.002 | HS28: 13.002 | HT28: 13 | HW28: 0 | HX28: 0.009 | HY28: 13.009 | HZ28: 13 | IA28: 0 | IB28: 0.007 | IC28: 13.007 | ID28: 13 | IE28: 0 | IF28: 0.011 | IG28: 13.011 | IH28: 13 | II28: 0 | IJ28: 0.001 | IK28: 13.001 | IL28: 13 | IM28: 0 | IN28: 0.002 | IO28: 13.002 | IP28: 13 | IQ28: 0 | IR28: 0.005 | IS28: 13.005 | IT28: 13 | IU28: 0 | IV28: 0.001 | IW28: 13.001 | IX28: 13
A29: 13 | B29: 25 | AA29: 2000 | AL29: 0 | AM29: 2000 | AX29: 0 | AY29: 2000 | BJ29: 0 | BK29: 2000 | BV29: 0 | BW29: 2000 | BX29: 13 | BY29: 13 | BZ29: 13 | CA29: 13 | CB29: 13 | CC29: 13 | CD29: 13 | CE29: 13 | CF29: 13 | CG29: 13 | CH29: =IF($P29=Constants!$B$2,RANK($CB29,$CB$6:$CB$64,1),"-") -> - | CJ29: =IF($P29=Constants!$B$3,RANK($CB29,$CB$6:$CB$64,1),"-") -> - | CL29: =IF($P29=Constants!$B$4,RANK($CB29,$CB$6:$CB$64,1),"-") -> - | CN29: =IF($O29=Constants!$C$2,RANK($CB29,$CB$6:$CB$64,1),"-") -> - | CP29: =IF($O29=Constants!$C$3,RANK($CB29,$CB$6:$CB$64,1),"-") -> - | CR29: =IF($O29=Constants!$C$4,RANK($CB29,$CB$6:$CB$64,1),"-") -> - | CT29: =IF($G29=Constants!$D$4,RANK($CB29,$CB$6:$CB$64,1),"-") -> - | CV29: =IF($G29=Constants!$D$2,RANK($CB29,$CB$6:$CB$64,1),"-") -> - | CY29: 0 | CZ29: 0 | DB29: 0 | DC29: 0.009 | DD29: 13.009 | DE29: 13 | DF29: 0 | DG29: 0.01 | DH29: 13.01 | DI29: 13 | DJ29: 0 | DK29: 0.011 | DL29: 13.011 | DM29: 13 | DN29: 0 | DO29: 0.005 | DP29: 13.005 | DQ29: 13 | DR29: 0 | DS29: 0.004 | DT29: 13.004 | DU29: 13 | DV29: 0 | DW29: 0.006 | DX29: 13.006 | DY29: 13 | DZ29: 0 | EA29: 0.004 | EB29: 13.004 | EC29: 13 | EF29: 0 | EG29: 0.009 | EH29: 13.009 | EI29: 13 | EJ29: 0 | EK29: 0.01 | EL29: 13.01 | EM29: 13 | EN29: 0 | EO29: 0.011 | EP29: 13.011 | EQ29: 13 | ER29: 0 | ES29: 0.005 | ET29: 13.005 | EU29: 13 | EV29: 0 | EW29: 0.004 | EX29: 13.004 | EY29: 13 | EZ29: 0 | FA29: 0.006 | FB29: 13.006 | FC29: 13 | FD29: 0 | FE29: 0.004 | FF29: 13.004 | FG29: 13 | FI29: 0 | FJ29: 0.009 | FK29: 13.009 | FL29: 13 | FM29: 0 | FN29: 0.009 | FO29: 13.009 | FP29: 13 | FQ29: 0 | FR29: 0.011 | FS29: 13.011 | FT29: 13 | FU29: 0 | FV29: 0.005 | FW29: 13.005 | FX29: 13 | FY29: 0 | FZ29: 0.004 | GA29: 13.004 | GB29: 13 | GC29: 0 | GD29: 0.006 | GE29: 13.006 | GF29: 13 | GG29: 0 | GH29: 0.004 | GI29: 13.004 | GJ29: 13 | GN29: 0 | GO29: NO | GP29: 2000 | GQ29: YES | GS29: 0 | GT29: 0.009 | GU29: 13.009 | GV29: 13 | GW29: 0 | GX29: 0.009 | GY29: 13.009 | GZ29: 13 | HA29: 0 | HB29: 0.011 | HC29: 13.011 | HD29: 13 | HE29: 0 | HF29: 0.003 | HG29: 13.003 | HH29: 13 | HI29: 0 | HJ29: 0.004 | HK29: 13.004 | HL29: 13 | HM29: 0 | HN29: 0.006 | HO29: 13.006 | HP29: 13 | HQ29: 0 | HR29: 0.002 | HS29: 13.002 | HT29: 13 | HW29: 0 | HX29: 0.009 | HY29: 13.009 | HZ29: 13 | IA29: 0 | IB29: 0.007 | IC29: 13.007 | ID29: 13 | IE29: 0 | IF29: 0.011 | IG29: 13.011 | IH29: 13 | II29: 0 | IJ29: 0.001 | IK29: 13.001 | IL29: 13 | IM29: 0 | IN29: 0.002 | IO29: 13.002 | IP29: 13 | IQ29: 0 | IR29: 0.005 | IS29: 13.005 | IT29: 13 | IU29: 0 | IV29: 0.001 | IW29: 13.001 | IX29: 13
A30: 13 | B30: 26 | AA30: 2000 | AL30: 0 | AM30: 2000 | AX30: 0 | AY30: 2000 | BJ30: 0 | BK30: 2000 | BV30: 0 | BW30: 2000 | BX30: 13 | BY30: 13 | BZ30: 13 | CA30: 13 | CB30: 13 | CC30: 13 | CD30: 13 | CE30: 13 | CF30: 13 | CG30: 13 | CH30: =IF($P30=Constants!$B$2,RANK($CB30,$CB$6:$CB$64,1),"-") -> - | CJ30: =IF($P30=Constants!$B$3,RANK($CB30,$CB$6:$CB$64,1),"-") -> - | CL30: =IF($P30=Constants!$B$4,RANK($CB30,$CB$6:$CB$64,1),"-") -> - | CN30: =IF($O30=Constants!$C$2,RANK($CB30,$CB$6:$CB$64,1),"-") -> - | CP30: =IF($O30=Constants!$C$3,RANK($CB30,$CB$6:$CB$64,1),"-") -> - | CR30: =IF($O30=Constants!$C$4,RANK($CB30,$CB$6:$CB$64,1),"-") -> - | CT30: =IF($G30=Constants!$D$4,RANK($CB30,$CB$6:$CB$64,1),"-") -> - | CV30: =IF($G30=Constants!$D$2,RANK($CB30,$CB$6:$CB$64,1),"-") -> - | CY30: 0 | CZ30: 0 | DB30: 0 | DC30: 0.009 | DD30: 13.009 | DE30: 13 | DF30: 0 | DG30: 0.01 | DH30: 13.01 | DI30: 13 | DJ30: 0 | DK30: 0.011 | DL30: 13.011 | DM30: 13 | DN30: 0 | DO30: 0.005 | DP30: 13.005 | DQ30: 13 | DR30: 0 | DS30: 0.004 | DT30: 13.004 | DU30: 13 | DV30: 0 | DW30: 0.006 | DX30: 13.006 | DY30: 13 | DZ30: 0 | EA30: 0.004 | EB30: 13.004 | EC30: 13 | EF30: 0 | EG30: 0.009 | EH30: 13.009 | EI30: 13 | EJ30: 0 | EK30: 0.01 | EL30: 13.01 | EM30: 13 | EN30: 0 | EO30: 0.011 | EP30: 13.011 | EQ30: 13 | ER30: 0 | ES30: 0.005 | ET30: 13.005 | EU30: 13 | EV30: 0 | EW30: 0.004 | EX30: 13.004 | EY30: 13 | EZ30: 0 | FA30: 0.006 | FB30: 13.006 | FC30: 13 | FD30: 0 | FE30: 0.004 | FF30: 13.004 | FG30: 13 | FI30: 0 | FJ30: 0.009 | FK30: 13.009 | FL30: 13 | FM30: 0 | FN30: 0.009 | FO30: 13.009 | FP30: 13 | FQ30: 0 | FR30: 0.011 | FS30: 13.011 | FT30: 13 | FU30: 0 | FV30: 0.005 | FW30: 13.005 | FX30: 13 | FY30: 0 | FZ30: 0.004 | GA30: 13.004 | GB30: 13 | GC30: 0 | GD30: 0.006 | GE30: 13.006 | GF30: 13 | GG30: 0 | GH30: 0.004 | GI30: 13.004 | GJ30: 13 | GN30: 0 | GO30: NO | GP30: 2000 | GQ30: YES | GS30: 0 | GT30: 0.009 | GU30: 13.009 | GV30: 13 | GW30: 0 | GX30: 0.009 | GY30: 13.009 | GZ30: 13 | HA30: 0 | HB30: 0.011 | HC30: 13.011 | HD30: 13 | HE30: 0 | HF30: 0.003 | HG30: 13.003 | HH30: 13 | HI30: 0 | HJ30: 0.004 | HK30: 13.004 | HL30: 13 | HM30: 0 | HN30: 0.006 | HO30: 13.006 | HP30: 13 | HQ30: 0 | HR30: 0.002 | HS30: 13.002 | HT30: 13 | HW30: 0 | HX30: 0.009 | HY30: 13.009 | HZ30: 13 | IA30: 0 | IB30: 0.007 | IC30: 13.007 | ID30: 13 | IE30: 0 | IF30: 0.011 | IG30: 13.011 | IH30: 13 | II30: 0 | IJ30: 0.001 | IK30: 13.001 | IL30: 13 | IM30: 0 | IN30: 0.002 | IO30: 13.002 | IP30: 13 | IQ30: 0 | IR30: 0.005 | IS30: 13.005 | IT30: 13 | IU30: 0 | IV30: 0.001 | IW30: 13.001 | IX30: 13
A31: 13 | B31: 27 | AA31: 2000 | AL31: 0 | AM31: 2000 | AX31: 0 | AY31: 2000 | BJ31: 0 | BK31: 2000 | BV31: 0 | BW31: 2000 | BX31: 13 | BY31: 13 | BZ31: 13 | CA31: 13 | CB31: 13 | CC31: 13 | CD31: 13 | CE31: 13 | CF31: 13 | CG31: 13 | CH31: =IF($P31=Constants!$B$2,RANK($CB31,$CB$6:$CB$64,1),"-") -> - | CJ31: =IF($P31=Constants!$B$3,RANK($CB31,$CB$6:$CB$64,1),"-") -> - | CL31: =IF($P31=Constants!$B$4,RANK($CB31,$CB$6:$CB$64,1),"-") -> - | CN31: =IF($O31=Constants!$C$2,RANK($CB31,$CB$6:$CB$64,1),"-") -> - | CP31: =IF($O31=Constants!$C$3,RANK($CB31,$CB$6:$CB$64,1),"-") -> - | CR31: =IF($O31=Constants!$C$4,RANK($CB31,$CB$6:$CB$64,1),"-") -> - | CT31: =IF($G31=Constants!$D$4,RANK($CB31,$CB$6:$CB$64,1),"-") -> - | CV31: =IF($G31=Constants!$D$2,RANK($CB31,$CB$6:$CB$64,1),"-") -> - | CY31: 0 | CZ31: 0 | DB31: 0 | DC31: 0.009 | DD31: 13.009 | DE31: 13 | DF31: 0 | DG31: 0.01 | DH31: 13.01 | DI31: 13 | DJ31: 0 | DK31: 0.011 | DL31: 13.011 | DM31: 13 | DN31: 0 | DO31: 0.005 | DP31: 13.005 | DQ31: 13 | DR31: 0 | DS31: 0.004 | DT31: 13.004 | DU31: 13 | DV31: 0 | DW31: 0.006 | DX31: 13.006 | DY31: 13 | DZ31: 0 | EA31: 0.004 | EB31: 13.004 | EC31: 13 | EF31: 0 | EG31: 0.009 | EH31: 13.009 | EI31: 13 | EJ31: 0 | EK31: 0.01 | EL31: 13.01 | EM31: 13 | EN31: 0 | EO31: 0.011 | EP31: 13.011 | EQ31: 13 | ER31: 0 | ES31: 0.005 | ET31: 13.005 | EU31: 13 | EV31: 0 | EW31: 0.004 | EX31: 13.004 | EY31: 13 | EZ31: 0 | FA31: 0.006 | FB31: 13.006 | FC31: 13 | FD31: 0 | FE31: 0.004 | FF31: 13.004 | FG31: 13 | FI31: 0 | FJ31: 0.009 | FK31: 13.009 | FL31: 13 | FM31: 0 | FN31: 0.009 | FO31: 13.009 | FP31: 13 | FQ31: 0 | FR31: 0.011 | FS31: 13.011 | FT31: 13 | FU31: 0 | FV31: 0.005 | FW31: 13.005 | FX31: 13 | FY31: 0 | FZ31: 0.004 | GA31: 13.004 | GB31: 13 | GC31: 0 | GD31: 0.006 | GE31: 13.006 | GF31: 13 | GG31: 0 | GH31: 0.004 | GI31: 13.004 | GJ31: 13 | GN31: 0 | GO31: NO | GP31: 2000 | GQ31: YES | GS31: 0 | GT31: 0.009 | GU31: 13.009 | GV31: 13 | GW31: 0 | GX31: 0.009 | GY31: 13.009 | GZ31: 13 | HA31: 0 | HB31: 0.011 | HC31: 13.011 | HD31: 13 | HE31: 0 | HF31: 0.003 | HG31: 13.003 | HH31: 13 | HI31: 0 | HJ31: 0.004 | HK31: 13.004 | HL31: 13 | HM31: 0 | HN31: 0.006 | HO31: 13.006 | HP31: 13 | HQ31: 0 | HR31: 0.002 | HS31: 13.002 | HT31: 13 | HW31: 0 | HX31: 0.009 | HY31: 13.009 | HZ31: 13 | IA31: 0 | IB31: 0.007 | IC31: 13.007 | ID31: 13 | IE31: 0 | IF31: 0.011 | IG31: 13.011 | IH31: 13 | II31: 0 | IJ31: 0.001 | IK31: 13.001 | IL31: 13 | IM31: 0 | IN31: 0.002 | IO31: 13.002 | IP31: 13 | IQ31: 0 | IR31: 0.005 | IS31: 13.005 | IT31: 13 | IU31: 0 | IV31: 0.001 | IW31: 13.001 | IX31: 13
A32: 13 | B32: 28 | AA32: 2000 | AL32: 0 | AM32: 2000 | AX32: 0 | AY32: 2000 | BJ32: 0 | BK32: 2000 | BV32: 0 | BW32: 2000 | BX32: 13 | BY32: 13 | BZ32: 13 | CA32: 13 | CB32: 13 | CC32: 13 | CD32: 13 | CE32: 13 | CF32: 13 | CG32: 13 | CH32: =IF($P32=Constants!$B$2,RANK($CB32,$CB$6:$CB$64,1),"-") -> - | CJ32: =IF($P32=Constants!$B$3,RANK($CB32,$CB$6:$CB$64,1),"-") -> - | CL32: =IF($P32=Constants!$B$4,RANK($CB32,$CB$6:$CB$64,1),"-") -> - | CN32: =IF($O32=Constants!$C$2,RANK($CB32,$CB$6:$CB$64,1),"-") -> - | CP32: =IF($O32=Constants!$C$3,RANK($CB32,$CB$6:$CB$64,1),"-") -> - | CR32: =IF($O32=Constants!$C$4,RANK($CB32,$CB$6:$CB$64,1),"-") -> - | CT32: =IF($G32=Constants!$D$4,RANK($CB32,$CB$6:$CB$64,1),"-") -> - | CV32: =IF($G32=Constants!$D$2,RANK($CB32,$CB$6:$CB$64,1),"-") -> - | CY32: 0 | CZ32: 0 | DB32: 0 | DC32: 0.009 | DD32: 13.009 | DE32: 13 | DF32: 0 | DG32: 0.01 | DH32: 13.01 | DI32: 13 | DJ32: 0 | DK32: 0.011 | DL32: 13.011 | DM32: 13 | DN32: 0 | DO32: 0.005 | DP32: 13.005 | DQ32: 13 | DR32: 0 | DS32: 0.004 | DT32: 13.004 | DU32: 13 | DV32: 0 | DW32: 0.006 | DX32: 13.006 | DY32: 13 | DZ32: 0 | EA32: 0.004 | EB32: 13.004 | EC32: 13 | EF32: 0 | EG32: 0.009 | EH32: 13.009 | EI32: 13 | EJ32: 0 | EK32: 0.01 | EL32: 13.01 | EM32: 13 | EN32: 0 | EO32: 0.011 | EP32: 13.011 | EQ32: 13 | ER32: 0 | ES32: 0.005 | ET32: 13.005 | EU32: 13 | EV32: 0 | EW32: 0.004 | EX32: 13.004 | EY32: 13 | EZ32: 0 | FA32: 0.006 | FB32: 13.006 | FC32: 13 | FD32: 0 | FE32: 0.004 | FF32: 13.004 | FG32: 13 | FI32: 0 | FJ32: 0.009 | FK32: 13.009 | FL32: 13 | FM32: 0 | FN32: 0.009 | FO32: 13.009 | FP32: 13 | FQ32: 0 | FR32: 0.011 | FS32: 13.011 | FT32: 13 | FU32: 0 | FV32: 0.005 | FW32: 13.005 | FX32: 13 | FY32: 0 | FZ32: 0.004 | GA32: 13.004 | GB32: 13 | GC32: 0 | GD32: 0.006 | GE32: 13.006 | GF32: 13 | GG32: 0 | GH32: 0.004 | GI32: 13.004 | GJ32: 13 | GN32: 0 | GO32: NO | GP32: 2000 | GQ32: YES | GS32: 0 | GT32: 0.009 | GU32: 13.009 | GV32: 13 | GW32: 0 | GX32: 0.009 | GY32: 13.009 | GZ32: 13 | HA32: 0 | HB32: 0.011 | HC32: 13.011 | HD32: 13 | HE32: 0 | HF32: 0.003 | HG32: 13.003 | HH32: 13 | HI32: 0 | HJ32: 0.004 | HK32: 13.004 | HL32: 13 | HM32: 0 | HN32: 0.006 | HO32: 13.006 | HP32: 13 | HQ32: 0 | HR32: 0.002 | HS32: 13.002 | HT32: 13 | HW32: 0 | HX32: 0.009 | HY32: 13.009 | HZ32: 13 | IA32: 0 | IB32: 0.007 | IC32: 13.007 | ID32: 13 | IE32: 0 | IF32: 0.011 | IG32: 13.011 | IH32: 13 | II32: 0 | IJ32: 0.001 | IK32: 13.001 | IL32: 13 | IM32: 0 | IN32: 0.002 | IO32: 13.002 | IP32: 13 | IQ32: 0 | IR32: 0.005 | IS32: 13.005 | IT32: 13 | IU32: 0 | IV32: 0.001 | IW32: 13.001 | IX32: 13
A33: 13 | B33: 29 | AA33: 2000 | AL33: 0 | AM33: 2000 | AX33: 0 | AY33: 2000 | BJ33: 0 | BK33: 2000 | BV33: 0 | BW33: 2000 | BX33: 13 | BY33: 13 | BZ33: 13 | CA33: 13 | CB33: 13 | CC33: 13 | CD33: 13 | CE33: 13 | CF33: 13 | CG33: 13 | CH33: =IF($P33=Constants!$B$2,RANK($CB33,$CB$6:$CB$64,1),"-") -> - | CJ33: =IF($P33=Constants!$B$3,RANK($CB33,$CB$6:$CB$64,1),"-") -> - | CL33: =IF($P33=Constants!$B$4,RANK($CB33,$CB$6:$CB$64,1),"-") -> - | CN33: =IF($O33=Constants!$C$2,RANK($CB33,$CB$6:$CB$64,1),"-") -> - | CP33: =IF($O33=Constants!$C$3,RANK($CB33,$CB$6:$CB$64,1),"-") -> - | CR33: =IF($O33=Constants!$C$4,RANK($CB33,$CB$6:$CB$64,1),"-") -> - | CT33: =IF($G33=Constants!$D$4,RANK($CB33,$CB$6:$CB$64,1),"-") -> - | CV33: =IF($G33=Constants!$D$2,RANK($CB33,$CB$6:$CB$64,1),"-") -> - | CY33: 0 | CZ33: 0 | DB33: 0 | DC33: 0.009 | DD33: 13.009 | DE33: 13 | DF33: 0 | DG33: 0.01 | DH33: 13.01 | DI33: 13 | DJ33: 0 | DK33: 0.011 | DL33: 13.011 | DM33: 13 | DN33: 0 | DO33: 0.005 | DP33: 13.005 | DQ33: 13 | DR33: 0 | DS33: 0.004 | DT33: 13.004 | DU33: 13 | DV33: 0 | DW33: 0.006 | DX33: 13.006 | DY33: 13 | DZ33: 0 | EA33: 0.004 | EB33: 13.004 | EC33: 13 | EF33: 0 | EG33: 0.009 | EH33: 13.009 | EI33: 13 | EJ33: 0 | EK33: 0.01 | EL33: 13.01 | EM33: 13 | EN33: 0 | EO33: 0.011 | EP33: 13.011 | EQ33: 13 | ER33: 0 | ES33: 0.005 | ET33: 13.005 | EU33: 13 | EV33: 0 | EW33: 0.004 | EX33: 13.004 | EY33: 13 | EZ33: 0 | FA33: 0.006 | FB33: 13.006 | FC33: 13 | FD33: 0 | FE33: 0.004 | FF33: 13.004 | FG33: 13 | FI33: 0 | FJ33: 0.009 | FK33: 13.009 | FL33: 13 | FM33: 0 | FN33: 0.009 | FO33: 13.009 | FP33: 13 | FQ33: 0 | FR33: 0.011 | FS33: 13.011 | FT33: 13 | FU33: 0 | FV33: 0.005 | FW33: 13.005 | FX33: 13 | FY33: 0 | FZ33: 0.004 | GA33: 13.004 | GB33: 13 | GC33: 0 | GD33: 0.006 | GE33: 13.006 | GF33: 13 | GG33: 0 | GH33: 0.004 | GI33: 13.004 | GJ33: 13 | GN33: 0 | GO33: NO | GP33: 2000 | GQ33: YES | GS33: 0 | GT33: 0.009 | GU33: 13.009 | GV33: 13 | GW33: 0 | GX33: 0.009 | GY33: 13.009 | GZ33: 13 | HA33: 0 | HB33: 0.011 | HC33: 13.011 | HD33: 13 | HE33: 0 | HF33: 0.003 | HG33: 13.003 | HH33: 13 | HI33: 0 | HJ33: 0.004 | HK33: 13.004 | HL33: 13 | HM33: 0 | HN33: 0.006 | HO33: 13.006 | HP33: 13 | HQ33: 0 | HR33: 0.002 | HS33: 13.002 | HT33: 13 | HW33: 0 | HX33: 0.009 | HY33: 13.009 | HZ33: 13 | IA33: 0 | IB33: 0.007 | IC33: 13.007 | ID33: 13 | IE33: 0 | IF33: 0.011 | IG33: 13.011 | IH33: 13 | II33: 0 | IJ33: 0.001 | IK33: 13.001 | IL33: 13 | IM33: 0 | IN33: 0.002 | IO33: 13.002 | IP33: 13 | IQ33: 0 | IR33: 0.005 | IS33: 13.005 | IT33: 13 | IU33: 0 | IV33: 0.001 | IW33: 13.001 | IX33: 13
A34: 13 | B34: 30 | AA34: 2000 | AL34: 0 | AM34: 2000 | AX34: 0 | AY34: 2000 | BJ34: 0 | BK34: 2000 | BV34: 0 | BW34: 2000 | BX34: 13 | BY34: 13 | BZ34: 13 | CA34: 13 | CB34: 13 | CC34: 13 | CD34: 13 | CE34: 13 | CF34: 13 | CG34: 13 | CH34: =IF($P34=Constants!$B$2,RANK($CB34,$CB$6:$CB$64,1),"-") -> - | CJ34: =IF($P34=Constants!$B$3,RANK($CB34,$CB$6:$CB$64,1),"-") -> - | CL34: =IF($P34=Constants!$B$4,RANK($CB34,$CB$6:$CB$64,1),"-") -> - | CN34: =IF($O34=Constants!$C$2,RANK($CB34,$CB$6:$CB$64,1),"-") -> - | CP34: =IF($O34=Constants!$C$3,RANK($CB34,$CB$6:$CB$64,1),"-") -> - | CR34: =IF($O34=Constants!$C$4,RANK($CB34,$CB$6:$CB$64,1),"-") -> - | CT34: =IF($G34=Constants!$D$4,RANK($CB34,$CB$6:$CB$64,1),"-") -> - | CV34: =IF($G34=Constants!$D$2,RANK($CB34,$CB$6:$CB$64,1),"-") -> - | CY34: 0 | CZ34: 0 | DB34: 0 | DC34: 0.009 | DD34: 13.009 | DE34: 13 | DF34: 0 | DG34: 0.01 | DH34: 13.01 | DI34: 13 | DJ34: 0 | DK34: 0.011 | DL34: 13.011 | DM34: 13 | DN34: 0 | DO34: 0.005 | DP34: 13.005 | DQ34: 13 | DR34: 0 | DS34: 0.004 | DT34: 13.004 | DU34: 13 | DV34: 0 | DW34: 0.006 | DX34: 13.006 | DY34: 13 | DZ34: 0 | EA34: 0.004 | EB34: 13.004 | EC34: 13 | EF34: 0 | EG34: 0.009 | EH34: 13.009 | EI34: 13 | EJ34: 0 | EK34: 0.01 | EL34: 13.01 | EM34: 13 | EN34: 0 | EO34: 0.011 | EP34: 13.011 | EQ34: 13 | ER34: 0 | ES34: 0.005 | ET34: 13.005 | EU34: 13 | EV34: 0 | EW34: 0.004 | EX34: 13.004 | EY34: 13 | EZ34: 0 | FA34: 0.006 | FB34: 13.006 | FC34: 13 | FD34: 0 | FE34: 0.004 | FF34: 13.004 | FG34: 13 | FI34: 0 | FJ34: 0.009 | FK34: 13.009 | FL34: 13 | FM34: 0 | FN34: 0.009 | FO34: 13.009 | FP34: 13 | FQ34: 0 | FR34: 0.011 | FS34: 13.011 | FT34: 13 | FU34: 0 | FV34: 0.005 | FW34: 13.005 | FX34: 13 | FY34: 0 | FZ34: 0.004 | GA34: 13.004 | GB34: 13 | GC34: 0 | GD34: 0.006 | GE34: 13.006 | GF34: 13 | GG34: 0 | GH34: 0.004 | GI34: 13.004 | GJ34: 13 | GN34: 0 | GO34: NO | GP34: 2000 | GQ34: YES | GS34: 0 | GT34: 0.009 | GU34: 13.009 | GV34: 13 | GW34: 0 | GX34: 0.009 | GY34: 13.009 | GZ34: 13 | HA34: 0 | HB34: 0.011 | HC34: 13.011 | HD34: 13 | HE34: 0 | HF34: 0.003 | HG34: 13.003 | HH34: 13 | HI34: 0 | HJ34: 0.004 | HK34: 13.004 | HL34: 13 | HM34: 0 | HN34: 0.006 | HO34: 13.006 | HP34: 13 | HQ34: 0 | HR34: 0.002 | HS34: 13.002 | HT34: 13 | HW34: 0 | HX34: 0.009 | HY34: 13.009 | HZ34: 13 | IA34: 0 | IB34: 0.007 | IC34: 13.007 | ID34: 13 | IE34: 0 | IF34: 0.011 | IG34: 13.011 | IH34: 13 | II34: 0 | IJ34: 0.001 | IK34: 13.001 | IL34: 13 | IM34: 0 | IN34: 0.002 | IO34: 13.002 | IP34: 13 | IQ34: 0 | IR34: 0.005 | IS34: 13.005 | IT34: 13 | IU34: 0 | IV34: 0.001 | IW34: 13.001 | IX34: 13
A35: 13 | B35: 31 | AA35: 2000 | AL35: 0 | AM35: 2000 | AX35: 0 | AY35: 2000 | BJ35: 0 | BK35: 2000 | BV35: 0 | BW35: 2000 | BX35: 13 | BY35: 13 | BZ35: 13 | CA35: 13 | CB35: 13 | CC35: 13 | CD35: 13 | CE35: 13 | CF35: 13 | CG35: 13 | CH35: =IF($P35=Constants!$B$2,RANK($CB35,$CB$6:$CB$64,1),"-") -> - | CJ35: =IF($P35=Constants!$B$3,RANK($CB35,$CB$6:$CB$64,1),"-") -> - | CL35: =IF($P35=Constants!$B$4,RANK($CB35,$CB$6:$CB$64,1),"-") -> - | CN35: =IF($O35=Constants!$C$2,RANK($CB35,$CB$6:$CB$64,1),"-") -> - | CP35: =IF($O35=Constants!$C$3,RANK($CB35,$CB$6:$CB$64,1),"-") -> - | CR35: =IF($O35=Constants!$C$4,RANK($CB35,$CB$6:$CB$64,1),"-") -> - | CT35: =IF($G35=Constants!$D$4,RANK($CB35,$CB$6:$CB$64,1),"-") -> - | CV35: =IF($G35=Constants!$D$2,RANK($CB35,$CB$6:$CB$64,1),"-") -> - | CY35: 0 | CZ35: 0 | DB35: 0 | DC35: 0.009 | DD35: 13.009 | DE35: 13 | DF35: 0 | DG35: 0.01 | DH35: 13.01 | DI35: 13 | DJ35: 0 | DK35: 0.011 | DL35: 13.011 | DM35: 13 | DN35: 0 | DO35: 0.005 | DP35: 13.005 | DQ35: 13 | DR35: 0 | DS35: 0.004 | DT35: 13.004 | DU35: 13 | DV35: 0 | DW35: 0.006 | DX35: 13.006 | DY35: 13 | DZ35: 0 | EA35: 0.004 | EB35: 13.004 | EC35: 13 | EF35: 0 | EG35: 0.009 | EH35: 13.009 | EI35: 13 | EJ35: 0 | EK35: 0.01 | EL35: 13.01 | EM35: 13 | EN35: 0 | EO35: 0.011 | EP35: 13.011 | EQ35: 13 | ER35: 0 | ES35: 0.005 | ET35: 13.005 | EU35: 13 | EV35: 0 | EW35: 0.004 | EX35: 13.004 | EY35: 13 | EZ35: 0 | FA35: 0.006 | FB35: 13.006 | FC35: 13 | FD35: 0 | FE35: 0.004 | FF35: 13.004 | FG35: 13 | FI35: 0 | FJ35: 0.009 | FK35: 13.009 | FL35: 13 | FM35: 0 | FN35: 0.009 | FO35: 13.009 | FP35: 13 | FQ35: 0 | FR35: 0.011 | FS35: 13.011 | FT35: 13 | FU35: 0 | FV35: 0.005 | FW35: 13.005 | FX35: 13 | FY35: 0 | FZ35: 0.004 | GA35: 13.004 | GB35: 13 | GC35: 0 | GD35: 0.006 | GE35: 13.006 | GF35: 13 | GG35: 0 | GH35: 0.004 | GI35: 13.004 | GJ35: 13 | GN35: 0 | GO35: NO | GP35: 2000 | GQ35: YES | GS35: 0 | GT35: 0.009 | GU35: 13.009 | GV35: 13 | GW35: 0 | GX35: 0.009 | GY35: 13.009 | GZ35: 13 | HA35: 0 | HB35: 0.011 | HC35: 13.011 | HD35: 13 | HE35: 0 | HF35: 0.003 | HG35: 13.003 | HH35: 13 | HI35: 0 | HJ35: 0.004 | HK35: 13.004 | HL35: 13 | HM35: 0 | HN35: 0.006 | HO35: 13.006 | HP35: 13 | HQ35: 0 | HR35: 0.002 | HS35: 13.002 | HT35: 13 | HW35: 0 | HX35: 0.009 | HY35: 13.009 | HZ35: 13 | IA35: 0 | IB35: 0.007 | IC35: 13.007 | ID35: 13 | IE35: 0 | IF35: 0.011 | IG35: 13.011 | IH35: 13 | II35: 0 | IJ35: 0.001 | IK35: 13.001 | IL35: 13 | IM35: 0 | IN35: 0.002 | IO35: 13.002 | IP35: 13 | IQ35: 0 | IR35: 0.005 | IS35: 13.005 | IT35: 13 | IU35: 0 | IV35: 0.001 | IW35: 13.001 | IX35: 13
A36: 13 | B36: 32 | AA36: 2000 | AL36: 0 | AM36: 2000 | AX36: 0 | AY36: 2000 | BJ36: 0 | BK36: 2000 | BV36: 0 | BW36: 2000 | BX36: 13 | BY36: 13 | BZ36: 13 | CA36: 13 | CB36: 13 | CC36: 13 | CD36: 13 | CE36: 13 | CF36: 13 | CG36: 13 | CH36: =IF($P36=Constants!$B$2,RANK($CB36,$CB$6:$CB$64,1),"-") -> - | CJ36: =IF($P36=Constants!$B$3,RANK($CB36,$CB$6:$CB$64,1),"-") -> - | CL36: =IF($P36=Constants!$B$4,RANK($CB36,$CB$6:$CB$64,1),"-") -> - | CN36: =IF($O36=Constants!$C$2,RANK($CB36,$CB$6:$CB$64,1),"-") -> - | CP36: =IF($O36=Constants!$C$3,RANK($CB36,$CB$6:$CB$64,1),"-") -> - | CR36: =IF($O36=Constants!$C$4,RANK($CB36,$CB$6:$CB$64,1),"-") -> - | CT36: =IF($G36=Constants!$D$4,RANK($CB36,$CB$6:$CB$64,1),"-") -> - | CV36: =IF($G36=Constants!$D$2,RANK($CB36,$CB$6:$CB$64,1),"-") -> - | CY36: 0 | CZ36: 0 | DB36: 0 | DC36: 0.009 | DD36: 13.009 | DE36: 13 | DF36: 0 | DG36: 0.01 | DH36: 13.01 | DI36: 13 | DJ36: 0 | DK36: 0.011 | DL36: 13.011 | DM36: 13 | DN36: 0 | DO36: 0.005 | DP36: 13.005 | DQ36: 13 | DR36: 0 | DS36: 0.004 | DT36: 13.004 | DU36: 13 | DV36: 0 | DW36: 0.006 | DX36: 13.006 | DY36: 13 | DZ36: 0 | EA36: 0.004 | EB36: 13.004 | EC36: 13 | EF36: 0 | EG36: 0.009 | EH36: 13.009 | EI36: 13 | EJ36: 0 | EK36: 0.01 | EL36: 13.01 | EM36: 13 | EN36: 0 | EO36: 0.011 | EP36: 13.011 | EQ36: 13 | ER36: 0 | ES36: 0.005 | ET36: 13.005 | EU36: 13 | EV36: 0 | EW36: 0.004 | EX36: 13.004 | EY36: 13 | EZ36: 0 | FA36: 0.006 | FB36: 13.006 | FC36: 13 | FD36: 0 | FE36: 0.004 | FF36: 13.004 | FG36: 13 | FI36: 0 | FJ36: 0.009 | FK36: 13.009 | FL36: 13 | FM36: 0 | FN36: 0.009 | FO36: 13.009 | FP36: 13 | FQ36: 0 | FR36: 0.011 | FS36: 13.011 | FT36: 13 | FU36: 0 | FV36: 0.005 | FW36: 13.005 | FX36: 13 | FY36: 0 | FZ36: 0.004 | GA36: 13.004 | GB36: 13 | GC36: 0 | GD36: 0.006 | GE36: 13.006 | GF36: 13 | GG36: 0 | GH36: 0.004 | GI36: 13.004 | GJ36: 13 | GN36: 0 | GO36: NO | GP36: 2000 | GQ36: YES | GS36: 0 | GT36: 0.009 | GU36: 13.009 | GV36: 13 | GW36: 0 | GX36: 0.009 | GY36: 13.009 | GZ36: 13 | HA36: 0 | HB36: 0.011 | HC36: 13.011 | HD36: 13 | HE36: 0 | HF36: 0.003 | HG36: 13.003 | HH36: 13 | HI36: 0 | HJ36: 0.004 | HK36: 13.004 | HL36: 13 | HM36: 0 | HN36: 0.006 | HO36: 13.006 | HP36: 13 | HQ36: 0 | HR36: 0.002 | HS36: 13.002 | HT36: 13 | HW36: 0 | HX36: 0.009 | HY36: 13.009 | HZ36: 13 | IA36: 0 | IB36: 0.007 | IC36: 13.007 | ID36: 13 | IE36: 0 | IF36: 0.011 | IG36: 13.011 | IH36: 13 | II36: 0 | IJ36: 0.001 | IK36: 13.001 | IL36: 13 | IM36: 0 | IN36: 0.002 | IO36: 13.002 | IP36: 13 | IQ36: 0 | IR36: 0.005 | IS36: 13.005 | IT36: 13 | IU36: 0 | IV36: 0.001 | IW36: 13.001 | IX36: 13
A37: 13 | B37: 33 | AA37: 2000 | AL37: 0 | AM37: 2000 | AX37: 0 | AY37: 2000 | BJ37: 0 | BK37: 2000 | BV37: 0 | BW37: 2000 | BX37: 13 | BY37: 13 | BZ37: 13 | CA37: 13 | CB37: 13 | CC37: 13 | CD37: 13 | CE37: 13 | CF37: 13 | CG37: 13 | CH37: =IF($P37=Constants!$B$2,RANK($CB37,$CB$6:$CB$64,1),"-") -> - | CJ37: =IF($P37=Constants!$B$3,RANK($CB37,$CB$6:$CB$64,1),"-") -> - | CL37: =IF($P37=Constants!$B$4,RANK($CB37,$CB$6:$CB$64,1),"-") -> - | CN37: =IF($O37=Constants!$C$2,RANK($CB37,$CB$6:$CB$64,1),"-") -> - | CP37: =IF($O37=Constants!$C$3,RANK($CB37,$CB$6:$CB$64,1),"-") -> - | CR37: =IF($O37=Constants!$C$4,RANK($CB37,$CB$6:$CB$64,1),"-") -> - | CT37: =IF($G37=Constants!$D$4,RANK($CB37,$CB$6:$CB$64,1),"-") -> - | CV37: =IF($G37=Constants!$D$2,RANK($CB37,$CB$6:$CB$64,1),"-") -> - | CY37: 0 | CZ37: 0 | DB37: 0 | DC37: 0.009 | DD37: 13.009 | DE37: 13 | DF37: 0 | DG37: 0.01 | DH37: 13.01 | DI37: 13 | DJ37: 0 | DK37: 0.011 | DL37: 13.011 | DM37: 13 | DN37: 0 | DO37: 0.005 | DP37: 13.005 | DQ37: 13 | DR37: 0 | DS37: 0.004 | DT37: 13.004 | DU37: 13 | DV37: 0 | DW37: 0.006 | DX37: 13.006 | DY37: 13 | DZ37: 0 | EA37: 0.004 | EB37: 13.004 | EC37: 13 | EF37: 0 | EG37: 0.009 | EH37: 13.009 | EI37: 13 | EJ37: 0 | EK37: 0.01 | EL37: 13.01 | EM37: 13 | EN37: 0 | EO37: 0.011 | EP37: 13.011 | EQ37: 13 | ER37: 0 | ES37: 0.005 | ET37: 13.005 | EU37: 13 | EV37: 0 | EW37: 0.004 | EX37: 13.004 | EY37: 13 | EZ37: 0 | FA37: 0.006 | FB37: 13.006 | FC37: 13 | FD37: 0 | FE37: 0.004 | FF37: 13.004 | FG37: 13 | FI37: 0 | FJ37: 0.009 | FK37: 13.009 | FL37: 13 | FM37: 0 | FN37: 0.009 | FO37: 13.009 | FP37: 13 | FQ37: 0 | FR37: 0.011 | FS37: 13.011 | FT37: 13 | FU37: 0 | FV37: 0.005 | FW37: 13.005 | FX37: 13 | FY37: 0 | FZ37: 0.004 | GA37: 13.004 | GB37: 13 | GC37: 0 | GD37: 0.006 | GE37: 13.006 | GF37: 13 | GG37: 0 | GH37: 0.004 | GI37: 13.004 | GJ37: 13 | GN37: 0 | GO37: NO | GP37: 2000 | GQ37: YES | GS37: 0 | GT37: 0.009 | GU37: 13.009 | GV37: 13 | GW37: 0 | GX37: 0.009 | GY37: 13.009 | GZ37: 13 | HA37: 0 | HB37: 0.011 | HC37: 13.011 | HD37: 13 | HE37: 0 | HF37: 0.003 | HG37: 13.003 | HH37: 13 | HI37: 0 | HJ37: 0.004 | HK37: 13.004 | HL37: 13 | HM37: 0 | HN37: 0.006 | HO37: 13.006 | HP37: 13 | HQ37: 0 | HR37: 0.002 | HS37: 13.002 | HT37: 13 | HW37: 0 | HX37: 0.009 | HY37: 13.009 | HZ37: 13 | IA37: 0 | IB37: 0.007 | IC37: 13.007 | ID37: 13 | IE37: 0 | IF37: 0.011 | IG37: 13.011 | IH37: 13 | II37: 0 | IJ37: 0.001 | IK37: 13.001 | IL37: 13 | IM37: 0 | IN37: 0.002 | IO37: 13.002 | IP37: 13 | IQ37: 0 | IR37: 0.005 | IS37: 13.005 | IT37: 13 | IU37: 0 | IV37: 0.001 | IW37: 13.001 | IX37: 13
A38: 13 | B38: 34 | AA38: =IF(N38="Ret/NS",1000+SUM(Q38:Z38),IF(C38="",2000,SUM(Q38:Z38))) -> 2000 | AL38: 0 | AM38: =IF(C38="",2000,AL38+AA38) -> 2000 | AX38: 0 | AY38: =IF(C38="",2000,AM38+AX38) -> 2000 | BJ38: 0 | BK38: =IF(C38="",2000,AY38+BJ38) -> 2000 | BV38: 0 | BW38: =IF(C38="",2000,BK38+BV38) -> 2000 | BX38: 13 | BY38: 13 | BZ38: 13 | CA38: 13 | CB38: 13 | CC38: =RANK(AA38,$AA$6:$AA$64,1) -> 13 | CD38: =RANK(AM38,$AM$6:$AM$64,1) -> 13 | CE38: =RANK(AY38,$AY$6:$AY$64,1) -> 13 | CF38: =RANK(BK38,$BK$6:$BK$64,1) -> 13 | CG38: =RANK(BW38,$BW$6:$BW$64,1) -> 13 | CH38: =IF($P38=Constants!$B$2,RANK($CB38,$CB$6:$CB$64,1),"-") -> - | CJ38: =IF($P38=Constants!$B$3,RANK($CB38,$CB$6:$CB$64,1),"-") -> - | CL38: =IF($P38=Constants!$B$4,RANK($CB38,$CB$6:$CB$64,1),"-") -> - | CN38: =IF($O38=Constants!$C$2,RANK($CB38,$CB$6:$CB$64,1),"-") -> - | CP38: =IF($O38=Constants!$C$3,RANK($CB38,$CB$6:$CB$64,1),"-") -> - | CR38: =IF($O38=Constants!$C$4,RANK($CB38,$CB$6:$CB$64,1),"-") -> - | CT38: =IF($G38=Constants!$D$4,RANK($CB38,$CB$6:$CB$64,1),"-") -> - | CV38: =IF($G38=Constants!$D$2,RANK($CB38,$CB$6:$CB$64,1),"-") -> - | CY38: 0 | CZ38: 0 | DB38: 0 | DC38: =IF(COUNTIF($BW$6:$BW$64,BW38)>1,RANK(DB38,DB$6:DB$64,0)/1000,0) -> 0.009 | DD38: 13.009 | DE38: 13 | DF38: 0 | DG38: 0.01 | DH38: 13.01 | DI38: 13 | DJ38: 0 | DK38: 0.011 | DL38: 13.011 | DM38: 13 | DN38: 0 | DO38: 0.005 | DP38: 13.005 | DQ38: 13 | DR38: 0 | DS38: 0.004 | DT38: 13.004 | DU38: 13 | DV38: 0 | DW38: 0.006 | DX38: 13.006 | DY38: 13 | DZ38: 0 | EA38: 0.004 | EB38: 13.004 | EC38: 13 | EF38: 0 | EG38: =IF(COUNTIF($BK$6:$BK$64,BK38)>1,RANK(EF38,EF$6:EF$64,0)/1000,0) -> 0.009 | EH38: 13.009 | EI38: 13 | EJ38: 0 | EK38: 0.01 | EL38: 13.01 | EM38: 13 | EN38: 0 | EO38: 0.011 | EP38: 13.011 | EQ38: 13 | ER38: 0 | ES38: 0.005 | ET38: 13.005 | EU38: 13 | EV38: 0 | EW38: 0.004 | EX38: 13.004 | EY38: 13 | EZ38: 0 | FA38: 0.006 | FB38: 13.006 | FC38: 13 | FD38: 0 | FE38: 0.004 | FF38: 13.004 | FG38: 13 | FI38: 0 | FJ38: =IF(COUNTIF($AY$6:$AY$64,AY38)>1,RANK(FI38,FI$6:FI$64,0)/1000,0) -> 0.009 | FK38: =CE38+FJ38 -> 13.009 | FL38: 13 | FM38: 0 | FN38: 0.009 | FO38: 13.009 | FP38: 13 | FQ38: 0 | FR38: 0.011 | FS38: 13.011 | FT38: 13 | FU38: 0 | FV38: 0.005 | FW38: 13.005 | FX38: 13 | FY38: 0 | FZ38: 0.004 | GA38: 13.004 | GB38: 13 | GC38: 0 | GD38: 0.006 | GE38: 13.006 | GF38: 13 | GG38: 0 | GH38: 0.004 | GI38: 13.004 | GJ38: 13 | GN38: =SUM(Q38:Z38,AB38:AK38,AN38:AW38,AZ38:BI38) -> 0 | GO38: =IF(BK38=GN38,"YES","NO") -> NO | GP38: =BJ38+AX38+AL38+AA38 -> 2000 | GQ38: =IF(BK38=GP38,"YES","NO") -> YES | GS38: 0 | GT38: =IF(COUNTIF($AM$6:$AM$64,AM38)>1,RANK(GS38,GS$6:GS$64,0)/1000,0) -> 0.009 | GU38: =CD38+GT38 -> 13.009 | GV38: 13 | GW38: 0 | GX38: 0.009 | GY38: 13.009 | GZ38: 13 | HA38: 0 | HB38: 0.011 | HC38: 13.011 | HD38: 13 | HE38: 0 | HF38: 0.003 | HG38: 13.003 | HH38: 13 | HI38: 0 | HJ38: 0.004 | HK38: 13.004 | HL38: 13 | HM38: 0 | HN38: 0.006 | HO38: 13.006 | HP38: 13 | HQ38: 0 | HR38: 0.002 | HS38: 13.002 | HT38: 13 | HW38: 0 | HX38: =IF(COUNTIF($AA$6:$AA$64,AA38)>1,RANK(HW38,HW$6:HW$64,0)/1000,0) -> 0.009 | HY38: =CC38+HX38 -> 13.009 | HZ38: 13 | IA38: 0 | IB38: 0.007 | IC38: 13.007 | ID38: 13 | IE38: 0 | IF38: 0.011 | IG38: 13.011 | IH38: 13 | II38: 0 | IJ38: 0.001 | IK38: 13.001 | IL38: 13 | IM38: 0 | IN38: 0.002 | IO38: 13.002 | IP38: 13 | IQ38: 0 | IR38: 0.005 | IS38: 13.005 | IT38: 13 | IU38: 0 | IV38: 0.001 | IW38: 13.001 | IX38: 13
A39: 13 | B39: 35 | AA39: 2000 | AL39: 0 | AM39: 2000 | AX39: 0 | AY39: 2000 | BJ39: 0 | BK39: 2000 | BV39: 0 | BW39: 2000 | BX39: 13 | BY39: 13 | BZ39: 13 | CA39: 13 | CB39: 13 | CC39: 13 | CD39: 13 | CE39: 13 | CF39: 13 | CG39: 13 | CH39: =IF($P39=Constants!$B$2,RANK($CB39,$CB$6:$CB$64,1),"-") -> - | CJ39: =IF($P39=Constants!$B$3,RANK($CB39,$CB$6:$CB$64,1),"-") -> - | CL39: =IF($P39=Constants!$B$4,RANK($CB39,$CB$6:$CB$64,1),"-") -> - | CN39: =IF($O39=Constants!$C$2,RANK($CB39,$CB$6:$CB$64,1),"-") -> - | CP39: =IF($O39=Constants!$C$3,RANK($CB39,$CB$6:$CB$64,1),"-") -> - | CR39: =IF($O39=Constants!$C$4,RANK($CB39,$CB$6:$CB$64,1),"-") -> - | CT39: =IF($G39=Constants!$D$4,RANK($CB39,$CB$6:$CB$64,1),"-") -> - | CV39: =IF($G39=Constants!$D$2,RANK($CB39,$CB$6:$CB$64,1),"-") -> - | CY39: 0 | CZ39: 0 | DB39: 0 | DC39: 0.009 | DD39: 13.009 | DE39: 13 | DF39: 0 | DG39: 0.01 | DH39: 13.01 | DI39: 13 | DJ39: 0 | DK39: 0.011 | DL39: 13.011 | DM39: 13 | DN39: 0 | DO39: 0.005 | DP39: 13.005 | DQ39: 13 | DR39: 0 | DS39: 0.004 | DT39: 13.004 | DU39: 13 | DV39: 0 | DW39: 0.006 | DX39: 13.006 | DY39: 13 | DZ39: 0 | EA39: 0.004 | EB39: 13.004 | EC39: 13 | EF39: 0 | EG39: 0.009 | EH39: 13.009 | EI39: 13 | EJ39: 0 | EK39: 0.01 | EL39: 13.01 | EM39: 13 | EN39: 0 | EO39: 0.011 | EP39: 13.011 | EQ39: 13 | ER39: 0 | ES39: 0.005 | ET39: 13.005 | EU39: 13 | EV39: 0 | EW39: 0.004 | EX39: 13.004 | EY39: 13 | EZ39: 0 | FA39: 0.006 | FB39: 13.006 | FC39: 13 | FD39: 0 | FE39: 0.004 | FF39: 13.004 | FG39: 13 | FI39: 0 | FJ39: 0.009 | FK39: 13.009 | FL39: 13 | FM39: 0 | FN39: 0.009 | FO39: 13.009 | FP39: 13 | FQ39: 0 | FR39: 0.011 | FS39: 13.011 | FT39: 13 | FU39: 0 | FV39: 0.005 | FW39: 13.005 | FX39: 13 | FY39: 0 | FZ39: 0.004 | GA39: 13.004 | GB39: 13 | GC39: 0 | GD39: 0.006 | GE39: 13.006 | GF39: 13 | GG39: 0 | GH39: 0.004 | GI39: 13.004 | GJ39: 13 | GN39: 0 | GO39: NO | GP39: 2000 | GQ39: YES | GS39: 0 | GT39: 0.009 | GU39: 13.009 | GV39: 13 | GW39: 0 | GX39: 0.009 | GY39: 13.009 | GZ39: 13 | HA39: 0 | HB39: 0.011 | HC39: 13.011 | HD39: 13 | HE39: 0 | HF39: 0.003 | HG39: 13.003 | HH39: 13 | HI39: 0 | HJ39: 0.004 | HK39: 13.004 | HL39: 13 | HM39: 0 | HN39: 0.006 | HO39: 13.006 | HP39: 13 | HQ39: 0 | HR39: 0.002 | HS39: 13.002 | HT39: 13 | HW39: 0 | HX39: 0.009 | HY39: 13.009 | HZ39: 13 | IA39: 0 | IB39: 0.007 | IC39: 13.007 | ID39: 13 | IE39: 0 | IF39: 0.011 | IG39: 13.011 | IH39: 13 | II39: 0 | IJ39: 0.001 | IK39: 13.001 | IL39: 13 | IM39: 0 | IN39: 0.002 | IO39: 13.002 | IP39: 13 | IQ39: 0 | IR39: 0.005 | IS39: 13.005 | IT39: 13 | IU39: 0 | IV39: 0.001 | IW39: 13.001 | IX39: 13
A40: 13 | B40: 36 | AA40: 2000 | AL40: 0 | AM40: 2000 | AX40: 0 | AY40: 2000 | BJ40: 0 | BK40: 2000 | BV40: 0 | BW40: 2000 | BX40: 13 | BY40: 13 | BZ40: 13 | CA40: 13 | CB40: 13 | CC40: 13 | CD40: 13 | CE40: 13 | CF40: 13 | CG40: 13 | CH40: =IF($P40=Constants!$B$2,RANK($CB40,$CB$6:$CB$64,1),"-") -> - | CJ40: =IF($P40=Constants!$B$3,RANK($CB40,$CB$6:$CB$64,1),"-") -> - | CL40: =IF($P40=Constants!$B$4,RANK($CB40,$CB$6:$CB$64,1),"-") -> - | CN40: =IF($O40=Constants!$C$2,RANK($CB40,$CB$6:$CB$64,1),"-") -> - | CP40: =IF($O40=Constants!$C$3,RANK($CB40,$CB$6:$CB$64,1),"-") -> - | CR40: =IF($O40=Constants!$C$4,RANK($CB40,$CB$6:$CB$64,1),"-") -> - | CT40: =IF($G40=Constants!$D$4,RANK($CB40,$CB$6:$CB$64,1),"-") -> - | CV40: =IF($G40=Constants!$D$2,RANK($CB40,$CB$6:$CB$64,1),"-") -> - | CY40: 0 | CZ40: 0 | DB40: 0 | DC40: 0.009 | DD40: 13.009 | DE40: 13 | DF40: 0 | DG40: 0.01 | DH40: 13.01 | DI40: 13 | DJ40: 0 | DK40: 0.011 | DL40: 13.011 | DM40: 13 | DN40: 0 | DO40: 0.005 | DP40: 13.005 | DQ40: 13 | DR40: 0 | DS40: 0.004 | DT40: 13.004 | DU40: 13 | DV40: 0 | DW40: 0.006 | DX40: 13.006 | DY40: 13 | DZ40: 0 | EA40: 0.004 | EB40: 13.004 | EC40: 13 | EF40: 0 | EG40: 0.009 | EH40: 13.009 | EI40: 13 | EJ40: 0 | EK40: 0.01 | EL40: 13.01 | EM40: 13 | EN40: 0 | EO40: 0.011 | EP40: 13.011 | EQ40: 13 | ER40: 0 | ES40: 0.005 | ET40: 13.005 | EU40: 13 | EV40: 0 | EW40: 0.004 | EX40: 13.004 | EY40: 13 | EZ40: 0 | FA40: 0.006 | FB40: 13.006 | FC40: 13 | FD40: 0 | FE40: 0.004 | FF40: 13.004 | FG40: 13 | FI40: 0 | FJ40: 0.009 | FK40: 13.009 | FL40: 13 | FM40: 0 | FN40: 0.009 | FO40: 13.009 | FP40: 13 | FQ40: 0 | FR40: 0.011 | FS40: 13.011 | FT40: 13 | FU40: 0 | FV40: 0.005 | FW40: 13.005 | FX40: 13 | FY40: 0 | FZ40: 0.004 | GA40: 13.004 | GB40: 13 | GC40: 0 | GD40: 0.006 | GE40: 13.006 | GF40: 13 | GG40: 0 | GH40: 0.004 | GI40: 13.004 | GJ40: 13 | GN40: 0 | GO40: NO | GP40: 2000 | GQ40: YES | GS40: 0 | GT40: 0.009 | GU40: 13.009 | GV40: 13 | GW40: 0 | GX40: 0.009 | GY40: 13.009 | GZ40: 13 | HA40: 0 | HB40: 0.011 | HC40: 13.011 | HD40: 13 | HE40: 0 | HF40: 0.003 | HG40: 13.003 | HH40: 13 | HI40: 0 | HJ40: 0.004 | HK40: 13.004 | HL40: 13 | HM40: 0 | HN40: 0.006 | HO40: 13.006 | HP40: 13 | HQ40: 0 | HR40: 0.002 | HS40: 13.002 | HT40: 13 | HW40: 0 | HX40: 0.009 | HY40: 13.009 | HZ40: 13 | IA40: 0 | IB40: 0.007 | IC40: 13.007 | ID40: 13 | IE40: 0 | IF40: 0.011 | IG40: 13.011 | IH40: 13 | II40: 0 | IJ40: 0.001 | IK40: 13.001 | IL40: 13 | IM40: 0 | IN40: 0.002 | IO40: 13.002 | IP40: 13 | IQ40: 0 | IR40: 0.005 | IS40: 13.005 | IT40: 13 | IU40: 0 | IV40: 0.001 | IW40: 13.001 | IX40: 13
A41: 13 | B41: 37 | AA41: 2000 | AL41: 0 | AM41: 2000 | AX41: 0 | AY41: 2000 | BJ41: 0 | BK41: 2000 | BV41: 0 | BW41: 2000 | BX41: 13 | BY41: 13 | BZ41: 13 | CA41: 13 | CB41: 13 | CC41: 13 | CD41: 13 | CE41: 13 | CF41: 13 | CG41: 13 | CH41: =IF($P41=Constants!$B$2,RANK($CB41,$CB$6:$CB$64,1),"-") -> - | CJ41: =IF($P41=Constants!$B$3,RANK($CB41,$CB$6:$CB$64,1),"-") -> - | CL41: =IF($P41=Constants!$B$4,RANK($CB41,$CB$6:$CB$64,1),"-") -> - | CN41: =IF($O41=Constants!$C$2,RANK($CB41,$CB$6:$CB$64,1),"-") -> - | CP41: =IF($O41=Constants!$C$3,RANK($CB41,$CB$6:$CB$64,1),"-") -> - | CR41: =IF($O41=Constants!$C$4,RANK($CB41,$CB$6:$CB$64,1),"-") -> - | CT41: =IF($G41=Constants!$D$4,RANK($CB41,$CB$6:$CB$64,1),"-") -> - | CV41: =IF($G41=Constants!$D$2,RANK($CB41,$CB$6:$CB$64,1),"-") -> - | CY41: 0 | CZ41: 0 | DB41: 0 | DC41: 0.009 | DD41: 13.009 | DE41: 13 | DF41: 0 | DG41: 0.01 | DH41: 13.01 | DI41: 13 | DJ41: 0 | DK41: 0.011 | DL41: 13.011 | DM41: 13 | DN41: 0 | DO41: 0.005 | DP41: 13.005 | DQ41: 13 | DR41: 0 | DS41: 0.004 | DT41: 13.004 | DU41: 13 | DV41: 0 | DW41: 0.006 | DX41: 13.006 | DY41: 13 | DZ41: 0 | EA41: 0.004 | EB41: 13.004 | EC41: 13 | EF41: 0 | EG41: 0.009 | EH41: 13.009 | EI41: 13 | EJ41: 0 | EK41: 0.01 | EL41: 13.01 | EM41: 13 | EN41: 0 | EO41: 0.011 | EP41: 13.011 | EQ41: 13 | ER41: 0 | ES41: 0.005 | ET41: 13.005 | EU41: 13 | EV41: 0 | EW41: 0.004 | EX41: 13.004 | EY41: 13 | EZ41: 0 | FA41: 0.006 | FB41: 13.006 | FC41: 13 | FD41: 0 | FE41: 0.004 | FF41: 13.004 | FG41: 13 | FI41: 0 | FJ41: 0.009 | FK41: 13.009 | FL41: 13 | FM41: 0 | FN41: 0.009 | FO41: 13.009 | FP41: 13 | FQ41: 0 | FR41: 0.011 | FS41: 13.011 | FT41: 13 | FU41: 0 | FV41: 0.005 | FW41: 13.005 | FX41: 13 | FY41: 0 | FZ41: 0.004 | GA41: 13.004 | GB41: 13 | GC41: 0 | GD41: 0.006 | GE41: 13.006 | GF41: 13 | GG41: 0 | GH41: 0.004 | GI41: 13.004 | GJ41: 13 | GN41: 0 | GO41: NO | GP41: 2000 | GQ41: YES | GS41: 0 | GT41: 0.009 | GU41: 13.009 | GV41: 13 | GW41: 0 | GX41: 0.009 | GY41: 13.009 | GZ41: 13 | HA41: 0 | HB41: 0.011 | HC41: 13.011 | HD41: 13 | HE41: 0 | HF41: 0.003 | HG41: 13.003 | HH41: 13 | HI41: 0 | HJ41: 0.004 | HK41: 13.004 | HL41: 13 | HM41: 0 | HN41: 0.006 | HO41: 13.006 | HP41: 13 | HQ41: 0 | HR41: 0.002 | HS41: 13.002 | HT41: 13 | HW41: 0 | HX41: 0.009 | HY41: 13.009 | HZ41: 13 | IA41: 0 | IB41: 0.007 | IC41: 13.007 | ID41: 13 | IE41: 0 | IF41: 0.011 | IG41: 13.011 | IH41: 13 | II41: 0 | IJ41: 0.001 | IK41: 13.001 | IL41: 13 | IM41: 0 | IN41: 0.002 | IO41: 13.002 | IP41: 13 | IQ41: 0 | IR41: 0.005 | IS41: 13.005 | IT41: 13 | IU41: 0 | IV41: 0.001 | IW41: 13.001 | IX41: 13
A42: 13 | B42: 38 | AA42: 2000 | AL42: 0 | AM42: 2000 | AX42: 0 | AY42: 2000 | BJ42: 0 | BK42: 2000 | BV42: 0 | BW42: 2000 | BX42: 13 | BY42: 13 | BZ42: 13 | CA42: 13 | CB42: 13 | CC42: 13 | CD42: 13 | CE42: 13 | CF42: 13 | CG42: 13 | CH42: =IF($P42=Constants!$B$2,RANK($CB42,$CB$6:$CB$64,1),"-") -> - | CJ42: =IF($P42=Constants!$B$3,RANK($CB42,$CB$6:$CB$64,1),"-") -> - | CL42: =IF($P42=Constants!$B$4,RANK($CB42,$CB$6:$CB$64,1),"-") -> - | CN42: =IF($O42=Constants!$C$2,RANK($CB42,$CB$6:$CB$64,1),"-") -> - | CP42: =IF($O42=Constants!$C$3,RANK($CB42,$CB$6:$CB$64,1),"-") -> - | CR42: =IF($O42=Constants!$C$4,RANK($CB42,$CB$6:$CB$64,1),"-") -> - | CT42: =IF($G42=Constants!$D$4,RANK($CB42,$CB$6:$CB$64,1),"-") -> - | CV42: =IF($G42=Constants!$D$2,RANK($CB42,$CB$6:$CB$64,1),"-") -> - | CY42: 0 | CZ42: 0 | DB42: 0 | DC42: 0.009 | DD42: 13.009 | DE42: 13 | DF42: 0 | DG42: 0.01 | DH42: 13.01 | DI42: 13 | DJ42: 0 | DK42: 0.011 | DL42: 13.011 | DM42: 13 | DN42: 0 | DO42: 0.005 | DP42: 13.005 | DQ42: 13 | DR42: 0 | DS42: 0.004 | DT42: 13.004 | DU42: 13 | DV42: 0 | DW42: 0.006 | DX42: 13.006 | DY42: 13 | DZ42: 0 | EA42: 0.004 | EB42: 13.004 | EC42: 13 | EF42: 0 | EG42: 0.009 | EH42: 13.009 | EI42: 13 | EJ42: 0 | EK42: 0.01 | EL42: 13.01 | EM42: 13 | EN42: 0 | EO42: 0.011 | EP42: 13.011 | EQ42: 13 | ER42: 0 | ES42: 0.005 | ET42: 13.005 | EU42: 13 | EV42: 0 | EW42: 0.004 | EX42: 13.004 | EY42: 13 | EZ42: 0 | FA42: 0.006 | FB42: 13.006 | FC42: 13 | FD42: 0 | FE42: 0.004 | FF42: 13.004 | FG42: 13 | FI42: 0 | FJ42: 0.009 | FK42: 13.009 | FL42: 13 | FM42: 0 | FN42: 0.009 | FO42: 13.009 | FP42: 13 | FQ42: 0 | FR42: 0.011 | FS42: 13.011 | FT42: 13 | FU42: 0 | FV42: 0.005 | FW42: 13.005 | FX42: 13 | FY42: 0 | FZ42: 0.004 | GA42: 13.004 | GB42: 13 | GC42: 0 | GD42: 0.006 | GE42: 13.006 | GF42: 13 | GG42: 0 | GH42: 0.004 | GI42: 13.004 | GJ42: 13 | GN42: 0 | GO42: NO | GP42: 2000 | GQ42: YES | GS42: 0 | GT42: 0.009 | GU42: 13.009 | GV42: 13 | GW42: 0 | GX42: 0.009 | GY42: 13.009 | GZ42: 13 | HA42: 0 | HB42: 0.011 | HC42: 13.011 | HD42: 13 | HE42: 0 | HF42: 0.003 | HG42: 13.003 | HH42: 13 | HI42: 0 | HJ42: 0.004 | HK42: 13.004 | HL42: 13 | HM42: 0 | HN42: 0.006 | HO42: 13.006 | HP42: 13 | HQ42: 0 | HR42: 0.002 | HS42: 13.002 | HT42: 13 | HW42: 0 | HX42: 0.009 | HY42: 13.009 | HZ42: 13 | IA42: 0 | IB42: 0.007 | IC42: 13.007 | ID42: 13 | IE42: 0 | IF42: 0.011 | IG42: 13.011 | IH42: 13 | II42: 0 | IJ42: 0.001 | IK42: 13.001 | IL42: 13 | IM42: 0 | IN42: 0.002 | IO42: 13.002 | IP42: 13 | IQ42: 0 | IR42: 0.005 | IS42: 13.005 | IT42: 13 | IU42: 0 | IV42: 0.001 | IW42: 13.001 | IX42: 13
A43: 13 | B43: 39 | AA43: 2000 | AL43: 0 | AM43: 2000 | AX43: 0 | AY43: 2000 | BJ43: 0 | BK43: 2000 | BV43: 0 | BW43: 2000 | BX43: 13 | BY43: 13 | BZ43: 13 | CA43: 13 | CB43: 13 | CC43: 13 | CD43: 13 | CE43: 13 | CF43: 13 | CG43: 13 | CH43: =IF($P43=Constants!$B$2,RANK($CB43,$CB$6:$CB$64,1),"-") -> - | CJ43: =IF($P43=Constants!$B$3,RANK($CB43,$CB$6:$CB$64,1),"-") -> - | CL43: =IF($P43=Constants!$B$4,RANK($CB43,$CB$6:$CB$64,1),"-") -> - | CN43: =IF($O43=Constants!$C$2,RANK($CB43,$CB$6:$CB$64,1),"-") -> - | CP43: =IF($O43=Constants!$C$3,RANK($CB43,$CB$6:$CB$64,1),"-") -> - | CR43: =IF($O43=Constants!$C$4,RANK($CB43,$CB$6:$CB$64,1),"-") -> - | CT43: =IF($G43=Constants!$D$4,RANK($CB43,$CB$6:$CB$64,1),"-") -> - | CV43: =IF($G43=Constants!$D$2,RANK($CB43,$CB$6:$CB$64,1),"-") -> - | CY43: 0 | CZ43: 0 | DB43: 0 | DC43: 0.009 | DD43: 13.009 | DE43: 13 | DF43: 0 | DG43: 0.01 | DH43: 13.01 | DI43: 13 | DJ43: 0 | DK43: 0.011 | DL43: 13.011 | DM43: 13 | DN43: 0 | DO43: 0.005 | DP43: 13.005 | DQ43: 13 | DR43: 0 | DS43: 0.004 | DT43: 13.004 | DU43: 13 | DV43: 0 | DW43: 0.006 | DX43: 13.006 | DY43: 13 | DZ43: 0 | EA43: 0.004 | EB43: 13.004 | EC43: 13 | EF43: 0 | EG43: 0.009 | EH43: 13.009 | EI43: 13 | EJ43: 0 | EK43: 0.01 | EL43: 13.01 | EM43: 13 | EN43: 0 | EO43: 0.011 | EP43: 13.011 | EQ43: 13 | ER43: 0 | ES43: 0.005 | ET43: 13.005 | EU43: 13 | EV43: 0 | EW43: 0.004 | EX43: 13.004 | EY43: 13 | EZ43: 0 | FA43: 0.006 | FB43: 13.006 | FC43: 13 | FD43: 0 | FE43: 0.004 | FF43: 13.004 | FG43: 13 | FI43: 0 | FJ43: 0.009 | FK43: 13.009 | FL43: 13 | FM43: 0 | FN43: 0.009 | FO43: 13.009 | FP43: 13 | FQ43: 0 | FR43: 0.011 | FS43: 13.011 | FT43: 13 | FU43: 0 | FV43: 0.005 | FW43: 13.005 | FX43: 13 | FY43: 0 | FZ43: 0.004 | GA43: 13.004 | GB43: 13 | GC43: 0 | GD43: 0.006 | GE43: 13.006 | GF43: 13 | GG43: 0 | GH43: 0.004 | GI43: 13.004 | GJ43: 13 | GN43: 0 | GO43: NO | GP43: 2000 | GQ43: YES | GS43: 0 | GT43: 0.009 | GU43: 13.009 | GV43: 13 | GW43: 0 | GX43: 0.009 | GY43: 13.009 | GZ43: 13 | HA43: 0 | HB43: 0.011 | HC43: 13.011 | HD43: 13 | HE43: 0 | HF43: 0.003 | HG43: 13.003 | HH43: 13 | HI43: 0 | HJ43: 0.004 | HK43: 13.004 | HL43: 13 | HM43: 0 | HN43: 0.006 | HO43: 13.006 | HP43: 13 | HQ43: 0 | HR43: 0.002 | HS43: 13.002 | HT43: 13 | HW43: 0 | HX43: 0.009 | HY43: 13.009 | HZ43: 13 | IA43: 0 | IB43: 0.007 | IC43: 13.007 | ID43: 13 | IE43: 0 | IF43: 0.011 | IG43: 13.011 | IH43: 13 | II43: 0 | IJ43: 0.001 | IK43: 13.001 | IL43: 13 | IM43: 0 | IN43: 0.002 | IO43: 13.002 | IP43: 13 | IQ43: 0 | IR43: 0.005 | IS43: 13.005 | IT43: 13 | IU43: 0 | IV43: 0.001 | IW43: 13.001 | IX43: 13
A44: 13 | B44: 40 | AA44: 2000 | AL44: 0 | AM44: 2000 | AX44: 0 | AY44: 2000 | BJ44: 0 | BK44: 2000 | BV44: 0 | BW44: 2000 | BX44: 13 | BY44: 13 | BZ44: 13 | CA44: 13 | CB44: 13 | CC44: 13 | CD44: 13 | CE44: 13 | CF44: 13 | CG44: 13 | CH44: =IF($P44=Constants!$B$2,RANK($CB44,$CB$6:$CB$64,1),"-") -> - | CJ44: =IF($P44=Constants!$B$3,RANK($CB44,$CB$6:$CB$64,1),"-") -> - | CL44: =IF($P44=Constants!$B$4,RANK($CB44,$CB$6:$CB$64,1),"-") -> - | CN44: =IF($O44=Constants!$C$2,RANK($CB44,$CB$6:$CB$64,1),"-") -> - | CP44: =IF($O44=Constants!$C$3,RANK($CB44,$CB$6:$CB$64,1),"-") -> - | CR44: =IF($O44=Constants!$C$4,RANK($CB44,$CB$6:$CB$64,1),"-") -> - | CT44: =IF($G44=Constants!$D$4,RANK($CB44,$CB$6:$CB$64,1),"-") -> - | CV44: =IF($G44=Constants!$D$2,RANK($CB44,$CB$6:$CB$64,1),"-") -> - | CY44: 0 | CZ44: 0 | DB44: 0 | DC44: 0.009 | DD44: 13.009 | DE44: 13 | DF44: 0 | DG44: 0.01 | DH44: 13.01 | DI44: 13 | DJ44: 0 | DK44: 0.011 | DL44: 13.011 | DM44: 13 | DN44: 0 | DO44: 0.005 | DP44: 13.005 | DQ44: 13 | DR44: 0 | DS44: 0.004 | DT44: 13.004 | DU44: 13 | DV44: 0 | DW44: 0.006 | DX44: 13.006 | DY44: 13 | DZ44: 0 | EA44: 0.004 | EB44: 13.004 | EC44: 13 | EF44: 0 | EG44: 0.009 | EH44: 13.009 | EI44: 13 | EJ44: 0 | EK44: 0.01 | EL44: 13.01 | EM44: 13 | EN44: 0 | EO44: 0.011 | EP44: 13.011 | EQ44: 13 | ER44: 0 | ES44: 0.005 | ET44: 13.005 | EU44: 13 | EV44: 0 | EW44: 0.004 | EX44: 13.004 | EY44: 13 | EZ44: 0 | FA44: 0.006 | FB44: 13.006 | FC44: 13 | FD44: 0 | FE44: 0.004 | FF44: 13.004 | FG44: 13 | FI44: 0 | FJ44: 0.009 | FK44: 13.009 | FL44: 13 | FM44: 0 | FN44: 0.009 | FO44: 13.009 | FP44: 13 | FQ44: 0 | FR44: 0.011 | FS44: 13.011 | FT44: 13 | FU44: 0 | FV44: 0.005 | FW44: 13.005 | FX44: 13 | FY44: 0 | FZ44: 0.004 | GA44: 13.004 | GB44: 13 | GC44: 0 | GD44: 0.006 | GE44: 13.006 | GF44: 13 | GG44: 0 | GH44: 0.004 | GI44: 13.004 | GJ44: 13 | GN44: 0 | GO44: NO | GP44: 2000 | GQ44: YES | GS44: 0 | GT44: 0.009 | GU44: 13.009 | GV44: 13 | GW44: 0 | GX44: 0.009 | GY44: 13.009 | GZ44: 13 | HA44: 0 | HB44: 0.011 | HC44: 13.011 | HD44: 13 | HE44: 0 | HF44: 0.003 | HG44: 13.003 | HH44: 13 | HI44: 0 | HJ44: 0.004 | HK44: 13.004 | HL44: 13 | HM44: 0 | HN44: 0.006 | HO44: 13.006 | HP44: 13 | HQ44: 0 | HR44: 0.002 | HS44: 13.002 | HT44: 13 | HW44: 0 | HX44: 0.009 | HY44: 13.009 | HZ44: 13 | IA44: 0 | IB44: 0.007 | IC44: 13.007 | ID44: 13 | IE44: 0 | IF44: 0.011 | IG44: 13.011 | IH44: 13 | II44: 0 | IJ44: 0.001 | IK44: 13.001 | IL44: 13 | IM44: 0 | IN44: 0.002 | IO44: 13.002 | IP44: 13 | IQ44: 0 | IR44: 0.005 | IS44: 13.005 | IT44: 13 | IU44: 0 | IV44: 0.001 | IW44: 13.001 | IX44: 13
A45: 13 | B45: 41 | AA45: 2000 | AL45: 0 | AM45: 2000 | AX45: 0 | AY45: 2000 | BJ45: 0 | BK45: 2000 | BV45: 0 | BW45: 2000 | BX45: 13 | BY45: 13 | BZ45: 13 | CA45: 13 | CB45: 13 | CC45: 13 | CD45: 13 | CE45: 13 | CF45: 13 | CG45: 13 | CH45: =IF($P45=Constants!$B$2,RANK($CB45,$CB$6:$CB$64,1),"-") -> - | CJ45: =IF($P45=Constants!$B$3,RANK($CB45,$CB$6:$CB$64,1),"-") -> - | CL45: =IF($P45=Constants!$B$4,RANK($CB45,$CB$6:$CB$64,1),"-") -> - | CN45: =IF($O45=Constants!$C$2,RANK($CB45,$CB$6:$CB$64,1),"-") -> - | CP45: =IF($O45=Constants!$C$3,RANK($CB45,$CB$6:$CB$64,1),"-") -> - | CR45: =IF($O45=Constants!$C$4,RANK($CB45,$CB$6:$CB$64,1),"-") -> - | CT45: =IF($G45=Constants!$D$4,RANK($CB45,$CB$6:$CB$64,1),"-") -> - | CV45: =IF($G45=Constants!$D$2,RANK($CB45,$CB$6:$CB$64,1),"-") -> - | CY45: 0 | CZ45: 0 | DB45: 0 | DC45: 0.009 | DD45: 13.009 | DE45: 13 | DF45: 0 | DG45: 0.01 | DH45: 13.01 | DI45: 13 | DJ45: 0 | DK45: 0.011 | DL45: 13.011 | DM45: 13 | DN45: 0 | DO45: 0.005 | DP45: 13.005 | DQ45: 13 | DR45: 0 | DS45: 0.004 | DT45: 13.004 | DU45: 13 | DV45: 0 | DW45: 0.006 | DX45: 13.006 | DY45: 13 | DZ45: 0 | EA45: 0.004 | EB45: 13.004 | EC45: 13 | EF45: 0 | EG45: 0.009 | EH45: 13.009 | EI45: 13 | EJ45: 0 | EK45: 0.01 | EL45: 13.01 | EM45: 13 | EN45: 0 | EO45: 0.011 | EP45: 13.011 | EQ45: 13 | ER45: 0 | ES45: 0.005 | ET45: 13.005 | EU45: 13 | EV45: 0 | EW45: 0.004 | EX45: 13.004 | EY45: 13 | EZ45: 0 | FA45: 0.006 | FB45: 13.006 | FC45: 13 | FD45: 0 | FE45: 0.004 | FF45: 13.004 | FG45: 13 | FI45: 0 | FJ45: 0.009 | FK45: 13.009 | FL45: 13 | FM45: 0 | FN45: 0.009 | FO45: 13.009 | FP45: 13 | FQ45: 0 | FR45: 0.011 | FS45: 13.011 | FT45: 13 | FU45: 0 | FV45: 0.005 | FW45: 13.005 | FX45: 13 | FY45: 0 | FZ45: 0.004 | GA45: 13.004 | GB45: 13 | GC45: 0 | GD45: 0.006 | GE45: 13.006 | GF45: 13 | GG45: 0 | GH45: 0.004 | GI45: 13.004 | GJ45: 13 | GN45: 0 | GO45: NO | GP45: 2000 | GQ45: YES | GS45: 0 | GT45: 0.009 | GU45: 13.009 | GV45: 13 | GW45: 0 | GX45: 0.009 | GY45: 13.009 | GZ45: 13 | HA45: 0 | HB45: 0.011 | HC45: 13.011 | HD45: 13 | HE45: 0 | HF45: 0.003 | HG45: 13.003 | HH45: 13 | HI45: 0 | HJ45: 0.004 | HK45: 13.004 | HL45: 13 | HM45: 0 | HN45: 0.006 | HO45: 13.006 | HP45: 13 | HQ45: 0 | HR45: 0.002 | HS45: 13.002 | HT45: 13 | HW45: 0 | HX45: 0.009 | HY45: 13.009 | HZ45: 13 | IA45: 0 | IB45: 0.007 | IC45: 13.007 | ID45: 13 | IE45: 0 | IF45: 0.011 | IG45: 13.011 | IH45: 13 | II45: 0 | IJ45: 0.001 | IK45: 13.001 | IL45: 13 | IM45: 0 | IN45: 0.002 | IO45: 13.002 | IP45: 13 | IQ45: 0 | IR45: 0.005 | IS45: 13.005 | IT45: 13 | IU45: 0 | IV45: 0.001 | IW45: 13.001 | IX45: 13
A46: 13 | B46: 42 | AA46: 2000 | AL46: 0 | AM46: 2000 | AX46: 0 | AY46: 2000 | BJ46: 0 | BK46: 2000 | BV46: 0 | BW46: 2000 | BX46: 13 | BY46: 13 | BZ46: 13 | CA46: 13 | CB46: 13 | CC46: 13 | CD46: 13 | CE46: 13 | CF46: 13 | CG46: 13 | CH46: =IF($P46=Constants!$B$2,RANK($CB46,$CB$6:$CB$64,1),"-") -> - | CJ46: =IF($P46=Constants!$B$3,RANK($CB46,$CB$6:$CB$64,1),"-") -> - | CL46: =IF($P46=Constants!$B$4,RANK($CB46,$CB$6:$CB$64,1),"-") -> - | CN46: =IF($O46=Constants!$C$2,RANK($CB46,$CB$6:$CB$64,1),"-") -> - | CP46: =IF($O46=Constants!$C$3,RANK($CB46,$CB$6:$CB$64,1),"-") -> - | CR46: =IF($O46=Constants!$C$4,RANK($CB46,$CB$6:$CB$64,1),"-") -> - | CT46: =IF($G46=Constants!$D$4,RANK($CB46,$CB$6:$CB$64,1),"-") -> - | CV46: =IF($G46=Constants!$D$2,RANK($CB46,$CB$6:$CB$64,1),"-") -> - | CY46: 0 | CZ46: 0 | DB46: 0 | DC46: 0.009 | DD46: 13.009 | DE46: 13 | DF46: 0 | DG46: 0.01 | DH46: 13.01 | DI46: 13 | DJ46: 0 | DK46: 0.011 | DL46: 13.011 | DM46: 13 | DN46: 0 | DO46: 0.005 | DP46: 13.005 | DQ46: 13 | DR46: 0 | DS46: 0.004 | DT46: 13.004 | DU46: 13 | DV46: 0 | DW46: 0.006 | DX46: 13.006 | DY46: 13 | DZ46: 0 | EA46: 0.004 | EB46: 13.004 | EC46: 13 | EF46: 0 | EG46: 0.009 | EH46: 13.009 | EI46: 13 | EJ46: 0 | EK46: 0.01 | EL46: 13.01 | EM46: 13 | EN46: 0 | EO46: 0.011 | EP46: 13.011 | EQ46: 13 | ER46: 0 | ES46: 0.005 | ET46: 13.005 | EU46: 13 | EV46: 0 | EW46: 0.004 | EX46: 13.004 | EY46: 13 | EZ46: 0 | FA46: 0.006 | FB46: 13.006 | FC46: 13 | FD46: 0 | FE46: 0.004 | FF46: 13.004 | FG46: 13 | FI46: 0 | FJ46: 0.009 | FK46: 13.009 | FL46: 13 | FM46: 0 | FN46: 0.009 | FO46: 13.009 | FP46: 13 | FQ46: 0 | FR46: 0.011 | FS46: 13.011 | FT46: 13 | FU46: 0 | FV46: 0.005 | FW46: 13.005 | FX46: 13 | FY46: 0 | FZ46: 0.004 | GA46: 13.004 | GB46: 13 | GC46: 0 | GD46: 0.006 | GE46: 13.006 | GF46: 13 | GG46: 0 | GH46: 0.004 | GI46: 13.004 | GJ46: 13 | GN46: 0 | GO46: NO | GP46: 2000 | GQ46: YES | GS46: 0 | GT46: 0.009 | GU46: 13.009 | GV46: 13 | GW46: 0 | GX46: 0.009 | GY46: 13.009 | GZ46: 13 | HA46: 0 | HB46: 0.011 | HC46: 13.011 | HD46: 13 | HE46: 0 | HF46: 0.003 | HG46: 13.003 | HH46: 13 | HI46: 0 | HJ46: 0.004 | HK46: 13.004 | HL46: 13 | HM46: 0 | HN46: 0.006 | HO46: 13.006 | HP46: 13 | HQ46: 0 | HR46: 0.002 | HS46: 13.002 | HT46: 13 | HW46: 0 | HX46: 0.009 | HY46: 13.009 | HZ46: 13 | IA46: 0 | IB46: 0.007 | IC46: 13.007 | ID46: 13 | IE46: 0 | IF46: 0.011 | IG46: 13.011 | IH46: 13 | II46: 0 | IJ46: 0.001 | IK46: 13.001 | IL46: 13 | IM46: 0 | IN46: 0.002 | IO46: 13.002 | IP46: 13 | IQ46: 0 | IR46: 0.005 | IS46: 13.005 | IT46: 13 | IU46: 0 | IV46: 0.001 | IW46: 13.001 | IX46: 13
A47: 13 | B47: 43 | AA47: 2000 | AL47: 0 | AM47: 2000 | AX47: 0 | AY47: 2000 | BJ47: 0 | BK47: 2000 | BV47: 0 | BW47: 2000 | BX47: 13 | BY47: 13 | BZ47: 13 | CA47: 13 | CB47: 13 | CC47: 13 | CD47: 13 | CE47: 13 | CF47: 13 | CG47: 13 | CH47: =IF($P47=Constants!$B$2,RANK($CB47,$CB$6:$CB$64,1),"-") -> - | CJ47: =IF($P47=Constants!$B$3,RANK($CB47,$CB$6:$CB$64,1),"-") -> - | CL47: =IF($P47=Constants!$B$4,RANK($CB47,$CB$6:$CB$64,1),"-") -> - | CN47: =IF($O47=Constants!$C$2,RANK($CB47,$CB$6:$CB$64,1),"-") -> - | CP47: =IF($O47=Constants!$C$3,RANK($CB47,$CB$6:$CB$64,1),"-") -> - | CR47: =IF($O47=Constants!$C$4,RANK($CB47,$CB$6:$CB$64,1),"-") -> - | CT47: =IF($G47=Constants!$D$4,RANK($CB47,$CB$6:$CB$64,1),"-") -> - | CV47: =IF($G47=Constants!$D$2,RANK($CB47,$CB$6:$CB$64,1),"-") -> - | CY47: 0 | CZ47: 0 | DB47: 0 | DC47: 0.009 | DD47: 13.009 | DE47: 13 | DF47: 0 | DG47: 0.01 | DH47: 13.01 | DI47: 13 | DJ47: 0 | DK47: 0.011 | DL47: 13.011 | DM47: 13 | DN47: 0 | DO47: 0.005 | DP47: 13.005 | DQ47: 13 | DR47: 0 | DS47: 0.004 | DT47: 13.004 | DU47: 13 | DV47: 0 | DW47: 0.006 | DX47: 13.006 | DY47: 13 | DZ47: 0 | EA47: 0.004 | EB47: 13.004 | EC47: 13 | EF47: 0 | EG47: 0.009 | EH47: 13.009 | EI47: 13 | EJ47: 0 | EK47: 0.01 | EL47: 13.01 | EM47: 13 | EN47: 0 | EO47: 0.011 | EP47: 13.011 | EQ47: 13 | ER47: 0 | ES47: 0.005 | ET47: 13.005 | EU47: 13 | EV47: 0 | EW47: 0.004 | EX47: 13.004 | EY47: 13 | EZ47: 0 | FA47: 0.006 | FB47: 13.006 | FC47: 13 | FD47: 0 | FE47: 0.004 | FF47: 13.004 | FG47: 13 | FI47: 0 | FJ47: 0.009 | FK47: 13.009 | FL47: 13 | FM47: 0 | FN47: 0.009 | FO47: 13.009 | FP47: 13 | FQ47: 0 | FR47: 0.011 | FS47: 13.011 | FT47: 13 | FU47: 0 | FV47: 0.005 | FW47: 13.005 | FX47: 13 | FY47: 0 | FZ47: 0.004 | GA47: 13.004 | GB47: 13 | GC47: 0 | GD47: 0.006 | GE47: 13.006 | GF47: 13 | GG47: 0 | GH47: 0.004 | GI47: 13.004 | GJ47: 13 | GN47: 0 | GO47: NO | GP47: 2000 | GQ47: YES | GS47: 0 | GT47: 0.009 | GU47: 13.009 | GV47: 13 | GW47: 0 | GX47: 0.009 | GY47: 13.009 | GZ47: 13 | HA47: 0 | HB47: 0.011 | HC47: 13.011 | HD47: 13 | HE47: 0 | HF47: 0.003 | HG47: 13.003 | HH47: 13 | HI47: 0 | HJ47: 0.004 | HK47: 13.004 | HL47: 13 | HM47: 0 | HN47: 0.006 | HO47: 13.006 | HP47: 13 | HQ47: 0 | HR47: 0.002 | HS47: 13.002 | HT47: 13 | HW47: 0 | HX47: 0.009 | HY47: 13.009 | HZ47: 13 | IA47: 0 | IB47: 0.007 | IC47: 13.007 | ID47: 13 | IE47: 0 | IF47: 0.011 | IG47: 13.011 | IH47: 13 | II47: 0 | IJ47: 0.001 | IK47: 13.001 | IL47: 13 | IM47: 0 | IN47: 0.002 | IO47: 13.002 | IP47: 13 | IQ47: 0 | IR47: 0.005 | IS47: 13.005 | IT47: 13 | IU47: 0 | IV47: 0.001 | IW47: 13.001 | IX47: 13
A48: 13 | B48: 44 | AA48: 2000 | AL48: 0 | AM48: 2000 | AX48: 0 | AY48: 2000 | BJ48: 0 | BK48: 2000 | BV48: 0 | BW48: 2000 | BX48: 13 | BY48: 13 | BZ48: 13 | CA48: 13 | CB48: 13 | CC48: 13 | CD48: 13 | CE48: 13 | CF48: 13 | CG48: 13 | CH48: =IF($P48=Constants!$B$2,RANK($CB48,$CB$6:$CB$64,1),"-") -> - | CJ48: =IF($P48=Constants!$B$3,RANK($CB48,$CB$6:$CB$64,1),"-") -> - | CL48: =IF($P48=Constants!$B$4,RANK($CB48,$CB$6:$CB$64,1),"-") -> - | CN48: =IF($O48=Constants!$C$2,RANK($CB48,$CB$6:$CB$64,1),"-") -> - | CP48: =IF($O48=Constants!$C$3,RANK($CB48,$CB$6:$CB$64,1),"-") -> - | CR48: =IF($O48=Constants!$C$4,RANK($CB48,$CB$6:$CB$64,1),"-") -> - | CT48: =IF($G48=Constants!$D$4,RANK($CB48,$CB$6:$CB$64,1),"-") -> - | CV48: =IF($G48=Constants!$D$2,RANK($CB48,$CB$6:$CB$64,1),"-") -> - | CY48: 0 | CZ48: 0 | DB48: 0 | DC48: 0.009 | DD48: 13.009 | DE48: 13 | DF48: 0 | DG48: 0.01 | DH48: 13.01 | DI48: 13 | DJ48: 0 | DK48: 0.011 | DL48: 13.011 | DM48: 13 | DN48: 0 | DO48: 0.005 | DP48: 13.005 | DQ48: 13 | DR48: 0 | DS48: 0.004 | DT48: 13.004 | DU48: 13 | DV48: 0 | DW48: 0.006 | DX48: 13.006 | DY48: 13 | DZ48: 0 | EA48: 0.004 | EB48: 13.004 | EC48: 13 | EF48: 0 | EG48: 0.009 | EH48: 13.009 | EI48: 13 | EJ48: 0 | EK48: 0.01 | EL48: 13.01 | EM48: 13 | EN48: 0 | EO48: 0.011 | EP48: 13.011 | EQ48: 13 | ER48: 0 | ES48: 0.005 | ET48: 13.005 | EU48: 13 | EV48: 0 | EW48: 0.004 | EX48: 13.004 | EY48: 13 | EZ48: 0 | FA48: 0.006 | FB48: 13.006 | FC48: 13 | FD48: 0 | FE48: 0.004 | FF48: 13.004 | FG48: 13 | FI48: 0 | FJ48: 0.009 | FK48: 13.009 | FL48: 13 | FM48: 0 | FN48: 0.009 | FO48: 13.009 | FP48: 13 | FQ48: 0 | FR48: 0.011 | FS48: 13.011 | FT48: 13 | FU48: 0 | FV48: 0.005 | FW48: 13.005 | FX48: 13 | FY48: 0 | FZ48: 0.004 | GA48: 13.004 | GB48: 13 | GC48: 0 | GD48: 0.006 | GE48: 13.006 | GF48: 13 | GG48: 0 | GH48: 0.004 | GI48: 13.004 | GJ48: 13 | GN48: 0 | GO48: NO | GP48: 2000 | GQ48: YES | GS48: 0 | GT48: 0.009 | GU48: 13.009 | GV48: 13 | GW48: 0 | GX48: 0.009 | GY48: 13.009 | GZ48: 13 | HA48: 0 | HB48: 0.011 | HC48: 13.011 | HD48: 13 | HE48: 0 | HF48: 0.003 | HG48: 13.003 | HH48: 13 | HI48: 0 | HJ48: 0.004 | HK48: 13.004 | HL48: 13 | HM48: 0 | HN48: 0.006 | HO48: 13.006 | HP48: 13 | HQ48: 0 | HR48: 0.002 | HS48: 13.002 | HT48: 13 | HW48: 0 | HX48: 0.009 | HY48: 13.009 | HZ48: 13 | IA48: 0 | IB48: 0.007 | IC48: 13.007 | ID48: 13 | IE48: 0 | IF48: 0.011 | IG48: 13.011 | IH48: 13 | II48: 0 | IJ48: 0.001 | IK48: 13.001 | IL48: 13 | IM48: 0 | IN48: 0.002 | IO48: 13.002 | IP48: 13 | IQ48: 0 | IR48: 0.005 | IS48: 13.005 | IT48: 13 | IU48: 0 | IV48: 0.001 | IW48: 13.001 | IX48: 13
A49: 13 | B49: 45 | AA49: 2000 | AL49: 0 | AM49: 2000 | AX49: 0 | AY49: 2000 | BJ49: 0 | BK49: 2000 | BV49: 0 | BW49: 2000 | BX49: 13 | BY49: 13 | BZ49: 13 | CA49: 13 | CB49: 13 | CC49: 13 | CD49: 13 | CE49: 13 | CF49: 13 | CG49: 13 | CH49: =IF($P49=Constants!$B$2,RANK($CB49,$CB$6:$CB$64,1),"-") -> - | CJ49: =IF($P49=Constants!$B$3,RANK($CB49,$CB$6:$CB$64,1),"-") -> - | CL49: =IF($P49=Constants!$B$4,RANK($CB49,$CB$6:$CB$64,1),"-") -> - | CN49: =IF($O49=Constants!$C$2,RANK($CB49,$CB$6:$CB$64,1),"-") -> - | CP49: =IF($O49=Constants!$C$3,RANK($CB49,$CB$6:$CB$64,1),"-") -> - | CR49: =IF($O49=Constants!$C$4,RANK($CB49,$CB$6:$CB$64,1),"-") -> - | CT49: =IF($G49=Constants!$D$4,RANK($CB49,$CB$6:$CB$64,1),"-") -> - | CV49: =IF($G49=Constants!$D$2,RANK($CB49,$CB$6:$CB$64,1),"-") -> - | CY49: 0 | CZ49: 0 | DB49: 0 | DC49: 0.009 | DD49: 13.009 | DE49: 13 | DF49: 0 | DG49: 0.01 | DH49: 13.01 | DI49: 13 | DJ49: 0 | DK49: 0.011 | DL49: 13.011 | DM49: 13 | DN49: 0 | DO49: 0.005 | DP49: 13.005 | DQ49: 13 | DR49: 0 | DS49: 0.004 | DT49: 13.004 | DU49: 13 | DV49: 0 | DW49: 0.006 | DX49: 13.006 | DY49: 13 | DZ49: 0 | EA49: 0.004 | EB49: 13.004 | EC49: 13 | EF49: 0 | EG49: 0.009 | EH49: 13.009 | EI49: 13 | EJ49: 0 | EK49: 0.01 | EL49: 13.01 | EM49: 13 | EN49: 0 | EO49: 0.011 | EP49: 13.011 | EQ49: 13 | ER49: 0 | ES49: 0.005 | ET49: 13.005 | EU49: 13 | EV49: 0 | EW49: 0.004 | EX49: 13.004 | EY49: 13 | EZ49: 0 | FA49: 0.006 | FB49: 13.006 | FC49: 13 | FD49: 0 | FE49: 0.004 | FF49: 13.004 | FG49: 13 | FI49: 0 | FJ49: 0.009 | FK49: 13.009 | FL49: 13 | FM49: 0 | FN49: 0.009 | FO49: 13.009 | FP49: 13 | FQ49: 0 | FR49: 0.011 | FS49: 13.011 | FT49: 13 | FU49: 0 | FV49: 0.005 | FW49: 13.005 | FX49: 13 | FY49: 0 | FZ49: 0.004 | GA49: 13.004 | GB49: 13 | GC49: 0 | GD49: 0.006 | GE49: 13.006 | GF49: 13 | GG49: 0 | GH49: 0.004 | GI49: 13.004 | GJ49: 13 | GN49: 0 | GO49: NO | GP49: 2000 | GQ49: YES | GS49: 0 | GT49: 0.009 | GU49: 13.009 | GV49: 13 | GW49: 0 | GX49: 0.009 | GY49: 13.009 | GZ49: 13 | HA49: 0 | HB49: 0.011 | HC49: 13.011 | HD49: 13 | HE49: 0 | HF49: 0.003 | HG49: 13.003 | HH49: 13 | HI49: 0 | HJ49: 0.004 | HK49: 13.004 | HL49: 13 | HM49: 0 | HN49: 0.006 | HO49: 13.006 | HP49: 13 | HQ49: 0 | HR49: 0.002 | HS49: 13.002 | HT49: 13 | HW49: 0 | HX49: 0.009 | HY49: 13.009 | HZ49: 13 | IA49: 0 | IB49: 0.007 | IC49: 13.007 | ID49: 13 | IE49: 0 | IF49: 0.011 | IG49: 13.011 | IH49: 13 | II49: 0 | IJ49: 0.001 | IK49: 13.001 | IL49: 13 | IM49: 0 | IN49: 0.002 | IO49: 13.002 | IP49: 13 | IQ49: 0 | IR49: 0.005 | IS49: 13.005 | IT49: 13 | IU49: 0 | IV49: 0.001 | IW49: 13.001 | IX49: 13
A50: 13 | B50: 46 | AA50: 2000 | AL50: 0 | AM50: 2000 | AX50: 0 | AY50: 2000 | BJ50: 0 | BK50: 2000 | BV50: 0 | BW50: 2000 | BX50: 13 | BY50: 13 | BZ50: 13 | CA50: 13 | CB50: 13 | CC50: 13 | CD50: 13 | CE50: 13 | CF50: 13 | CG50: 13 | CH50: =IF($P50=Constants!$B$2,RANK($CB50,$CB$6:$CB$64,1),"-") -> - | CJ50: =IF($P50=Constants!$B$3,RANK($CB50,$CB$6:$CB$64,1),"-") -> - | CL50: =IF($P50=Constants!$B$4,RANK($CB50,$CB$6:$CB$64,1),"-") -> - | CN50: =IF($O50=Constants!$C$2,RANK($CB50,$CB$6:$CB$64,1),"-") -> - | CP50: =IF($O50=Constants!$C$3,RANK($CB50,$CB$6:$CB$64,1),"-") -> - | CR50: =IF($O50=Constants!$C$4,RANK($CB50,$CB$6:$CB$64,1),"-") -> - | CT50: =IF($G50=Constants!$D$4,RANK($CB50,$CB$6:$CB$64,1),"-") -> - | CV50: =IF($G50=Constants!$D$2,RANK($CB50,$CB$6:$CB$64,1),"-") -> - | CY50: 0 | CZ50: 0 | DB50: 0 | DC50: 0.009 | DD50: 13.009 | DE50: 13 | DF50: 0 | DG50: 0.01 | DH50: 13.01 | DI50: 13 | DJ50: 0 | DK50: 0.011 | DL50: 13.011 | DM50: 13 | DN50: 0 | DO50: 0.005 | DP50: 13.005 | DQ50: 13 | DR50: 0 | DS50: 0.004 | DT50: 13.004 | DU50: 13 | DV50: 0 | DW50: 0.006 | DX50: 13.006 | DY50: 13 | DZ50: 0 | EA50: 0.004 | EB50: 13.004 | EC50: 13 | EF50: 0 | EG50: 0.009 | EH50: 13.009 | EI50: 13 | EJ50: 0 | EK50: 0.01 | EL50: 13.01 | EM50: 13 | EN50: 0 | EO50: 0.011 | EP50: 13.011 | EQ50: 13 | ER50: 0 | ES50: 0.005 | ET50: 13.005 | EU50: 13 | EV50: 0 | EW50: 0.004 | EX50: 13.004 | EY50: 13 | EZ50: 0 | FA50: 0.006 | FB50: 13.006 | FC50: 13 | FD50: 0 | FE50: 0.004 | FF50: 13.004 | FG50: 13 | FI50: 0 | FJ50: 0.009 | FK50: 13.009 | FL50: 13 | FM50: 0 | FN50: 0.009 | FO50: 13.009 | FP50: 13 | FQ50: 0 | FR50: 0.011 | FS50: 13.011 | FT50: 13 | FU50: 0 | FV50: 0.005 | FW50: 13.005 | FX50: 13 | FY50: 0 | FZ50: 0.004 | GA50: 13.004 | GB50: 13 | GC50: 0 | GD50: 0.006 | GE50: 13.006 | GF50: 13 | GG50: 0 | GH50: 0.004 | GI50: 13.004 | GJ50: 13 | GN50: 0 | GO50: NO | GP50: 2000 | GQ50: YES | GS50: 0 | GT50: 0.009 | GU50: 13.009 | GV50: 13 | GW50: 0 | GX50: 0.009 | GY50: 13.009 | GZ50: 13 | HA50: 0 | HB50: 0.011 | HC50: 13.011 | HD50: 13 | HE50: 0 | HF50: 0.003 | HG50: 13.003 | HH50: 13 | HI50: 0 | HJ50: 0.004 | HK50: 13.004 | HL50: 13 | HM50: 0 | HN50: 0.006 | HO50: 13.006 | HP50: 13 | HQ50: 0 | HR50: 0.002 | HS50: 13.002 | HT50: 13 | HW50: 0 | HX50: 0.009 | HY50: 13.009 | HZ50: 13 | IA50: 0 | IB50: 0.007 | IC50: 13.007 | ID50: 13 | IE50: 0 | IF50: 0.011 | IG50: 13.011 | IH50: 13 | II50: 0 | IJ50: 0.001 | IK50: 13.001 | IL50: 13 | IM50: 0 | IN50: 0.002 | IO50: 13.002 | IP50: 13 | IQ50: 0 | IR50: 0.005 | IS50: 13.005 | IT50: 13 | IU50: 0 | IV50: 0.001 | IW50: 13.001 | IX50: 13
A51: 13 | B51: 47 | AA51: 2000 | AL51: 0 | AM51: 2000 | AX51: 0 | AY51: 2000 | BJ51: 0 | BK51: 2000 | BV51: 0 | BW51: 2000 | BX51: 13 | BY51: 13 | BZ51: 13 | CA51: 13 | CB51: 13 | CC51: 13 | CD51: 13 | CE51: 13 | CF51: 13 | CG51: 13 | CH51: =IF($P51=Constants!$B$2,RANK($CB51,$CB$6:$CB$64,1),"-") -> - | CJ51: =IF($P51=Constants!$B$3,RANK($CB51,$CB$6:$CB$64,1),"-") -> - | CL51: =IF($P51=Constants!$B$4,RANK($CB51,$CB$6:$CB$64,1),"-") -> - | CN51: =IF($O51=Constants!$C$2,RANK($CB51,$CB$6:$CB$64,1),"-") -> - | CP51: =IF($O51=Constants!$C$3,RANK($CB51,$CB$6:$CB$64,1),"-") -> - | CR51: =IF($O51=Constants!$C$4,RANK($CB51,$CB$6:$CB$64,1),"-") -> - | CT51: =IF($G51=Constants!$D$4,RANK($CB51,$CB$6:$CB$64,1),"-") -> - | CV51: =IF($G51=Constants!$D$2,RANK($CB51,$CB$6:$CB$64,1),"-") -> - | CY51: 0 | CZ51: 0 | DB51: 0 | DC51: 0.009 | DD51: 13.009 | DE51: 13 | DF51: 0 | DG51: 0.01 | DH51: 13.01 | DI51: 13 | DJ51: 0 | DK51: 0.011 | DL51: 13.011 | DM51: 13 | DN51: 0 | DO51: 0.005 | DP51: 13.005 | DQ51: 13 | DR51: 0 | DS51: 0.004 | DT51: 13.004 | DU51: 13 | DV51: 0 | DW51: 0.006 | DX51: 13.006 | DY51: 13 | DZ51: 0 | EA51: 0.004 | EB51: 13.004 | EC51: 13 | EF51: 0 | EG51: 0.009 | EH51: 13.009 | EI51: 13 | EJ51: 0 | EK51: 0.01 | EL51: 13.01 | EM51: 13 | EN51: 0 | EO51: 0.011 | EP51: 13.011 | EQ51: 13 | ER51: 0 | ES51: 0.005 | ET51: 13.005 | EU51: 13 | EV51: 0 | EW51: 0.004 | EX51: 13.004 | EY51: 13 | EZ51: 0 | FA51: 0.006 | FB51: 13.006 | FC51: 13 | FD51: 0 | FE51: 0.004 | FF51: 13.004 | FG51: 13 | FI51: 0 | FJ51: 0.009 | FK51: 13.009 | FL51: 13 | FM51: 0 | FN51: 0.009 | FO51: 13.009 | FP51: 13 | FQ51: 0 | FR51: 0.011 | FS51: 13.011 | FT51: 13 | FU51: 0 | FV51: 0.005 | FW51: 13.005 | FX51: 13 | FY51: 0 | FZ51: 0.004 | GA51: 13.004 | GB51: 13 | GC51: 0 | GD51: 0.006 | GE51: 13.006 | GF51: 13 | GG51: 0 | GH51: 0.004 | GI51: 13.004 | GJ51: 13 | GN51: 0 | GO51: NO | GP51: 2000 | GQ51: YES | GS51: 0 | GT51: 0.009 | GU51: 13.009 | GV51: 13 | GW51: 0 | GX51: 0.009 | GY51: 13.009 | GZ51: 13 | HA51: 0 | HB51: 0.011 | HC51: 13.011 | HD51: 13 | HE51: 0 | HF51: 0.003 | HG51: 13.003 | HH51: 13 | HI51: 0 | HJ51: 0.004 | HK51: 13.004 | HL51: 13 | HM51: 0 | HN51: 0.006 | HO51: 13.006 | HP51: 13 | HQ51: 0 | HR51: 0.002 | HS51: 13.002 | HT51: 13 | HW51: 0 | HX51: 0.009 | HY51: 13.009 | HZ51: 13 | IA51: 0 | IB51: 0.007 | IC51: 13.007 | ID51: 13 | IE51: 0 | IF51: 0.011 | IG51: 13.011 | IH51: 13 | II51: 0 | IJ51: 0.001 | IK51: 13.001 | IL51: 13 | IM51: 0 | IN51: 0.002 | IO51: 13.002 | IP51: 13 | IQ51: 0 | IR51: 0.005 | IS51: 13.005 | IT51: 13 | IU51: 0 | IV51: 0.001 | IW51: 13.001 | IX51: 13
A52: 13 | B52: 48 | AA52: 2000 | AL52: 0 | AM52: 2000 | AX52: 0 | AY52: 2000 | BJ52: 0 | BK52: 2000 | BV52: 0 | BW52: 2000 | BX52: 13 | BY52: 13 | BZ52: 13 | CA52: 13 | CB52: 13 | CC52: 13 | CD52: 13 | CE52: 13 | CF52: 13 | CG52: 13 | CH52: =IF($P52=Constants!$B$2,RANK($CB52,$CB$6:$CB$64,1),"-") -> - | CJ52: =IF($P52=Constants!$B$3,RANK($CB52,$CB$6:$CB$64,1),"-") -> - | CL52: =IF($P52=Constants!$B$4,RANK($CB52,$CB$6:$CB$64,1),"-") -> - | CN52: =IF($O52=Constants!$C$2,RANK($CB52,$CB$6:$CB$64,1),"-") -> - | CP52: =IF($O52=Constants!$C$3,RANK($CB52,$CB$6:$CB$64,1),"-") -> - | CR52: =IF($O52=Constants!$C$4,RANK($CB52,$CB$6:$CB$64,1),"-") -> - | CT52: =IF($G52=Constants!$D$4,RANK($CB52,$CB$6:$CB$64,1),"-") -> - | CV52: =IF($G52=Constants!$D$2,RANK($CB52,$CB$6:$CB$64,1),"-") -> - | CY52: 0 | CZ52: 0 | DB52: 0 | DC52: 0.009 | DD52: 13.009 | DE52: 13 | DF52: 0 | DG52: 0.01 | DH52: 13.01 | DI52: 13 | DJ52: 0 | DK52: 0.011 | DL52: 13.011 | DM52: 13 | DN52: 0 | DO52: 0.005 | DP52: 13.005 | DQ52: 13 | DR52: 0 | DS52: 0.004 | DT52: 13.004 | DU52: 13 | DV52: 0 | DW52: 0.006 | DX52: 13.006 | DY52: 13 | DZ52: 0 | EA52: 0.004 | EB52: 13.004 | EC52: 13 | EF52: 0 | EG52: 0.009 | EH52: 13.009 | EI52: 13 | EJ52: 0 | EK52: 0.01 | EL52: 13.01 | EM52: 13 | EN52: 0 | EO52: 0.011 | EP52: 13.011 | EQ52: 13 | ER52: 0 | ES52: 0.005 | ET52: 13.005 | EU52: 13 | EV52: 0 | EW52: 0.004 | EX52: 13.004 | EY52: 13 | EZ52: 0 | FA52: 0.006 | FB52: 13.006 | FC52: 13 | FD52: 0 | FE52: 0.004 | FF52: 13.004 | FG52: 13 | FI52: 0 | FJ52: 0.009 | FK52: 13.009 | FL52: 13 | FM52: 0 | FN52: 0.009 | FO52: 13.009 | FP52: 13 | FQ52: 0 | FR52: 0.011 | FS52: 13.011 | FT52: 13 | FU52: 0 | FV52: 0.005 | FW52: 13.005 | FX52: 13 | FY52: 0 | FZ52: 0.004 | GA52: 13.004 | GB52: 13 | GC52: 0 | GD52: 0.006 | GE52: 13.006 | GF52: 13 | GG52: 0 | GH52: 0.004 | GI52: 13.004 | GJ52: 13 | GN52: 0 | GO52: NO | GP52: 2000 | GQ52: YES | GS52: 0 | GT52: 0.009 | GU52: 13.009 | GV52: 13 | GW52: 0 | GX52: 0.009 | GY52: 13.009 | GZ52: 13 | HA52: 0 | HB52: 0.011 | HC52: 13.011 | HD52: 13 | HE52: 0 | HF52: 0.003 | HG52: 13.003 | HH52: 13 | HI52: 0 | HJ52: 0.004 | HK52: 13.004 | HL52: 13 | HM52: 0 | HN52: 0.006 | HO52: 13.006 | HP52: 13 | HQ52: 0 | HR52: 0.002 | HS52: 13.002 | HT52: 13 | HW52: 0 | HX52: 0.009 | HY52: 13.009 | HZ52: 13 | IA52: 0 | IB52: 0.007 | IC52: 13.007 | ID52: 13 | IE52: 0 | IF52: 0.011 | IG52: 13.011 | IH52: 13 | II52: 0 | IJ52: 0.001 | IK52: 13.001 | IL52: 13 | IM52: 0 | IN52: 0.002 | IO52: 13.002 | IP52: 13 | IQ52: 0 | IR52: 0.005 | IS52: 13.005 | IT52: 13 | IU52: 0 | IV52: 0.001 | IW52: 13.001 | IX52: 13
A53: 13 | B53: 49 | AA53: 2000 | AL53: 0 | AM53: 2000 | AX53: 0 | AY53: 2000 | BJ53: 0 | BK53: 2000 | BV53: 0 | BW53: 2000 | BX53: 13 | BY53: 13 | BZ53: 13 | CA53: 13 | CB53: 13 | CC53: 13 | CD53: 13 | CE53: 13 | CF53: 13 | CG53: 13 | CH53: =IF($P53=Constants!$B$2,RANK($CB53,$CB$6:$CB$64,1),"-") -> - | CJ53: =IF($P53=Constants!$B$3,RANK($CB53,$CB$6:$CB$64,1),"-") -> - | CL53: =IF($P53=Constants!$B$4,RANK($CB53,$CB$6:$CB$64,1),"-") -> - | CN53: =IF($O53=Constants!$C$2,RANK($CB53,$CB$6:$CB$64,1),"-") -> - | CP53: =IF($O53=Constants!$C$3,RANK($CB53,$CB$6:$CB$64,1),"-") -> - | CR53: =IF($O53=Constants!$C$4,RANK($CB53,$CB$6:$CB$64,1),"-") -> - | CT53: =IF($G53=Constants!$D$4,RANK($CB53,$CB$6:$CB$64,1),"-") -> - | CV53: =IF($G53=Constants!$D$2,RANK($CB53,$CB$6:$CB$64,1),"-") -> - | CY53: 0 | CZ53: 0 | DB53: 0 | DC53: 0.009 | DD53: 13.009 | DE53: 13 | DF53: 0 | DG53: 0.01 | DH53: 13.01 | DI53: 13 | DJ53: 0 | DK53: 0.011 | DL53: 13.011 | DM53: 13 | DN53: 0 | DO53: 0.005 | DP53: 13.005 | DQ53: 13 | DR53: 0 | DS53: 0.004 | DT53: 13.004 | DU53: 13 | DV53: 0 | DW53: 0.006 | DX53: 13.006 | DY53: 13 | DZ53: 0 | EA53: 0.004 | EB53: 13.004 | EC53: 13 | EF53: 0 | EG53: 0.009 | EH53: 13.009 | EI53: 13 | EJ53: 0 | EK53: 0.01 | EL53: 13.01 | EM53: 13 | EN53: 0 | EO53: 0.011 | EP53: 13.011 | EQ53: 13 | ER53: 0 | ES53: 0.005 | ET53: 13.005 | EU53: 13 | EV53: 0 | EW53: 0.004 | EX53: 13.004 | EY53: 13 | EZ53: 0 | FA53: 0.006 | FB53: 13.006 | FC53: 13 | FD53: 0 | FE53: 0.004 | FF53: 13.004 | FG53: 13 | FI53: 0 | FJ53: 0.009 | FK53: 13.009 | FL53: 13 | FM53: 0 | FN53: 0.009 | FO53: 13.009 | FP53: 13 | FQ53: 0 | FR53: 0.011 | FS53: 13.011 | FT53: 13 | FU53: 0 | FV53: 0.005 | FW53: 13.005 | FX53: 13 | FY53: 0 | FZ53: 0.004 | GA53: 13.004 | GB53: 13 | GC53: 0 | GD53: 0.006 | GE53: 13.006 | GF53: 13 | GG53: 0 | GH53: 0.004 | GI53: 13.004 | GJ53: 13 | GN53: 0 | GO53: NO | GP53: 2000 | GQ53: YES | GS53: 0 | GT53: 0.009 | GU53: 13.009 | GV53: 13 | GW53: 0 | GX53: 0.009 | GY53: 13.009 | GZ53: 13 | HA53: 0 | HB53: 0.011 | HC53: 13.011 | HD53: 13 | HE53: 0 | HF53: 0.003 | HG53: 13.003 | HH53: 13 | HI53: 0 | HJ53: 0.004 | HK53: 13.004 | HL53: 13 | HM53: 0 | HN53: 0.006 | HO53: 13.006 | HP53: 13 | HQ53: 0 | HR53: 0.002 | HS53: 13.002 | HT53: 13 | HW53: 0 | HX53: 0.009 | HY53: 13.009 | HZ53: 13 | IA53: 0 | IB53: 0.007 | IC53: 13.007 | ID53: 13 | IE53: 0 | IF53: 0.011 | IG53: 13.011 | IH53: 13 | II53: 0 | IJ53: 0.001 | IK53: 13.001 | IL53: 13 | IM53: 0 | IN53: 0.002 | IO53: 13.002 | IP53: 13 | IQ53: 0 | IR53: 0.005 | IS53: 13.005 | IT53: 13 | IU53: 0 | IV53: 0.001 | IW53: 13.001 | IX53: 13
A54: 13 | B54: 50 | AA54: 2000 | AL54: 0 | AM54: 2000 | AX54: 0 | AY54: 2000 | BJ54: 0 | BK54: 2000 | BV54: 0 | BW54: 2000 | BX54: 13 | BY54: 13 | BZ54: 13 | CA54: 13 | CB54: 13 | CC54: 13 | CD54: 13 | CE54: 13 | CF54: 13 | CG54: 13 | CH54: =IF($P54=Constants!$B$2,RANK($CB54,$CB$6:$CB$64,1),"-") -> - | CJ54: =IF($P54=Constants!$B$3,RANK($CB54,$CB$6:$CB$64,1),"-") -> - | CL54: =IF($P54=Constants!$B$4,RANK($CB54,$CB$6:$CB$64,1),"-") -> - | CN54: =IF($O54=Constants!$C$2,RANK($CB54,$CB$6:$CB$64,1),"-") -> - | CP54: =IF($O54=Constants!$C$3,RANK($CB54,$CB$6:$CB$64,1),"-") -> - | CR54: =IF($O54=Constants!$C$4,RANK($CB54,$CB$6:$CB$64,1),"-") -> - | CT54: =IF($G54=Constants!$D$4,RANK($CB54,$CB$6:$CB$64,1),"-") -> - | CV54: =IF($G54=Constants!$D$2,RANK($CB54,$CB$6:$CB$64,1),"-") -> - | CY54: 0 | CZ54: 0 | DB54: 0 | DC54: 0.009 | DD54: 13.009 | DE54: 13 | DF54: 0 | DG54: 0.01 | DH54: 13.01 | DI54: 13 | DJ54: 0 | DK54: 0.011 | DL54: 13.011 | DM54: 13 | DN54: 0 | DO54: 0.005 | DP54: 13.005 | DQ54: 13 | DR54: 0 | DS54: 0.004 | DT54: 13.004 | DU54: 13 | DV54: 0 | DW54: 0.006 | DX54: 13.006 | DY54: 13 | DZ54: 0 | EA54: 0.004 | EB54: 13.004 | EC54: 13 | EF54: 0 | EG54: 0.009 | EH54: 13.009 | EI54: 13 | EJ54: 0 | EK54: 0.01 | EL54: 13.01 | EM54: 13 | EN54: 0 | EO54: 0.011 | EP54: 13.011 | EQ54: 13 | ER54: 0 | ES54: 0.005 | ET54: 13.005 | EU54: 13 | EV54: 0 | EW54: 0.004 | EX54: 13.004 | EY54: 13 | EZ54: 0 | FA54: 0.006 | FB54: 13.006 | FC54: 13 | FD54: 0 | FE54: 0.004 | FF54: 13.004 | FG54: 13 | FI54: 0 | FJ54: 0.009 | FK54: 13.009 | FL54: 13 | FM54: 0 | FN54: 0.009 | FO54: 13.009 | FP54: 13 | FQ54: 0 | FR54: 0.011 | FS54: 13.011 | FT54: 13 | FU54: 0 | FV54: 0.005 | FW54: 13.005 | FX54: 13 | FY54: 0 | FZ54: 0.004 | GA54: 13.004 | GB54: 13 | GC54: 0 | GD54: 0.006 | GE54: 13.006 | GF54: 13 | GG54: 0 | GH54: 0.004 | GI54: 13.004 | GJ54: 13 | GN54: 0 | GO54: NO | GP54: 2000 | GQ54: YES | GS54: 0 | GT54: 0.009 | GU54: 13.009 | GV54: 13 | GW54: 0 | GX54: 0.009 | GY54: 13.009 | GZ54: 13 | HA54: 0 | HB54: 0.011 | HC54: 13.011 | HD54: 13 | HE54: 0 | HF54: 0.003 | HG54: 13.003 | HH54: 13 | HI54: 0 | HJ54: 0.004 | HK54: 13.004 | HL54: 13 | HM54: 0 | HN54: 0.006 | HO54: 13.006 | HP54: 13 | HQ54: 0 | HR54: 0.002 | HS54: 13.002 | HT54: 13 | HW54: 0 | HX54: 0.009 | HY54: 13.009 | HZ54: 13 | IA54: 0 | IB54: 0.007 | IC54: 13.007 | ID54: 13 | IE54: 0 | IF54: 0.011 | IG54: 13.011 | IH54: 13 | II54: 0 | IJ54: 0.001 | IK54: 13.001 | IL54: 13 | IM54: 0 | IN54: 0.002 | IO54: 13.002 | IP54: 13 | IQ54: 0 | IR54: 0.005 | IS54: 13.005 | IT54: 13 | IU54: 0 | IV54: 0.001 | IW54: 13.001 | IX54: 13
A55: 13 | B55: 51 | AA55: 2000 | AL55: 0 | AM55: 2000 | AX55: 0 | AY55: 2000 | BJ55: 0 | BK55: 2000 | BV55: 0 | BW55: 2000 | BX55: 13 | BY55: 13 | BZ55: 13 | CA55: 13 | CB55: 13 | CC55: 13 | CD55: 13 | CE55: 13 | CF55: 13 | CG55: 13 | CH55: =IF($P55=Constants!$B$2,RANK($CB55,$CB$6:$CB$64,1),"-") -> - | CJ55: =IF($P55=Constants!$B$3,RANK($CB55,$CB$6:$CB$64,1),"-") -> - | CL55: =IF($P55=Constants!$B$4,RANK($CB55,$CB$6:$CB$64,1),"-") -> - | CN55: =IF($O55=Constants!$C$2,RANK($CB55,$CB$6:$CB$64,1),"-") -> - | CP55: =IF($O55=Constants!$C$3,RANK($CB55,$CB$6:$CB$64,1),"-") -> - | CR55: =IF($O55=Constants!$C$4,RANK($CB55,$CB$6:$CB$64,1),"-") -> - | CT55: =IF($G55=Constants!$D$4,RANK($CB55,$CB$6:$CB$64,1),"-") -> - | CV55: =IF($G55=Constants!$D$2,RANK($CB55,$CB$6:$CB$64,1),"-") -> - | CY55: 0 | CZ55: 0 | DB55: 0 | DC55: 0.009 | DD55: 13.009 | DE55: 13 | DF55: 0 | DG55: 0.01 | DH55: 13.01 | DI55: 13 | DJ55: 0 | DK55: 0.011 | DL55: 13.011 | DM55: 13 | DN55: 0 | DO55: 0.005 | DP55: 13.005 | DQ55: 13 | DR55: 0 | DS55: 0.004 | DT55: 13.004 | DU55: 13 | DV55: 0 | DW55: 0.006 | DX55: 13.006 | DY55: 13 | DZ55: 0 | EA55: 0.004 | EB55: 13.004 | EC55: 13 | EF55: 0 | EG55: 0.009 | EH55: 13.009 | EI55: 13 | EJ55: 0 | EK55: 0.01 | EL55: 13.01 | EM55: 13 | EN55: 0 | EO55: 0.011 | EP55: 13.011 | EQ55: 13 | ER55: 0 | ES55: 0.005 | ET55: 13.005 | EU55: 13 | EV55: 0 | EW55: 0.004 | EX55: 13.004 | EY55: 13 | EZ55: 0 | FA55: 0.006 | FB55: 13.006 | FC55: 13 | FD55: 0 | FE55: 0.004 | FF55: 13.004 | FG55: 13 | FI55: 0 | FJ55: 0.009 | FK55: 13.009 | FL55: 13 | FM55: 0 | FN55: 0.009 | FO55: 13.009 | FP55: 13 | FQ55: 0 | FR55: 0.011 | FS55: 13.011 | FT55: 13 | FU55: 0 | FV55: 0.005 | FW55: 13.005 | FX55: 13 | FY55: 0 | FZ55: 0.004 | GA55: 13.004 | GB55: 13 | GC55: 0 | GD55: 0.006 | GE55: 13.006 | GF55: 13 | GG55: 0 | GH55: 0.004 | GI55: 13.004 | GJ55: 13 | GN55: 0 | GO55: NO | GP55: 2000 | GQ55: YES | GS55: 0 | GT55: 0.009 | GU55: 13.009 | GV55: 13 | GW55: 0 | GX55: 0.009 | GY55: 13.009 | GZ55: 13 | HA55: 0 | HB55: 0.011 | HC55: 13.011 | HD55: 13 | HE55: 0 | HF55: 0.003 | HG55: 13.003 | HH55: 13 | HI55: 0 | HJ55: 0.004 | HK55: 13.004 | HL55: 13 | HM55: 0 | HN55: 0.006 | HO55: 13.006 | HP55: 13 | HQ55: 0 | HR55: 0.002 | HS55: 13.002 | HT55: 13 | HW55: 0 | HX55: 0.009 | HY55: 13.009 | HZ55: 13 | IA55: 0 | IB55: 0.007 | IC55: 13.007 | ID55: 13 | IE55: 0 | IF55: 0.011 | IG55: 13.011 | IH55: 13 | II55: 0 | IJ55: 0.001 | IK55: 13.001 | IL55: 13 | IM55: 0 | IN55: 0.002 | IO55: 13.002 | IP55: 13 | IQ55: 0 | IR55: 0.005 | IS55: 13.005 | IT55: 13 | IU55: 0 | IV55: 0.001 | IW55: 13.001 | IX55: 13
A56: 13 | B56: 52 | AA56: 2000 | AL56: 0 | AM56: 2000 | AX56: 0 | AY56: 2000 | BJ56: 0 | BK56: 2000 | BV56: 0 | BW56: 2000 | BX56: 13 | BY56: 13 | BZ56: 13 | CA56: 13 | CB56: 13 | CC56: 13 | CD56: 13 | CE56: 13 | CF56: 13 | CG56: 13 | CH56: =IF($P56=Constants!$B$2,RANK($CB56,$CB$6:$CB$64,1),"-") -> - | CJ56: =IF($P56=Constants!$B$3,RANK($CB56,$CB$6:$CB$64,1),"-") -> - | CL56: =IF($P56=Constants!$B$4,RANK($CB56,$CB$6:$CB$64,1),"-") -> - | CN56: =IF($O56=Constants!$C$2,RANK($CB56,$CB$6:$CB$64,1),"-") -> - | CP56: =IF($O56=Constants!$C$3,RANK($CB56,$CB$6:$CB$64,1),"-") -> - | CR56: =IF($O56=Constants!$C$4,RANK($CB56,$CB$6:$CB$64,1),"-") -> - | CT56: =IF($G56=Constants!$D$4,RANK($CB56,$CB$6:$CB$64,1),"-") -> - | CV56: =IF($G56=Constants!$D$2,RANK($CB56,$CB$6:$CB$64,1),"-") -> - | CY56: 0 | CZ56: 0 | DB56: 0 | DC56: 0.009 | DD56: 13.009 | DE56: 13 | DF56: 0 | DG56: 0.01 | DH56: 13.01 | DI56: 13 | DJ56: 0 | DK56: 0.011 | DL56: 13.011 | DM56: 13 | DN56: 0 | DO56: 0.005 | DP56: 13.005 | DQ56: 13 | DR56: 0 | DS56: 0.004 | DT56: 13.004 | DU56: 13 | DV56: 0 | DW56: 0.006 | DX56: 13.006 | DY56: 13 | DZ56: 0 | EA56: 0.004 | EB56: 13.004 | EC56: 13 | EF56: 0 | EG56: 0.009 | EH56: 13.009 | EI56: 13 | EJ56: 0 | EK56: 0.01 | EL56: 13.01 | EM56: 13 | EN56: 0 | EO56: 0.011 | EP56: 13.011 | EQ56: 13 | ER56: 0 | ES56: 0.005 | ET56: 13.005 | EU56: 13 | EV56: 0 | EW56: 0.004 | EX56: 13.004 | EY56: 13 | EZ56: 0 | FA56: 0.006 | FB56: 13.006 | FC56: 13 | FD56: 0 | FE56: 0.004 | FF56: 13.004 | FG56: 13 | FI56: 0 | FJ56: 0.009 | FK56: 13.009 | FL56: 13 | FM56: 0 | FN56: 0.009 | FO56: 13.009 | FP56: 13 | FQ56: 0 | FR56: 0.011 | FS56: 13.011 | FT56: 13 | FU56: 0 | FV56: 0.005 | FW56: 13.005 | FX56: 13 | FY56: 0 | FZ56: 0.004 | GA56: 13.004 | GB56: 13 | GC56: 0 | GD56: 0.006 | GE56: 13.006 | GF56: 13 | GG56: 0 | GH56: 0.004 | GI56: 13.004 | GJ56: 13 | GN56: 0 | GO56: NO | GP56: 2000 | GQ56: YES | GS56: 0 | GT56: 0.009 | GU56: 13.009 | GV56: 13 | GW56: 0 | GX56: 0.009 | GY56: 13.009 | GZ56: 13 | HA56: 0 | HB56: 0.011 | HC56: 13.011 | HD56: 13 | HE56: 0 | HF56: 0.003 | HG56: 13.003 | HH56: 13 | HI56: 0 | HJ56: 0.004 | HK56: 13.004 | HL56: 13 | HM56: 0 | HN56: 0.006 | HO56: 13.006 | HP56: 13 | HQ56: 0 | HR56: 0.002 | HS56: 13.002 | HT56: 13 | HW56: 0 | HX56: 0.009 | HY56: 13.009 | HZ56: 13 | IA56: 0 | IB56: 0.007 | IC56: 13.007 | ID56: 13 | IE56: 0 | IF56: 0.011 | IG56: 13.011 | IH56: 13 | II56: 0 | IJ56: 0.001 | IK56: 13.001 | IL56: 13 | IM56: 0 | IN56: 0.002 | IO56: 13.002 | IP56: 13 | IQ56: 0 | IR56: 0.005 | IS56: 13.005 | IT56: 13 | IU56: 0 | IV56: 0.001 | IW56: 13.001 | IX56: 13
A57: 13 | B57: 53 | AA57: 2000 | AL57: 0 | AM57: 2000 | AX57: 0 | AY57: 2000 | BJ57: 0 | BK57: 2000 | BV57: 0 | BW57: 2000 | BX57: 13 | BY57: 13 | BZ57: 13 | CA57: 13 | CB57: 13 | CC57: 13 | CD57: 13 | CE57: 13 | CF57: 13 | CG57: 13 | CH57: =IF($P57=Constants!$B$2,RANK($CB57,$CB$6:$CB$64,1),"-") -> - | CJ57: =IF($P57=Constants!$B$3,RANK($CB57,$CB$6:$CB$64,1),"-") -> - | CL57: =IF($P57=Constants!$B$4,RANK($CB57,$CB$6:$CB$64,1),"-") -> - | CN57: =IF($O57=Constants!$C$2,RANK($CB57,$CB$6:$CB$64,1),"-") -> - | CP57: =IF($O57=Constants!$C$3,RANK($CB57,$CB$6:$CB$64,1),"-") -> - | CR57: =IF($O57=Constants!$C$4,RANK($CB57,$CB$6:$CB$64,1),"-") -> - | CT57: =IF($G57=Constants!$D$4,RANK($CB57,$CB$6:$CB$64,1),"-") -> - | CV57: =IF($G57=Constants!$D$2,RANK($CB57,$CB$6:$CB$64,1),"-") -> - | CY57: 0 | CZ57: 0 | DB57: 0 | DC57: 0.009 | DD57: 13.009 | DE57: 13 | DF57: 0 | DG57: 0.01 | DH57: 13.01 | DI57: 13 | DJ57: 0 | DK57: 0.011 | DL57: 13.011 | DM57: 13 | DN57: 0 | DO57: 0.005 | DP57: 13.005 | DQ57: 13 | DR57: 0 | DS57: 0.004 | DT57: 13.004 | DU57: 13 | DV57: 0 | DW57: 0.006 | DX57: 13.006 | DY57: 13 | DZ57: 0 | EA57: 0.004 | EB57: 13.004 | EC57: 13 | EF57: 0 | EG57: 0.009 | EH57: 13.009 | EI57: 13 | EJ57: 0 | EK57: 0.01 | EL57: 13.01 | EM57: 13 | EN57: 0 | EO57: 0.011 | EP57: 13.011 | EQ57: 13 | ER57: 0 | ES57: 0.005 | ET57: 13.005 | EU57: 13 | EV57: 0 | EW57: 0.004 | EX57: 13.004 | EY57: 13 | EZ57: 0 | FA57: 0.006 | FB57: 13.006 | FC57: 13 | FD57: 0 | FE57: 0.004 | FF57: 13.004 | FG57: 13 | FI57: 0 | FJ57: 0.009 | FK57: 13.009 | FL57: 13 | FM57: 0 | FN57: 0.009 | FO57: 13.009 | FP57: 13 | FQ57: 0 | FR57: 0.011 | FS57: 13.011 | FT57: 13 | FU57: 0 | FV57: 0.005 | FW57: 13.005 | FX57: 13 | FY57: 0 | FZ57: 0.004 | GA57: 13.004 | GB57: 13 | GC57: 0 | GD57: 0.006 | GE57: 13.006 | GF57: 13 | GG57: 0 | GH57: 0.004 | GI57: 13.004 | GJ57: 13 | GN57: 0 | GO57: NO | GP57: 2000 | GQ57: YES | GS57: 0 | GT57: 0.009 | GU57: 13.009 | GV57: 13 | GW57: 0 | GX57: 0.009 | GY57: 13.009 | GZ57: 13 | HA57: 0 | HB57: 0.011 | HC57: 13.011 | HD57: 13 | HE57: 0 | HF57: 0.003 | HG57: 13.003 | HH57: 13 | HI57: 0 | HJ57: 0.004 | HK57: 13.004 | HL57: 13 | HM57: 0 | HN57: 0.006 | HO57: 13.006 | HP57: 13 | HQ57: 0 | HR57: 0.002 | HS57: 13.002 | HT57: 13 | HW57: 0 | HX57: 0.009 | HY57: 13.009 | HZ57: 13 | IA57: 0 | IB57: 0.007 | IC57: 13.007 | ID57: 13 | IE57: 0 | IF57: 0.011 | IG57: 13.011 | IH57: 13 | II57: 0 | IJ57: 0.001 | IK57: 13.001 | IL57: 13 | IM57: 0 | IN57: 0.002 | IO57: 13.002 | IP57: 13 | IQ57: 0 | IR57: 0.005 | IS57: 13.005 | IT57: 13 | IU57: 0 | IV57: 0.001 | IW57: 13.001 | IX57: 13
A58: 13 | B58: 54 | AA58: 2000 | AL58: 0 | AM58: 2000 | AX58: 0 | AY58: 2000 | BJ58: 0 | BK58: 2000 | BV58: 0 | BW58: 2000 | BX58: 13 | BY58: 13 | BZ58: 13 | CA58: 13 | CB58: 13 | CC58: 13 | CD58: 13 | CE58: 13 | CF58: 13 | CG58: 13 | CH58: =IF($P58=Constants!$B$2,RANK($CB58,$CB$6:$CB$64,1),"-") -> - | CJ58: =IF($P58=Constants!$B$3,RANK($CB58,$CB$6:$CB$64,1),"-") -> - | CL58: =IF($P58=Constants!$B$4,RANK($CB58,$CB$6:$CB$64,1),"-") -> - | CN58: =IF($O58=Constants!$C$2,RANK($CB58,$CB$6:$CB$64,1),"-") -> - | CP58: =IF($O58=Constants!$C$3,RANK($CB58,$CB$6:$CB$64,1),"-") -> - | CR58: =IF($O58=Constants!$C$4,RANK($CB58,$CB$6:$CB$64,1),"-") -> - | CT58: =IF($G58=Constants!$D$4,RANK($CB58,$CB$6:$CB$64,1),"-") -> - | CV58: =IF($G58=Constants!$D$2,RANK($CB58,$CB$6:$CB$64,1),"-") -> - | CY58: 0 | CZ58: 0 | DB58: 0 | DC58: 0.009 | DD58: 13.009 | DE58: 13 | DF58: 0 | DG58: 0.01 | DH58: 13.01 | DI58: 13 | DJ58: 0 | DK58: 0.011 | DL58: 13.011 | DM58: 13 | DN58: 0 | DO58: 0.005 | DP58: 13.005 | DQ58: 13 | DR58: 0 | DS58: 0.004 | DT58: 13.004 | DU58: 13 | DV58: 0 | DW58: 0.006 | DX58: 13.006 | DY58: 13 | DZ58: 0 | EA58: 0.004 | EB58: 13.004 | EC58: 13 | EF58: 0 | EG58: 0.009 | EH58: 13.009 | EI58: 13 | EJ58: 0 | EK58: 0.01 | EL58: 13.01 | EM58: 13 | EN58: 0 | EO58: 0.011 | EP58: 13.011 | EQ58: 13 | ER58: 0 | ES58: 0.005 | ET58: 13.005 | EU58: 13 | EV58: 0 | EW58: 0.004 | EX58: 13.004 | EY58: 13 | EZ58: 0 | FA58: 0.006 | FB58: 13.006 | FC58: 13 | FD58: 0 | FE58: 0.004 | FF58: 13.004 | FG58: 13 | FI58: 0 | FJ58: 0.009 | FK58: 13.009 | FL58: 13 | FM58: 0 | FN58: 0.009 | FO58: 13.009 | FP58: 13 | FQ58: 0 | FR58: 0.011 | FS58: 13.011 | FT58: 13 | FU58: 0 | FV58: 0.005 | FW58: 13.005 | FX58: 13 | FY58: 0 | FZ58: 0.004 | GA58: 13.004 | GB58: 13 | GC58: 0 | GD58: 0.006 | GE58: 13.006 | GF58: 13 | GG58: 0 | GH58: 0.004 | GI58: 13.004 | GJ58: 13 | GN58: 0 | GO58: NO | GP58: 2000 | GQ58: YES | GS58: 0 | GT58: 0.009 | GU58: 13.009 | GV58: 13 | GW58: 0 | GX58: 0.009 | GY58: 13.009 | GZ58: 13 | HA58: 0 | HB58: 0.011 | HC58: 13.011 | HD58: 13 | HE58: 0 | HF58: 0.003 | HG58: 13.003 | HH58: 13 | HI58: 0 | HJ58: 0.004 | HK58: 13.004 | HL58: 13 | HM58: 0 | HN58: 0.006 | HO58: 13.006 | HP58: 13 | HQ58: 0 | HR58: 0.002 | HS58: 13.002 | HT58: 13 | HW58: 0 | HX58: 0.009 | HY58: 13.009 | HZ58: 13 | IA58: 0 | IB58: 0.007 | IC58: 13.007 | ID58: 13 | IE58: 0 | IF58: 0.011 | IG58: 13.011 | IH58: 13 | II58: 0 | IJ58: 0.001 | IK58: 13.001 | IL58: 13 | IM58: 0 | IN58: 0.002 | IO58: 13.002 | IP58: 13 | IQ58: 0 | IR58: 0.005 | IS58: 13.005 | IT58: 13 | IU58: 0 | IV58: 0.001 | IW58: 13.001 | IX58: 13
A59: 13 | B59: 55 | AA59: 2000 | AL59: 0 | AM59: 2000 | AX59: 0 | AY59: 2000 | BJ59: 0 | BK59: 2000 | BV59: 0 | BW59: 2000 | BX59: 13 | BY59: 13 | BZ59: 13 | CA59: 13 | CB59: 13 | CC59: 13 | CD59: 13 | CE59: 13 | CF59: 13 | CG59: 13 | CH59: =IF($P59=Constants!$B$2,RANK($CB59,$CB$6:$CB$64,1),"-") -> - | CJ59: =IF($P59=Constants!$B$3,RANK($CB59,$CB$6:$CB$64,1),"-") -> - | CL59: =IF($P59=Constants!$B$4,RANK($CB59,$CB$6:$CB$64,1),"-") -> - | CN59: =IF($O59=Constants!$C$2,RANK($CB59,$CB$6:$CB$64,1),"-") -> - | CP59: =IF($O59=Constants!$C$3,RANK($CB59,$CB$6:$CB$64,1),"-") -> - | CR59: =IF($O59=Constants!$C$4,RANK($CB59,$CB$6:$CB$64,1),"-") -> - | CT59: =IF($G59=Constants!$D$4,RANK($CB59,$CB$6:$CB$64,1),"-") -> - | CV59: =IF($G59=Constants!$D$2,RANK($CB59,$CB$6:$CB$64,1),"-") -> - | CY59: 0 | CZ59: 0 | DB59: 0 | DC59: 0.009 | DD59: 13.009 | DE59: 13 | DF59: 0 | DG59: 0.01 | DH59: 13.01 | DI59: 13 | DJ59: 0 | DK59: 0.011 | DL59: 13.011 | DM59: 13 | DN59: 0 | DO59: 0.005 | DP59: 13.005 | DQ59: 13 | DR59: 0 | DS59: 0.004 | DT59: 13.004 | DU59: 13 | DV59: 0 | DW59: 0.006 | DX59: 13.006 | DY59: 13 | DZ59: 0 | EA59: 0.004 | EB59: 13.004 | EC59: 13 | EF59: 0 | EG59: 0.009 | EH59: 13.009 | EI59: 13 | EJ59: 0 | EK59: 0.01 | EL59: 13.01 | EM59: 13 | EN59: 0 | EO59: 0.011 | EP59: 13.011 | EQ59: 13 | ER59: 0 | ES59: 0.005 | ET59: 13.005 | EU59: 13 | EV59: 0 | EW59: 0.004 | EX59: 13.004 | EY59: 13 | EZ59: 0 | FA59: 0.006 | FB59: 13.006 | FC59: 13 | FD59: 0 | FE59: 0.004 | FF59: 13.004 | FG59: 13 | FI59: 0 | FJ59: 0.009 | FK59: 13.009 | FL59: 13 | FM59: 0 | FN59: 0.009 | FO59: 13.009 | FP59: 13 | FQ59: 0 | FR59: 0.011 | FS59: 13.011 | FT59: 13 | FU59: 0 | FV59: 0.005 | FW59: 13.005 | FX59: 13 | FY59: 0 | FZ59: 0.004 | GA59: 13.004 | GB59: 13 | GC59: 0 | GD59: 0.006 | GE59: 13.006 | GF59: 13 | GG59: 0 | GH59: 0.004 | GI59: 13.004 | GJ59: 13 | GN59: 0 | GO59: NO | GP59: 2000 | GQ59: YES | GS59: 0 | GT59: 0.009 | GU59: 13.009 | GV59: 13 | GW59: 0 | GX59: 0.009 | GY59: 13.009 | GZ59: 13 | HA59: 0 | HB59: 0.011 | HC59: 13.011 | HD59: 13 | HE59: 0 | HF59: 0.003 | HG59: 13.003 | HH59: 13 | HI59: 0 | HJ59: 0.004 | HK59: 13.004 | HL59: 13 | HM59: 0 | HN59: 0.006 | HO59: 13.006 | HP59: 13 | HQ59: 0 | HR59: 0.002 | HS59: 13.002 | HT59: 13 | HW59: 0 | HX59: 0.009 | HY59: 13.009 | HZ59: 13 | IA59: 0 | IB59: 0.007 | IC59: 13.007 | ID59: 13 | IE59: 0 | IF59: 0.011 | IG59: 13.011 | IH59: 13 | II59: 0 | IJ59: 0.001 | IK59: 13.001 | IL59: 13 | IM59: 0 | IN59: 0.002 | IO59: 13.002 | IP59: 13 | IQ59: 0 | IR59: 0.005 | IS59: 13.005 | IT59: 13 | IU59: 0 | IV59: 0.001 | IW59: 13.001 | IX59: 13
A60: 13 | B60: 56 | AA60: 2000 | AL60: 0 | AM60: 2000 | AX60: 0 | AY60: 2000 | BJ60: 0 | BK60: 2000 | BV60: 0 | BW60: 2000 | BX60: 13 | BY60: 13 | BZ60: 13 | CA60: 13 | CB60: 13 | CC60: 13 | CD60: 13 | CE60: 13 | CF60: 13 | CG60: 13 | CH60: =IF($P60=Constants!$B$2,RANK($CB60,$CB$6:$CB$64,1),"-") -> - | CJ60: =IF($P60=Constants!$B$3,RANK($CB60,$CB$6:$CB$64,1),"-") -> - | CL60: =IF($P60=Constants!$B$4,RANK($CB60,$CB$6:$CB$64,1),"-") -> - | CN60: =IF($O60=Constants!$C$2,RANK($CB60,$CB$6:$CB$64,1),"-") -> - | CP60: =IF($O60=Constants!$C$3,RANK($CB60,$CB$6:$CB$64,1),"-") -> - | CR60: =IF($O60=Constants!$C$4,RANK($CB60,$CB$6:$CB$64,1),"-") -> - | CT60: =IF($G60=Constants!$D$4,RANK($CB60,$CB$6:$CB$64,1),"-") -> - | CV60: =IF($G60=Constants!$D$2,RANK($CB60,$CB$6:$CB$64,1),"-") -> - | CY60: 0 | CZ60: 0 | DB60: 0 | DC60: 0.009 | DD60: 13.009 | DE60: 13 | DF60: 0 | DG60: 0.01 | DH60: 13.01 | DI60: 13 | DJ60: 0 | DK60: 0.011 | DL60: 13.011 | DM60: 13 | DN60: 0 | DO60: 0.005 | DP60: 13.005 | DQ60: 13 | DR60: 0 | DS60: 0.004 | DT60: 13.004 | DU60: 13 | DV60: 0 | DW60: 0.006 | DX60: 13.006 | DY60: 13 | DZ60: 0 | EA60: 0.004 | EB60: 13.004 | EC60: 13 | EF60: 0 | EG60: 0.009 | EH60: 13.009 | EI60: 13 | EJ60: 0 | EK60: 0.01 | EL60: 13.01 | EM60: 13 | EN60: 0 | EO60: 0.011 | EP60: 13.011 | EQ60: 13 | ER60: 0 | ES60: 0.005 | ET60: 13.005 | EU60: 13 | EV60: 0 | EW60: 0.004 | EX60: 13.004 | EY60: 13 | EZ60: 0 | FA60: 0.006 | FB60: 13.006 | FC60: 13 | FD60: 0 | FE60: 0.004 | FF60: 13.004 | FG60: 13 | FI60: 0 | FJ60: 0.009 | FK60: 13.009 | FL60: 13 | FM60: 0 | FN60: 0.009 | FO60: 13.009 | FP60: 13 | FQ60: 0 | FR60: 0.011 | FS60: 13.011 | FT60: 13 | FU60: 0 | FV60: 0.005 | FW60: 13.005 | FX60: 13 | FY60: 0 | FZ60: 0.004 | GA60: 13.004 | GB60: 13 | GC60: 0 | GD60: 0.006 | GE60: 13.006 | GF60: 13 | GG60: 0 | GH60: 0.004 | GI60: 13.004 | GJ60: 13 | GN60: 0 | GO60: NO | GP60: 2000 | GQ60: YES | GS60: 0 | GT60: 0.009 | GU60: 13.009 | GV60: 13 | GW60: 0 | GX60: 0.009 | GY60: 13.009 | GZ60: 13 | HA60: 0 | HB60: 0.011 | HC60: 13.011 | HD60: 13 | HE60: 0 | HF60: 0.003 | HG60: 13.003 | HH60: 13 | HI60: 0 | HJ60: 0.004 | HK60: 13.004 | HL60: 13 | HM60: 0 | HN60: 0.006 | HO60: 13.006 | HP60: 13 | HQ60: 0 | HR60: 0.002 | HS60: 13.002 | HT60: 13 | HW60: 0 | HX60: 0.009 | HY60: 13.009 | HZ60: 13 | IA60: 0 | IB60: 0.007 | IC60: 13.007 | ID60: 13 | IE60: 0 | IF60: 0.011 | IG60: 13.011 | IH60: 13 | II60: 0 | IJ60: 0.001 | IK60: 13.001 | IL60: 13 | IM60: 0 | IN60: 0.002 | IO60: 13.002 | IP60: 13 | IQ60: 0 | IR60: 0.005 | IS60: 13.005 | IT60: 13 | IU60: 0 | IV60: 0.001 | IW60: 13.001 | IX60: 13
A61: 13 | B61: 57 | AA61: 2000 | AL61: 0 | AM61: 2000 | AX61: 0 | AY61: 2000 | BJ61: 0 | BK61: 2000 | BV61: 0 | BW61: 2000 | BX61: 13 | BY61: 13 | BZ61: 13 | CA61: 13 | CB61: 13 | CC61: 13 | CD61: 13 | CE61: 13 | CF61: 13 | CG61: 13 | CH61: =IF($P61=Constants!$B$2,RANK($CB61,$CB$6:$CB$64,1),"-") -> - | CJ61: =IF($P61=Constants!$B$3,RANK($CB61,$CB$6:$CB$64,1),"-") -> - | CL61: =IF($P61=Constants!$B$4,RANK($CB61,$CB$6:$CB$64,1),"-") -> - | CN61: =IF($O61=Constants!$C$2,RANK($CB61,$CB$6:$CB$64,1),"-") -> - | CP61: =IF($O61=Constants!$C$3,RANK($CB61,$CB$6:$CB$64,1),"-") -> - | CR61: =IF($O61=Constants!$C$4,RANK($CB61,$CB$6:$CB$64,1),"-") -> - | CT61: =IF($G61=Constants!$D$4,RANK($CB61,$CB$6:$CB$64,1),"-") -> - | CV61: =IF($G61=Constants!$D$2,RANK($CB61,$CB$6:$CB$64,1),"-") -> - | CY61: 0 | CZ61: 0 | DB61: 0 | DC61: 0.009 | DD61: 13.009 | DE61: 13 | DF61: 0 | DG61: 0.01 | DH61: 13.01 | DI61: 13 | DJ61: 0 | DK61: 0.011 | DL61: 13.011 | DM61: 13 | DN61: 0 | DO61: 0.005 | DP61: 13.005 | DQ61: 13 | DR61: 0 | DS61: 0.004 | DT61: 13.004 | DU61: 13 | DV61: 0 | DW61: 0.006 | DX61: 13.006 | DY61: 13 | DZ61: 0 | EA61: 0.004 | EB61: 13.004 | EC61: 13 | EF61: 0 | EG61: 0.009 | EH61: 13.009 | EI61: 13 | EJ61: 0 | EK61: 0.01 | EL61: 13.01 | EM61: 13 | EN61: 0 | EO61: 0.011 | EP61: 13.011 | EQ61: 13 | ER61: 0 | ES61: 0.005 | ET61: 13.005 | EU61: 13 | EV61: 0 | EW61: 0.004 | EX61: 13.004 | EY61: 13 | EZ61: 0 | FA61: 0.006 | FB61: 13.006 | FC61: 13 | FD61: 0 | FE61: 0.004 | FF61: 13.004 | FG61: 13 | FI61: 0 | FJ61: 0.009 | FK61: 13.009 | FL61: 13 | FM61: 0 | FN61: 0.009 | FO61: 13.009 | FP61: 13 | FQ61: 0 | FR61: 0.011 | FS61: 13.011 | FT61: 13 | FU61: 0 | FV61: 0.005 | FW61: 13.005 | FX61: 13 | FY61: 0 | FZ61: 0.004 | GA61: 13.004 | GB61: 13 | GC61: 0 | GD61: 0.006 | GE61: 13.006 | GF61: 13 | GG61: 0 | GH61: 0.004 | GI61: 13.004 | GJ61: 13 | GN61: 0 | GO61: NO | GP61: 2000 | GQ61: YES | GS61: 0 | GT61: 0.009 | GU61: 13.009 | GV61: 13 | GW61: 0 | GX61: 0.009 | GY61: 13.009 | GZ61: 13 | HA61: 0 | HB61: 0.011 | HC61: 13.011 | HD61: 13 | HE61: 0 | HF61: 0.003 | HG61: 13.003 | HH61: 13 | HI61: 0 | HJ61: 0.004 | HK61: 13.004 | HL61: 13 | HM61: 0 | HN61: 0.006 | HO61: 13.006 | HP61: 13 | HQ61: 0 | HR61: 0.002 | HS61: 13.002 | HT61: 13 | HW61: 0 | HX61: 0.009 | HY61: 13.009 | HZ61: 13 | IA61: 0 | IB61: 0.007 | IC61: 13.007 | ID61: 13 | IE61: 0 | IF61: 0.011 | IG61: 13.011 | IH61: 13 | II61: 0 | IJ61: 0.001 | IK61: 13.001 | IL61: 13 | IM61: 0 | IN61: 0.002 | IO61: 13.002 | IP61: 13 | IQ61: 0 | IR61: 0.005 | IS61: 13.005 | IT61: 13 | IU61: 0 | IV61: 0.001 | IW61: 13.001 | IX61: 13
A62: 13 | B62: 58 | AA62: 2000 | AL62: 0 | AM62: 2000 | AX62: 0 | AY62: 2000 | BJ62: 0 | BK62: 2000 | BV62: 0 | BW62: 2000 | BX62: 13 | BY62: 13 | BZ62: 13 | CA62: 13 | CB62: 13 | CC62: 13 | CD62: 13 | CE62: 13 | CF62: 13 | CG62: 13 | CH62: =IF($P62=Constants!$B$2,RANK($CB62,$CB$6:$CB$64,1),"-") -> - | CJ62: =IF($P62=Constants!$B$3,RANK($CB62,$CB$6:$CB$64,1),"-") -> - | CL62: =IF($P62=Constants!$B$4,RANK($CB62,$CB$6:$CB$64,1),"-") -> - | CN62: =IF($O62=Constants!$C$2,RANK($CB62,$CB$6:$CB$64,1),"-") -> - | CP62: =IF($O62=Constants!$C$3,RANK($CB62,$CB$6:$CB$64,1),"-") -> - | CR62: =IF($O62=Constants!$C$4,RANK($CB62,$CB$6:$CB$64,1),"-") -> - | CT62: =IF($G62=Constants!$D$4,RANK($CB62,$CB$6:$CB$64,1),"-") -> - | CV62: =IF($G62=Constants!$D$2,RANK($CB62,$CB$6:$CB$64,1),"-") -> - | CY62: 0 | CZ62: 0 | DB62: 0 | DC62: 0.009 | DD62: 13.009 | DE62: 13 | DF62: 0 | DG62: 0.01 | DH62: 13.01 | DI62: 13 | DJ62: 0 | DK62: 0.011 | DL62: 13.011 | DM62: 13 | DN62: 0 | DO62: 0.005 | DP62: 13.005 | DQ62: 13 | DR62: 0 | DS62: 0.004 | DT62: 13.004 | DU62: 13 | DV62: 0 | DW62: 0.006 | DX62: 13.006 | DY62: 13 | DZ62: 0 | EA62: 0.004 | EB62: 13.004 | EC62: 13 | EF62: 0 | EG62: 0.009 | EH62: 13.009 | EI62: 13 | EJ62: 0 | EK62: 0.01 | EL62: 13.01 | EM62: 13 | EN62: 0 | EO62: 0.011 | EP62: 13.011 | EQ62: 13 | ER62: 0 | ES62: 0.005 | ET62: 13.005 | EU62: 13 | EV62: 0 | EW62: 0.004 | EX62: 13.004 | EY62: 13 | EZ62: 0 | FA62: 0.006 | FB62: 13.006 | FC62: 13 | FD62: 0 | FE62: 0.004 | FF62: 13.004 | FG62: 13 | FI62: 0 | FJ62: 0.009 | FK62: 13.009 | FL62: 13 | FM62: 0 | FN62: 0.009 | FO62: 13.009 | FP62: 13 | FQ62: 0 | FR62: 0.011 | FS62: 13.011 | FT62: 13 | FU62: 0 | FV62: 0.005 | FW62: 13.005 | FX62: 13 | FY62: 0 | FZ62: 0.004 | GA62: 13.004 | GB62: 13 | GC62: 0 | GD62: 0.006 | GE62: 13.006 | GF62: 13 | GG62: 0 | GH62: 0.004 | GI62: 13.004 | GJ62: 13 | GN62: 0 | GO62: NO | GP62: 2000 | GQ62: YES | GS62: 0 | GT62: 0.009 | GU62: 13.009 | GV62: 13 | GW62: 0 | GX62: 0.009 | GY62: 13.009 | GZ62: 13 | HA62: 0 | HB62: 0.011 | HC62: 13.011 | HD62: 13 | HE62: 0 | HF62: 0.003 | HG62: 13.003 | HH62: 13 | HI62: 0 | HJ62: 0.004 | HK62: 13.004 | HL62: 13 | HM62: 0 | HN62: 0.006 | HO62: 13.006 | HP62: 13 | HQ62: 0 | HR62: 0.002 | HS62: 13.002 | HT62: 13 | HW62: 0 | HX62: 0.009 | HY62: 13.009 | HZ62: 13 | IA62: 0 | IB62: 0.007 | IC62: 13.007 | ID62: 13 | IE62: 0 | IF62: 0.011 | IG62: 13.011 | IH62: 13 | II62: 0 | IJ62: 0.001 | IK62: 13.001 | IL62: 13 | IM62: 0 | IN62: 0.002 | IO62: 13.002 | IP62: 13 | IQ62: 0 | IR62: 0.005 | IS62: 13.005 | IT62: 13 | IU62: 0 | IV62: 0.001 | IW62: 13.001 | IX62: 13
A63: 13 | B63: 59 | AA63: 2000 | AL63: 0 | AM63: 2000 | AX63: 0 | AY63: 2000 | BJ63: 0 | BK63: 2000 | BV63: 0 | BW63: 2000 | CA63: 13 | CB63: 13 | CC63: 13 | CD63: 13 | CE63: 13 | CF63: 13 | CG63: 13 | CH63: =IF($P63=Constants!$B$2,RANK($CB63,$CB$6:$CB$64,1),"-") -> - | CJ63: =IF($P63=Constants!$B$3,RANK($CB63,$CB$6:$CB$64,1),"-") -> - | CL63: =IF($P63=Constants!$B$4,RANK($CB63,$CB$6:$CB$64,1),"-") -> - | CN63: =IF($O63=Constants!$C$2,RANK($CB63,$CB$6:$CB$64,1),"-") -> - | CP63: =IF($O63=Constants!$C$3,RANK($CB63,$CB$6:$CB$64,1),"-") -> - | CR63: =IF($O63=Constants!$C$4,RANK($CB63,$CB$6:$CB$64,1),"-") -> - | CT63: =IF($G63=Constants!$D$4,RANK($CB63,$CB$6:$CB$64,1),"-") -> - | CV63: =IF($G63=Constants!$D$2,RANK($CB63,$CB$6:$CB$64,1),"-") -> - | CY63: 0 | CZ63: 0 | DB63: 0 | DC63: 0.009 | DD63: 13.009 | DE63: 13 | DF63: 0 | DG63: 0.01 | DH63: 13.01 | DI63: 13 | DJ63: 0 | DK63: 0.011 | DL63: 13.011 | DM63: 13 | DN63: 0 | DO63: 0.005 | DP63: 13.005 | DQ63: 13 | DR63: 0 | DS63: 0.004 | DT63: 13.004 | DU63: 13 | DV63: 0 | DW63: 0.006 | DX63: 13.006 | DY63: 13 | DZ63: 0 | EA63: 0.004 | EB63: 13.004 | EC63: 13 | EF63: 0 | EG63: 0.009 | EH63: 13.009 | EI63: 13 | EJ63: 0 | EK63: 0.01 | EL63: =EI63+EK63 -> 13.01 | EM63: 13 | EN63: 0 | EO63: 0.011 | EP63: =EM63+EO63 -> 13.011 | EQ63: 13 | ER63: 0 | ES63: 0.005 | ET63: =EQ63+ES63 -> 13.005 | EU63: 13 | EV63: 0 | EW63: 0.004 | EX63: =EU63+EW63 -> 13.004 | EY63: 13 | EZ63: 0 | FA63: 0.006 | FB63: =EY63+FA63 -> 13.006 | FC63: 13 | FD63: 0 | FE63: 0.004 | FF63: =FC63+FE63 -> 13.004 | FG63: 13 | FI63: 0 | FJ63: 0.009 | FK63: 13.009 | FL63: 13 | FM63: 0 | FN63: 0.009 | FO63: =FL63+FN63 -> 13.009 | FP63: 13 | FQ63: 0 | FR63: 0.011 | FS63: =FP63+FR63 -> 13.011 | FT63: 13 | FU63: 0 | FV63: 0.005 | FW63: =FT63+FV63 -> 13.005 | FX63: 13 | FY63: 0 | FZ63: 0.004 | GA63: =FX63+FZ63 -> 13.004 | GB63: 13 | GC63: 0 | GD63: 0.006 | GE63: =GB63+GD63 -> 13.006 | GF63: 13 | GG63: 0 | GH63: 0.004 | GI63: =GF63+GH63 -> 13.004 | GJ63: 13 | GN63: 0 | GO63: NO | GP63: 2000 | GQ63: YES | GS63: 0 | GT63: 0.009 | GU63: 13.009 | GV63: 13 | GW63: 0 | GX63: 0.009 | GY63: =GV63+GX63 -> 13.009 | GZ63: 13 | HA63: 0 | HB63: 0.011 | HC63: =GZ63+HB63 -> 13.011 | HD63: 13 | HE63: 0 | HF63: 0.003 | HG63: =HD63+HF63 -> 13.003 | HH63: 13 | HI63: 0 | HJ63: 0.004 | HK63: =HH63+HJ63 -> 13.004 | HL63: 13 | HM63: 0 | HN63: 0.006 | HO63: =HL63+HN63 -> 13.006 | HP63: 13 | HQ63: 0 | HR63: 0.002 | HS63: =HP63+HR63 -> 13.002 | HT63: 13 | HW63: 0 | HX63: 0.009 | HY63: 13.009 | HZ63: 13 | IA63: 0 | IB63: 0.007 | IC63: =HZ63+IB63 -> 13.007 | ID63: 13 | IE63: 0 | IF63: 0.011 | IG63: =ID63+IF63 -> 13.011 | IH63: 13 | II63: 0 | IJ63: 0.001 | IK63: =IH63+IJ63 -> 13.001 | IL63: 13 | IM63: 0 | IN63: 0.002 | IO63: =IL63+IN63 -> 13.002 | IP63: 13 | IQ63: 0 | IR63: 0.005 | IS63: =IP63+IR63 -> 13.005 | IT63: 13 | IU63: 0 | IV63: 0.001 | IW63: =IT63+IV63 -> 13.001 | IX63: 13
A64: 13 | B64: 60 | AA64: 2000 | AL64: 0 | AM64: 2000 | AX64: 0 | AY64: 2000 | BJ64: 0 | BK64: 2000 | BV64: 0 | BW64: 2000 | CA64: 13 | CB64: 13 | CC64: 13 | CD64: 13 | CE64: 13 | CF64: 13 | CG64: 13 | CH64: =IF($O64=Constants!$B$2,RANK($CB64,$CB$6:$CB$64,1),"-") -> - | CJ64: =IF($O64=Constants!$B$3,RANK($CB64,$CB$6:$CB$64,1),"-") -> - | CL64: =IF($O64=Constants!$B$4,RANK($CB64,$CB$6:$CB$64,1),"-") -> - | CN64: =IF($O64=Constants!$C$2,RANK($CB64,$CB$6:$CB$64,1),"-") -> - | CP64: =IF($O64=Constants!$C$3,RANK($CB64,$CB$6:$CB$64,1),"-") -> - | CR64: =IF($O64=Constants!$C$4,RANK($CB64,$CB$6:$CB$64,1),"-") -> - | CT64: =IF($G64=Constants!$D$4,RANK($CB64,$CB$6:$CB$64,1),"-") -> - | CV64: =IF($G64=Constants!$D$2,RANK($CB64,$CB$6:$CB$64,1),"-") -> - | CY64: 0 | CZ64: 0 | DB64: 0 | DC64: 0.009 | DD64: 13.009 | DE64: 13 | DF64: 0 | DG64: 0.01 | DH64: 13.01 | DI64: 13 | DJ64: 0 | DK64: 0.011 | DL64: 13.011 | DM64: 13 | DN64: 0 | DO64: 0.005 | DP64: 13.005 | DQ64: 13 | DR64: 0 | DS64: 0.004 | DT64: 13.004 | DU64: 13 | DV64: 0 | DW64: 0.006 | DX64: 13.006 | DY64: 13 | DZ64: 0 | EA64: 0.004 | EB64: 13.004 | EC64: 13 | EF64: 0 | EG64: 0.009 | EH64: 13.009 | EI64: 13 | EJ64: 0 | EK64: 0.01 | EL64: =EI64+EK64 -> 13.01 | EM64: 13 | EN64: 0 | EO64: 0.011 | EP64: =EM64+EO64 -> 13.011 | EQ64: 13 | ER64: 0 | ES64: 0.005 | ET64: =EQ64+ES64 -> 13.005 | EU64: 13 | EV64: 0 | EW64: 0.004 | EX64: =EU64+EW64 -> 13.004 | EY64: 13 | EZ64: 0 | FA64: 0.006 | FB64: =EY64+FA64 -> 13.006 | FC64: 13 | FD64: 0 | FE64: 0.004 | FF64: =FC64+FE64 -> 13.004 | FG64: 13 | FI64: 0 | FJ64: 0.009 | FK64: 13.009 | FL64: 13 | FM64: 0 | FN64: 0.009 | FO64: =FL64+FN64 -> 13.009 | FP64: 13 | FQ64: 0 | FR64: 0.011 | FS64: =FP64+FR64 -> 13.011 | FT64: 13 | FU64: 0 | FV64: 0.005 | FW64: =FT64+FV64 -> 13.005 | FX64: 13 | FY64: 0 | FZ64: 0.004 | GA64: =FX64+FZ64 -> 13.004 | GB64: 13 | GC64: 0 | GD64: 0.006 | GE64: =GB64+GD64 -> 13.006 | GF64: 13 | GG64: 0 | GH64: 0.004 | GI64: =GF64+GH64 -> 13.004 | GJ64: 13 | GN64: 0 | GO64: NO | GP64: 2000 | GQ64: YES | GS64: 0 | GT64: 0.009 | GU64: 13.009 | GV64: 13 | GW64: 0 | GX64: 0.009 | GY64: =GV64+GX64 -> 13.009 | GZ64: 13 | HA64: 0 | HB64: 0.011 | HC64: =GZ64+HB64 -> 13.011 | HD64: 13 | HE64: 0 | HF64: 0.003 | HG64: =HD64+HF64 -> 13.003 | HH64: 13 | HI64: 0 | HJ64: 0.004 | HK64: =HH64+HJ64 -> 13.004 | HL64: 13 | HM64: 0 | HN64: 0.006 | HO64: =HL64+HN64 -> 13.006 | HP64: 13 | HQ64: 0 | HR64: 0.002 | HS64: =HP64+HR64 -> 13.002 | HT64: 13 | HW64: 0 | HX64: 0.009 | HY64: 13.009 | HZ64: 13 | IA64: 0 | IB64: 0.007 | IC64: =HZ64+IB64 -> 13.007 | ID64: 13 | IE64: 0 | IF64: 0.011 | IG64: =ID64+IF64 -> 13.011 | IH64: 13 | II64: 0 | IJ64: 0.001 | IK64: =IH64+IJ64 -> 13.001 | IL64: 13 | IM64: 0 | IN64: 0.002 | IO64: =IL64+IN64 -> 13.002 | IP64: 13 | IQ64: 0 | IR64: 0.005 | IS64: =IP64+IR64 -> 13.005 | IT64: 13 | IU64: 0 | IV64: 0.001 | IW64: =IT64+IV64 -> 13.001 | IX64: 13

Sheet All Finishing Order
D1: ='All Running Order'!D1 -> J B Taylor
D2: ='All Running Order'!D2 -> 2026-03-15
I3: START HILL | N3: Ret/NS | P3: BTRDA CLASS | Q3: ROUND 1: HILL NO. | AA3: ROUND TOTAL | AB3: ROUND 2: HILL NO. | AL3: ROUND TOTAL | AM3: SUB TOTAL | AN3: ROUND 3: HILL NO. | AX3: ROUND TOTAL | AY3: SUB TOTAL | AZ3: ROUND 4: HILL NO. | BJ3: ROUND TOTAL | BK3: SUB TOTAL | BL3: ROUND 5: HILL NO. | BV3: ROUND TOTAL | BW3: GRAND TOTAL | BX3: POSITION AFTER ROUND | CC3: Round position pre-calculation | CH3: =CONCATENATE(,"CLASS"," ",Constants!$B$2) -> CLASS Red | CI3: ='All Running Order'!CI3:CI4 -> Position in Red CLASS | CJ3: ='All Running Order'!CJ3:CJ4 -> CLASS Blue | CK3: ='All Running Order'!CK3:CK4 -> Position in Blue CLASS | CL3: ='All Running Order'!CL3:CL4 -> Rookie CLASS | CM3: ='All Running Order'!CM3:CM4 -> Position in Rookie CLASS | CN3: ='All Running Order'!CN3:CN4 -> 750-A CLASS | CO3: ='All Running Order'!CO3:CO4 -> Position in 750-A CLASS | CP3: ='All Running Order'!CP3:CP4 -> 750-B CLASS | CQ3: ='All Running Order'!CQ3:CQ4 -> Position in 750-B CLASS | CR3: ='All Running Order'!CR3:CR4 -> 750-N CLASS | CS3: ='All Running Order'!CS3:CS4 -> Position in 750-N CLASS | CT3: ='All Running Order'!CT3:CT4 -> Post-Historic Class | CU3: ='All Running Order'!CU3:CU4 -> Position in Post Historic CLASS | CV3: ='All Running Order'!CV3:CV4 -> Live Class | CW3: ='All Running Order'!CW3:CW4 -> Position in Live CLASS | CX3: ='All Running Order'!CX3:CX4 -> POSITION IN CLASS
B4: NO. | C4: DRIVER | D4: PASSENGER | E4: CAR | F4: CC | G4: Live/IRS | H4: Tyres | I4: 1 | J4: 2 | K4: 3 | L4: 4 | M4: 5 | O4: Club CLASS | Q4: 1 | R4: 2 | S4: 3 | T4: 4 | U4: 5 | V4: 6 | W4: 7 | X4: 8 | Y4: 9 | Z4: 10 | AB4: 1 | AC4: 2 | AD4: 3 | AE4: 4 | AF4: 5 | AG4: 6 | AH4: 7 | AI4: 8 | AJ4: 9 | AK4: 10 | AN4: 1 | AO4: 2 | AP4: 3 | AQ4: 4 | AR4: 5 | AS4: 6 | AT4: 7 | AU4: 8 | AV4: 9 | AW4: 10 | AZ4: 1 | BA4: 2 | BB4: 3 | BC4: 4 | BD4: 5 | BE4: 6 | BF4: 7 | BG4: 8 | BH4: 9 | BI4: 10 | BL4: 1 | BM4: 2 | BN4: 3 | BO4: 4 | BP4: 5 | BQ4: 6 | BR4: 7 | BS4: 8 | BT4: 9 | BU4: 10 | BX4: 1 | BY4: 2 | BZ4: 3 | CA4: 4 | CB4: 5 | CC4: 1 | CD4: 2 | CE4: 3 | CF4: 4 | CG4: 5 | CY4: ='All Running Order'!CY3:CY4 -> Class | CZ4: ='All Running Order'!CZ3:CZ4 -> Type
C5: Best score | P5: N/A | Q5: ='All Running Order'!Q5 -> 0 | R5: ='All Running Order'!R5 -> 0 | S5: ='All Running Order'!S5 -> 0 | T5: ='All Running Order'!T5 -> 0 | U5: ='All Running Order'!U5 -> 1 | V5: ='All Running Order'!V5 -> 1 | W5: ='All Running Order'!W5 -> 0 | X5: ='All Running Order'!X5 -> 0 | Y5: ='All Running Order'!Y5 -> 0 | Z5: ='All Running Order'!Z5 -> 0 | AA5: ='All Running Order'!AA5 -> 2 | AB5: ='All Running Order'!AB5 -> 0 | AC5: ='All Running Order'!AC5 -> 0 | AD5: ='All Running Order'!AD5 -> 0 | AE5: ='All Running Order'!AE5 -> 1 | AF5: ='All Running Order'!AF5 -> 0 | AG5: ='All Running Order'!AG5 -> 0 | AH5: ='All Running Order'!AH5 -> 0 | AI5: ='All Running Order'!AI5 -> 0 | AJ5: ='All Running Order'!AJ5 -> 0 | AK5: ='All Running Order'!AK5 -> 0 | AL5: ='All Running Order'!AL5 -> 1 | AM5: ='All Running Order'!AM5 -> 3 | AN5: ='All Running Order'!AN5 -> 0 | AO5: ='All Running Order'!AO5 -> 0 | AP5: ='All Running Order'!AP5 -> 0 | AQ5: ='All Running Order'!AQ5 -> 0 | AR5: ='All Running Order'!AR5 -> 0 | AS5: ='All Running Order'!AS5 -> 0 | AT5: ='All Running Order'!AT5 -> 0 | AU5: ='All Running Order'!AU5 -> 0 | AV5: ='All Running Order'!AV5 -> 0 | AW5: ='All Running Order'!AW5 -> 0 | AX5: ='All Running Order'!AX5 -> 0 | AY5: ='All Running Order'!AY5 -> 3 | AZ5: ='All Running Order'!AZ5 -> 0 | BA5: ='All Running Order'!BA5 -> 0 | BB5: ='All Running Order'!BB5 -> 0 | BC5: ='All Running Order'!BC5 -> 0 | BD5: ='All Running Order'!BD5 -> 0 | BE5: ='All Running Order'!BE5 -> 0 | BF5: ='All Running Order'!BF5 -> 0 | BG5: ='All Running Order'!BG5 -> 0 | BH5: ='All Running Order'!BH5 -> 0 | BI5: ='All Running Order'!BI5 -> 0 | BJ5: ='All Running Order'!BJ5 -> 0 | BK5: ='All Running Order'!BK5 -> 3 | BL5: ='All Running Order'!BL5 -> 0 | BM5: ='All Running Order'!BM5 -> 0 | BN5: ='All Running Order'!BN5 -> 0 | BO5: ='All Running Order'!BO5 -> 0 | BP5: ='All Running Order'!BP5 -> 0 | BQ5: ='All Running Order'!BQ5 -> 0 | BR5: ='All Running Order'!BR5 -> 0 | BS5: ='All Running Order'!BS5 -> 0 | BT5: ='All Running Order'!BT5 -> 0 | BU5: ='All Running Order'!BU5 -> 0 | BV5: ='All Running Order'!BV5 -> 0 | BW5: ='All Running Order'!BW5 -> 3
A6: 1 | B6: =IFERROR(VLOOKUP($A6,'All Running Order'!$A$6:$CZ$64,B$102,FALSE),"") -> 1 | C6: =IFERROR(VLOOKUP($A6,'All Running Order'!$A$6:$CZ$64,C$102,FALSE),"") -> Stuart Beare | D6: =IFERROR(VLOOKUP($A6,'All Running Order'!$A$6:$CZ$64,D$102,FALSE),"") -> Sue Underwood | E6: =IFERROR(VLOOKUP($A6,'All Running Order'!$A$6:$CZ$64,E$102,FALSE),"") -> Sherpa Indy | F6: =IFERROR(VLOOKUP($A6,'All Running Order'!$A$6:$CZ$64,F$102,FALSE),"") -> 0 | G6: =IFERROR(VLOOKUP($A6,'All Running Order'!$A$6:$CZ$64,G$102,FALSE),"") -> IRS | H6: =IFERROR(VLOOKUP($A6,'All Running Order'!$A$6:$CZ$64,H$102,FALSE),"") -> Yes | I6: =IFERROR(VLOOKUP($A6,'All Running Order'!$A$6:$CZ$64,I$102,FALSE),"") -> 0 | J6: =IFERROR(VLOOKUP($A6,'All Running Order'!$A$6:$CZ$64,J$102,FALSE),"") -> 0 | K6: =IFERROR(VLOOKUP($A6,'All Running Order'!$A$6:$CZ$64,K$102,FALSE),"") -> 0 | L6: =IFERROR(VLOOKUP($A6,'All Running Order'!$A$6:$CZ$64,L$102,FALSE),"") -> 0 | M6: =IFERROR(VLOOKUP($A6,'All Running Order'!$A$6:$CZ$64,M$102,FALSE),"") -> 0 | N6: =IFERROR(VLOOKUP($A6,'All Running Order'!$A$6:$CZ$64,N$102,FALSE),"") -> 0 | O6: =IFERROR(VLOOKUP($A6,'All Running Order'!$A$6:$CZ$64,O$102,FALSE),"") -> 0 | P6: =IFERROR(VLOOKUP($A6,'All Running Order'!$A$6:$CZ$64,P$102,FALSE),"") -> Red | Q6: =IFERROR(VLOOKUP($A6,'All Running Order'!$A$6:$CZ$64,Q$102,FALSE),"") -> 0 | R6: =IFERROR(VLOOKUP($A6,'All Running Order'!$A$6:$CZ$64,R$102,FALSE),"") -> 0 | S6: =IFERROR(VLOOKUP($A6,'All Running Order'!$A$6:$CZ$64,S$102,FALSE),"") -> 1 | T6: =IFERROR(VLOOKUP($A6,'All Running Order'!$A$6:$CZ$64,T$102,FALSE),"") -> 0 | U6: =IFERROR(VLOOKUP($A6,'All Running Order'!$A$6:$CZ$64,U$102,FALSE),"") -> 1 | V6: =IFERROR(VLOOKUP($A6,'All Running Order'!$A$6:$CZ$64,V$102,FALSE),"") -> 2 | W6: =IFERROR(VLOOKUP($A6,'All Running Order'!$A$6:$CZ$64,W$102,FALSE),"") -> 0 | X6: =IFERROR(VLOOKUP($A6,'All Running Order'!$A$6:$CZ$64,X$102,FALSE),"") -> 0 | Y6: =IFERROR(VLOOKUP($A6,'All Running Order'!$A$6:$CZ$64,Y$102,FALSE),"") -> 0 | Z6: =IFERROR(VLOOKUP($A6,'All Running Order'!$A$6:$CZ$64,Z$102,FALSE),"") -> 0 | AA6: =IFERROR(VLOOKUP($A6,'All Running Order'!$A$6:$CZ$64,AA$102,FALSE),"") -> 4 | AB6: =IFERROR(VLOOKUP($A6,'All Running Order'!$A$6:$CZ$64,AB$102,FALSE),"") -> 0 | AC6: =IFERROR(VLOOKUP($A6,'All Running Order'!$A$6:$CZ$64,AC$102,FALSE),"") -> 0 | AD6: =IFERROR(VLOOKUP($A6,'All Running Order'!$A$6:$CZ$64,AD$102,FALSE),"") -> 0 | AE6: =IFERROR(VLOOKUP($A6,'All Running Order'!$A$6:$CZ$64,AE$102,FALSE),"") -> 1 | AF6: =IFERROR(VLOOKUP($A6,'All Running Order'!$A$6:$CZ$64,AF$102,FALSE),"") -> 1 | AG6: =IFERROR(VLOOKUP($A6,'All Running Order'!$A$6:$CZ$64,AG$102,FALSE),"") -> 0 | AH6: =IFERROR(VLOOKUP($A6,'All Running Order'!$A$6:$CZ$64,AH$102,FALSE),"") -> 0 | AI6: =IFERROR(VLOOKUP($A6,'All Running Order'!$A$6:$CZ$64,AI$102,FALSE),"") -> 0 | AJ6: =IFERROR(VLOOKUP($A6,'All Running Order'!$A$6:$CZ$64,AJ$102,FALSE),"") -> 0 | AK6: =IFERROR(VLOOKUP($A6,'All Running Order'!$A$6:$CZ$64,AK$102,FALSE),"") -> 0 | AL6: =IFERROR(VLOOKUP($A6,'All Running Order'!$A$6:$CZ$64,AL$102,FALSE),"") -> 2 | AM6: =IFERROR(VLOOKUP($A6,'All Running Order'!$A$6:$CZ$64,AM$102,FALSE),"") -> 6 | AN6: =IFERROR(VLOOKUP($A6,'All Running Order'!$A$6:$CZ$64,AN$102,FALSE),"") -> 0 | AO6: =IFERROR(VLOOKUP($A6,'All Running Order'!$A$6:$CZ$64,AO$102,FALSE),"") -> 2 | AP6: =IFERROR(VLOOKUP($A6,'All Running Order'!$A$6:$CZ$64,AP$102,FALSE),"") -> 0 | AQ6: =IFERROR(VLOOKUP($A6,'All Running Order'!$A$6:$CZ$64,AQ$102,FALSE),"") -> 1 | AR6: =IFERROR(VLOOKUP($A6,'All Running Order'!$A$6:$CZ$64,AR$102,FALSE),"") -> 0 | AS6: =IFERROR(VLOOKUP($A6,'All Running Order'!$A$6:$CZ$64,AS$102,FALSE),"") -> 0 | AT6: =IFERROR(VLOOKUP($A6,'All Running Order'!$A$6:$CZ$64,AT$102,FALSE),"") -> 0 | AU6: =IFERROR(VLOOKUP($A6,'All Running Order'!$A$6:$CZ$64,AU$102,FALSE),"") -> 0 | AV6: =IFERROR(VLOOKUP($A6,'All Running Order'!$A$6:$CZ$64,AV$102,FALSE),"") -> 0 | AW6: =IFERROR(VLOOKUP($A6,'All Running Order'!$A$6:$CZ$64,AW$102,FALSE),"") -> 0 | AX6: =IFERROR(VLOOKUP($A6,'All Running Order'!$A$6:$CZ$64,AX$102,FALSE),"") -> 3 | AY6: =IFERROR(VLOOKUP($A6,'All Running Order'!$A$6:$CZ$64,AY$102,FALSE),"") -> 9 | AZ6: =IFERROR(VLOOKUP($A6,'All Running Order'!$A$6:$CZ$64,AZ$102,FALSE),"") -> 0 | BA6: =IFERROR(VLOOKUP($A6,'All Running Order'!$A$6:$CZ$64,BA$102,FALSE),"") -> 0 | BB6: =IFERROR(VLOOKUP($A6,'All Running Order'!$A$6:$CZ$64,BB$102,FALSE),"") -> 0 | BC6: =IFERROR(VLOOKUP($A6,'All Running Order'!$A$6:$CZ$64,BC$102,FALSE),"") -> 1 | BD6: =IFERROR(VLOOKUP($A6,'All Running Order'!$A$6:$CZ$64,BD$102,FALSE),"") -> 0 | BE6: =IFERROR(VLOOKUP($A6,'All Running Order'!$A$6:$CZ$64,BE$102,FALSE),"") -> 0 | BF6: =IFERROR(VLOOKUP($A6,'All Running Order'!$A$6:$CZ$64,BF$102,FALSE),"") -> 0 | BG6: =IFERROR(VLOOKUP($A6,'All Running Order'!$A$6:$CZ$64,BG$102,FALSE),"") -> 0 | BH6: =IFERROR(VLOOKUP($A6,'All Running Order'!$A$6:$CZ$64,BH$102,FALSE),"") -> 0 | BI6: =IFERROR(VLOOKUP($A6,'All Running Order'!$A$6:$CZ$64,BI$102,FALSE),"") -> 0 | BJ6: =IFERROR(VLOOKUP($A6,'All Running Order'!$A$6:$CZ$64,BJ$102,FALSE),"") -> 1 | BK6: =IFERROR(VLOOKUP($A6,'All Running Order'!$A$6:$CZ$64,BK$102,FALSE),"") -> 10 | BL6: =IFERROR(VLOOKUP($A6,'All Running Order'!$A$6:$CZ$64,BL$102,FALSE),"") -> 0 | BM6: =IFERROR(VLOOKUP($A6,'All Running Order'!$A$6:$CZ$64,BM$102,FALSE),"") -> 0 | BN6: =IFERROR(VLOOKUP($A6,'All Running Order'!$A$6:$CZ$64,BN$102,FALSE),"") -> 0 | BO6: =IFERROR(VLOOKUP($A6,'All Running Order'!$A$6:$CZ$64,BO$102,FALSE),"") -> 0 | BP6: =IFERROR(VLOOKUP($A6,'All Running Order'!$A$6:$CZ$64,BP$102,FALSE),"") -> 0 | BQ6: =IFERROR(VLOOKUP($A6,'All Running Order'!$A$6:$CZ$64,BQ$102,FALSE),"") -> 0 | BR6: =IFERROR(VLOOKUP($A6,'All Running Order'!$A$6:$CZ$64,BR$102,FALSE),"") -> 0 | BS6: =IFERROR(VLOOKUP($A6,'All Running Order'!$A$6:$CZ$64,BS$102,FALSE),"") -> 0 | BT6: =IFERROR(VLOOKUP($A6,'All Running Order'!$A$6:$CZ$64,BT$102,FALSE),"") -> 0 | BU6: =IFERROR(VLOOKUP($A6,'All Running Order'!$A$6:$CZ$64,BU$102,FALSE),"") -> 0 | BV6: =IFERROR(VLOOKUP($A6,'All Running Order'!$A$6:$CZ$64,BV$102,FALSE),"") -> 0 | BW6: =IFERROR(VLOOKUP($A6,'All Running Order'!$A$6:$CZ$64,BW$102,FALSE),"") -> 10 | BX6: =IFERROR(VLOOKUP($A6,'All Running Order'!$A$6:$CZ$64,BX$102,FALSE),"") -> 1 | BY6: =IFERROR(VLOOKUP($A6,'All Running Order'!$A$6:$CZ$64,BY$102,FALSE),"") -> 1 | BZ6: =IFERROR(VLOOKUP($A6,'All Running Order'!$A$6:$CZ$64,BZ$102,FALSE),"") -> 3 | CA6: =IFERROR(VLOOKUP($A6,'All Running Order'!$A$6:$CZ$64,CA$102,FALSE),"") -> 1 | CB6: =IFERROR(VLOOKUP($A6,'All Running Order'!$A$6:$CZ$64,CB$102,FALSE),"") -> 1 | CC6: =IFERROR(VLOOKUP($A6,'All Running Order'!$A$6:$CZ$64,CC$102,FALSE),"") -> 1 | CD6: =IFERROR(VLOOKUP($A6,'All Running Order'!$A$6:$CZ$64,CD$102,FALSE),"") -> 1 | CE6: =IFERROR(VLOOKUP($A6,'All Running Order'!$A$6:$CZ$64,CE$102,FALSE),"") -> 3 | CF6: =IFERROR(VLOOKUP($A6,'All Running Order'!$A$6:$CZ$64,CF$102,FALSE),"") -> 1 | CG6: =IFERROR(VLOOKUP($A6,'All Running Order'!$A$6:$CZ$64,CG$102,FALSE),"") -> 1 | CH6: =IFERROR(VLOOKUP($A6,'All Running Order'!$A$6:$CZ$64,CH$102,FALSE),"") -> 1 | CI6: =IFERROR(VLOOKUP($A6,'All Running Order'!$A$6:$CZ$64,CI$102,FALSE),"") ->  | CJ6: =IFERROR(VLOOKUP($A6,'All Running Order'!$A$6:$CZ$64,CJ$102,FALSE),"") -> - | CK6: =IFERROR(VLOOKUP($A6,'All Running Order'!$A$6:$CZ$64,CK$102,FALSE),"") ->  | CL6: =IFERROR(VLOOKUP($A6,'All Running Order'!$A$6:$CZ$64,CL$102,FALSE),"") -> - | CM6: =IFERROR(VLOOKUP($A6,'All Running Order'!$A$6:$CZ$64,CM$102,FALSE),"") ->  | CN6: =IFERROR(VLOOKUP($A6,'All Running Order'!$A$6:$CZ$64,CN$102,FALSE),"") -> - | CO6: =IFERROR(VLOOKUP($A6,'All Running Order'!$A$6:$CZ$64,CO$102,FALSE),"") ->  | CP6: =IFERROR(VLOOKUP($A6,'All Running Order'!$A$6:$CZ$64,CP$102,FALSE),"") -> - | CQ6: =IFERROR(VLOOKUP($A6,'All Running Order'!$A$6:$CZ$64,CQ$102,FALSE),"") ->  | CR6: =IFERROR(VLOOKUP($A6,'All Running Order'!$A$6:$CZ$64,CR$102,FALSE),"") -> - | CS6: =IFERROR(VLOOKUP($A6,'All Running Order'!$A$6:$CZ$64,CS$102,FALSE),"") ->  | CT6: =IFERROR(VLOOKUP($A6,'All Running Order'!$A$6:$CZ$64,CT$102,FALSE),"") -> - | CU6: =IFERROR(VLOOKUP($A6,'All Running Order'!$A$6:$CZ$64,CU$102,FALSE),"") ->  | CV6: =IFERROR(VLOOKUP($A6,'All Running Order'!$A$6:$CZ$64,CV$102,FALSE),"") -> - | CW6: =IFERROR(VLOOKUP($A6,'All Running Order'!$A$6:$CZ$64,CW$102,FALSE),"") ->  | CX6: =IFERROR(VLOOKUP($A6,'All Running Order'!$A$6:$CZ$64,CX$102,FALSE),"") ->  | CY6: =IFERROR(VLOOKUP($A6,'All Running Order'!$A$6:$CZ$64,CY$102,FALSE),"") -> Red | CZ6: =IFERROR(VLOOKUP($A6,'All Running Order'!$A$6:$CZ$64,CZ$102,FALSE),"") -> IRS
A7: 2 | B7: =IFERROR(VLOOKUP($A7,'All Running Order'!$A$6:$CZ$64,B$102,FALSE),"") -> 5 | C7: =IFERROR(VLOOKUP($A7,'All Running Order'!$A$6:$CZ$64,C$102,FALSE),"") -> Ian Wright | D7: =IFERROR(VLOOKUP($A7,'All Running Order'!$A$6:$CZ$64,D$102,FALSE),"") -> Chris Taylor | E7: =IFERROR(VLOOKUP($A7,'All Running Order'!$A$6:$CZ$64,E$102,FALSE),"") -> Sherpa Indy | F7: =IFERROR(VLOOKUP($A7,'All Running Order'!$A$6:$CZ$64,F$102,FALSE),"") -> 0 | G7: =IFERROR(VLOOKUP($A7,'All Running Order'!$A$6:$CZ$64,G$102,FALSE),"") -> IRS | H7: =IFERROR(VLOOKUP($A7,'All Running Order'!$A$6:$CZ$64,H$102,FALSE),"") -> Yes | I7: =IFERROR(VLOOKUP($A7,'All Running Order'!$A$6:$CZ$64,I$102,FALSE),"") -> 0 | J7: =IFERROR(VLOOKUP($A7,'All Running Order'!$A$6:$CZ$64,J$102,FALSE),"") -> 0 | K7: =IFERROR(VLOOKUP($A7,'All Running Order'!$A$6:$CZ$64,K$102,FALSE),"") -> 0 | L7: =IFERROR(VLOOKUP($A7,'All Running Order'!$A$6:$CZ$64,L$102,FALSE),"") -> 0 | M7: =IFERROR(VLOOKUP($A7,'All Running Order'!$A$6:$CZ$64,M$102,FALSE),"") -> 0 | N7: =IFERROR(VLOOKUP($A7,'All Running Order'!$A$6:$CZ$64,N$102,FALSE),"") -> 0 | O7: =IFERROR(VLOOKUP($A7,'All Running Order'!$A$6:$CZ$64,O$102,FALSE),"") -> 0 | P7: =IFERROR(VLOOKUP($A7,'All Running Order'!$A$6:$CZ$64,P$102,FALSE),"") -> Red | Q7: =IFERROR(VLOOKUP($A7,'All Running Order'!$A$6:$CZ$64,Q$102,FALSE),"") -> 0 | R7: =IFERROR(VLOOKUP($A7,'All Running Order'!$A$6:$CZ$64,R$102,FALSE),"") -> 1 | S7: =IFERROR(VLOOKUP($A7,'All Running Order'!$A$6:$CZ$64,S$102,FALSE),"") -> 2 | T7: =IFERROR(VLOOKUP($A7,'All Running Order'!$A$6:$CZ$64,T$102,FALSE),"") -> 0 | U7: =IFERROR(VLOOKUP($A7,'All Running Order'!$A$6:$CZ$64,U$102,FALSE),"") -> 2 | V7: =IFERROR(VLOOKUP($A7,'All Running Order'!$A$6:$CZ$64,V$102,FALSE),"") -> 1 | W7: =IFERROR(VLOOKUP($A7,'All Running Order'!$A$6:$CZ$64,W$102,FALSE),"") -> 0 | X7: =IFERROR(VLOOKUP($A7,'All Running Order'!$A$6:$CZ$64,X$102,FALSE),"") -> 0 | Y7: =IFERROR(VLOOKUP($A7,'All Running Order'!$A$6:$CZ$64,Y$102,FALSE),"") -> 0 | Z7: =IFERROR(VLOOKUP($A7,'All Running Order'!$A$6:$CZ$64,Z$102,FALSE),"") -> 0 | AA7: =IFERROR(VLOOKUP($A7,'All Running Order'!$A$6:$CZ$64,AA$102,FALSE),"") -> 6 | AB7: =IFERROR(VLOOKUP($A7,'All Running Order'!$A$6:$CZ$64,AB$102,FALSE),"") -> 0 | AC7: =IFERROR(VLOOKUP($A7,'All Running Order'!$A$6:$CZ$64,AC$102,FALSE),"") -> 0 | AD7: =IFERROR(VLOOKUP($A7,'All Running Order'!$A$6:$CZ$64,AD$102,FALSE),"") -> 0 | AE7: =IFERROR(VLOOKUP($A7,'All Running Order'!$A$6:$CZ$64,AE$102,FALSE),"") -> 1 | AF7: =IFERROR(VLOOKUP($A7,'All Running Order'!$A$6:$CZ$64,AF$102,FALSE),"") -> 1 | AG7: =IFERROR(VLOOKUP($A7,'All Running Order'!$A$6:$CZ$64,AG$102,FALSE),"") -> 0 | AH7: =IFERROR(VLOOKUP($A7,'All Running Order'!$A$6:$CZ$64,AH$102,FALSE),"") -> 0 | AI7: =IFERROR(VLOOKUP($A7,'All Running Order'!$A$6:$CZ$64,AI$102,FALSE),"") -> 0 | AJ7: =IFERROR(VLOOKUP($A7,'All Running Order'!$A$6:$CZ$64,AJ$102,FALSE),"") -> 0 | AK7: =IFERROR(VLOOKUP($A7,'All Running Order'!$A$6:$CZ$64,AK$102,FALSE),"") -> 0 | AL7: =IFERROR(VLOOKUP($A7,'All Running Order'!$A$6:$CZ$64,AL$102,FALSE),"") -> 2 | AM7: =IFERROR(VLOOKUP($A7,'All Running Order'!$A$6:$CZ$64,AM$102,FALSE),"") -> 8 | AN7: =IFERROR(VLOOKUP($A7,'All Running Order'!$A$6:$CZ$64,AN$102,FALSE),"") -> 0 | AO7: =IFERROR(VLOOKUP($A7,'All Running Order'!$A$6:$CZ$64,AO$102,FALSE),"") -> 0 | AP7: =IFERROR(VLOOKUP($A7,'All Running Order'!$A$6:$CZ$64,AP$102,FALSE),"") -> 0 | AQ7: =IFERROR(VLOOKUP($A7,'All Running Order'!$A$6:$CZ$64,AQ$102,FALSE),"") -> 0 | AR7: =IFERROR(VLOOKUP($A7,'All Running Order'!$A$6:$CZ$64,AR$102,FALSE),"") -> 0 | AS7: =IFERROR(VLOOKUP($A7,'All Running Order'!$A$6:$CZ$64,AS$102,FALSE),"") -> 0 | AT7: =IFERROR(VLOOKUP($A7,'All Running Order'!$A$6:$CZ$64,AT$102,FALSE),"") -> 0 | AU7: =IFERROR(VLOOKUP($A7,'All Running Order'!$A$6:$CZ$64,AU$102,FALSE),"") -> 0 | AV7: =IFERROR(VLOOKUP($A7,'All Running Order'!$A$6:$CZ$64,AV$102,FALSE),"") -> 0 | AW7: =IFERROR(VLOOKUP($A7,'All Running Order'!$A$6:$CZ$64,AW$102,FALSE),"") -> 0 | AX7: =IFERROR(VLOOKUP($A7,'All Running Order'!$A$6:$CZ$64,AX$102,FALSE),"") -> 0 | AY7: =IFERROR(VLOOKUP($A7,'All Running Order'!$A$6:$CZ$64,AY$102,FALSE),"") -> 8 | AZ7: =IFERROR(VLOOKUP($A7,'All Running Order'!$A$6:$CZ$64,AZ$102,FALSE),"") -> 0 | BA7: =IFERROR(VLOOKUP($A7,'All Running Order'!$A$6:$CZ$64,BA$102,FALSE),"") -> 2 | BB7: =IFERROR(VLOOKUP($A7,'All Running Order'!$A$6:$CZ$64,BB$102,FALSE),"") -> 2 | BC7: =IFERROR(VLOOKUP($A7,'All Running Order'!$A$6:$CZ$64,BC$102,FALSE),"") -> 0 | BD7: =IFERROR(VLOOKUP($A7,'All Running Order'!$A$6:$CZ$64,BD$102,FALSE),"") -> 2 | BE7: =IFERROR(VLOOKUP($A7,'All Running Order'!$A$6:$CZ$64,BE$102,FALSE),"") -> 0 | BF7: =IFERROR(VLOOKUP($A7,'All Running Order'!$A$6:$CZ$64,BF$102,FALSE),"") -> 0 | BG7: =IFERROR(VLOOKUP($A7,'All Running Order'!$A$6:$CZ$64,BG$102,FALSE),"") -> 0 | BH7: =IFERROR(VLOOKUP($A7,'All Running Order'!$A$6:$CZ$64,BH$102,FALSE),"") -> 0 | BI7: =IFERROR(VLOOKUP($A7,'All Running Order'!$A$6:$CZ$64,BI$102,FALSE),"") -> 0 | BJ7: =IFERROR(VLOOKUP($A7,'All Running Order'!$A$6:$CZ$64,BJ$102,FALSE),"") -> 6 | BK7: =IFERROR(VLOOKUP($A7,'All Running Order'!$A$6:$CZ$64,BK$102,FALSE),"") -> 14 | BL7: =IFERROR(VLOOKUP($A7,'All Running Order'!$A$6:$CZ$64,BL$102,FALSE),"") -> 0 | BM7: =IFERROR(VLOOKUP($A7,'All Running Order'!$A$6:$CZ$64,BM$102,FALSE),"") -> 0 | BN7: =IFERROR(VLOOKUP($A7,'All Running Order'!$A$6:$CZ$64,BN$102,FALSE),"") -> 0 | BO7: =IFERROR(VLOOKUP($A7,'All Running Order'!$A$6:$CZ$64,BO$102,FALSE),"") -> 0 | BP7: =IFERROR(VLOOKUP($A7,'All Running Order'!$A$6:$CZ$64,BP$102,FALSE),"") -> 0 | BQ7: =IFERROR(VLOOKUP($A7,'All Running Order'!$A$6:$CZ$64,BQ$102,FALSE),"") -> 0 | BR7: =IFERROR(VLOOKUP($A7,'All Running Order'!$A$6:$CZ$64,BR$102,FALSE),"") -> 0 | BS7: =IFERROR(VLOOKUP($A7,'All Running Order'!$A$6:$CZ$64,BS$102,FALSE),"") -> 0 | BT7: =IFERROR(VLOOKUP($A7,'All Running Order'!$A$6:$CZ$64,BT$102,FALSE),"") -> 0 | BU7: =IFERROR(VLOOKUP($A7,'All Running Order'!$A$6:$CZ$64,BU$102,FALSE),"") -> 0 | BV7: =IFERROR(VLOOKUP($A7,'All Running Order'!$A$6:$CZ$64,BV$102,FALSE),"") -> 0 | BW7: =IFERROR(VLOOKUP($A7,'All Running Order'!$A$6:$CZ$64,BW$102,FALSE),"") -> 14 | BX7: =IFERROR(VLOOKUP($A7,'All Running Order'!$A$6:$CZ$64,BX$102,FALSE),"") -> 4 | BY7: =IFERROR(VLOOKUP($A7,'All Running Order'!$A$6:$CZ$64,BY$102,FALSE),"") -> 2 | BZ7: =IFERROR(VLOOKUP($A7,'All Running Order'!$A$6:$CZ$64,BZ$102,FALSE),"") -> 1 | CA7: =IFERROR(VLOOKUP($A7,'All Running Order'!$A$6:$CZ$64,CA$102,FALSE),"") -> 2 | CB7: =IFERROR(VLOOKUP($A7,'All Running Order'!$A$6:$CZ$64,CB$102,FALSE),"") -> 2 | CC7: =IFERROR(VLOOKUP($A7,'All Running Order'!$A$6:$CZ$64,CC$102,FALSE),"") -> 4 | CD7: =IFERROR(VLOOKUP($A7,'All Running Order'!$A$6:$CZ$64,CD$102,FALSE),"") -> 2 | CE7: =IFERROR(VLOOKUP($A7,'All Running Order'!$A$6:$CZ$64,CE$102,FALSE),"") -> 1 | CF7: =IFERROR(VLOOKUP($A7,'All Running Order'!$A$6:$CZ$64,CF$102,FALSE),"") -> 2 | CG7: =IFERROR(VLOOKUP($A7,'All Running Order'!$A$6:$CZ$64,CG$102,FALSE),"") -> 2 | CH7: =IFERROR(VLOOKUP($A7,'All Running Order'!$A$6:$CZ$64,CH$102,FALSE),"") -> 2 | CI7: =IFERROR(VLOOKUP($A7,'All Running Order'!$A$6:$CZ$64,CI$102,FALSE),"") ->  | CJ7: =IFERROR(VLOOKUP($A7,'All Running Order'!$A$6:$CZ$64,CJ$102,FALSE),"") -> - | CK7: =IFERROR(VLOOKUP($A7,'All Running Order'!$A$6:$CZ$64,CK$102,FALSE),"") ->  | CL7: =IFERROR(VLOOKUP($A7,'All Running Order'!$A$6:$CZ$64,CL$102,FALSE),"") -> - | CM7: =IFERROR(VLOOKUP($A7,'All Running Order'!$A$6:$CZ$64,CM$102,FALSE),"") ->  | CN7: =IFERROR(VLOOKUP($A7,'All Running Order'!$A$6:$CZ$64,CN$102,FALSE),"") -> - | CO7: =IFERROR(VLOOKUP($A7,'All Running Order'!$A$6:$CZ$64,CO$102,FALSE),"") ->  | CP7: =IFERROR(VLOOKUP($A7,'All Running Order'!$A$6:$CZ$64,CP$102,FALSE),"") -> - | CQ7: =IFERROR(VLOOKUP($A7,'All Running Order'!$A$6:$CZ$64,CQ$102,FALSE),"") ->  | CR7: =IFERROR(VLOOKUP($A7,'All Running Order'!$A$6:$CZ$64,CR$102,FALSE),"") -> - | CS7: =IFERROR(VLOOKUP($A7,'All Running Order'!$A$6:$CZ$64,CS$102,FALSE),"") ->  | CT7: =IFERROR(VLOOKUP($A7,'All Running Order'!$A$6:$CZ$64,CT$102,FALSE),"") -> - | CU7: =IFERROR(VLOOKUP($A7,'All Running Order'!$A$6:$CZ$64,CU$102,FALSE),"") ->  | CV7: =IFERROR(VLOOKUP($A7,'All Running Order'!$A$6:$CZ$64,CV$102,FALSE),"") -> - | CW7: =IFERROR(VLOOKUP($A7,'All Running Order'!$A$6:$CZ$64,CW$102,FALSE),"") ->  | CX7: =IFERROR(VLOOKUP($A7,'All Running Order'!$A$6:$CZ$64,CX$102,FALSE),"") ->  | CY7: =IFERROR(VLOOKUP($A7,'All Running Order'!$A$6:$CZ$64,CY$102,FALSE),"") -> Red | CZ7: =IFERROR(VLOOKUP($A7,'All Running Order'!$A$6:$CZ$64,CZ$102,FALSE),"") -> IRS
A8: 3 | B8: =IFERROR(VLOOKUP($A8,'All Running Order'!$A$6:$CZ$64,B$102,FALSE),"") -> 9 | C8: =IFERROR(VLOOKUP($A8,'All Running Order'!$A$6:$CZ$64,C$102,FALSE),"") -> Sam Beare | D8: =IFERROR(VLOOKUP($A8,'All Running Order'!$A$6:$CZ$64,D$102,FALSE),"") -> Jemima Beare | E8: =IFERROR(VLOOKUP($A8,'All Running Order'!$A$6:$CZ$64,E$102,FALSE),"") -> Sherpa | F8: =IFERROR(VLOOKUP($A8,'All Running Order'!$A$6:$CZ$64,F$102,FALSE),"") -> 0 | G8: =IFERROR(VLOOKUP($A8,'All Running Order'!$A$6:$CZ$64,G$102,FALSE),"") -> Live | H8: =IFERROR(VLOOKUP($A8,'All Running Order'!$A$6:$CZ$64,H$102,FALSE),"") -> Yes | I8: =IFERROR(VLOOKUP($A8,'All Running Order'!$A$6:$CZ$64,I$102,FALSE),"") -> 0 | J8: =IFERROR(VLOOKUP($A8,'All Running Order'!$A$6:$CZ$64,J$102,FALSE),"") -> 0 | K8: =IFERROR(VLOOKUP($A8,'All Running Order'!$A$6:$CZ$64,K$102,FALSE),"") -> 0 | L8: =IFERROR(VLOOKUP($A8,'All Running Order'!$A$6:$CZ$64,L$102,FALSE),"") -> 0 | M8: =IFERROR(VLOOKUP($A8,'All Running Order'!$A$6:$CZ$64,M$102,FALSE),"") -> 0 | N8: =IFERROR(VLOOKUP($A8,'All Running Order'!$A$6:$CZ$64,N$102,FALSE),"") -> 0 | O8: =IFERROR(VLOOKUP($A8,'All Running Order'!$A$6:$CZ$64,O$102,FALSE),"") -> 0 | P8: =IFERROR(VLOOKUP($A8,'All Running Order'!$A$6:$CZ$64,P$102,FALSE),"") -> Red | Q8: =IFERROR(VLOOKUP($A8,'All Running Order'!$A$6:$CZ$64,Q$102,FALSE),"") -> 0 | R8: =IFERROR(VLOOKUP($A8,'All Running Order'!$A$6:$CZ$64,R$102,FALSE),"") -> 0 | S8: =IFERROR(VLOOKUP($A8,'All Running Order'!$A$6:$CZ$64,S$102,FALSE),"") -> 2 | T8: =IFERROR(VLOOKUP($A8,'All Running Order'!$A$6:$CZ$64,T$102,FALSE),"") -> 0 | U8: =IFERROR(VLOOKUP($A8,'All Running Order'!$A$6:$CZ$64,U$102,FALSE),"") -> 1 | V8: =IFERROR(VLOOKUP($A8,'All Running Order'!$A$6:$CZ$64,V$102,FALSE),"") -> 2 | W8: =IFERROR(VLOOKUP($A8,'All Running Order'!$A$6:$CZ$64,W$102,FALSE),"") -> 0 | X8: =IFERROR(VLOOKUP($A8,'All Running Order'!$A$6:$CZ$64,X$102,FALSE),"") -> 0 | Y8: =IFERROR(VLOOKUP($A8,'All Running Order'!$A$6:$CZ$64,Y$102,FALSE),"") -> 0 | Z8: =IFERROR(VLOOKUP($A8,'All Running Order'!$A$6:$CZ$64,Z$102,FALSE),"") -> 0 | AA8: =IFERROR(VLOOKUP($A8,'All Running Order'!$A$6:$CZ$64,AA$102,FALSE),"") -> 5 | AB8: =IFERROR(VLOOKUP($A8,'All Running Order'!$A$6:$CZ$64,AB$102,FALSE),"") -> 0 | AC8: =IFERROR(VLOOKUP($A8,'All Running Order'!$A$6:$CZ$64,AC$102,FALSE),"") -> 0 | AD8: =IFERROR(VLOOKUP($A8,'All Running Order'!$A$6:$CZ$64,AD$102,FALSE),"") -> 0 | AE8: =IFERROR(VLOOKUP($A8,'All Running Order'!$A$6:$CZ$64,AE$102,FALSE),"") -> 1 | AF8: =IFERROR(VLOOKUP($A8,'All Running Order'!$A$6:$CZ$64,AF$102,FALSE),"") -> 1 | AG8: =IFERROR(VLOOKUP($A8,'All Running Order'!$A$6:$CZ$64,AG$102,FALSE),"") -> 1 | AH8: =IFERROR(VLOOKUP($A8,'All Running Order'!$A$6:$CZ$64,AH$102,FALSE),"") -> 0 | AI8: =IFERROR(VLOOKUP($A8,'All Running Order'!$A$6:$CZ$64,AI$102,FALSE),"") -> 0 | AJ8: =IFERROR(VLOOKUP($A8,'All Running Order'!$A$6:$CZ$64,AJ$102,FALSE),"") -> 0 | AK8: =IFERROR(VLOOKUP($A8,'All Running Order'!$A$6:$CZ$64,AK$102,FALSE),"") -> 0 | AL8: =IFERROR(VLOOKUP($A8,'All Running Order'!$A$6:$CZ$64,AL$102,FALSE),"") -> 3 | AM8: =IFERROR(VLOOKUP($A8,'All Running Order'!$A$6:$CZ$64,AM$102,FALSE),"") -> 8 | AN8: =IFERROR(VLOOKUP($A8,'All Running Order'!$A$6:$CZ$64,AN$102,FALSE),"") -> 0 | AO8: =IFERROR(VLOOKUP($A8,'All Running Order'!$A$6:$CZ$64,AO$102,FALSE),"") -> 0 | AP8: =IFERROR(VLOOKUP($A8,'All Running Order'!$A$6:$CZ$64,AP$102,FALSE),"") -> 0 | AQ8: =IFERROR(VLOOKUP($A8,'All Running Order'!$A$6:$CZ$64,AQ$102,FALSE),"") -> 0 | AR8: =IFERROR(VLOOKUP($A8,'All Running Order'!$A$6:$CZ$64,AR$102,FALSE),"") -> 0 | AS8: =IFERROR(VLOOKUP($A8,'All Running Order'!$A$6:$CZ$64,AS$102,FALSE),"") -> 0 | AT8: =IFERROR(VLOOKUP($A8,'All Running Order'!$A$6:$CZ$64,AT$102,FALSE),"") -> 0 | AU8: =IFERROR(VLOOKUP($A8,'All Running Order'!$A$6:$CZ$64,AU$102,FALSE),"") -> 0 | AV8: =IFERROR(VLOOKUP($A8,'All Running Order'!$A$6:$CZ$64,AV$102,FALSE),"") -> 0 | AW8: =IFERROR(VLOOKUP($A8,'All Running Order'!$A$6:$CZ$64,AW$102,FALSE),"") -> 0 | AX8: =IFERROR(VLOOKUP($A8,'All Running Order'!$A$6:$CZ$64,AX$102,FALSE),"") -> 0 | AY8: =IFERROR(VLOOKUP($A8,'All Running Order'!$A$6:$CZ$64,AY$102,FALSE),"") -> 8 | AZ8: =IFERROR(VLOOKUP($A8,'All Running Order'!$A$6:$CZ$64,AZ$102,FALSE),"") -> 0 | BA8: =IFERROR(VLOOKUP($A8,'All Running Order'!$A$6:$CZ$64,BA$102,FALSE),"") -> 0 | BB8: =IFERROR(VLOOKUP($A8,'All Running Order'!$A$6:$CZ$64,BB$102,FALSE),"") -> 0 | BC8: =IFERROR(VLOOKUP($A8,'All Running Order'!$A$6:$CZ$64,BC$102,FALSE),"") -> 10 | BD8: =IFERROR(VLOOKUP($A8,'All Running Order'!$A$6:$CZ$64,BD$102,FALSE),"") -> 0 | BE8: =IFERROR(VLOOKUP($A8,'All Running Order'!$A$6:$CZ$64,BE$102,FALSE),"") -> 0 | BF8: =IFERROR(VLOOKUP($A8,'All Running Order'!$A$6:$CZ$64,BF$102,FALSE),"") -> 0 | BG8: =IFERROR(VLOOKUP($A8,'All Running Order'!$A$6:$CZ$64,BG$102,FALSE),"") -> 0 | BH8: =IFERROR(VLOOKUP($A8,'All Running Order'!$A$6:$CZ$64,BH$102,FALSE),"") -> 0 | BI8: =IFERROR(VLOOKUP($A8,'All Running Order'!$A$6:$CZ$64,BI$102,FALSE),"") -> 0 | BJ8: =IFERROR(VLOOKUP($A8,'All Running Order'!$A$6:$CZ$64,BJ$102,FALSE),"") -> 10 | BK8: =IFERROR(VLOOKUP($A8,'All Running Order'!$A$6:$CZ$64,BK$102,FALSE),"") -> 18 | BL8: =IFERROR(VLOOKUP($A8,'All Running Order'!$A$6:$CZ$64,BL$102,FALSE),"") -> 0 | BM8: =IFERROR(VLOOKUP($A8,'All Running Order'!$A$6:$CZ$64,BM$102,FALSE),"") -> 0 | BN8: =IFERROR(VLOOKUP($A8,'All Running Order'!$A$6:$CZ$64,BN$102,FALSE),"") -> 0 | BO8: =IFERROR(VLOOKUP($A8,'All Running Order'!$A$6:$CZ$64,BO$102,FALSE),"") -> 0 | BP8: =IFERROR(VLOOKUP($A8,'All Running Order'!$A$6:$CZ$64,BP$102,FALSE),"") -> 0 | BQ8: =IFERROR(VLOOKUP($A8,'All Running Order'!$A$6:$CZ$64,BQ$102,FALSE),"") -> 0 | BR8: =IFERROR(VLOOKUP($A8,'All Running Order'!$A$6:$CZ$64,BR$102,FALSE),"") -> 0 | BS8: =IFERROR(VLOOKUP($A8,'All Running Order'!$A$6:$CZ$64,BS$102,FALSE),"") -> 0 | BT8: =IFERROR(VLOOKUP($A8,'All Running Order'!$A$6:$CZ$64,BT$102,FALSE),"") -> 0 | BU8: =IFERROR(VLOOKUP($A8,'All Running Order'!$A$6:$CZ$64,BU$102,FALSE),"") -> 0 | BV8: =IFERROR(VLOOKUP($A8,'All Running Order'!$A$6:$CZ$64,BV$102,FALSE),"") -> 0 | BW8: =IFERROR(VLOOKUP($A8,'All Running Order'!$A$6:$CZ$64,BW$102,FALSE),"") -> 18 | BX8: =IFERROR(VLOOKUP($A8,'All Running Order'!$A$6:$CZ$64,BX$102,FALSE),"") -> 3 | BY8: =IFERROR(VLOOKUP($A8,'All Running Order'!$A$6:$CZ$64,BY$102,FALSE),"") -> 2 | BZ8: =IFERROR(VLOOKUP($A8,'All Running Order'!$A$6:$CZ$64,BZ$102,FALSE),"") -> 1 | CA8: =IFERROR(VLOOKUP($A8,'All Running Order'!$A$6:$CZ$64,CA$102,FALSE),"") -> 3 | CB8: =IFERROR(VLOOKUP($A8,'All Running Order'!$A$6:$CZ$64,CB$102,FALSE),"") -> 3 | CC8: =IFERROR(VLOOKUP($A8,'All Running Order'!$A$6:$CZ$64,CC$102,FALSE),"") -> 3 | CD8: =IFERROR(VLOOKUP($A8,'All Running Order'!$A$6:$CZ$64,CD$102,FALSE),"") -> 2 | CE8: =IFERROR(VLOOKUP($A8,'All Running Order'!$A$6:$CZ$64,CE$102,FALSE),"") -> 1 | CF8: =IFERROR(VLOOKUP($A8,'All Running Order'!$A$6:$CZ$64,CF$102,FALSE),"") -> 3 | CG8: =IFERROR(VLOOKUP($A8,'All Running Order'!$A$6:$CZ$64,CG$102,FALSE),"") -> 3 | CH8: =IFERROR(VLOOKUP($A8,'All Running Order'!$A$6:$CZ$64,CH$102,FALSE),"") -> 3 | CI8: =IFERROR(VLOOKUP($A8,'All Running Order'!$A$6:$CZ$64,CI$102,FALSE),"") ->  | CJ8: =IFERROR(VLOOKUP($A8,'All Running Order'!$A$6:$CZ$64,CJ$102,FALSE),"") -> - | CK8: =IFERROR(VLOOKUP($A8,'All Running Order'!$A$6:$CZ$64,CK$102,FALSE),"") ->  | CL8: =IFERROR(VLOOKUP($A8,'All Running Order'!$A$6:$CZ$64,CL$102,FALSE),"") -> - | CM8: =IFERROR(VLOOKUP($A8,'All Running Order'!$A$6:$CZ$64,CM$102,FALSE),"") ->  | CN8: =IFERROR(VLOOKUP($A8,'All Running Order'!$A$6:$CZ$64,CN$102,FALSE),"") -> - | CO8: =IFERROR(VLOOKUP($A8,'All Running Order'!$A$6:$CZ$64,CO$102,FALSE),"") ->  | CP8: =IFERROR(VLOOKUP($A8,'All Running Order'!$A$6:$CZ$64,CP$102,FALSE),"") -> - | CQ8: =IFERROR(VLOOKUP($A8,'All Running Order'!$A$6:$CZ$64,CQ$102,FALSE),"") ->  | CR8: =IFERROR(VLOOKUP($A8,'All Running Order'!$A$6:$CZ$64,CR$102,FALSE),"") -> - | CS8: =IFERROR(VLOOKUP($A8,'All Running Order'!$A$6:$CZ$64,CS$102,FALSE),"") ->  | CT8: =IFERROR(VLOOKUP($A8,'All Running Order'!$A$6:$CZ$64,CT$102,FALSE),"") -> - | CU8: =IFERROR(VLOOKUP($A8,'All Running Order'!$A$6:$CZ$64,CU$102,FALSE),"") ->  | CV8: =IFERROR(VLOOKUP($A8,'All Running Order'!$A$6:$CZ$64,CV$102,FALSE),"") -> 3 | CW8: =IFERROR(VLOOKUP($A8,'All Running Order'!$A$6:$CZ$64,CW$102,FALSE),"") ->  | CX8: =IFERROR(VLOOKUP($A8,'All Running Order'!$A$6:$CZ$64,CX$102,FALSE),"") ->  | CY8: =IFERROR(VLOOKUP($A8,'All Running Order'!$A$6:$CZ$64,CY$102,FALSE),"") -> Red | CZ8: =IFERROR(VLOOKUP($A8,'All Running Order'!$A$6:$CZ$64,CZ$102,FALSE),"") -> Live
A9: 4 | B9: =IFERROR(VLOOKUP($A9,'All Running Order'!$A$6:$CZ$64,B$102,FALSE),"") -> 8 | C9: =IFERROR(VLOOKUP($A9,'All Running Order'!$A$6:$CZ$64,C$102,FALSE),"") -> Tom Bricknell | D9: =IFERROR(VLOOKUP($A9,'All Running Order'!$A$6:$CZ$64,D$102,FALSE),"") -> Andy Beveridge | E9: =IFERROR(VLOOKUP($A9,'All Running Order'!$A$6:$CZ$64,E$102,FALSE),"") -> Crossle | F9: =IFERROR(VLOOKUP($A9,'All Running Order'!$A$6:$CZ$64,F$102,FALSE),"") -> 0 | G9: =IFERROR(VLOOKUP($A9,'All Running Order'!$A$6:$CZ$64,G$102,FALSE),"") -> IRS | H9: =IFERROR(VLOOKUP($A9,'All Running Order'!$A$6:$CZ$64,H$102,FALSE),"") -> Yes | I9: =IFERROR(VLOOKUP($A9,'All Running Order'!$A$6:$CZ$64,I$102,FALSE),"") -> 0 | J9: =IFERROR(VLOOKUP($A9,'All Running Order'!$A$6:$CZ$64,J$102,FALSE),"") -> 0 | K9: =IFERROR(VLOOKUP($A9,'All Running Order'!$A$6:$CZ$64,K$102,FALSE),"") -> 0 | L9: =IFERROR(VLOOKUP($A9,'All Running Order'!$A$6:$CZ$64,L$102,FALSE),"") -> 0 | M9: =IFERROR(VLOOKUP($A9,'All Running Order'!$A$6:$CZ$64,M$102,FALSE),"") -> 0 | N9: =IFERROR(VLOOKUP($A9,'All Running Order'!$A$6:$CZ$64,N$102,FALSE),"") -> 0 | O9: =IFERROR(VLOOKUP($A9,'All Running Order'!$A$6:$CZ$64,O$102,FALSE),"") -> 0 | P9: =IFERROR(VLOOKUP($A9,'All Running Order'!$A$6:$CZ$64,P$102,FALSE),"") -> Red | Q9: =IFERROR(VLOOKUP($A9,'All Running Order'!$A$6:$CZ$64,Q$102,FALSE),"") -> 0 | R9: =IFERROR(VLOOKUP($A9,'All Running Order'!$A$6:$CZ$64,R$102,FALSE),"") -> 0 | S9: =IFERROR(VLOOKUP($A9,'All Running Order'!$A$6:$CZ$64,S$102,FALSE),"") -> 0 | T9: =IFERROR(VLOOKUP($A9,'All Running Order'!$A$6:$CZ$64,T$102,FALSE),"") -> 5 | U9: =IFERROR(VLOOKUP($A9,'All Running Order'!$A$6:$CZ$64,U$102,FALSE),"") -> 2 | V9: =IFERROR(VLOOKUP($A9,'All Running Order'!$A$6:$CZ$64,V$102,FALSE),"") -> 2 | W9: =IFERROR(VLOOKUP($A9,'All Running Order'!$A$6:$CZ$64,W$102,FALSE),"") -> 0 | X9: =IFERROR(VLOOKUP($A9,'All Running Order'!$A$6:$CZ$64,X$102,FALSE),"") -> 0 | Y9: =IFERROR(VLOOKUP($A9,'All Running Order'!$A$6:$CZ$64,Y$102,FALSE),"") -> 0 | Z9: =IFERROR(VLOOKUP($A9,'All Running Order'!$A$6:$CZ$64,Z$102,FALSE),"") -> 0 | AA9: =IFERROR(VLOOKUP($A9,'All Running Order'!$A$6:$CZ$64,AA$102,FALSE),"") -> 9 | AB9: =IFERROR(VLOOKUP($A9,'All Running Order'!$A$6:$CZ$64,AB$102,FALSE),"") -> 0 | AC9: =IFERROR(VLOOKUP($A9,'All Running Order'!$A$6:$CZ$64,AC$102,FALSE),"") -> 0 | AD9: =IFERROR(VLOOKUP($A9,'All Running Order'!$A$6:$CZ$64,AD$102,FALSE),"") -> 0 | AE9: =IFERROR(VLOOKUP($A9,'All Running Order'!$A$6:$CZ$64,AE$102,FALSE),"") -> 1 | AF9: =IFERROR(VLOOKUP($A9,'All Running Order'!$A$6:$CZ$64,AF$102,FALSE),"") -> 0 | AG9: =IFERROR(VLOOKUP($A9,'All Running Order'!$A$6:$CZ$64,AG$102,FALSE),"") -> 0 | AH9: =IFERROR(VLOOKUP($A9,'All Running Order'!$A$6:$CZ$64,AH$102,FALSE),"") -> 0 | AI9: =IFERROR(VLOOKUP($A9,'All Running Order'!$A$6:$CZ$64,AI$102,FALSE),"") -> 0 | AJ9: =IFERROR(VLOOKUP($A9,'All Running Order'!$A$6:$CZ$64,AJ$102,FALSE),"") -> 0 | AK9: =IFERROR(VLOOKUP($A9,'All Running Order'!$A$6:$CZ$64,AK$102,FALSE),"") -> 0 | AL9: =IFERROR(VLOOKUP($A9,'All Running Order'!$A$6:$CZ$64,AL$102,FALSE),"") -> 1 | AM9: =IFERROR(VLOOKUP($A9,'All Running Order'!$A$6:$CZ$64,AM$102,FALSE),"") -> 10 | AN9: =IFERROR(VLOOKUP($A9,'All Running Order'!$A$6:$CZ$64,AN$102,FALSE),"") -> 3 | AO9: =IFERROR(VLOOKUP($A9,'All Running Order'!$A$6:$CZ$64,AO$102,FALSE),"") -> 0 | AP9: =IFERROR(VLOOKUP($A9,'All Running Order'!$A$6:$CZ$64,AP$102,FALSE),"") -> 0 | AQ9: =IFERROR(VLOOKUP($A9,'All Running Order'!$A$6:$CZ$64,AQ$102,FALSE),"") -> 1 | AR9: =IFERROR(VLOOKUP($A9,'All Running Order'!$A$6:$CZ$64,AR$102,FALSE),"") -> 0 | AS9: =IFERROR(VLOOKUP($A9,'All Running Order'!$A$6:$CZ$64,AS$102,FALSE),"") -> 0 | AT9: =IFERROR(VLOOKUP($A9,'All Running Order'!$A$6:$CZ$64,AT$102,FALSE),"") -> 0 | AU9: =IFERROR(VLOOKUP($A9,'All Running Order'!$A$6:$CZ$64,AU$102,FALSE),"") -> 0 | AV9: =IFERROR(VLOOKUP($A9,'All Running Order'!$A$6:$CZ$64,AV$102,FALSE),"") -> 0 | AW9: =IFERROR(VLOOKUP($A9,'All Running Order'!$A$6:$CZ$64,AW$102,FALSE),"") -> 0 | AX9: =IFERROR(VLOOKUP($A9,'All Running Order'!$A$6:$CZ$64,AX$102,FALSE),"") -> 4 | AY9: =IFERROR(VLOOKUP($A9,'All Running Order'!$A$6:$CZ$64,AY$102,FALSE),"") -> 14 | AZ9: =IFERROR(VLOOKUP($A9,'All Running Order'!$A$6:$CZ$64,AZ$102,FALSE),"") -> 0 | BA9: =IFERROR(VLOOKUP($A9,'All Running Order'!$A$6:$CZ$64,BA$102,FALSE),"") -> 2 | BB9: =IFERROR(VLOOKUP($A9,'All Running Order'!$A$6:$CZ$64,BB$102,FALSE),"") -> 2 | BC9: =IFERROR(VLOOKUP($A9,'All Running Order'!$A$6:$CZ$64,BC$102,FALSE),"") -> 0 | BD9: =IFERROR(VLOOKUP($A9,'All Running Order'!$A$6:$CZ$64,BD$102,FALSE),"") -> 0 | BE9: =IFERROR(VLOOKUP($A9,'All Running Order'!$A$6:$CZ$64,BE$102,FALSE),"") -> 0 | BF9: =IFERROR(VLOOKUP($A9,'All Running Order'!$A$6:$CZ$64,BF$102,FALSE),"") -> 0 | BG9: =IFERROR(VLOOKUP($A9,'All Running Order'!$A$6:$CZ$64,BG$102,FALSE),"") -> 0 | BH9: =IFERROR(VLOOKUP($A9,'All Running Order'!$A$6:$CZ$64,BH$102,FALSE),"") -> 0 | BI9: =IFERROR(VLOOKUP($A9,'All Running Order'!$A$6:$CZ$64,BI$102,FALSE),"") -> 0 | BJ9: =IFERROR(VLOOKUP($A9,'All Running Order'!$A$6:$CZ$64,BJ$102,FALSE),"") -> 4 | BK9: =IFERROR(VLOOKUP($A9,'All Running Order'!$A$6:$CZ$64,BK$102,FALSE),"") -> 18 | BL9: =IFERROR(VLOOKUP($A9,'All Running Order'!$A$6:$CZ$64,BL$102,FALSE),"") -> 0 | BM9: =IFERROR(VLOOKUP($A9,'All Running Order'!$A$6:$CZ$64,BM$102,FALSE),"") -> 0 | BN9: =IFERROR(VLOOKUP($A9,'All Running Order'!$A$6:$CZ$64,BN$102,FALSE),"") -> 0 | BO9: =IFERROR(VLOOKUP($A9,'All Running Order'!$A$6:$CZ$64,BO$102,FALSE),"") -> 0 | BP9: =IFERROR(VLOOKUP($A9,'All Running Order'!$A$6:$CZ$64,BP$102,FALSE),"") -> 0 | BQ9: =IFERROR(VLOOKUP($A9,'All Running Order'!$A$6:$CZ$64,BQ$102,FALSE),"") -> 0 | BR9: =IFERROR(VLOOKUP($A9,'All Running Order'!$A$6:$CZ$64,BR$102,FALSE),"") -> 0 | BS9: =IFERROR(VLOOKUP($A9,'All Running Order'!$A$6:$CZ$64,BS$102,FALSE),"") -> 0 | BT9: =IFERROR(VLOOKUP($A9,'All Running Order'!$A$6:$CZ$64,BT$102,FALSE),"") -> 0 | BU9: =IFERROR(VLOOKUP($A9,'All Running Order'!$A$6:$CZ$64,BU$102,FALSE),"") -> 0 | BV9: =IFERROR(VLOOKUP($A9,'All Running Order'!$A$6:$CZ$64,BV$102,FALSE),"") -> 0 | BW9: =IFERROR(VLOOKUP($A9,'All Running Order'!$A$6:$CZ$64,BW$102,FALSE),"") -> 18 | BX9: =IFERROR(VLOOKUP($A9,'All Running Order'!$A$6:$CZ$64,BX$102,FALSE),"") -> 6 | BY9: =IFERROR(VLOOKUP($A9,'All Running Order'!$A$6:$CZ$64,BY$102,FALSE),"") -> 4 | BZ9: =IFERROR(VLOOKUP($A9,'All Running Order'!$A$6:$CZ$64,BZ$102,FALSE),"") -> 4 | CA9: =IFERROR(VLOOKUP($A9,'All Running Order'!$A$6:$CZ$64,CA$102,FALSE),"") -> 4 | CB9: =IFERROR(VLOOKUP($A9,'All Running Order'!$A$6:$CZ$64,CB$102,FALSE),"") -> 4 | CC9: =IFERROR(VLOOKUP($A9,'All Running Order'!$A$6:$CZ$64,CC$102,FALSE),"") -> 6 | CD9: =IFERROR(VLOOKUP($A9,'All Running Order'!$A$6:$CZ$64,CD$102,FALSE),"") -> 4 | CE9: =IFERROR(VLOOKUP($A9,'All Running Order'!$A$6:$CZ$64,CE$102,FALSE),"") -> 4 | CF9: =IFERROR(VLOOKUP($A9,'All Running Order'!$A$6:$CZ$64,CF$102,FALSE),"") -> 3 | CG9: =IFERROR(VLOOKUP($A9,'All Running Order'!$A$6:$CZ$64,CG$102,FALSE),"") -> 3 | CH9: =IFERROR(VLOOKUP($A9,'All Running Order'!$A$6:$CZ$64,CH$102,FALSE),"") -> 4 | CI9: =IFERROR(VLOOKUP($A9,'All Running Order'!$A$6:$CZ$64,CI$102,FALSE),"") ->  | CJ9: =IFERROR(VLOOKUP($A9,'All Running Order'!$A$6:$CZ$64,CJ$102,FALSE),"") -> - | CK9: =IFERROR(VLOOKUP($A9,'All Running Order'!$A$6:$CZ$64,CK$102,FALSE),"") ->  | CL9: =IFERROR(VLOOKUP($A9,'All Running Order'!$A$6:$CZ$64,CL$102,FALSE),"") -> - | CM9: =IFERROR(VLOOKUP($A9,'All Running Order'!$A$6:$CZ$64,CM$102,FALSE),"") ->  | CN9: =IFERROR(VLOOKUP($A9,'All Running Order'!$A$6:$CZ$64,CN$102,FALSE),"") -> - | CO9: =IFERROR(VLOOKUP($A9,'All Running Order'!$A$6:$CZ$64,CO$102,FALSE),"") ->  | CP9: =IFERROR(VLOOKUP($A9,'All Running Order'!$A$6:$CZ$64,CP$102,FALSE),"") -> - | CQ9: =IFERROR(VLOOKUP($A9,'All Running Order'!$A$6:$CZ$64,CQ$102,FALSE),"") ->  | CR9: =IFERROR(VLOOKUP($A9,'All Running Order'!$A$6:$CZ$64,CR$102,FALSE),"") -> - | CS9: =IFERROR(VLOOKUP($A9,'All Running Order'!$A$6:$CZ$64,CS$102,FALSE),"") ->  | CT9: =IFERROR(VLOOKUP($A9,'All Running Order'!$A$6:$CZ$64,CT$102,FALSE),"") -> - | CU9: =IFERROR(VLOOKUP($A9,'All Running Order'!$A$6:$CZ$64,CU$102,FALSE),"") ->  | CV9: =IFERROR(VLOOKUP($A9,'All Running Order'!$A$6:$CZ$64,CV$102,FALSE),"") -> - | CW9: =IFERROR(VLOOKUP($A9,'All Running Order'!$A$6:$CZ$64,CW$102,FALSE),"") ->  | CX9: =IFERROR(VLOOKUP($A9,'All Running Order'!$A$6:$CZ$64,CX$102,FALSE),"") ->  | CY9: =IFERROR(VLOOKUP($A9,'All Running Order'!$A$6:$CZ$64,CY$102,FALSE),"") -> Red | CZ9: =IFERROR(VLOOKUP($A9,'All Running Order'!$A$6:$CZ$64,CZ$102,FALSE),"") -> IRS
A10: 5 | B10: =IFERROR(VLOOKUP($A10,'All Running Order'!$A$6:$CZ$64,B$102,FALSE),"") -> 3 | C10: =IFERROR(VLOOKUP($A10,'All Running Order'!$A$6:$CZ$64,C$102,FALSE),"") -> George Barnes | D10: =IFERROR(VLOOKUP($A10,'All Running Order'!$A$6:$CZ$64,D$102,FALSE),"") -> Rob Uryc | E10: =IFERROR(VLOOKUP($A10,'All Running Order'!$A$6:$CZ$64,E$102,FALSE),"") -> Sherpa | F10: =IFERROR(VLOOKUP($A10,'All Running Order'!$A$6:$CZ$64,F$102,FALSE),"") -> 0 | G10: =IFERROR(VLOOKUP($A10,'All Running Order'!$A$6:$CZ$64,G$102,FALSE),"") -> Live | H10: =IFERROR(VLOOKUP($A10,'All Running Order'!$A$6:$CZ$64,H$102,FALSE),"") -> Yes | I10: =IFERROR(VLOOKUP($A10,'All Running Order'!$A$6:$CZ$64,I$102,FALSE),"") -> 0 | J10: =IFERROR(VLOOKUP($A10,'All Running Order'!$A$6:$CZ$64,J$102,FALSE),"") -> 0 | K10: =IFERROR(VLOOKUP($A10,'All Running Order'!$A$6:$CZ$64,K$102,FALSE),"") -> 0 | L10: =IFERROR(VLOOKUP($A10,'All Running Order'!$A$6:$CZ$64,L$102,FALSE),"") -> 0 | M10: =IFERROR(VLOOKUP($A10,'All Running Order'!$A$6:$CZ$64,M$102,FALSE),"") -> 0 | N10: =IFERROR(VLOOKUP($A10,'All Running Order'!$A$6:$CZ$64,N$102,FALSE),"") -> 0 | O10: =IFERROR(VLOOKUP($A10,'All Running Order'!$A$6:$CZ$64,O$102,FALSE),"") -> 0 | P10: =IFERROR(VLOOKUP($A10,'All Running Order'!$A$6:$CZ$64,P$102,FALSE),"") -> Red | Q10: =IFERROR(VLOOKUP($A10,'All Running Order'!$A$6:$CZ$64,Q$102,FALSE),"") -> 0 | R10: =IFERROR(VLOOKUP($A10,'All Running Order'!$A$6:$CZ$64,R$102,FALSE),"") -> 0 | S10: =IFERROR(VLOOKUP($A10,'All Running Order'!$A$6:$CZ$64,S$102,FALSE),"") -> 2 | T10: =IFERROR(VLOOKUP($A10,'All Running Order'!$A$6:$CZ$64,T$102,FALSE),"") -> 0 | U10: =IFERROR(VLOOKUP($A10,'All Running Order'!$A$6:$CZ$64,U$102,FALSE),"") -> 1 | V10: =IFERROR(VLOOKUP($A10,'All Running Order'!$A$6:$CZ$64,V$102,FALSE),"") -> 1 | W10: =IFERROR(VLOOKUP($A10,'All Running Order'!$A$6:$CZ$64,W$102,FALSE),"") -> 0 | X10: =IFERROR(VLOOKUP($A10,'All Running Order'!$A$6:$CZ$64,X$102,FALSE),"") -> 0 | Y10: =IFERROR(VLOOKUP($A10,'All Running Order'!$A$6:$CZ$64,Y$102,FALSE),"") -> 0 | Z10: =IFERROR(VLOOKUP($A10,'All Running Order'!$A$6:$CZ$64,Z$102,FALSE),"") -> 0 | AA10: =IFERROR(VLOOKUP($A10,'All Running Order'!$A$6:$CZ$64,AA$102,FALSE),"") -> 4 | AB10: =IFERROR(VLOOKUP($A10,'All Running Order'!$A$6:$CZ$64,AB$102,FALSE),"") -> 0 | AC10: =IFERROR(VLOOKUP($A10,'All Running Order'!$A$6:$CZ$64,AC$102,FALSE),"") -> 0 | AD10: =IFERROR(VLOOKUP($A10,'All Running Order'!$A$6:$CZ$64,AD$102,FALSE),"") -> 1 | AE10: =IFERROR(VLOOKUP($A10,'All Running Order'!$A$6:$CZ$64,AE$102,FALSE),"") -> 1 | AF10: =IFERROR(VLOOKUP($A10,'All Running Order'!$A$6:$CZ$64,AF$102,FALSE),"") -> 6 | AG10: =IFERROR(VLOOKUP($A10,'All Running Order'!$A$6:$CZ$64,AG$102,FALSE),"") -> 0 | AH10: =IFERROR(VLOOKUP($A10,'All Running Order'!$A$6:$CZ$64,AH$102,FALSE),"") -> 0 | AI10: =IFERROR(VLOOKUP($A10,'All Running Order'!$A$6:$CZ$64,AI$102,FALSE),"") -> 0 | AJ10: =IFERROR(VLOOKUP($A10,'All Running Order'!$A$6:$CZ$64,AJ$102,FALSE),"") -> 0 | AK10: =IFERROR(VLOOKUP($A10,'All Running Order'!$A$6:$CZ$64,AK$102,FALSE),"") -> 0 | AL10: =IFERROR(VLOOKUP($A10,'All Running Order'!$A$6:$CZ$64,AL$102,FALSE),"") -> 8 | AM10: =IFERROR(VLOOKUP($A10,'All Running Order'!$A$6:$CZ$64,AM$102,FALSE),"") -> 12 | AN10: =IFERROR(VLOOKUP($A10,'All Running Order'!$A$6:$CZ$64,AN$102,FALSE),"") -> 0 | AO10: =IFERROR(VLOOKUP($A10,'All Running Order'!$A$6:$CZ$64,AO$102,FALSE),"") -> 2 | AP10: =IFERROR(VLOOKUP($A10,'All Running Order'!$A$6:$CZ$64,AP$102,FALSE),"") -> 0 | AQ10: =IFERROR(VLOOKUP($A10,'All Running Order'!$A$6:$CZ$64,AQ$102,FALSE),"") -> 1 | AR10: =IFERROR(VLOOKUP($A10,'All Running Order'!$A$6:$CZ$64,AR$102,FALSE),"") -> 0 | AS10: =IFERROR(VLOOKUP($A10,'All Running Order'!$A$6:$CZ$64,AS$102,FALSE),"") -> 0 | AT10: =IFERROR(VLOOKUP($A10,'All Running Order'!$A$6:$CZ$64,AT$102,FALSE),"") -> 0 | AU10: =IFERROR(VLOOKUP($A10,'All Running Order'!$A$6:$CZ$64,AU$102,FALSE),"") -> 0 | AV10: =IFERROR(VLOOKUP($A10,'All Running Order'!$A$6:$CZ$64,AV$102,FALSE),"") -> 0 | AW10: =IFERROR(VLOOKUP($A10,'All Running Order'!$A$6:$CZ$64,AW$102,FALSE),"") -> 0 | AX10: =IFERROR(VLOOKUP($A10,'All Running Order'!$A$6:$CZ$64,AX$102,FALSE),"") -> 3 | AY10: =IFERROR(VLOOKUP($A10,'All Running Order'!$A$6:$CZ$64,AY$102,FALSE),"") -> 15 | AZ10: =IFERROR(VLOOKUP($A10,'All Running Order'!$A$6:$CZ$64,AZ$102,FALSE),"") -> 0 | BA10: =IFERROR(VLOOKUP($A10,'All Running Order'!$A$6:$CZ$64,BA$102,FALSE),"") -> 2 | BB10: =IFERROR(VLOOKUP($A10,'All Running Order'!$A$6:$CZ$64,BB$102,FALSE),"") -> 0 | BC10: =IFERROR(VLOOKUP($A10,'All Running Order'!$A$6:$CZ$64,BC$102,FALSE),"") -> 1 | BD10: =IFERROR(VLOOKUP($A10,'All Running Order'!$A$6:$CZ$64,BD$102,FALSE),"") -> 1 | BE10: =IFERROR(VLOOKUP($A10,'All Running Order'!$A$6:$CZ$64,BE$102,FALSE),"") -> 0 | BF10: =IFERROR(VLOOKUP($A10,'All Running Order'!$A$6:$CZ$64,BF$102,FALSE),"") -> 0 | BG10: =IFERROR(VLOOKUP($A10,'All Running Order'!$A$6:$CZ$64,BG$102,FALSE),"") -> 0 | BH10: =IFERROR(VLOOKUP($A10,'All Running Order'!$A$6:$CZ$64,BH$102,FALSE),"") -> 0 | BI10: =IFERROR(VLOOKUP($A10,'All Running Order'!$A$6:$CZ$64,BI$102,FALSE),"") -> 0 | BJ10: =IFERROR(VLOOKUP($A10,'All Running Order'!$A$6:$CZ$64,BJ$102,FALSE),"") -> 4 | BK10: =IFERROR(VLOOKUP($A10,'All Running Order'!$A$6:$CZ$64,BK$102,FALSE),"") -> 19 | BL10: =IFERROR(VLOOKUP($A10,'All Running Order'!$A$6:$CZ$64,BL$102,FALSE),"") -> 0 | BM10: =IFERROR(VLOOKUP($A10,'All Running Order'!$A$6:$CZ$64,BM$102,FALSE),"") -> 0 | BN10: =IFERROR(VLOOKUP($A10,'All Running Order'!$A$6:$CZ$64,BN$102,FALSE),"") -> 0 | BO10: =IFERROR(VLOOKUP($A10,'All Running Order'!$A$6:$CZ$64,BO$102,FALSE),"") -> 0 | BP10: =IFERROR(VLOOKUP($A10,'All Running Order'!$A$6:$CZ$64,BP$102,FALSE),"") -> 0 | BQ10: =IFERROR(VLOOKUP($A10,'All Running Order'!$A$6:$CZ$64,BQ$102,FALSE),"") -> 0 | BR10: =IFERROR(VLOOKUP($A10,'All Running Order'!$A$6:$CZ$64,BR$102,FALSE),"") -> 0 | BS10: =IFERROR(VLOOKUP($A10,'All Running Order'!$A$6:$CZ$64,BS$102,FALSE),"") -> 0 | BT10: =IFERROR(VLOOKUP($A10,'All Running Order'!$A$6:$CZ$64,BT$102,FALSE),"") -> 0 | BU10: =IFERROR(VLOOKUP($A10,'All Running Order'!$A$6:$CZ$64,BU$102,FALSE),"") -> 0 | BV10: =IFERROR(VLOOKUP($A10,'All Running Order'!$A$6:$CZ$64,BV$102,FALSE),"") -> 0 | BW10: =IFERROR(VLOOKUP($A10,'All Running Order'!$A$6:$CZ$64,BW$102,FALSE),"") -> 19 | BX10: =IFERROR(VLOOKUP($A10,'All Running Order'!$A$6:$CZ$64,BX$102,FALSE),"") -> 1 | BY10: =IFERROR(VLOOKUP($A10,'All Running Order'!$A$6:$CZ$64,BY$102,FALSE),"") -> 5 | BZ10: =IFERROR(VLOOKUP($A10,'All Running Order'!$A$6:$CZ$64,BZ$102,FALSE),"") -> 5 | CA10: =IFERROR(VLOOKUP($A10,'All Running Order'!$A$6:$CZ$64,CA$102,FALSE),"") -> 5 | CB10: =IFERROR(VLOOKUP($A10,'All Running Order'!$A$6:$CZ$64,CB$102,FALSE),"") -> 5 | CC10: =IFERROR(VLOOKUP($A10,'All Running Order'!$A$6:$CZ$64,CC$102,FALSE),"") -> 1 | CD10: =IFERROR(VLOOKUP($A10,'All Running Order'!$A$6:$CZ$64,CD$102,FALSE),"") -> 5 | CE10: =IFERROR(VLOOKUP($A10,'All Running Order'!$A$6:$CZ$64,CE$102,FALSE),"") -> 5 | CF10: =IFERROR(VLOOKUP($A10,'All Running Order'!$A$6:$CZ$64,CF$102,FALSE),"") -> 5 | CG10: =IFERROR(VLOOKUP($A10,'All Running Order'!$A$6:$CZ$64,CG$102,FALSE),"") -> 5 | CH10: =IFERROR(VLOOKUP($A10,'All Running Order'!$A$6:$CZ$64,CH$102,FALSE),"") -> 5 | CI10: =IFERROR(VLOOKUP($A10,'All Running Order'!$A$6:$CZ$64,CI$102,FALSE),"") ->  | CJ10: =IFERROR(VLOOKUP($A10,'All Running Order'!$A$6:$CZ$64,CJ$102,FALSE),"") -> - | CK10: =IFERROR(VLOOKUP($A10,'All Running Order'!$A$6:$CZ$64,CK$102,FALSE),"") ->  | CL10: =IFERROR(VLOOKUP($A10,'All Running Order'!$A$6:$CZ$64,CL$102,FALSE),"") -> - | CM10: =IFERROR(VLOOKUP($A10,'All Running Order'!$A$6:$CZ$64,CM$102,FALSE),"") ->  | CN10: =IFERROR(VLOOKUP($A10,'All Running Order'!$A$6:$CZ$64,CN$102,FALSE),"") -> - | CO10: =IFERROR(VLOOKUP($A10,'All Running Order'!$A$6:$CZ$64,CO$102,FALSE),"") ->  | CP10: =IFERROR(VLOOKUP($A10,'All Running Order'!$A$6:$CZ$64,CP$102,FALSE),"") -> - | CQ10: =IFERROR(VLOOKUP($A10,'All Running Order'!$A$6:$CZ$64,CQ$102,FALSE),"") ->  | CR10: =IFERROR(VLOOKUP($A10,'All Running Order'!$A$6:$CZ$64,CR$102,FALSE),"") -> - | CS10: =IFERROR(VLOOKUP($A10,'All Running Order'!$A$6:$CZ$64,CS$102,FALSE),"") ->  | CT10: =IFERROR(VLOOKUP($A10,'All Running Order'!$A$6:$CZ$64,CT$102,FALSE),"") -> - | CU10: =IFERROR(VLOOKUP($A10,'All Running Order'!$A$6:$CZ$64,CU$102,FALSE),"") ->  | CV10: =IFERROR(VLOOKUP($A10,'All Running Order'!$A$6:$CZ$64,CV$102,FALSE),"") -> 5 | CW10: =IFERROR(VLOOKUP($A10,'All Running Order'!$A$6:$CZ$64,CW$102,FALSE),"") ->  | CX10: =IFERROR(VLOOKUP($A10,'All Running Order'!$A$6:$CZ$64,CX$102,FALSE),"") ->  | CY10: =IFERROR(VLOOKUP($A10,'All Running Order'!$A$6:$CZ$64,CY$102,FALSE),"") -> Red | CZ10: =IFERROR(VLOOKUP($A10,'All Running Order'!$A$6:$CZ$64,CZ$102,FALSE),"") -> Live
A11: 6 | B11: =IFERROR(VLOOKUP($A11,'All Running Order'!$A$6:$CZ$64,B$102,FALSE),"") -> 6 | C11: =IFERROR(VLOOKUP($A11,'All Running Order'!$A$6:$CZ$64,C$102,FALSE),"") -> Peter Fensom | D11: =IFERROR(VLOOKUP($A11,'All Running Order'!$A$6:$CZ$64,D$102,FALSE),"") -> Liz Fensom | E11: =IFERROR(VLOOKUP($A11,'All Running Order'!$A$6:$CZ$64,E$102,FALSE),"") -> Hamilton | F11: =IFERROR(VLOOKUP($A11,'All Running Order'!$A$6:$CZ$64,F$102,FALSE),"") -> 0 | G11: =IFERROR(VLOOKUP($A11,'All Running Order'!$A$6:$CZ$64,G$102,FALSE),"") -> IRS | H11: =IFERROR(VLOOKUP($A11,'All Running Order'!$A$6:$CZ$64,H$102,FALSE),"") -> Yes | I11: =IFERROR(VLOOKUP($A11,'All Running Order'!$A$6:$CZ$64,I$102,FALSE),"") -> 0 | J11: =IFERROR(VLOOKUP($A11,'All Running Order'!$A$6:$CZ$64,J$102,FALSE),"") -> 0 | K11: =IFERROR(VLOOKUP($A11,'All Running Order'!$A$6:$CZ$64,K$102,FALSE),"") -> 0 | L11: =IFERROR(VLOOKUP($A11,'All Running Order'!$A$6:$CZ$64,L$102,FALSE),"") -> 0 | M11: =IFERROR(VLOOKUP($A11,'All Running Order'!$A$6:$CZ$64,M$102,FALSE),"") -> 0 | N11: =IFERROR(VLOOKUP($A11,'All Running Order'!$A$6:$CZ$64,N$102,FALSE),"") -> 0 | O11: =IFERROR(VLOOKUP($A11,'All Running Order'!$A$6:$CZ$64,O$102,FALSE),"") -> 0 | P11: =IFERROR(VLOOKUP($A11,'All Running Order'!$A$6:$CZ$64,P$102,FALSE),"") -> Red | Q11: =IFERROR(VLOOKUP($A11,'All Running Order'!$A$6:$CZ$64,Q$102,FALSE),"") -> 0 | R11: =IFERROR(VLOOKUP($A11,'All Running Order'!$A$6:$CZ$64,R$102,FALSE),"") -> 2 | S11: =IFERROR(VLOOKUP($A11,'All Running Order'!$A$6:$CZ$64,S$102,FALSE),"") -> 2 | T11: =IFERROR(VLOOKUP($A11,'All Running Order'!$A$6:$CZ$64,T$102,FALSE),"") -> 0 | U11: =IFERROR(VLOOKUP($A11,'All Running Order'!$A$6:$CZ$64,U$102,FALSE),"") -> 2 | V11: =IFERROR(VLOOKUP($A11,'All Running Order'!$A$6:$CZ$64,V$102,FALSE),"") -> 1 | W11: =IFERROR(VLOOKUP($A11,'All Running Order'!$A$6:$CZ$64,W$102,FALSE),"") -> 0 | X11: =IFERROR(VLOOKUP($A11,'All Running Order'!$A$6:$CZ$64,X$102,FALSE),"") -> 0 | Y11: =IFERROR(VLOOKUP($A11,'All Running Order'!$A$6:$CZ$64,Y$102,FALSE),"") -> 0 | Z11: =IFERROR(VLOOKUP($A11,'All Running Order'!$A$6:$CZ$64,Z$102,FALSE),"") -> 0 | AA11: =IFERROR(VLOOKUP($A11,'All Running Order'!$A$6:$CZ$64,AA$102,FALSE),"") -> 7 | AB11: =IFERROR(VLOOKUP($A11,'All Running Order'!$A$6:$CZ$64,AB$102,FALSE),"") -> 0 | AC11: =IFERROR(VLOOKUP($A11,'All Running Order'!$A$6:$CZ$64,AC$102,FALSE),"") -> 0 | AD11: =IFERROR(VLOOKUP($A11,'All Running Order'!$A$6:$CZ$64,AD$102,FALSE),"") -> 2 | AE11: =IFERROR(VLOOKUP($A11,'All Running Order'!$A$6:$CZ$64,AE$102,FALSE),"") -> 4 | AF11: =IFERROR(VLOOKUP($A11,'All Running Order'!$A$6:$CZ$64,AF$102,FALSE),"") -> 2 | AG11: =IFERROR(VLOOKUP($A11,'All Running Order'!$A$6:$CZ$64,AG$102,FALSE),"") -> 0 | AH11: =IFERROR(VLOOKUP($A11,'All Running Order'!$A$6:$CZ$64,AH$102,FALSE),"") -> 0 | AI11: =IFERROR(VLOOKUP($A11,'All Running Order'!$A$6:$CZ$64,AI$102,FALSE),"") -> 0 | AJ11: =IFERROR(VLOOKUP($A11,'All Running Order'!$A$6:$CZ$64,AJ$102,FALSE),"") -> 0 | AK11: =IFERROR(VLOOKUP($A11,'All Running Order'!$A$6:$CZ$64,AK$102,FALSE),"") -> 0 | AL11: =IFERROR(VLOOKUP($A11,'All Running Order'!$A$6:$CZ$64,AL$102,FALSE),"") -> 8 | AM11: =IFERROR(VLOOKUP($A11,'All Running Order'!$A$6:$CZ$64,AM$102,FALSE),"") -> 15 | AN11: =IFERROR(VLOOKUP($A11,'All Running Order'!$A$6:$CZ$64,AN$102,FALSE),"") -> 0 | AO11: =IFERROR(VLOOKUP($A11,'All Running Order'!$A$6:$CZ$64,AO$102,FALSE),"") -> 2 | AP11: =IFERROR(VLOOKUP($A11,'All Running Order'!$A$6:$CZ$64,AP$102,FALSE),"") -> 2 | AQ11: =IFERROR(VLOOKUP($A11,'All Running Order'!$A$6:$CZ$64,AQ$102,FALSE),"") -> 1 | AR11: =IFERROR(VLOOKUP($A11,'All Running Order'!$A$6:$CZ$64,AR$102,FALSE),"") -> 0 | AS11: =IFERROR(VLOOKUP($A11,'All Running Order'!$A$6:$CZ$64,AS$102,FALSE),"") -> 0 | AT11: =IFERROR(VLOOKUP($A11,'All Running Order'!$A$6:$CZ$64,AT$102,FALSE),"") -> 0 | AU11: =IFERROR(VLOOKUP($A11,'All Running Order'!$A$6:$CZ$64,AU$102,FALSE),"") -> 0 | AV11: =IFERROR(VLOOKUP($A11,'All Running Order'!$A$6:$CZ$64,AV$102,FALSE),"") -> 0 | AW11: =IFERROR(VLOOKUP($A11,'All Running Order'!$A$6:$CZ$64,AW$102,FALSE),"") -> 0 | AX11: =IFERROR(VLOOKUP($A11,'All Running Order'!$A$6:$CZ$64,AX$102,FALSE),"") -> 5 | AY11: =IFERROR(VLOOKUP($A11,'All Running Order'!$A$6:$CZ$64,AY$102,FALSE),"") -> 20 | AZ11: =IFERROR(VLOOKUP($A11,'All Running Order'!$A$6:$CZ$64,AZ$102,FALSE),"") -> 12 | BA11: =IFERROR(VLOOKUP($A11,'All Running Order'!$A$6:$CZ$64,BA$102,FALSE),"") -> 2 | BB11: =IFERROR(VLOOKUP($A11,'All Running Order'!$A$6:$CZ$64,BB$102,FALSE),"") -> 2 | BC11: =IFERROR(VLOOKUP($A11,'All Running Order'!$A$6:$CZ$64,BC$102,FALSE),"") -> 2 | BD11: =IFERROR(VLOOKUP($A11,'All Running Order'!$A$6:$CZ$64,BD$102,FALSE),"") -> 2 | BE11: =IFERROR(VLOOKUP($A11,'All Running Order'!$A$6:$CZ$64,BE$102,FALSE),"") -> 0 | BF11: =IFERROR(VLOOKUP($A11,'All Running Order'!$A$6:$CZ$64,BF$102,FALSE),"") -> 0 | BG11: =IFERROR(VLOOKUP($A11,'All Running Order'!$A$6:$CZ$64,BG$102,FALSE),"") -> 0 | BH11: =IFERROR(VLOOKUP($A11,'All Running Order'!$A$6:$CZ$64,BH$102,FALSE),"") -> 0 | BI11: =IFERROR(VLOOKUP($A11,'All Running Order'!$A$6:$CZ$64,BI$102,FALSE),"") -> 0 | BJ11: =IFERROR(VLOOKUP($A11,'All Running Order'!$A$6:$CZ$64,BJ$102,FALSE),"") -> 20 | BK11: =IFERROR(VLOOKUP($A11,'All Running Order'!$A$6:$CZ$64,BK$102,FALSE),"") -> 40 | BL11: =IFERROR(VLOOKUP($A11,'All Running Order'!$A$6:$CZ$64,BL$102,FALSE),"") -> 0 | BM11: =IFERROR(VLOOKUP($A11,'All Running Order'!$A$6:$CZ$64,BM$102,FALSE),"") -> 0 | BN11: =IFERROR(VLOOKUP($A11,'All Running Order'!$A$6:$CZ$64,BN$102,FALSE),"") -> 0 | BO11: =IFERROR(VLOOKUP($A11,'All Running Order'!$A$6:$CZ$64,BO$102,FALSE),"") -> 0 | BP11: =IFERROR(VLOOKUP($A11,'All Running Order'!$A$6:$CZ$64,BP$102,FALSE),"") -> 0 | BQ11: =IFERROR(VLOOKUP($A11,'All Running Order'!$A$6:$CZ$64,BQ$102,FALSE),"") -> 0 | BR11: =IFERROR(VLOOKUP($A11,'All Running Order'!$A$6:$CZ$64,BR$102,FALSE),"") -> 0 | BS11: =IFERROR(VLOOKUP($A11,'All Running Order'!$A$6:$CZ$64,BS$102,FALSE),"") -> 0 | BT11: =IFERROR(VLOOKUP($A11,'All Running Order'!$A$6:$CZ$64,BT$102,FALSE),"") -> 0 | BU11: =IFERROR(VLOOKUP($A11,'All Running Order'!$A$6:$CZ$64,BU$102,FALSE),"") -> 0 | BV11: =IFERROR(VLOOKUP($A11,'All Running Order'!$A$6:$CZ$64,BV$102,FALSE),"") -> 0 | BW11: =IFERROR(VLOOKUP($A11,'All Running Order'!$A$6:$CZ$64,BW$102,FALSE),"") -> 40 | BX11: =IFERROR(VLOOKUP($A11,'All Running Order'!$A$6:$CZ$64,BX$102,FALSE),"") -> 5 | BY11: =IFERROR(VLOOKUP($A11,'All Running Order'!$A$6:$CZ$64,BY$102,FALSE),"") -> 6 | BZ11: =IFERROR(VLOOKUP($A11,'All Running Order'!$A$6:$CZ$64,BZ$102,FALSE),"") -> 6 | CA11: =IFERROR(VLOOKUP($A11,'All Running Order'!$A$6:$CZ$64,CA$102,FALSE),"") -> 6 | CB11: =IFERROR(VLOOKUP($A11,'All Running Order'!$A$6:$CZ$64,CB$102,FALSE),"") -> 6 | CC11: =IFERROR(VLOOKUP($A11,'All Running Order'!$A$6:$CZ$64,CC$102,FALSE),"") -> 5 | CD11: =IFERROR(VLOOKUP($A11,'All Running Order'!$A$6:$CZ$64,CD$102,FALSE),"") -> 6 | CE11: =IFERROR(VLOOKUP($A11,'All Running Order'!$A$6:$CZ$64,CE$102,FALSE),"") -> 6 | CF11: =IFERROR(VLOOKUP($A11,'All Running Order'!$A$6:$CZ$64,CF$102,FALSE),"") -> 6 | CG11: =IFERROR(VLOOKUP($A11,'All Running Order'!$A$6:$CZ$64,CG$102,FALSE),"") -> 6 | CH11: =IFERROR(VLOOKUP($A11,'All Running Order'!$A$6:$CZ$64,CH$102,FALSE),"") -> 6 | CI11: =IFERROR(VLOOKUP($A11,'All Running Order'!$A$6:$CZ$64,CI$102,FALSE),"") ->  | CJ11: =IFERROR(VLOOKUP($A11,'All Running Order'!$A$6:$CZ$64,CJ$102,FALSE),"") -> - | CK11: =IFERROR(VLOOKUP($A11,'All Running Order'!$A$6:$CZ$64,CK$102,FALSE),"") ->  | CL11: =IFERROR(VLOOKUP($A11,'All Running Order'!$A$6:$CZ$64,CL$102,FALSE),"") -> - | CM11: =IFERROR(VLOOKUP($A11,'All Running Order'!$A$6:$CZ$64,CM$102,FALSE),"") ->  | CN11: =IFERROR(VLOOKUP($A11,'All Running Order'!$A$6:$CZ$64,CN$102,FALSE),"") -> - | CO11: =IFERROR(VLOOKUP($A11,'All Running Order'!$A$6:$CZ$64,CO$102,FALSE),"") ->  | CP11: =IFERROR(VLOOKUP($A11,'All Running Order'!$A$6:$CZ$64,CP$102,FALSE),"") -> - | CQ11: =IFERROR(VLOOKUP($A11,'All Running Order'!$A$6:$CZ$64,CQ$102,FALSE),"") ->  | CR11: =IFERROR(VLOOKUP($A11,'All Running Order'!$A$6:$CZ$64,CR$102,FALSE),"") -> - | CS11: =IFERROR(VLOOKUP($A11,'All Running Order'!$A$6:$CZ$64,CS$102,FALSE),"") ->  | CT11: =IFERROR(VLOOKUP($A11,'All Running Order'!$A$6:$CZ$64,CT$102,FALSE),"") -> - | CU11: =IFERROR(VLOOKUP($A11,'All Running Order'!$A$6:$CZ$64,CU$102,FALSE),"") ->  | CV11: =IFERROR(VLOOKUP($A11,'All Running Order'!$A$6:$CZ$64,CV$102,FALSE),"") -> - | CW11: =IFERROR(VLOOKUP($A11,'All Running Order'!$A$6:$CZ$64,CW$102,FALSE),"") ->  | CX11: =IFERROR(VLOOKUP($A11,'All Running Order'!$A$6:$CZ$64,CX$102,FALSE),"") ->  | CY11: =IFERROR(VLOOKUP($A11,'All Running Order'!$A$6:$CZ$64,CY$102,FALSE),"") -> Red | CZ11: =IFERROR(VLOOKUP($A11,'All Running Order'!$A$6:$CZ$64,CZ$102,FALSE),"") -> IRS
A12: 7 | B12: =IFERROR(VLOOKUP($A12,'All Running Order'!$A$6:$CZ$64,B$102,FALSE),"") -> 12 | C12: =IFERROR(VLOOKUP($A12,'All Running Order'!$A$6:$CZ$64,C$102,FALSE),"") -> Stephen Barnes | D12: =IFERROR(VLOOKUP($A12,'All Running Order'!$A$6:$CZ$64,D$102,FALSE),"") -> John Miller | E12: =IFERROR(VLOOKUP($A12,'All Running Order'!$A$6:$CZ$64,E$102,FALSE),"") -> Sherpa | F12: =IFERROR(VLOOKUP($A12,'All Running Order'!$A$6:$CZ$64,F$102,FALSE),"") -> 0 | G12: =IFERROR(VLOOKUP($A12,'All Running Order'!$A$6:$CZ$64,G$102,FALSE),"") -> Live | H12: =IFERROR(VLOOKUP($A12,'All Running Order'!$A$6:$CZ$64,H$102,FALSE),"") -> Yes | I12: =IFERROR(VLOOKUP($A12,'All Running Order'!$A$6:$CZ$64,I$102,FALSE),"") -> 0 | J12: =IFERROR(VLOOKUP($A12,'All Running Order'!$A$6:$CZ$64,J$102,FALSE),"") -> 0 | K12: =IFERROR(VLOOKUP($A12,'All Running Order'!$A$6:$CZ$64,K$102,FALSE),"") -> 0 | L12: =IFERROR(VLOOKUP($A12,'All Running Order'!$A$6:$CZ$64,L$102,FALSE),"") -> 0 | M12: =IFERROR(VLOOKUP($A12,'All Running Order'!$A$6:$CZ$64,M$102,FALSE),"") -> 0 | N12: =IFERROR(VLOOKUP($A12,'All Running Order'!$A$6:$CZ$64,N$102,FALSE),"") -> 0 | O12: =IFERROR(VLOOKUP($A12,'All Running Order'!$A$6:$CZ$64,O$102,FALSE),"") -> 0 | P12: =IFERROR(VLOOKUP($A12,'All Running Order'!$A$6:$CZ$64,P$102,FALSE),"") -> Red | Q12: =IFERROR(VLOOKUP($A12,'All Running Order'!$A$6:$CZ$64,Q$102,FALSE),"") -> 0 | R12: =IFERROR(VLOOKUP($A12,'All Running Order'!$A$6:$CZ$64,R$102,FALSE),"") -> 2 | S12: =IFERROR(VLOOKUP($A12,'All Running Order'!$A$6:$CZ$64,S$102,FALSE),"") -> 0 | T12: =IFERROR(VLOOKUP($A12,'All Running Order'!$A$6:$CZ$64,T$102,FALSE),"") -> 0 | U12: =IFERROR(VLOOKUP($A12,'All Running Order'!$A$6:$CZ$64,U$102,FALSE),"") -> 5 | V12: =IFERROR(VLOOKUP($A12,'All Running Order'!$A$6:$CZ$64,V$102,FALSE),"") -> 2 | W12: =IFERROR(VLOOKUP($A12,'All Running Order'!$A$6:$CZ$64,W$102,FALSE),"") -> 0 | X12: =IFERROR(VLOOKUP($A12,'All Running Order'!$A$6:$CZ$64,X$102,FALSE),"") -> 0 | Y12: =IFERROR(VLOOKUP($A12,'All Running Order'!$A$6:$CZ$64,Y$102,FALSE),"") -> 0 | Z12: =IFERROR(VLOOKUP($A12,'All Running Order'!$A$6:$CZ$64,Z$102,FALSE),"") -> 0 | AA12: =IFERROR(VLOOKUP($A12,'All Running Order'!$A$6:$CZ$64,AA$102,FALSE),"") -> 9 | AB12: =IFERROR(VLOOKUP($A12,'All Running Order'!$A$6:$CZ$64,AB$102,FALSE),"") -> 12 | AC12: =IFERROR(VLOOKUP($A12,'All Running Order'!$A$6:$CZ$64,AC$102,FALSE),"") -> 2 | AD12: =IFERROR(VLOOKUP($A12,'All Running Order'!$A$6:$CZ$64,AD$102,FALSE),"") -> 0 | AE12: =IFERROR(VLOOKUP($A12,'All Running Order'!$A$6:$CZ$64,AE$102,FALSE),"") -> 2 | AF12: =IFERROR(VLOOKUP($A12,'All Running Order'!$A$6:$CZ$64,AF$102,FALSE),"") -> 2 | AG12: =IFERROR(VLOOKUP($A12,'All Running Order'!$A$6:$CZ$64,AG$102,FALSE),"") -> 2 | AH12: =IFERROR(VLOOKUP($A12,'All Running Order'!$A$6:$CZ$64,AH$102,FALSE),"") -> 0 | AI12: =IFERROR(VLOOKUP($A12,'All Running Order'!$A$6:$CZ$64,AI$102,FALSE),"") -> 0 | AJ12: =IFERROR(VLOOKUP($A12,'All Running Order'!$A$6:$CZ$64,AJ$102,FALSE),"") -> 0 | AK12: =IFERROR(VLOOKUP($A12,'All Running Order'!$A$6:$CZ$64,AK$102,FALSE),"") -> 0 | AL12: =IFERROR(VLOOKUP($A12,'All Running Order'!$A$6:$CZ$64,AL$102,FALSE),"") -> 20 | AM12: =IFERROR(VLOOKUP($A12,'All Running Order'!$A$6:$CZ$64,AM$102,FALSE),"") -> 29 | AN12: =IFERROR(VLOOKUP($A12,'All Running Order'!$A$6:$CZ$64,AN$102,FALSE),"") -> 3 | AO12: =IFERROR(VLOOKUP($A12,'All Running Order'!$A$6:$CZ$64,AO$102,FALSE),"") -> 2 | AP12: =IFERROR(VLOOKUP($A12,'All Running Order'!$A$6:$CZ$64,AP$102,FALSE),"") -> 0 | AQ12: =IFERROR(VLOOKUP($A12,'All Running Order'!$A$6:$CZ$64,AQ$102,FALSE),"") -> 3 | AR12: =IFERROR(VLOOKUP($A12,'All Running Order'!$A$6:$CZ$64,AR$102,FALSE),"") -> 2 | AS12: =IFERROR(VLOOKUP($A12,'All Running Order'!$A$6:$CZ$64,AS$102,FALSE),"") -> 0 | AT12: =IFERROR(VLOOKUP($A12,'All Running Order'!$A$6:$CZ$64,AT$102,FALSE),"") -> 0 | AU12: =IFERROR(VLOOKUP($A12,'All Running Order'!$A$6:$CZ$64,AU$102,FALSE),"") -> 0 | AV12: =IFERROR(VLOOKUP($A12,'All Running Order'!$A$6:$CZ$64,AV$102,FALSE),"") -> 0 | AW12: =IFERROR(VLOOKUP($A12,'All Running Order'!$A$6:$CZ$64,AW$102,FALSE),"") -> 0 | AX12: =IFERROR(VLOOKUP($A12,'All Running Order'!$A$6:$CZ$64,AX$102,FALSE),"") -> 10 | AY12: =IFERROR(VLOOKUP($A12,'All Running Order'!$A$6:$CZ$64,AY$102,FALSE),"") -> 39 | AZ12: =IFERROR(VLOOKUP($A12,'All Running Order'!$A$6:$CZ$64,AZ$102,FALSE),"") -> 2 | BA12: =IFERROR(VLOOKUP($A12,'All Running Order'!$A$6:$CZ$64,BA$102,FALSE),"") -> 2 | BB12: =IFERROR(VLOOKUP($A12,'All Running Order'!$A$6:$CZ$64,BB$102,FALSE),"") -> 1 | BC12: =IFERROR(VLOOKUP($A12,'All Running Order'!$A$6:$CZ$64,BC$102,FALSE),"") -> 0 | BD12: =IFERROR(VLOOKUP($A12,'All Running Order'!$A$6:$CZ$64,BD$102,FALSE),"") -> 2 | BE12: =IFERROR(VLOOKUP($A12,'All Running Order'!$A$6:$CZ$64,BE$102,FALSE),"") -> 5 | BF12: =IFERROR(VLOOKUP($A12,'All Running Order'!$A$6:$CZ$64,BF$102,FALSE),"") -> 0 | BG12: =IFERROR(VLOOKUP($A12,'All Running Order'!$A$6:$CZ$64,BG$102,FALSE),"") -> 0 | BH12: =IFERROR(VLOOKUP($A12,'All Running Order'!$A$6:$CZ$64,BH$102,FALSE),"") -> 0 | BI12: =IFERROR(VLOOKUP($A12,'All Running Order'!$A$6:$CZ$64,BI$102,FALSE),"") -> 0 | BJ12: =IFERROR(VLOOKUP($A12,'All Running Order'!$A$6:$CZ$64,BJ$102,FALSE),"") -> 12 | BK12: =IFERROR(VLOOKUP($A12,'All Running Order'!$A$6:$CZ$64,BK$102,FALSE),"") -> 51 | BL12: =IFERROR(VLOOKUP($A12,'All Running Order'!$A$6:$CZ$64,BL$102,FALSE),"") -> 0 | BM12: =IFERROR(VLOOKUP($A12,'All Running Order'!$A$6:$CZ$64,BM$102,FALSE),"") -> 0 | BN12: =IFERROR(VLOOKUP($A12,'All Running Order'!$A$6:$CZ$64,BN$102,FALSE),"") -> 0 | BO12: =IFERROR(VLOOKUP($A12,'All Running Order'!$A$6:$CZ$64,BO$102,FALSE),"") -> 0 | BP12: =IFERROR(VLOOKUP($A12,'All Running Order'!$A$6:$CZ$64,BP$102,FALSE),"") -> 0 | BQ12: =IFERROR(VLOOKUP($A12,'All Running Order'!$A$6:$CZ$64,BQ$102,FALSE),"") -> 0 | BR12: =IFERROR(VLOOKUP($A12,'All Running Order'!$A$6:$CZ$64,BR$102,FALSE),"") -> 0 | BS12: =IFERROR(VLOOKUP($A12,'All Running Order'!$A$6:$CZ$64,BS$102,FALSE),"") -> 0 | BT12: =IFERROR(VLOOKUP($A12,'All Running Order'!$A$6:$CZ$64,BT$102,FALSE),"") -> 0 | BU12: =IFERROR(VLOOKUP($A12,'All Running Order'!$A$6:$CZ$64,BU$102,FALSE),"") -> 0 | BV12: =IFERROR(VLOOKUP($A12,'All Running Order'!$A$6:$CZ$64,BV$102,FALSE),"") -> 0 | BW12: =IFERROR(VLOOKUP($A12,'All Running Order'!$A$6:$CZ$64,BW$102,FALSE),"") -> 51 | BX12: =IFERROR(VLOOKUP($A12,'All Running Order'!$A$6:$CZ$64,BX$102,FALSE),"") -> 6 | BY12: =IFERROR(VLOOKUP($A12,'All Running Order'!$A$6:$CZ$64,BY$102,FALSE),"") -> 7 | BZ12: =IFERROR(VLOOKUP($A12,'All Running Order'!$A$6:$CZ$64,BZ$102,FALSE),"") -> 7 | CA12: =IFERROR(VLOOKUP($A12,'All Running Order'!$A$6:$CZ$64,CA$102,FALSE),"") -> 7 | CB12: =IFERROR(VLOOKUP($A12,'All Running Order'!$A$6:$CZ$64,CB$102,FALSE),"") -> 7 | CC12: =IFERROR(VLOOKUP($A12,'All Running Order'!$A$6:$CZ$64,CC$102,FALSE),"") -> 6 | CD12: =IFERROR(VLOOKUP($A12,'All Running Order'!$A$6:$CZ$64,CD$102,FALSE),"") -> 7 | CE12: =IFERROR(VLOOKUP($A12,'All Running Order'!$A$6:$CZ$64,CE$102,FALSE),"") -> 7 | CF12: =IFERROR(VLOOKUP($A12,'All Running Order'!$A$6:$CZ$64,CF$102,FALSE),"") -> 7 | CG12: =IFERROR(VLOOKUP($A12,'All Running Order'!$A$6:$CZ$64,CG$102,FALSE),"") -> 7 | CH12: =IFERROR(VLOOKUP($A12,'All Running Order'!$A$6:$CZ$64,CH$102,FALSE),"") ->  | CI12: =IFERROR(VLOOKUP($A12,'All Running Order'!$A$6:$CZ$64,CI$102,FALSE),"") ->  | CJ12: =IFERROR(VLOOKUP($A12,'All Running Order'!$A$6:$CZ$64,CJ$102,FALSE),"") ->  | CK12: =IFERROR(VLOOKUP($A12,'All Running Order'!$A$6:$CZ$64,CK$102,FALSE),"") ->  | CL12: =IFERROR(VLOOKUP($A12,'All Running Order'!$A$6:$CZ$64,CL$102,FALSE),"") ->  | CM12: =IFERROR(VLOOKUP($A12,'All Running Order'!$A$6:$CZ$64,CM$102,FALSE),"") ->  | CN12: =IFERROR(VLOOKUP($A12,'All Running Order'!$A$6:$CZ$64,CN$102,FALSE),"") ->  | CO12: =IFERROR(VLOOKUP($A12,'All Running Order'!$A$6:$CZ$64,CO$102,FALSE),"") ->  | CP12: =IFERROR(VLOOKUP($A12,'All Running Order'!$A$6:$CZ$64,CP$102,FALSE),"") ->  | CQ12: =IFERROR(VLOOKUP($A12,'All Running Order'!$A$6:$CZ$64,CQ$102,FALSE),"") ->  | CR12: =IFERROR(VLOOKUP($A12,'All Running Order'!$A$6:$CZ$64,CR$102,FALSE),"") ->  | CS12: =IFERROR(VLOOKUP($A12,'All Running Order'!$A$6:$CZ$64,CS$102,FALSE),"") ->  | CT12: =IFERROR(VLOOKUP($A12,'All Running Order'!$A$6:$CZ$64,CT$102,FALSE),"") ->  | CU12: =IFERROR(VLOOKUP($A12,'All Running Order'!$A$6:$CZ$64,CU$102,FALSE),"") ->  | CV12: =IFERROR(VLOOKUP($A12,'All Running Order'!$A$6:$CZ$64,CV$102,FALSE),"") ->  | CW12: =IFERROR(VLOOKUP($A12,'All Running Order'!$A$6:$CZ$64,CW$102,FALSE),"") ->  | CX12: =IFERROR(VLOOKUP($A12,'All Running Order'!$A$6:$CZ$64,CX$102,FALSE),"") ->  | CY12: =IFERROR(VLOOKUP($A12,'All Running Order'!$A$6:$CZ$64,CY$102,FALSE),"") -> Red | CZ12: =IFERROR(VLOOKUP($A12,'All Running Order'!$A$6:$CZ$64,CZ$102,FALSE),"") -> Live
A13: 8 | B13: =IFERROR(VLOOKUP($A13,'All Running Order'!$A$6:$CZ$64,B$102,FALSE),"") -> 11 | C13: =IFERROR(VLOOKUP($A13,'All Running Order'!$A$6:$CZ$64,C$102,FALSE),"") -> Jamie Bartholomew | D13: =IFERROR(VLOOKUP($A13,'All Running Order'!$A$6:$CZ$64,D$102,FALSE),"") -> Fiona Bartholomew | E13: =IFERROR(VLOOKUP($A13,'All Running Order'!$A$6:$CZ$64,E$102,FALSE),"") -> Avonova | F13: =IFERROR(VLOOKUP($A13,'All Running Order'!$A$6:$CZ$64,F$102,FALSE),"") -> 0 | G13: =IFERROR(VLOOKUP($A13,'All Running Order'!$A$6:$CZ$64,G$102,FALSE),"") -> Live | H13: =IFERROR(VLOOKUP($A13,'All Running Order'!$A$6:$CZ$64,H$102,FALSE),"") -> Yes | I13: =IFERROR(VLOOKUP($A13,'All Running Order'!$A$6:$CZ$64,I$102,FALSE),"") -> 0 | J13: =IFERROR(VLOOKUP($A13,'All Running Order'!$A$6:$CZ$64,J$102,FALSE),"") -> 0 | K13: =IFERROR(VLOOKUP($A13,'All Running Order'!$A$6:$CZ$64,K$102,FALSE),"") -> 0 | L13: =IFERROR(VLOOKUP($A13,'All Running Order'!$A$6:$CZ$64,L$102,FALSE),"") -> 0 | M13: =IFERROR(VLOOKUP($A13,'All Running Order'!$A$6:$CZ$64,M$102,FALSE),"") -> 0 | N13: =IFERROR(VLOOKUP($A13,'All Running Order'!$A$6:$CZ$64,N$102,FALSE),"") -> 0 | O13: =IFERROR(VLOOKUP($A13,'All Running Order'!$A$6:$CZ$64,O$102,FALSE),"") -> 0 | P13: =IFERROR(VLOOKUP($A13,'All Running Order'!$A$6:$CZ$64,P$102,FALSE),"") -> Rookie | Q13: =IFERROR(VLOOKUP($A13,'All Running Order'!$A$6:$CZ$64,Q$102,FALSE),"") -> 8 | R13: =IFERROR(VLOOKUP($A13,'All Running Order'!$A$6:$CZ$64,R$102,FALSE),"") -> 0 | S13: =IFERROR(VLOOKUP($A13,'All Running Order'!$A$6:$CZ$64,S$102,FALSE),"") -> 4 | T13: =IFERROR(VLOOKUP($A13,'All Running Order'!$A$6:$CZ$64,T$102,FALSE),"") -> 1 | U13: =IFERROR(VLOOKUP($A13,'All Running Order'!$A$6:$CZ$64,U$102,FALSE),"") -> 5 | V13: =IFERROR(VLOOKUP($A13,'All Running Order'!$A$6:$CZ$64,V$102,FALSE),"") -> 2 | W13: =IFERROR(VLOOKUP($A13,'All Running Order'!$A$6:$CZ$64,W$102,FALSE),"") -> 0 | X13: =IFERROR(VLOOKUP($A13,'All Running Order'!$A$6:$CZ$64,X$102,FALSE),"") -> 0 | Y13: =IFERROR(VLOOKUP($A13,'All Running Order'!$A$6:$CZ$64,Y$102,FALSE),"") -> 0 | Z13: =IFERROR(VLOOKUP($A13,'All Running Order'!$A$6:$CZ$64,Z$102,FALSE),"") -> 0 | AA13: =IFERROR(VLOOKUP($A13,'All Running Order'!$A$6:$CZ$64,AA$102,FALSE),"") -> 20 | AB13: =IFERROR(VLOOKUP($A13,'All Running Order'!$A$6:$CZ$64,AB$102,FALSE),"") -> 0 | AC13: =IFERROR(VLOOKUP($A13,'All Running Order'!$A$6:$CZ$64,AC$102,FALSE),"") -> 0 | AD13: =IFERROR(VLOOKUP($A13,'All Running Order'!$A$6:$CZ$64,AD$102,FALSE),"") -> 2 | AE13: =IFERROR(VLOOKUP($A13,'All Running Order'!$A$6:$CZ$64,AE$102,FALSE),"") -> 2 | AF13: =IFERROR(VLOOKUP($A13,'All Running Order'!$A$6:$CZ$64,AF$102,FALSE),"") -> 5 | AG13: =IFERROR(VLOOKUP($A13,'All Running Order'!$A$6:$CZ$64,AG$102,FALSE),"") -> 11 | AH13: =IFERROR(VLOOKUP($A13,'All Running Order'!$A$6:$CZ$64,AH$102,FALSE),"") -> 0 | AI13: =IFERROR(VLOOKUP($A13,'All Running Order'!$A$6:$CZ$64,AI$102,FALSE),"") -> 0 | AJ13: =IFERROR(VLOOKUP($A13,'All Running Order'!$A$6:$CZ$64,AJ$102,FALSE),"") -> 0 | AK13: =IFERROR(VLOOKUP($A13,'All Running Order'!$A$6:$CZ$64,AK$102,FALSE),"") -> 0 | AL13: =IFERROR(VLOOKUP($A13,'All Running Order'!$A$6:$CZ$64,AL$102,FALSE),"") -> 20 | AM13: =IFERROR(VLOOKUP($A13,'All Running Order'!$A$6:$CZ$64,AM$102,FALSE),"") -> 40 | AN13: =IFERROR(VLOOKUP($A13,'All Running Order'!$A$6:$CZ$64,AN$102,FALSE),"") -> 0 | AO13: =IFERROR(VLOOKUP($A13,'All Running Order'!$A$6:$CZ$64,AO$102,FALSE),"") -> 8 | AP13: =IFERROR(VLOOKUP($A13,'All Running Order'!$A$6:$CZ$64,AP$102,FALSE),"") -> 2 | AQ13: =IFERROR(VLOOKUP($A13,'All Running Order'!$A$6:$CZ$64,AQ$102,FALSE),"") -> 10 | AR13: =IFERROR(VLOOKUP($A13,'All Running Order'!$A$6:$CZ$64,AR$102,FALSE),"") -> 5 | AS13: =IFERROR(VLOOKUP($A13,'All Running Order'!$A$6:$CZ$64,AS$102,FALSE),"") -> 11 | AT13: =IFERROR(VLOOKUP($A13,'All Running Order'!$A$6:$CZ$64,AT$102,FALSE),"") -> 0 | AU13: =IFERROR(VLOOKUP($A13,'All Running Order'!$A$6:$CZ$64,AU$102,FALSE),"") -> 0 | AV13: =IFERROR(VLOOKUP($A13,'All Running Order'!$A$6:$CZ$64,AV$102,FALSE),"") -> 0 | AW13: =IFERROR(VLOOKUP($A13,'All Running Order'!$A$6:$CZ$64,AW$102,FALSE),"") -> 0 | AX13: =IFERROR(VLOOKUP($A13,'All Running Order'!$A$6:$CZ$64,AX$102,FALSE),"") -> 36 | AY13: =IFERROR(VLOOKUP($A13,'All Running Order'!$A$6:$CZ$64,AY$102,FALSE),"") -> 76 | AZ13: =IFERROR(VLOOKUP($A13,'All Running Order'!$A$6:$CZ$64,AZ$102,FALSE),"") -> 0 | BA13: =IFERROR(VLOOKUP($A13,'All Running Order'!$A$6:$CZ$64,BA$102,FALSE),"") -> 2 | BB13: =IFERROR(VLOOKUP($A13,'All Running Order'!$A$6:$CZ$64,BB$102,FALSE),"") -> 2 | BC13: =IFERROR(VLOOKUP($A13,'All Running Order'!$A$6:$CZ$64,BC$102,FALSE),"") -> 4 | BD13: =IFERROR(VLOOKUP($A13,'All Running Order'!$A$6:$CZ$64,BD$102,FALSE),"") -> 2 | BE13: =IFERROR(VLOOKUP($A13,'All Running Order'!$A$6:$CZ$64,BE$102,FALSE),"") -> 4 | BF13: =IFERROR(VLOOKUP($A13,'All Running Order'!$A$6:$CZ$64,BF$102,FALSE),"") -> 0 | BG13: =IFERROR(VLOOKUP($A13,'All Running Order'!$A$6:$CZ$64,BG$102,FALSE),"") -> 0 | BH13: =IFERROR(VLOOKUP($A13,'All Running Order'!$A$6:$CZ$64,BH$102,FALSE),"") -> 0 | BI13: =IFERROR(VLOOKUP($A13,'All Running Order'!$A$6:$CZ$64,BI$102,FALSE),"") -> 0 | BJ13: =IFERROR(VLOOKUP($A13,'All Running Order'!$A$6:$CZ$64,BJ$102,FALSE),"") -> 14 | BK13: =IFERROR(VLOOKUP($A13,'All Running Order'!$A$6:$CZ$64,BK$102,FALSE),"") -> 90 | BL13: =IFERROR(VLOOKUP($A13,'All Running Order'!$A$6:$CZ$64,BL$102,FALSE),"") -> 0 | BM13: =IFERROR(VLOOKUP($A13,'All Running Order'!$A$6:$CZ$64,BM$102,FALSE),"") -> 0 | BN13: =IFERROR(VLOOKUP($A13,'All Running Order'!$A$6:$CZ$64,BN$102,FALSE),"") -> 0 | BO13: =IFERROR(VLOOKUP($A13,'All Running Order'!$A$6:$CZ$64,BO$102,FALSE),"") -> 0 | BP13: =IFERROR(VLOOKUP($A13,'All Running Order'!$A$6:$CZ$64,BP$102,FALSE),"") -> 0 | BQ13: =IFERROR(VLOOKUP($A13,'All Running Order'!$A$6:$CZ$64,BQ$102,FALSE),"") -> 0 | BR13: =IFERROR(VLOOKUP($A13,'All Running Order'!$A$6:$CZ$64,BR$102,FALSE),"") -> 0 | BS13: =IFERROR(VLOOKUP($A13,'All Running Order'!$A$6:$CZ$64,BS$102,FALSE),"") -> 0 | BT13: =IFERROR(VLOOKUP($A13,'All Running Order'!$A$6:$CZ$64,BT$102,FALSE),"") -> 0 | BU13: =IFERROR(VLOOKUP($A13,'All Running Order'!$A$6:$CZ$64,BU$102,FALSE),"") -> 0 | BV13: =IFERROR(VLOOKUP($A13,'All Running Order'!$A$6:$CZ$64,BV$102,FALSE),"") -> 0 | BW13: =IFERROR(VLOOKUP($A13,'All Running Order'!$A$6:$CZ$64,BW$102,FALSE),"") -> 90 | BX13: =IFERROR(VLOOKUP($A13,'All Running Order'!$A$6:$CZ$64,BX$102,FALSE),"") -> 8 | BY13: =IFERROR(VLOOKUP($A13,'All Running Order'!$A$6:$CZ$64,BY$102,FALSE),"") -> 8 | BZ13: =IFERROR(VLOOKUP($A13,'All Running Order'!$A$6:$CZ$64,BZ$102,FALSE),"") -> 8 | CA13: =IFERROR(VLOOKUP($A13,'All Running Order'!$A$6:$CZ$64,CA$102,FALSE),"") -> 8 | CB13: =IFERROR(VLOOKUP($A13,'All Running Order'!$A$6:$CZ$64,CB$102,FALSE),"") -> 8 | CC13: =IFERROR(VLOOKUP($A13,'All Running Order'!$A$6:$CZ$64,CC$102,FALSE),"") -> 8 | CD13: =IFERROR(VLOOKUP($A13,'All Running Order'!$A$6:$CZ$64,CD$102,FALSE),"") -> 8 | CE13: =IFERROR(VLOOKUP($A13,'All Running Order'!$A$6:$CZ$64,CE$102,FALSE),"") -> 8 | CF13: =IFERROR(VLOOKUP($A13,'All Running Order'!$A$6:$CZ$64,CF$102,FALSE),"") -> 8 | CG13: =IFERROR(VLOOKUP($A13,'All Running Order'!$A$6:$CZ$64,CG$102,FALSE),"") -> 8 | CH13: =IFERROR(VLOOKUP($A13,'All Running Order'!$A$6:$CZ$64,CH$102,FALSE),"") -> - | CI13: =IFERROR(VLOOKUP($A13,'All Running Order'!$A$6:$CZ$64,CI$102,FALSE),"") ->  | CJ13: =IFERROR(VLOOKUP($A13,'All Running Order'!$A$6:$CZ$64,CJ$102,FALSE),"") -> - | CK13: =IFERROR(VLOOKUP($A13,'All Running Order'!$A$6:$CZ$64,CK$102,FALSE),"") ->  | CL13: =IFERROR(VLOOKUP($A13,'All Running Order'!$A$6:$CZ$64,CL$102,FALSE),"") -> 8 | CM13: =IFERROR(VLOOKUP($A13,'All Running Order'!$A$6:$CZ$64,CM$102,FALSE),"") ->  | CN13: =IFERROR(VLOOKUP($A13,'All Running Order'!$A$6:$CZ$64,CN$102,FALSE),"") -> - | CO13: =IFERROR(VLOOKUP($A13,'All Running Order'!$A$6:$CZ$64,CO$102,FALSE),"") ->  | CP13: =IFERROR(VLOOKUP($A13,'All Running Order'!$A$6:$CZ$64,CP$102,FALSE),"") -> - | CQ13: =IFERROR(VLOOKUP($A13,'All Running Order'!$A$6:$CZ$64,CQ$102,FALSE),"") ->  | CR13: =IFERROR(VLOOKUP($A13,'All Running Order'!$A$6:$CZ$64,CR$102,FALSE),"") -> - | CS13: =IFERROR(VLOOKUP($A13,'All Running Order'!$A$6:$CZ$64,CS$102,FALSE),"") ->  | CT13: =IFERROR(VLOOKUP($A13,'All Running Order'!$A$6:$CZ$64,CT$102,FALSE),"") -> - | CU13: =IFERROR(VLOOKUP($A13,'All Running Order'!$A$6:$CZ$64,CU$102,FALSE),"") ->  | CV13: =IFERROR(VLOOKUP($A13,'All Running Order'!$A$6:$CZ$64,CV$102,FALSE),"") -> 8 | CW13: =IFERROR(VLOOKUP($A13,'All Running Order'!$A$6:$CZ$64,CW$102,FALSE),"") ->  | CX13: =IFERROR(VLOOKUP($A13,'All Running Order'!$A$6:$CZ$64,CX$102,FALSE),"") ->  | CY13: =IFERROR(VLOOKUP($A13,'All Running Order'!$A$6:$CZ$64,CY$102,FALSE),"") -> Rookie | CZ13: =IFERROR(VLOOKUP($A13,'All Running Order'!$A$6:$CZ$64,CZ$102,FALSE),"") -> Live
A14: 9 | B14: =IFERROR(VLOOKUP($A14,'All Running Order'!$A$6:$CZ$64,B$102,FALSE),"") -> 7 | C14: =IFERROR(VLOOKUP($A14,'All Running Order'!$A$6:$CZ$64,C$102,FALSE),"") -> Ian Brooks | D14: =IFERROR(VLOOKUP($A14,'All Running Order'!$A$6:$CZ$64,D$102,FALSE),"") -> Matt Sunderland | E14: =IFERROR(VLOOKUP($A14,'All Running Order'!$A$6:$CZ$64,E$102,FALSE),"") -> Sabson | F14: =IFERROR(VLOOKUP($A14,'All Running Order'!$A$6:$CZ$64,F$102,FALSE),"") -> 0 | G14: =IFERROR(VLOOKUP($A14,'All Running Order'!$A$6:$CZ$64,G$102,FALSE),"") -> Live | H14: =IFERROR(VLOOKUP($A14,'All Running Order'!$A$6:$CZ$64,H$102,FALSE),"") -> Yes | I14: =IFERROR(VLOOKUP($A14,'All Running Order'!$A$6:$CZ$64,I$102,FALSE),"") -> 0 | J14: =IFERROR(VLOOKUP($A14,'All Running Order'!$A$6:$CZ$64,J$102,FALSE),"") -> 0 | K14: =IFERROR(VLOOKUP($A14,'All Running Order'!$A$6:$CZ$64,K$102,FALSE),"") -> 0 | L14: =IFERROR(VLOOKUP($A14,'All Running Order'!$A$6:$CZ$64,L$102,FALSE),"") -> 0 | M14: =IFERROR(VLOOKUP($A14,'All Running Order'!$A$6:$CZ$64,M$102,FALSE),"") -> 0 | N14: =IFERROR(VLOOKUP($A14,'All Running Order'!$A$6:$CZ$64,N$102,FALSE),"") -> 0 | O14: =IFERROR(VLOOKUP($A14,'All Running Order'!$A$6:$CZ$64,O$102,FALSE),"") -> 0 | P14: =IFERROR(VLOOKUP($A14,'All Running Order'!$A$6:$CZ$64,P$102,FALSE),"") -> Rookie | Q14: =IFERROR(VLOOKUP($A14,'All Running Order'!$A$6:$CZ$64,Q$102,FALSE),"") -> 8 | R14: =IFERROR(VLOOKUP($A14,'All Running Order'!$A$6:$CZ$64,R$102,FALSE),"") -> 2 | S14: =IFERROR(VLOOKUP($A14,'All Running Order'!$A$6:$CZ$64,S$102,FALSE),"") -> 2 | T14: =IFERROR(VLOOKUP($A14,'All Running Order'!$A$6:$CZ$64,T$102,FALSE),"") -> 5 | U14: =IFERROR(VLOOKUP($A14,'All Running Order'!$A$6:$CZ$64,U$102,FALSE),"") -> 9 | V14: =IFERROR(VLOOKUP($A14,'All Running Order'!$A$6:$CZ$64,V$102,FALSE),"") -> 8 | W14: =IFERROR(VLOOKUP($A14,'All Running Order'!$A$6:$CZ$64,W$102,FALSE),"") -> 0 | X14: =IFERROR(VLOOKUP($A14,'All Running Order'!$A$6:$CZ$64,X$102,FALSE),"") -> 0 | Y14: =IFERROR(VLOOKUP($A14,'All Running Order'!$A$6:$CZ$64,Y$102,FALSE),"") -> 0 | Z14: =IFERROR(VLOOKUP($A14,'All Running Order'!$A$6:$CZ$64,Z$102,FALSE),"") -> 0 | AA14: =IFERROR(VLOOKUP($A14,'All Running Order'!$A$6:$CZ$64,AA$102,FALSE),"") -> 34 | AB14: =IFERROR(VLOOKUP($A14,'All Running Order'!$A$6:$CZ$64,AB$102,FALSE),"") -> 8 | AC14: =IFERROR(VLOOKUP($A14,'All Running Order'!$A$6:$CZ$64,AC$102,FALSE),"") -> 3 | AD14: =IFERROR(VLOOKUP($A14,'All Running Order'!$A$6:$CZ$64,AD$102,FALSE),"") -> 4 | AE14: =IFERROR(VLOOKUP($A14,'All Running Order'!$A$6:$CZ$64,AE$102,FALSE),"") -> 9 | AF14: =IFERROR(VLOOKUP($A14,'All Running Order'!$A$6:$CZ$64,AF$102,FALSE),"") -> 9 | AG14: =IFERROR(VLOOKUP($A14,'All Running Order'!$A$6:$CZ$64,AG$102,FALSE),"") -> 1 | AH14: =IFERROR(VLOOKUP($A14,'All Running Order'!$A$6:$CZ$64,AH$102,FALSE),"") -> 0 | AI14: =IFERROR(VLOOKUP($A14,'All Running Order'!$A$6:$CZ$64,AI$102,FALSE),"") -> 0 | AJ14: =IFERROR(VLOOKUP($A14,'All Running Order'!$A$6:$CZ$64,AJ$102,FALSE),"") -> 0 | AK14: =IFERROR(VLOOKUP($A14,'All Running Order'!$A$6:$CZ$64,AK$102,FALSE),"") -> 0 | AL14: =IFERROR(VLOOKUP($A14,'All Running Order'!$A$6:$CZ$64,AL$102,FALSE),"") -> 34 | AM14: =IFERROR(VLOOKUP($A14,'All Running Order'!$A$6:$CZ$64,AM$102,FALSE),"") -> 68 | AN14: =IFERROR(VLOOKUP($A14,'All Running Order'!$A$6:$CZ$64,AN$102,FALSE),"") -> 2 | AO14: =IFERROR(VLOOKUP($A14,'All Running Order'!$A$6:$CZ$64,AO$102,FALSE),"") -> 8 | AP14: =IFERROR(VLOOKUP($A14,'All Running Order'!$A$6:$CZ$64,AP$102,FALSE),"") -> 4 | AQ14: =IFERROR(VLOOKUP($A14,'All Running Order'!$A$6:$CZ$64,AQ$102,FALSE),"") -> 6 | AR14: =IFERROR(VLOOKUP($A14,'All Running Order'!$A$6:$CZ$64,AR$102,FALSE),"") -> 10 | AS14: =IFERROR(VLOOKUP($A14,'All Running Order'!$A$6:$CZ$64,AS$102,FALSE),"") -> 11 | AT14: =IFERROR(VLOOKUP($A14,'All Running Order'!$A$6:$CZ$64,AT$102,FALSE),"") -> 0 | AU14: =IFERROR(VLOOKUP($A14,'All Running Order'!$A$6:$CZ$64,AU$102,FALSE),"") -> 0 | AV14: =IFERROR(VLOOKUP($A14,'All Running Order'!$A$6:$CZ$64,AV$102,FALSE),"") -> 0 | AW14: =IFERROR(VLOOKUP($A14,'All Running Order'!$A$6:$CZ$64,AW$102,FALSE),"") -> 0 | AX14: =IFERROR(VLOOKUP($A14,'All Running Order'!$A$6:$CZ$64,AX$102,FALSE),"") -> 41 | AY14: =IFERROR(VLOOKUP($A14,'All Running Order'!$A$6:$CZ$64,AY$102,FALSE),"") -> 109 | AZ14: =IFERROR(VLOOKUP($A14,'All Running Order'!$A$6:$CZ$64,AZ$102,FALSE),"") -> 2 | BA14: =IFERROR(VLOOKUP($A14,'All Running Order'!$A$6:$CZ$64,BA$102,FALSE),"") -> 11 | BB14: =IFERROR(VLOOKUP($A14,'All Running Order'!$A$6:$CZ$64,BB$102,FALSE),"") -> 2 | BC14: =IFERROR(VLOOKUP($A14,'All Running Order'!$A$6:$CZ$64,BC$102,FALSE),"") -> 10 | BD14: =IFERROR(VLOOKUP($A14,'All Running Order'!$A$6:$CZ$64,BD$102,FALSE),"") -> 10 | BE14: =IFERROR(VLOOKUP($A14,'All Running Order'!$A$6:$CZ$64,BE$102,FALSE),"") -> 11 | BF14: =IFERROR(VLOOKUP($A14,'All Running Order'!$A$6:$CZ$64,BF$102,FALSE),"") -> 0 | BG14: =IFERROR(VLOOKUP($A14,'All Running Order'!$A$6:$CZ$64,BG$102,FALSE),"") -> 0 | BH14: =IFERROR(VLOOKUP($A14,'All Running Order'!$A$6:$CZ$64,BH$102,FALSE),"") -> 0 | BI14: =IFERROR(VLOOKUP($A14,'All Running Order'!$A$6:$CZ$64,BI$102,FALSE),"") -> 0 | BJ14: =IFERROR(VLOOKUP($A14,'All Running Order'!$A$6:$CZ$64,BJ$102,FALSE),"") -> 46 | BK14: =IFERROR(VLOOKUP($A14,'All Running Order'!$A$6:$CZ$64,BK$102,FALSE),"") -> 155 | BL14: =IFERROR(VLOOKUP($A14,'All Running Order'!$A$6:$CZ$64,BL$102,FALSE),"") -> 0 | BM14: =IFERROR(VLOOKUP($A14,'All Running Order'!$A$6:$CZ$64,BM$102,FALSE),"") -> 0 | BN14: =IFERROR(VLOOKUP($A14,'All Running Order'!$A$6:$CZ$64,BN$102,FALSE),"") -> 0 | BO14: =IFERROR(VLOOKUP($A14,'All Running Order'!$A$6:$CZ$64,BO$102,FALSE),"") -> 0 | BP14: =IFERROR(VLOOKUP($A14,'All Running Order'!$A$6:$CZ$64,BP$102,FALSE),"") -> 0 | BQ14: =IFERROR(VLOOKUP($A14,'All Running Order'!$A$6:$CZ$64,BQ$102,FALSE),"") -> 0 | BR14: =IFERROR(VLOOKUP($A14,'All Running Order'!$A$6:$CZ$64,BR$102,FALSE),"") -> 0 | BS14: =IFERROR(VLOOKUP($A14,'All Running Order'!$A$6:$CZ$64,BS$102,FALSE),"") -> 0 | BT14: =IFERROR(VLOOKUP($A14,'All Running Order'!$A$6:$CZ$64,BT$102,FALSE),"") -> 0 | BU14: =IFERROR(VLOOKUP($A14,'All Running Order'!$A$6:$CZ$64,BU$102,FALSE),"") -> 0 | BV14: =IFERROR(VLOOKUP($A14,'All Running Order'!$A$6:$CZ$64,BV$102,FALSE),"") -> 0 | BW14: =IFERROR(VLOOKUP($A14,'All Running Order'!$A$6:$CZ$64,BW$102,FALSE),"") -> 155 | BX14: =IFERROR(VLOOKUP($A14,'All Running Order'!$A$6:$CZ$64,BX$102,FALSE),"") -> 9 | BY14: =IFERROR(VLOOKUP($A14,'All Running Order'!$A$6:$CZ$64,BY$102,FALSE),"") -> 9 | BZ14: =IFERROR(VLOOKUP($A14,'All Running Order'!$A$6:$CZ$64,BZ$102,FALSE),"") -> 9 | CA14: =IFERROR(VLOOKUP($A14,'All Running Order'!$A$6:$CZ$64,CA$102,FALSE),"") -> 9 | CB14: =IFERROR(VLOOKUP($A14,'All Running Order'!$A$6:$CZ$64,CB$102,FALSE),"") -> 9 | CC14: =IFERROR(VLOOKUP($A14,'All Running Order'!$A$6:$CZ$64,CC$102,FALSE),"") -> 9 | CD14: =IFERROR(VLOOKUP($A14,'All Running Order'!$A$6:$CZ$64,CD$102,FALSE),"") -> 9 | CE14: =IFERROR(VLOOKUP($A14,'All Running Order'!$A$6:$CZ$64,CE$102,FALSE),"") -> 9 | CF14: =IFERROR(VLOOKUP($A14,'All Running Order'!$A$6:$CZ$64,CF$102,FALSE),"") -> 9 | CG14: =IFERROR(VLOOKUP($A14,'All Running Order'!$A$6:$CZ$64,CG$102,FALSE),"") -> 9 | CH14: =IFERROR(VLOOKUP($A14,'All Running Order'!$A$6:$CZ$64,CH$102,FALSE),"") -> - | CI14: =IFERROR(VLOOKUP($A14,'All Running Order'!$A$6:$CZ$64,CI$102,FALSE),"") ->  | CJ14: =IFERROR(VLOOKUP($A14,'All Running Order'!$A$6:$CZ$64,CJ$102,FALSE),"") -> - | CK14: =IFERROR(VLOOKUP($A14,'All Running Order'!$A$6:$CZ$64,CK$102,FALSE),"") ->  | CL14: =IFERROR(VLOOKUP($A14,'All Running Order'!$A$6:$CZ$64,CL$102,FALSE),"") -> 9 | CM14: =IFERROR(VLOOKUP($A14,'All Running Order'!$A$6:$CZ$64,CM$102,FALSE),"") ->  | CN14: =IFERROR(VLOOKUP($A14,'All Running Order'!$A$6:$CZ$64,CN$102,FALSE),"") -> - | CO14: =IFERROR(VLOOKUP($A14,'All Running Order'!$A$6:$CZ$64,CO$102,FALSE),"") ->  | CP14: =IFERROR(VLOOKUP($A14,'All Running Order'!$A$6:$CZ$64,CP$102,FALSE),"") -> - | CQ14: =IFERROR(VLOOKUP($A14,'All Running Order'!$A$6:$CZ$64,CQ$102,FALSE),"") ->  | CR14: =IFERROR(VLOOKUP($A14,'All Running Order'!$A$6:$CZ$64,CR$102,FALSE),"") -> - | CS14: =IFERROR(VLOOKUP($A14,'All Running Order'!$A$6:$CZ$64,CS$102,FALSE),"") ->  | CT14: =IFERROR(VLOOKUP($A14,'All Running Order'!$A$6:$CZ$64,CT$102,FALSE),"") -> - | CU14: =IFERROR(VLOOKUP($A14,'All Running Order'!$A$6:$CZ$64,CU$102,FALSE),"") ->  | CV14: =IFERROR(VLOOKUP($A14,'All Running Order'!$A$6:$CZ$64,CV$102,FALSE),"") -> 9 | CW14: =IFERROR(VLOOKUP($A14,'All Running Order'!$A$6:$CZ$64,CW$102,FALSE),"") ->  | CX14: =IFERROR(VLOOKUP($A14,'All Running Order'!$A$6:$CZ$64,CX$102,FALSE),"") ->  | CY14: =IFERROR(VLOOKUP($A14,'All Running Order'!$A$6:$CZ$64,CY$102,FALSE),"") -> Rookie | CZ14: =IFERROR(VLOOKUP($A14,'All Running Order'!$A$6:$CZ$64,CZ$102,FALSE),"") -> Live
A15: 10 | B15: =IFERROR(VLOOKUP($A15,'All Running Order'!$A$6:$CZ$64,B$102,FALSE),"") -> 4 | C15: =IFERROR(VLOOKUP($A15,'All Running Order'!$A$6:$CZ$64,C$102,FALSE),"") -> Trevor Wood | D15: =IFERROR(VLOOKUP($A15,'All Running Order'!$A$6:$CZ$64,D$102,FALSE),"") -> Ralph Brown | E15: =IFERROR(VLOOKUP($A15,'All Running Order'!$A$6:$CZ$64,E$102,FALSE),"") -> MSR | F15: =IFERROR(VLOOKUP($A15,'All Running Order'!$A$6:$CZ$64,F$102,FALSE),"") -> 0 | G15: =IFERROR(VLOOKUP($A15,'All Running Order'!$A$6:$CZ$64,G$102,FALSE),"") -> IRS | H15: =IFERROR(VLOOKUP($A15,'All Running Order'!$A$6:$CZ$64,H$102,FALSE),"") -> Yes | I15: =IFERROR(VLOOKUP($A15,'All Running Order'!$A$6:$CZ$64,I$102,FALSE),"") -> 0 | J15: =IFERROR(VLOOKUP($A15,'All Running Order'!$A$6:$CZ$64,J$102,FALSE),"") -> 0 | K15: =IFERROR(VLOOKUP($A15,'All Running Order'!$A$6:$CZ$64,K$102,FALSE),"") -> 0 | L15: =IFERROR(VLOOKUP($A15,'All Running Order'!$A$6:$CZ$64,L$102,FALSE),"") -> 0 | M15: =IFERROR(VLOOKUP($A15,'All Running Order'!$A$6:$CZ$64,M$102,FALSE),"") -> 0 | N15: =IFERROR(VLOOKUP($A15,'All Running Order'!$A$6:$CZ$64,N$102,FALSE),"") -> 0 | O15: =IFERROR(VLOOKUP($A15,'All Running Order'!$A$6:$CZ$64,O$102,FALSE),"") -> 0 | P15: =IFERROR(VLOOKUP($A15,'All Running Order'!$A$6:$CZ$64,P$102,FALSE),"") -> Rookie | Q15: =IFERROR(VLOOKUP($A15,'All Running Order'!$A$6:$CZ$64,Q$102,FALSE),"") -> 9 | R15: =IFERROR(VLOOKUP($A15,'All Running Order'!$A$6:$CZ$64,R$102,FALSE),"") -> 2 | S15: =IFERROR(VLOOKUP($A15,'All Running Order'!$A$6:$CZ$64,S$102,FALSE),"") -> 8 | T15: =IFERROR(VLOOKUP($A15,'All Running Order'!$A$6:$CZ$64,T$102,FALSE),"") -> 9 | U15: =IFERROR(VLOOKUP($A15,'All Running Order'!$A$6:$CZ$64,U$102,FALSE),"") -> 10 | V15: =IFERROR(VLOOKUP($A15,'All Running Order'!$A$6:$CZ$64,V$102,FALSE),"") -> 8 | W15: =IFERROR(VLOOKUP($A15,'All Running Order'!$A$6:$CZ$64,W$102,FALSE),"") -> 0 | X15: =IFERROR(VLOOKUP($A15,'All Running Order'!$A$6:$CZ$64,X$102,FALSE),"") -> 0 | Y15: =IFERROR(VLOOKUP($A15,'All Running Order'!$A$6:$CZ$64,Y$102,FALSE),"") -> 0 | Z15: =IFERROR(VLOOKUP($A15,'All Running Order'!$A$6:$CZ$64,Z$102,FALSE),"") -> 0 | AA15: =IFERROR(VLOOKUP($A15,'All Running Order'!$A$6:$CZ$64,AA$102,FALSE),"") -> 46 | AB15: =IFERROR(VLOOKUP($A15,'All Running Order'!$A$6:$CZ$64,AB$102,FALSE),"") -> 5 | AC15: =IFERROR(VLOOKUP($A15,'All Running Order'!$A$6:$CZ$64,AC$102,FALSE),"") -> 2 | AD15: =IFERROR(VLOOKUP($A15,'All Running Order'!$A$6:$CZ$64,AD$102,FALSE),"") -> 3 | AE15: =IFERROR(VLOOKUP($A15,'All Running Order'!$A$6:$CZ$64,AE$102,FALSE),"") -> 10 | AF15: =IFERROR(VLOOKUP($A15,'All Running Order'!$A$6:$CZ$64,AF$102,FALSE),"") -> 11 | AG15: =IFERROR(VLOOKUP($A15,'All Running Order'!$A$6:$CZ$64,AG$102,FALSE),"") -> 8 | AH15: =IFERROR(VLOOKUP($A15,'All Running Order'!$A$6:$CZ$64,AH$102,FALSE),"") -> 0 | AI15: =IFERROR(VLOOKUP($A15,'All Running Order'!$A$6:$CZ$64,AI$102,FALSE),"") -> 0 | AJ15: =IFERROR(VLOOKUP($A15,'All Running Order'!$A$6:$CZ$64,AJ$102,FALSE),"") -> 0 | AK15: =IFERROR(VLOOKUP($A15,'All Running Order'!$A$6:$CZ$64,AK$102,FALSE),"") -> 0 | AL15: =IFERROR(VLOOKUP($A15,'All Running Order'!$A$6:$CZ$64,AL$102,FALSE),"") -> 39 | AM15: =IFERROR(VLOOKUP($A15,'All Running Order'!$A$6:$CZ$64,AM$102,FALSE),"") -> 85 | AN15: =IFERROR(VLOOKUP($A15,'All Running Order'!$A$6:$CZ$64,AN$102,FALSE),"") -> 6 | AO15: =IFERROR(VLOOKUP($A15,'All Running Order'!$A$6:$CZ$64,AO$102,FALSE),"") -> 9 | AP15: =IFERROR(VLOOKUP($A15,'All Running Order'!$A$6:$CZ$64,AP$102,FALSE),"") -> 2 | AQ15: =IFERROR(VLOOKUP($A15,'All Running Order'!$A$6:$CZ$64,AQ$102,FALSE),"") -> 9 | AR15: =IFERROR(VLOOKUP($A15,'All Running Order'!$A$6:$CZ$64,AR$102,FALSE),"") -> 10 | AS15: =IFERROR(VLOOKUP($A15,'All Running Order'!$A$6:$CZ$64,AS$102,FALSE),"") -> 11 | AT15: =IFERROR(VLOOKUP($A15,'All Running Order'!$A$6:$CZ$64,AT$102,FALSE),"") -> 0 | AU15: =IFERROR(VLOOKUP($A15,'All Running Order'!$A$6:$CZ$64,AU$102,FALSE),"") -> 0 | AV15: =IFERROR(VLOOKUP($A15,'All Running Order'!$A$6:$CZ$64,AV$102,FALSE),"") -> 0 | AW15: =IFERROR(VLOOKUP($A15,'All Running Order'!$A$6:$CZ$64,AW$102,FALSE),"") -> 0 | AX15: =IFERROR(VLOOKUP($A15,'All Running Order'!$A$6:$CZ$64,AX$102,FALSE),"") -> 47 | AY15: =IFERROR(VLOOKUP($A15,'All Running Order'!$A$6:$CZ$64,AY$102,FALSE),"") -> 132 | AZ15: =IFERROR(VLOOKUP($A15,'All Running Order'!$A$6:$CZ$64,AZ$102,FALSE),"") -> 8 | BA15: =IFERROR(VLOOKUP($A15,'All Running Order'!$A$6:$CZ$64,BA$102,FALSE),"") -> 11 | BB15: =IFERROR(VLOOKUP($A15,'All Running Order'!$A$6:$CZ$64,BB$102,FALSE),"") -> 3 | BC15: =IFERROR(VLOOKUP($A15,'All Running Order'!$A$6:$CZ$64,BC$102,FALSE),"") -> 9 | BD15: =IFERROR(VLOOKUP($A15,'All Running Order'!$A$6:$CZ$64,BD$102,FALSE),"") -> 11 | BE15: =IFERROR(VLOOKUP($A15,'All Running Order'!$A$6:$CZ$64,BE$102,FALSE),"") -> 11 | BF15: =IFERROR(VLOOKUP($A15,'All Running Order'!$A$6:$CZ$64,BF$102,FALSE),"") -> 0 | BG15: =IFERROR(VLOOKUP($A15,'All Running Order'!$A$6:$CZ$64,BG$102,FALSE),"") -> 0 | BH15: =IFERROR(VLOOKUP($A15,'All Running Order'!$A$6:$CZ$64,BH$102,FALSE),"") -> 0 | BI15: =IFERROR(VLOOKUP($A15,'All Running Order'!$A$6:$CZ$64,BI$102,FALSE),"") -> 0 | BJ15: =IFERROR(VLOOKUP($A15,'All Running Order'!$A$6:$CZ$64,BJ$102,FALSE),"") -> 53 | BK15: =IFERROR(VLOOKUP($A15,'All Running Order'!$A$6:$CZ$64,BK$102,FALSE),"") -> 185 | BL15: =IFERROR(VLOOKUP($A15,'All Running Order'!$A$6:$CZ$64,BL$102,FALSE),"") -> 0 | BM15: =IFERROR(VLOOKUP($A15,'All Running Order'!$A$6:$CZ$64,BM$102,FALSE),"") -> 0 | BN15: =IFERROR(VLOOKUP($A15,'All Running Order'!$A$6:$CZ$64,BN$102,FALSE),"") -> 0 | BO15: =IFERROR(VLOOKUP($A15,'All Running Order'!$A$6:$CZ$64,BO$102,FALSE),"") -> 0 | BP15: =IFERROR(VLOOKUP($A15,'All Running Order'!$A$6:$CZ$64,BP$102,FALSE),"") -> 0 | BQ15: =IFERROR(VLOOKUP($A15,'All Running Order'!$A$6:$CZ$64,BQ$102,FALSE),"") -> 0 | BR15: =IFERROR(VLOOKUP($A15,'All Running Order'!$A$6:$CZ$64,BR$102,FALSE),"") -> 0 | BS15: =IFERROR(VLOOKUP($A15,'All Running Order'!$A$6:$CZ$64,BS$102,FALSE),"") -> 0 | BT15: =IFERROR(VLOOKUP($A15,'All Running Order'!$A$6:$CZ$64,BT$102,FALSE),"") -> 0 | BU15: =IFERROR(VLOOKUP($A15,'All Running Order'!$A$6:$CZ$64,BU$102,FALSE),"") -> 0 | BV15: =IFERROR(VLOOKUP($A15,'All Running Order'!$A$6:$CZ$64,BV$102,FALSE),"") -> 0 | BW15: =IFERROR(VLOOKUP($A15,'All Running Order'!$A$6:$CZ$64,BW$102,FALSE),"") -> 185 | BX15: =IFERROR(VLOOKUP($A15,'All Running Order'!$A$6:$CZ$64,BX$102,FALSE),"") -> 10 | BY15: =IFERROR(VLOOKUP($A15,'All Running Order'!$A$6:$CZ$64,BY$102,FALSE),"") -> 10 | BZ15: =IFERROR(VLOOKUP($A15,'All Running Order'!$A$6:$CZ$64,BZ$102,FALSE),"") -> 10 | CA15: =IFERROR(VLOOKUP($A15,'All Running Order'!$A$6:$CZ$64,CA$102,FALSE),"") -> 10 | CB15: =IFERROR(VLOOKUP($A15,'All Running Order'!$A$6:$CZ$64,CB$102,FALSE),"") -> 10 | CC15: =IFERROR(VLOOKUP($A15,'All Running Order'!$A$6:$CZ$64,CC$102,FALSE),"") -> 10 | CD15: =IFERROR(VLOOKUP($A15,'All Running Order'!$A$6:$CZ$64,CD$102,FALSE),"") -> 10 | CE15: =IFERROR(VLOOKUP($A15,'All Running Order'!$A$6:$CZ$64,CE$102,FALSE),"") -> 10 | CF15: =IFERROR(VLOOKUP($A15,'All Running Order'!$A$6:$CZ$64,CF$102,FALSE),"") -> 10 | CG15: =IFERROR(VLOOKUP($A15,'All Running Order'!$A$6:$CZ$64,CG$102,FALSE),"") -> 10 | CH15: =IFERROR(VLOOKUP($A15,'All Running Order'!$A$6:$CZ$64,CH$102,FALSE),"") -> - | CI15: =IFERROR(VLOOKUP($A15,'All Running Order'!$A$6:$CZ$64,CI$102,FALSE),"") ->  | CJ15: =IFERROR(VLOOKUP($A15,'All Running Order'!$A$6:$CZ$64,CJ$102,FALSE),"") -> - | CK15: =IFERROR(VLOOKUP($A15,'All Running Order'!$A$6:$CZ$64,CK$102,FALSE),"") ->  | CL15: =IFERROR(VLOOKUP($A15,'All Running Order'!$A$6:$CZ$64,CL$102,FALSE),"") -> 10 | CM15: =IFERROR(VLOOKUP($A15,'All Running Order'!$A$6:$CZ$64,CM$102,FALSE),"") ->  | CN15: =IFERROR(VLOOKUP($A15,'All Running Order'!$A$6:$CZ$64,CN$102,FALSE),"") -> - | CO15: =IFERROR(VLOOKUP($A15,'All Running Order'!$A$6:$CZ$64,CO$102,FALSE),"") ->  | CP15: =IFERROR(VLOOKUP($A15,'All Running Order'!$A$6:$CZ$64,CP$102,FALSE),"") -> - | CQ15: =IFERROR(VLOOKUP($A15,'All Running Order'!$A$6:$CZ$64,CQ$102,FALSE),"") ->  | CR15: =IFERROR(VLOOKUP($A15,'All Running Order'!$A$6:$CZ$64,CR$102,FALSE),"") -> - | CS15: =IFERROR(VLOOKUP($A15,'All Running Order'!$A$6:$CZ$64,CS$102,FALSE),"") ->  | CT15: =IFERROR(VLOOKUP($A15,'All Running Order'!$A$6:$CZ$64,CT$102,FALSE),"") -> - | CU15: =IFERROR(VLOOKUP($A15,'All Running Order'!$A$6:$CZ$64,CU$102,FALSE),"") ->  | CV15: =IFERROR(VLOOKUP($A15,'All Running Order'!$A$6:$CZ$64,CV$102,FALSE),"") -> - | CW15: =IFERROR(VLOOKUP($A15,'All Running Order'!$A$6:$CZ$64,CW$102,FALSE),"") ->  | CX15: =IFERROR(VLOOKUP($A15,'All Running Order'!$A$6:$CZ$64,CX$102,FALSE),"") ->  | CY15: =IFERROR(VLOOKUP($A15,'All Running Order'!$A$6:$CZ$64,CY$102,FALSE),"") -> Rookie | CZ15: =IFERROR(VLOOKUP($A15,'All Running Order'!$A$6:$CZ$64,CZ$102,FALSE),"") -> IRS
A16: 11 | B16: =IFERROR(VLOOKUP($A16,'All Running Order'!$A$6:$CZ$64,B$102,FALSE),"") -> 2 | C16: =IFERROR(VLOOKUP($A16,'All Running Order'!$A$6:$CZ$64,C$102,FALSE),"") -> Darren Underwood | D16: =IFERROR(VLOOKUP($A16,'All Running Order'!$A$6:$CZ$64,D$102,FALSE),"") -> Sue Underwood | E16: =IFERROR(VLOOKUP($A16,'All Running Order'!$A$6:$CZ$64,E$102,FALSE),"") -> Crossle | F16: =IFERROR(VLOOKUP($A16,'All Running Order'!$A$6:$CZ$64,F$102,FALSE),"") -> 0 | G16: =IFERROR(VLOOKUP($A16,'All Running Order'!$A$6:$CZ$64,G$102,FALSE),"") -> IRS | H16: =IFERROR(VLOOKUP($A16,'All Running Order'!$A$6:$CZ$64,H$102,FALSE),"") -> Yes | I16: =IFERROR(VLOOKUP($A16,'All Running Order'!$A$6:$CZ$64,I$102,FALSE),"") -> 0 | J16: =IFERROR(VLOOKUP($A16,'All Running Order'!$A$6:$CZ$64,J$102,FALSE),"") -> 0 | K16: =IFERROR(VLOOKUP($A16,'All Running Order'!$A$6:$CZ$64,K$102,FALSE),"") -> 0 | L16: =IFERROR(VLOOKUP($A16,'All Running Order'!$A$6:$CZ$64,L$102,FALSE),"") -> 0 | M16: =IFERROR(VLOOKUP($A16,'All Running Order'!$A$6:$CZ$64,M$102,FALSE),"") -> 0 | N16: =IFERROR(VLOOKUP($A16,'All Running Order'!$A$6:$CZ$64,N$102,FALSE),"") -> Ret/NS | O16: =IFERROR(VLOOKUP($A16,'All Running Order'!$A$6:$CZ$64,O$102,FALSE),"") -> 0 | P16: =IFERROR(VLOOKUP($A16,'All Running Order'!$A$6:$CZ$64,P$102,FALSE),"") -> Blue | Q16: =IFERROR(VLOOKUP($A16,'All Running Order'!$A$6:$CZ$64,Q$102,FALSE),"") -> 0 | R16: =IFERROR(VLOOKUP($A16,'All Running Order'!$A$6:$CZ$64,R$102,FALSE),"") -> 0 | S16: =IFERROR(VLOOKUP($A16,'All Running Order'!$A$6:$CZ$64,S$102,FALSE),"") -> 0 | T16: =IFERROR(VLOOKUP($A16,'All Running Order'!$A$6:$CZ$64,T$102,FALSE),"") -> 0 | U16: =IFERROR(VLOOKUP($A16,'All Running Order'!$A$6:$CZ$64,U$102,FALSE),"") -> 0 | V16: =IFERROR(VLOOKUP($A16,'All Running Order'!$A$6:$CZ$64,V$102,FALSE),"") -> 0 | W16: =IFERROR(VLOOKUP($A16,'All Running Order'!$A$6:$CZ$64,W$102,FALSE),"") -> 0 | X16: =IFERROR(VLOOKUP($A16,'All Running Order'!$A$6:$CZ$64,X$102,FALSE),"") -> 0 | Y16: =IFERROR(VLOOKUP($A16,'All Running Order'!$A$6:$CZ$64,Y$102,FALSE),"") -> 0 | Z16: =IFERROR(VLOOKUP($A16,'All Running Order'!$A$6:$CZ$64,Z$102,FALSE),"") -> 0 | AA16: =IFERROR(VLOOKUP($A16,'All Running Order'!$A$6:$CZ$64,AA$102,FALSE),"") -> 1000 | AB16: =IFERROR(VLOOKUP($A16,'All Running Order'!$A$6:$CZ$64,AB$102,FALSE),"") -> 0 | AC16: =IFERROR(VLOOKUP($A16,'All Running Order'!$A$6:$CZ$64,AC$102,FALSE),"") -> 0 | AD16: =IFERROR(VLOOKUP($A16,'All Running Order'!$A$6:$CZ$64,AD$102,FALSE),"") -> 0 | AE16: =IFERROR(VLOOKUP($A16,'All Running Order'!$A$6:$CZ$64,AE$102,FALSE),"") -> 0 | AF16: =IFERROR(VLOOKUP($A16,'All Running Order'!$A$6:$CZ$64,AF$102,FALSE),"") -> 0 | AG16: =IFERROR(VLOOKUP($A16,'All Running Order'!$A$6:$CZ$64,AG$102,FALSE),"") -> 0 | AH16: =IFERROR(VLOOKUP($A16,'All Running Order'!$A$6:$CZ$64,AH$102,FALSE),"") -> 0 | AI16: =IFERROR(VLOOKUP($A16,'All Running Order'!$A$6:$CZ$64,AI$102,FALSE),"") -> 0 | AJ16: =IFERROR(VLOOKUP($A16,'All Running Order'!$A$6:$CZ$64,AJ$102,FALSE),"") -> 0 | AK16: =IFERROR(VLOOKUP($A16,'All Running Order'!$A$6:$CZ$64,AK$102,FALSE),"") -> 0 | AL16: =IFERROR(VLOOKUP($A16,'All Running Order'!$A$6:$CZ$64,AL$102,FALSE),"") -> 0 | AM16: =IFERROR(VLOOKUP($A16,'All Running Order'!$A$6:$CZ$64,AM$102,FALSE),"") -> 1000 | AN16: =IFERROR(VLOOKUP($A16,'All Running Order'!$A$6:$CZ$64,AN$102,FALSE),"") -> 0 | AO16: =IFERROR(VLOOKUP($A16,'All Running Order'!$A$6:$CZ$64,AO$102,FALSE),"") -> 0 | AP16: =IFERROR(VLOOKUP($A16,'All Running Order'!$A$6:$CZ$64,AP$102,FALSE),"") -> 0 | AQ16: =IFERROR(VLOOKUP($A16,'All Running Order'!$A$6:$CZ$64,AQ$102,FALSE),"") -> 0 | AR16: =IFERROR(VLOOKUP($A16,'All Running Order'!$A$6:$CZ$64,AR$102,FALSE),"") -> 0 | AS16: =IFERROR(VLOOKUP($A16,'All Running Order'!$A$6:$CZ$64,AS$102,FALSE),"") -> 0 | AT16: =IFERROR(VLOOKUP($A16,'All Running Order'!$A$6:$CZ$64,AT$102,FALSE),"") -> 0 | AU16: =IFERROR(VLOOKUP($A16,'All Running Order'!$A$6:$CZ$64,AU$102,FALSE),"") -> 0 | AV16: =IFERROR(VLOOKUP($A16,'All Running Order'!$A$6:$CZ$64,AV$102,FALSE),"") -> 0 | AW16: =IFERROR(VLOOKUP($A16,'All Running Order'!$A$6:$CZ$64,AW$102,FALSE),"") -> 0 | AX16: =IFERROR(VLOOKUP($A16,'All Running Order'!$A$6:$CZ$64,AX$102,FALSE),"") -> 0 | AY16: =IFERROR(VLOOKUP($A16,'All Running Order'!$A$6:$CZ$64,AY$102,FALSE),"") -> 1000 | AZ16: =IFERROR(VLOOKUP($A16,'All Running Order'!$A$6:$CZ$64,AZ$102,FALSE),"") -> 0 | BA16: =IFERROR(VLOOKUP($A16,'All Running Order'!$A$6:$CZ$64,BA$102,FALSE),"") -> 0 | BB16: =IFERROR(VLOOKUP($A16,'All Running Order'!$A$6:$CZ$64,BB$102,FALSE),"") -> 0 | BC16: =IFERROR(VLOOKUP($A16,'All Running Order'!$A$6:$CZ$64,BC$102,FALSE),"") -> 0 | BD16: =IFERROR(VLOOKUP($A16,'All Running Order'!$A$6:$CZ$64,BD$102,FALSE),"") -> 0 | BE16: =IFERROR(VLOOKUP($A16,'All Running Order'!$A$6:$CZ$64,BE$102,FALSE),"") -> 0 | BF16: =IFERROR(VLOOKUP($A16,'All Running Order'!$A$6:$CZ$64,BF$102,FALSE),"") -> 0 | BG16: =IFERROR(VLOOKUP($A16,'All Running Order'!$A$6:$CZ$64,BG$102,FALSE),"") -> 0 | BH16: =IFERROR(VLOOKUP($A16,'All Running Order'!$A$6:$CZ$64,BH$102,FALSE),"") -> 0 | BI16: =IFERROR(VLOOKUP($A16,'All Running Order'!$A$6:$CZ$64,BI$102,FALSE),"") -> 0 | BJ16: =IFERROR(VLOOKUP($A16,'All Running Order'!$A$6:$CZ$64,BJ$102,FALSE),"") -> 0 | BK16: =IFERROR(VLOOKUP($A16,'All Running Order'!$A$6:$CZ$64,BK$102,FALSE),"") -> 1000 | BL16: =IFERROR(VLOOKUP($A16,'All Running Order'!$A$6:$CZ$64,BL$102,FALSE),"") -> 0 | BM16: =IFERROR(VLOOKUP($A16,'All Running Order'!$A$6:$CZ$64,BM$102,FALSE),"") -> 0 | BN16: =IFERROR(VLOOKUP($A16,'All Running Order'!$A$6:$CZ$64,BN$102,FALSE),"") -> 0 | BO16: =IFERROR(VLOOKUP($A16,'All Running Order'!$A$6:$CZ$64,BO$102,FALSE),"") -> 0 | BP16: =IFERROR(VLOOKUP($A16,'All Running Order'!$A$6:$CZ$64,BP$102,FALSE),"") -> 0 | BQ16: =IFERROR(VLOOKUP($A16,'All Running Order'!$A$6:$CZ$64,BQ$102,FALSE),"") -> 0 | BR16: =IFERROR(VLOOKUP($A16,'All Running Order'!$A$6:$CZ$64,BR$102,FALSE),"") -> 0 | BS16: =IFERROR(VLOOKUP($A16,'All Running Order'!$A$6:$CZ$64,BS$102,FALSE),"") -> 0 | BT16: =IFERROR(VLOOKUP($A16,'All Running Order'!$A$6:$CZ$64,BT$102,FALSE),"") -> 0 | BU16: =IFERROR(VLOOKUP($A16,'All Running Order'!$A$6:$CZ$64,BU$102,FALSE),"") -> 0 | BV16: =IFERROR(VLOOKUP($A16,'All Running Order'!$A$6:$CZ$64,BV$102,FALSE),"") -> 0 | BW16: =IFERROR(VLOOKUP($A16,'All Running Order'!$A$6:$CZ$64,BW$102,FALSE),"") -> 1000 | BX16: =IFERROR(VLOOKUP($A16,'All Running Order'!$A$6:$CZ$64,BX$102,FALSE),"") -> 11 | BY16: =IFERROR(VLOOKUP($A16,'All Running Order'!$A$6:$CZ$64,BY$102,FALSE),"") -> 11 | BZ16: =IFERROR(VLOOKUP($A16,'All Running Order'!$A$6:$CZ$64,BZ$102,FALSE),"") -> 11 | CA16: =IFERROR(VLOOKUP($A16,'All Running Order'!$A$6:$CZ$64,CA$102,FALSE),"") -> 11 | CB16: =IFERROR(VLOOKUP($A16,'All Running Order'!$A$6:$CZ$64,CB$102,FALSE),"") -> 11 | CC16: =IFERROR(VLOOKUP($A16,'All Running Order'!$A$6:$CZ$64,CC$102,FALSE),"") -> 11 | CD16: =IFERROR(VLOOKUP($A16,'All Running Order'!$A$6:$CZ$64,CD$102,FALSE),"") -> 11 | CE16: =IFERROR(VLOOKUP($A16,'All Running Order'!$A$6:$CZ$64,CE$102,FALSE),"") -> 11 | CF16: =IFERROR(VLOOKUP($A16,'All Running Order'!$A$6:$CZ$64,CF$102,FALSE),"") -> 11 | CG16: =IFERROR(VLOOKUP($A16,'All Running Order'!$A$6:$CZ$64,CG$102,FALSE),"") -> 11 | CH16: =IFERROR(VLOOKUP($A16,'All Running Order'!$A$6:$CZ$64,CH$102,FALSE),"") -> - | CI16: =IFERROR(VLOOKUP($A16,'All Running Order'!$A$6:$CZ$64,CI$102,FALSE),"") ->  | CJ16: =IFERROR(VLOOKUP($A16,'All Running Order'!$A$6:$CZ$64,CJ$102,FALSE),"") -> 11 | CK16: =IFERROR(VLOOKUP($A16,'All Running Order'!$A$6:$CZ$64,CK$102,FALSE),"") ->  | CL16: =IFERROR(VLOOKUP($A16,'All Running Order'!$A$6:$CZ$64,CL$102,FALSE),"") -> - | CM16: =IFERROR(VLOOKUP($A16,'All Running Order'!$A$6:$CZ$64,CM$102,FALSE),"") ->  | CN16: =IFERROR(VLOOKUP($A16,'All Running Order'!$A$6:$CZ$64,CN$102,FALSE),"") -> - | CO16: =IFERROR(VLOOKUP($A16,'All Running Order'!$A$6:$CZ$64,CO$102,FALSE),"") ->  | CP16: =IFERROR(VLOOKUP($A16,'All Running Order'!$A$6:$CZ$64,CP$102,FALSE),"") -> - | CQ16: =IFERROR(VLOOKUP($A16,'All Running Order'!$A$6:$CZ$64,CQ$102,FALSE),"") ->  | CR16: =IFERROR(VLOOKUP($A16,'All Running Order'!$A$6:$CZ$64,CR$102,FALSE),"") -> - | CS16: =IFERROR(VLOOKUP($A16,'All Running Order'!$A$6:$CZ$64,CS$102,FALSE),"") ->  | CT16: =IFERROR(VLOOKUP($A16,'All Running Order'!$A$6:$CZ$64,CT$102,FALSE),"") -> - | CU16: =IFERROR(VLOOKUP($A16,'All Running Order'!$A$6:$CZ$64,CU$102,FALSE),"") ->  | CV16: =IFERROR(VLOOKUP($A16,'All Running Order'!$A$6:$CZ$64,CV$102,FALSE),"") -> - | CW16: =IFERROR(VLOOKUP($A16,'All Running Order'!$A$6:$CZ$64,CW$102,FALSE),"") ->  | CX16: =IFERROR(VLOOKUP($A16,'All Running Order'!$A$6:$CZ$64,CX$102,FALSE),"") ->  | CY16: =IFERROR(VLOOKUP($A16,'All Running Order'!$A$6:$CZ$64,CY$102,FALSE),"") -> Blue | CZ16: =IFERROR(VLOOKUP($A16,'All Running Order'!$A$6:$CZ$64,CZ$102,FALSE),"") -> IRS
A17: 12 | B17: =IFERROR(VLOOKUP($A17,'All Running Order'!$A$6:$CZ$64,B$102,FALSE),"") ->  | C17: =IFERROR(VLOOKUP($A17,'All Running Order'!$A$6:$CZ$64,C$102,FALSE),"") ->  | D17: =IFERROR(VLOOKUP($A17,'All Running Order'!$A$6:$CZ$64,D$102,FALSE),"") ->  | E17: =IFERROR(VLOOKUP($A17,'All Running Order'!$A$6:$CZ$64,E$102,FALSE),"") ->  | F17: =IFERROR(VLOOKUP($A17,'All Running Order'!$A$6:$CZ$64,F$102,FALSE),"") ->  | G17: =IFERROR(VLOOKUP($A17,'All Running Order'!$A$6:$CZ$64,G$102,FALSE),"") ->  | H17: =IFERROR(VLOOKUP($A17,'All Running Order'!$A$6:$CZ$64,H$102,FALSE),"") ->  | I17: =IFERROR(VLOOKUP($A17,'All Running Order'!$A$6:$CZ$64,I$102,FALSE),"") ->  | J17: =IFERROR(VLOOKUP($A17,'All Running Order'!$A$6:$CZ$64,J$102,FALSE),"") ->  | K17: =IFERROR(VLOOKUP($A17,'All Running Order'!$A$6:$CZ$64,K$102,FALSE),"") ->  | L17: =IFERROR(VLOOKUP($A17,'All Running Order'!$A$6:$CZ$64,L$102,FALSE),"") ->  | M17: =IFERROR(VLOOKUP($A17,'All Running Order'!$A$6:$CZ$64,M$102,FALSE),"") ->  | N17: =IFERROR(VLOOKUP($A17,'All Running Order'!$A$6:$CZ$64,N$102,FALSE),"") ->  | O17: =IFERROR(VLOOKUP($A17,'All Running Order'!$A$6:$CZ$64,O$102,FALSE),"") ->  | P17: =IFERROR(VLOOKUP($A17,'All Running Order'!$A$6:$CZ$64,P$102,FALSE),"") ->  | Q17: =IFERROR(VLOOKUP($A17,'All Running Order'!$A$6:$CZ$64,Q$102,FALSE),"") ->  | R17: =IFERROR(VLOOKUP($A17,'All Running Order'!$A$6:$CZ$64,R$102,FALSE),"") ->  | S17: =IFERROR(VLOOKUP($A17,'All Running Order'!$A$6:$CZ$64,S$102,FALSE),"") ->  | T17: =IFERROR(VLOOKUP($A17,'All Running Order'!$A$6:$CZ$64,T$102,FALSE),"") ->  | U17: =IFERROR(VLOOKUP($A17,'All Running Order'!$A$6:$CZ$64,U$102,FALSE),"") ->  | V17: =IFERROR(VLOOKUP($A17,'All Running Order'!$A$6:$CZ$64,V$102,FALSE),"") ->  | W17: =IFERROR(VLOOKUP($A17,'All Running Order'!$A$6:$CZ$64,W$102,FALSE),"") ->  | X17: =IFERROR(VLOOKUP($A17,'All Running Order'!$A$6:$CZ$64,X$102,FALSE),"") ->  | Y17: =IFERROR(VLOOKUP($A17,'All Running Order'!$A$6:$CZ$64,Y$102,FALSE),"") ->  | Z17: =IFERROR(VLOOKUP($A17,'All Running Order'!$A$6:$CZ$64,Z$102,FALSE),"") ->  | AA17: =IFERROR(VLOOKUP($A17,'All Running Order'!$A$6:$CZ$64,AA$102,FALSE),"") ->  | AB17: =IFERROR(VLOOKUP($A17,'All Running Order'!$A$6:$CZ$64,AB$102,FALSE),"") ->  | AC17: =IFERROR(VLOOKUP($A17,'All Running Order'!$A$6:$CZ$64,AC$102,FALSE),"") ->  | AD17: =IFERROR(VLOOKUP($A17,'All Running Order'!$A$6:$CZ$64,AD$102,FALSE),"") ->  | AE17: =IFERROR(VLOOKUP($A17,'All Running Order'!$A$6:$CZ$64,AE$102,FALSE),"") ->  | AF17: =IFERROR(VLOOKUP($A17,'All Running Order'!$A$6:$CZ$64,AF$102,FALSE),"") ->  | AG17: =IFERROR(VLOOKUP($A17,'All Running Order'!$A$6:$CZ$64,AG$102,FALSE),"") ->  | AH17: =IFERROR(VLOOKUP($A17,'All Running Order'!$A$6:$CZ$64,AH$102,FALSE),"") ->  | AI17: =IFERROR(VLOOKUP($A17,'All Running Order'!$A$6:$CZ$64,AI$102,FALSE),"") ->  | AJ17: =IFERROR(VLOOKUP($A17,'All Running Order'!$A$6:$CZ$64,AJ$102,FALSE),"") ->  | AK17: =IFERROR(VLOOKUP($A17,'All Running Order'!$A$6:$CZ$64,AK$102,FALSE),"") ->  | AL17: =IFERROR(VLOOKUP($A17,'All Running Order'!$A$6:$CZ$64,AL$102,FALSE),"") ->  | AM17: =IFERROR(VLOOKUP($A17,'All Running Order'!$A$6:$CZ$64,AM$102,FALSE),"") ->  | AN17: =IFERROR(VLOOKUP($A17,'All Running Order'!$A$6:$CZ$64,AN$102,FALSE),"") ->  | AO17: =IFERROR(VLOOKUP($A17,'All Running Order'!$A$6:$CZ$64,AO$102,FALSE),"") ->  | AP17: =IFERROR(VLOOKUP($A17,'All Running Order'!$A$6:$CZ$64,AP$102,FALSE),"") ->  | AQ17: =IFERROR(VLOOKUP($A17,'All Running Order'!$A$6:$CZ$64,AQ$102,FALSE),"") ->  | AR17: =IFERROR(VLOOKUP($A17,'All Running Order'!$A$6:$CZ$64,AR$102,FALSE),"") ->  | AS17: =IFERROR(VLOOKUP($A17,'All Running Order'!$A$6:$CZ$64,AS$102,FALSE),"") ->  | AT17: =IFERROR(VLOOKUP($A17,'All Running Order'!$A$6:$CZ$64,AT$102,FALSE),"") ->  | AU17: =IFERROR(VLOOKUP($A17,'All Running Order'!$A$6:$CZ$64,AU$102,FALSE),"") ->  | AV17: =IFERROR(VLOOKUP($A17,'All Running Order'!$A$6:$CZ$64,AV$102,FALSE),"") ->  | AW17: =IFERROR(VLOOKUP($A17,'All Running Order'!$A$6:$CZ$64,AW$102,FALSE),"") ->  | AX17: =IFERROR(VLOOKUP($A17,'All Running Order'!$A$6:$CZ$64,AX$102,FALSE),"") ->  | AY17: =IFERROR(VLOOKUP($A17,'All Running Order'!$A$6:$CZ$64,AY$102,FALSE),"") ->  | AZ17: =IFERROR(VLOOKUP($A17,'All Running Order'!$A$6:$CZ$64,AZ$102,FALSE),"") ->  | BA17: =IFERROR(VLOOKUP($A17,'All Running Order'!$A$6:$CZ$64,BA$102,FALSE),"") ->  | BB17: =IFERROR(VLOOKUP($A17,'All Running Order'!$A$6:$CZ$64,BB$102,FALSE),"") ->  | BC17: =IFERROR(VLOOKUP($A17,'All Running Order'!$A$6:$CZ$64,BC$102,FALSE),"") ->  | BD17: =IFERROR(VLOOKUP($A17,'All Running Order'!$A$6:$CZ$64,BD$102,FALSE),"") ->  | BE17: =IFERROR(VLOOKUP($A17,'All Running Order'!$A$6:$CZ$64,BE$102,FALSE),"") ->  | BF17: =IFERROR(VLOOKUP($A17,'All Running Order'!$A$6:$CZ$64,BF$102,FALSE),"") ->  | BG17: =IFERROR(VLOOKUP($A17,'All Running Order'!$A$6:$CZ$64,BG$102,FALSE),"") ->  | BH17: =IFERROR(VLOOKUP($A17,'All Running Order'!$A$6:$CZ$64,BH$102,FALSE),"") ->  | BI17: =IFERROR(VLOOKUP($A17,'All Running Order'!$A$6:$CZ$64,BI$102,FALSE),"") ->  | BJ17: =IFERROR(VLOOKUP($A17,'All Running Order'!$A$6:$CZ$64,BJ$102,FALSE),"") ->  | BK17: =IFERROR(VLOOKUP($A17,'All Running Order'!$A$6:$CZ$64,BK$102,FALSE),"") ->  | BL17: =IFERROR(VLOOKUP($A17,'All Running Order'!$A$6:$CZ$64,BL$102,FALSE),"") ->  | BM17: =IFERROR(VLOOKUP($A17,'All Running Order'!$A$6:$CZ$64,BM$102,FALSE),"") ->  | BN17: =IFERROR(VLOOKUP($A17,'All Running Order'!$A$6:$CZ$64,BN$102,FALSE),"") ->  | BO17: =IFERROR(VLOOKUP($A17,'All Running Order'!$A$6:$CZ$64,BO$102,FALSE),"") ->  | BP17: =IFERROR(VLOOKUP($A17,'All Running Order'!$A$6:$CZ$64,BP$102,FALSE),"") ->  | BQ17: =IFERROR(VLOOKUP($A17,'All Running Order'!$A$6:$CZ$64,BQ$102,FALSE),"") ->  | BR17: =IFERROR(VLOOKUP($A17,'All Running Order'!$A$6:$CZ$64,BR$102,FALSE),"") ->  | BS17: =IFERROR(VLOOKUP($A17,'All Running Order'!$A$6:$CZ$64,BS$102,FALSE),"") ->  | BT17: =IFERROR(VLOOKUP($A17,'All Running Order'!$A$6:$CZ$64,BT$102,FALSE),"") ->  | BU17: =IFERROR(VLOOKUP($A17,'All Running Order'!$A$6:$CZ$64,BU$102,FALSE),"") ->  | BV17: =IFERROR(VLOOKUP($A17,'All Running Order'!$A$6:$CZ$64,BV$102,FALSE),"") ->  | BW17: =IFERROR(VLOOKUP($A17,'All Running Order'!$A$6:$CZ$64,BW$102,FALSE),"") ->  | BX17: =IFERROR(VLOOKUP($A17,'All Running Order'!$A$6:$CZ$64,BX$102,FALSE),"") ->  | BY17: =IFERROR(VLOOKUP($A17,'All Running Order'!$A$6:$CZ$64,BY$102,FALSE),"") ->  | BZ17: =IFERROR(VLOOKUP($A17,'All Running Order'!$A$6:$CZ$64,BZ$102,FALSE),"") ->  | CA17: =IFERROR(VLOOKUP($A17,'All Running Order'!$A$6:$CZ$64,CA$102,FALSE),"") ->  | CB17: =IFERROR(VLOOKUP($A17,'All Running Order'!$A$6:$CZ$64,CB$102,FALSE),"") ->  | CC17: =IFERROR(VLOOKUP($A17,'All Running Order'!$A$6:$CZ$64,CC$102,FALSE),"") ->  | CD17: =IFERROR(VLOOKUP($A17,'All Running Order'!$A$6:$CZ$64,CD$102,FALSE),"") ->  | CE17: =IFERROR(VLOOKUP($A17,'All Running Order'!$A$6:$CZ$64,CE$102,FALSE),"") ->  | CF17: =IFERROR(VLOOKUP($A17,'All Running Order'!$A$6:$CZ$64,CF$102,FALSE),"") ->  | CG17: =IFERROR(VLOOKUP($A17,'All Running Order'!$A$6:$CZ$64,CG$102,FALSE),"") ->  | CH17: =IFERROR(VLOOKUP($A17,'All Running Order'!$A$6:$CZ$64,CH$102,FALSE),"") ->  | CI17: =IFERROR(VLOOKUP($A17,'All Running Order'!$A$6:$CZ$64,CI$102,FALSE),"") ->  | CJ17: =IFERROR(VLOOKUP($A17,'All Running Order'!$A$6:$CZ$64,CJ$102,FALSE),"") ->  | CK17: =IFERROR(VLOOKUP($A17,'All Running Order'!$A$6:$CZ$64,CK$102,FALSE),"") ->  | CL17: =IFERROR(VLOOKUP($A17,'All Running Order'!$A$6:$CZ$64,CL$102,FALSE),"") ->  | CM17: =IFERROR(VLOOKUP($A17,'All Running Order'!$A$6:$CZ$64,CM$102,FALSE),"") ->  | CN17: =IFERROR(VLOOKUP($A17,'All Running Order'!$A$6:$CZ$64,CN$102,FALSE),"") ->  | CO17: =IFERROR(VLOOKUP($A17,'All Running Order'!$A$6:$CZ$64,CO$102,FALSE),"") ->  | CP17: =IFERROR(VLOOKUP($A17,'All Running Order'!$A$6:$CZ$64,CP$102,FALSE),"") ->  | CQ17: =IFERROR(VLOOKUP($A17,'All Running Order'!$A$6:$CZ$64,CQ$102,FALSE),"") ->  | CR17: =IFERROR(VLOOKUP($A17,'All Running Order'!$A$6:$CZ$64,CR$102,FALSE),"") ->  | CS17: =IFERROR(VLOOKUP($A17,'All Running Order'!$A$6:$CZ$64,CS$102,FALSE),"") ->  | CT17: =IFERROR(VLOOKUP($A17,'All Running Order'!$A$6:$CZ$64,CT$102,FALSE),"") ->  | CU17: =IFERROR(VLOOKUP($A17,'All Running Order'!$A$6:$CZ$64,CU$102,FALSE),"") ->  | CV17: =IFERROR(VLOOKUP($A17,'All Running Order'!$A$6:$CZ$64,CV$102,FALSE),"") ->  | CW17: =IFERROR(VLOOKUP($A17,'All Running Order'!$A$6:$CZ$64,CW$102,FALSE),"") ->  | CX17: =IFERROR(VLOOKUP($A17,'All Running Order'!$A$6:$CZ$64,CX$102,FALSE),"") ->  | CY17: =IFERROR(VLOOKUP($A17,'All Running Order'!$A$6:$CZ$64,CY$102,FALSE),"") ->  | CZ17: =IFERROR(VLOOKUP($A17,'All Running Order'!$A$6:$CZ$64,CZ$102,FALSE),"") -> 
A18: 13 | B18: =IFERROR(VLOOKUP($A18,'All Running Order'!$A$6:$CZ$64,B$102,FALSE),"") -> 14 | C18: =IFERROR(VLOOKUP($A18,'All Running Order'!$A$6:$CZ$64,C$102,FALSE),"") -> 0 | D18: =IFERROR(VLOOKUP($A18,'All Running Order'!$A$6:$CZ$64,D$102,FALSE),"") -> 0 | E18: =IFERROR(VLOOKUP($A18,'All Running Order'!$A$6:$CZ$64,E$102,FALSE),"") -> 0 | F18: =IFERROR(VLOOKUP($A18,'All Running Order'!$A$6:$CZ$64,F$102,FALSE),"") -> 0 | G18: =IFERROR(VLOOKUP($A18,'All Running Order'!$A$6:$CZ$64,G$102,FALSE),"") -> 0 | H18: =IFERROR(VLOOKUP($A18,'All Running Order'!$A$6:$CZ$64,H$102,FALSE),"") -> 0 | I18: =IFERROR(VLOOKUP($A18,'All Running Order'!$A$6:$CZ$64,I$102,FALSE),"") -> 0 | J18: =IFERROR(VLOOKUP($A18,'All Running Order'!$A$6:$CZ$64,J$102,FALSE),"") -> 0 | K18: =IFERROR(VLOOKUP($A18,'All Running Order'!$A$6:$CZ$64,K$102,FALSE),"") -> 0 | L18: =IFERROR(VLOOKUP($A18,'All Running Order'!$A$6:$CZ$64,L$102,FALSE),"") -> 0 | M18: =IFERROR(VLOOKUP($A18,'All Running Order'!$A$6:$CZ$64,M$102,FALSE),"") -> 0 | N18: =IFERROR(VLOOKUP($A18,'All Running Order'!$A$6:$CZ$64,N$102,FALSE),"") -> 0 | O18: =IFERROR(VLOOKUP($A18,'All Running Order'!$A$6:$CZ$64,O$102,FALSE),"") -> 0 | P18: =IFERROR(VLOOKUP($A18,'All Running Order'!$A$6:$CZ$64,P$102,FALSE),"") -> 0 | Q18: =IFERROR(VLOOKUP($A18,'All Running Order'!$A$6:$CZ$64,Q$102,FALSE),"") -> 0 | R18: =IFERROR(VLOOKUP($A18,'All Running Order'!$A$6:$CZ$64,R$102,FALSE),"") -> 0 | S18: =IFERROR(VLOOKUP($A18,'All Running Order'!$A$6:$CZ$64,S$102,FALSE),"") -> 0 | T18: =IFERROR(VLOOKUP($A18,'All Running Order'!$A$6:$CZ$64,T$102,FALSE),"") -> 0 | U18: =IFERROR(VLOOKUP($A18,'All Running Order'!$A$6:$CZ$64,U$102,FALSE),"") -> 0 | V18: =IFERROR(VLOOKUP($A18,'All Running Order'!$A$6:$CZ$64,V$102,FALSE),"") -> 0 | W18: =IFERROR(VLOOKUP($A18,'All Running Order'!$A$6:$CZ$64,W$102,FALSE),"") -> 0 | X18: =IFERROR(VLOOKUP($A18,'All Running Order'!$A$6:$CZ$64,X$102,FALSE),"") -> 0 | Y18: =IFERROR(VLOOKUP($A18,'All Running Order'!$A$6:$CZ$64,Y$102,FALSE),"") -> 0 | Z18: =IFERROR(VLOOKUP($A18,'All Running Order'!$A$6:$CZ$64,Z$102,FALSE),"") -> 0 | AA18: =IFERROR(VLOOKUP($A18,'All Running Order'!$A$6:$CZ$64,AA$102,FALSE),"") -> 2000 | AB18: =IFERROR(VLOOKUP($A18,'All Running Order'!$A$6:$CZ$64,AB$102,FALSE),"") -> 0 | AC18: =IFERROR(VLOOKUP($A18,'All Running Order'!$A$6:$CZ$64,AC$102,FALSE),"") -> 0 | AD18: =IFERROR(VLOOKUP($A18,'All Running Order'!$A$6:$CZ$64,AD$102,FALSE),"") -> 0 | AE18: =IFERROR(VLOOKUP($A18,'All Running Order'!$A$6:$CZ$64,AE$102,FALSE),"") -> 0 | AF18: =IFERROR(VLOOKUP($A18,'All Running Order'!$A$6:$CZ$64,AF$102,FALSE),"") -> 0 | AG18: =IFERROR(VLOOKUP($A18,'All Running Order'!$A$6:$CZ$64,AG$102,FALSE),"") -> 0 | AH18: =IFERROR(VLOOKUP($A18,'All Running Order'!$A$6:$CZ$64,AH$102,FALSE),"") -> 0 | AI18: =IFERROR(VLOOKUP($A18,'All Running Order'!$A$6:$CZ$64,AI$102,FALSE),"") -> 0 | AJ18: =IFERROR(VLOOKUP($A18,'All Running Order'!$A$6:$CZ$64,AJ$102,FALSE),"") -> 0 | AK18: =IFERROR(VLOOKUP($A18,'All Running Order'!$A$6:$CZ$64,AK$102,FALSE),"") -> 0 | AL18: =IFERROR(VLOOKUP($A18,'All Running Order'!$A$6:$CZ$64,AL$102,FALSE),"") -> 0 | AM18: =IFERROR(VLOOKUP($A18,'All Running Order'!$A$6:$CZ$64,AM$102,FALSE),"") -> 2000 | AN18: =IFERROR(VLOOKUP($A18,'All Running Order'!$A$6:$CZ$64,AN$102,FALSE),"") -> 0 | AO18: =IFERROR(VLOOKUP($A18,'All Running Order'!$A$6:$CZ$64,AO$102,FALSE),"") -> 0 | AP18: =IFERROR(VLOOKUP($A18,'All Running Order'!$A$6:$CZ$64,AP$102,FALSE),"") -> 0 | AQ18: =IFERROR(VLOOKUP($A18,'All Running Order'!$A$6:$CZ$64,AQ$102,FALSE),"") -> 0 | AR18: =IFERROR(VLOOKUP($A18,'All Running Order'!$A$6:$CZ$64,AR$102,FALSE),"") -> 0 | AS18: =IFERROR(VLOOKUP($A18,'All Running Order'!$A$6:$CZ$64,AS$102,FALSE),"") -> 0 | AT18: =IFERROR(VLOOKUP($A18,'All Running Order'!$A$6:$CZ$64,AT$102,FALSE),"") -> 0 | AU18: =IFERROR(VLOOKUP($A18,'All Running Order'!$A$6:$CZ$64,AU$102,FALSE),"") -> 0 | AV18: =IFERROR(VLOOKUP($A18,'All Running Order'!$A$6:$CZ$64,AV$102,FALSE),"") -> 0 | AW18: =IFERROR(VLOOKUP($A18,'All Running Order'!$A$6:$CZ$64,AW$102,FALSE),"") -> 0 | AX18: =IFERROR(VLOOKUP($A18,'All Running Order'!$A$6:$CZ$64,AX$102,FALSE),"") -> 0 | AY18: =IFERROR(VLOOKUP($A18,'All Running Order'!$A$6:$CZ$64,AY$102,FALSE),"") -> 2000 | AZ18: =IFERROR(VLOOKUP($A18,'All Running Order'!$A$6:$CZ$64,AZ$102,FALSE),"") -> 0 | BA18: =IFERROR(VLOOKUP($A18,'All Running Order'!$A$6:$CZ$64,BA$102,FALSE),"") -> 0 | BB18: =IFERROR(VLOOKUP($A18,'All Running Order'!$A$6:$CZ$64,BB$102,FALSE),"") -> 0 | BC18: =IFERROR(VLOOKUP($A18,'All Running Order'!$A$6:$CZ$64,BC$102,FALSE),"") -> 0 | BD18: =IFERROR(VLOOKUP($A18,'All Running Order'!$A$6:$CZ$64,BD$102,FALSE),"") -> 0 | BE18: =IFERROR(VLOOKUP($A18,'All Running Order'!$A$6:$CZ$64,BE$102,FALSE),"") -> 0 | BF18: =IFERROR(VLOOKUP($A18,'All Running Order'!$A$6:$CZ$64,BF$102,FALSE),"") -> 0 | BG18: =IFERROR(VLOOKUP($A18,'All Running Order'!$A$6:$CZ$64,BG$102,FALSE),"") -> 0 | BH18: =IFERROR(VLOOKUP($A18,'All Running Order'!$A$6:$CZ$64,BH$102,FALSE),"") -> 0 | BI18: =IFERROR(VLOOKUP($A18,'All Running Order'!$A$6:$CZ$64,BI$102,FALSE),"") -> 0 | BJ18: =IFERROR(VLOOKUP($A18,'All Running Order'!$A$6:$CZ$64,BJ$102,FALSE),"") -> 0 | BK18: =IFERROR(VLOOKUP($A18,'All Running Order'!$A$6:$CZ$64,BK$102,FALSE),"") -> 2000 | BL18: =IFERROR(VLOOKUP($A18,'All Running Order'!$A$6:$CZ$64,BL$102,FALSE),"") -> 0 | BM18: =IFERROR(VLOOKUP($A18,'All Running Order'!$A$6:$CZ$64,BM$102,FALSE),"") -> 0 | BN18: =IFERROR(VLOOKUP($A18,'All Running Order'!$A$6:$CZ$64,BN$102,FALSE),"") -> 0 | BO18: =IFERROR(VLOOKUP($A18,'All Running Order'!$A$6:$CZ$64,BO$102,FALSE),"") -> 0 | BP18: =IFERROR(VLOOKUP($A18,'All Running Order'!$A$6:$CZ$64,BP$102,FALSE),"") -> 0 | BQ18: =IFERROR(VLOOKUP($A18,'All Running Order'!$A$6:$CZ$64,BQ$102,FALSE),"") -> 0 | BR18: =IFERROR(VLOOKUP($A18,'All Running Order'!$A$6:$CZ$64,BR$102,FALSE),"") -> 0 | BS18: =IFERROR(VLOOKUP($A18,'All Running Order'!$A$6:$CZ$64,BS$102,FALSE),"") -> 0 | BT18: =IFERROR(VLOOKUP($A18,'All Running Order'!$A$6:$CZ$64,BT$102,FALSE),"") -> 0 | BU18: =IFERROR(VLOOKUP($A18,'All Running Order'!$A$6:$CZ$64,BU$102,FALSE),"") -> 0 | BV18: =IFERROR(VLOOKUP($A18,'All Running Order'!$A$6:$CZ$64,BV$102,FALSE),"") -> 0 | BW18: =IFERROR(VLOOKUP($A18,'All Running Order'!$A$6:$CZ$64,BW$102,FALSE),"") -> 2000 | BX18: =IFERROR(VLOOKUP($A18,'All Running Order'!$A$6:$CZ$64,BX$102,FALSE),"") -> 13 | BY18: =IFERROR(VLOOKUP($A18,'All Running Order'!$A$6:$CZ$64,BY$102,FALSE),"") -> 13 | BZ18: =IFERROR(VLOOKUP($A18,'All Running Order'!$A$6:$CZ$64,BZ$102,FALSE),"") -> 13 | CA18: =IFERROR(VLOOKUP($A18,'All Running Order'!$A$6:$CZ$64,CA$102,FALSE),"") -> 13 | CB18: =IFERROR(VLOOKUP($A18,'All Running Order'!$A$6:$CZ$64,CB$102,FALSE),"") -> 13 | CC18: =IFERROR(VLOOKUP($A18,'All Running Order'!$A$6:$CZ$64,CC$102,FALSE),"") -> 13 | CD18: =IFERROR(VLOOKUP($A18,'All Running Order'!$A$6:$CZ$64,CD$102,FALSE),"") -> 13 | CE18: =IFERROR(VLOOKUP($A18,'All Running Order'!$A$6:$CZ$64,CE$102,FALSE),"") -> 13 | CF18: =IFERROR(VLOOKUP($A18,'All Running Order'!$A$6:$CZ$64,CF$102,FALSE),"") -> 13 | CG18: =IFERROR(VLOOKUP($A18,'All Running Order'!$A$6:$CZ$64,CG$102,FALSE),"") -> 13 | CH18: =IFERROR(VLOOKUP($A18,'All Running Order'!$A$6:$CZ$64,CH$102,FALSE),"") -> - | CI18: =IFERROR(VLOOKUP($A18,'All Running Order'!$A$6:$CZ$64,CI$102,FALSE),"") ->  | CJ18: =IFERROR(VLOOKUP($A18,'All Running Order'!$A$6:$CZ$64,CJ$102,FALSE),"") -> - | CK18: =IFERROR(VLOOKUP($A18,'All Running Order'!$A$6:$CZ$64,CK$102,FALSE),"") ->  | CL18: =IFERROR(VLOOKUP($A18,'All Running Order'!$A$6:$CZ$64,CL$102,FALSE),"") -> - | CM18: =IFERROR(VLOOKUP($A18,'All Running Order'!$A$6:$CZ$64,CM$102,FALSE),"") ->  | CN18: =IFERROR(VLOOKUP($A18,'All Running Order'!$A$6:$CZ$64,CN$102,FALSE),"") -> - | CO18: =IFERROR(VLOOKUP($A18,'All Running Order'!$A$6:$CZ$64,CO$102,FALSE),"") ->  | CP18: =IFERROR(VLOOKUP($A18,'All Running Order'!$A$6:$CZ$64,CP$102,FALSE),"") -> - | CQ18: =IFERROR(VLOOKUP($A18,'All Running Order'!$A$6:$CZ$64,CQ$102,FALSE),"") ->  | CR18: =IFERROR(VLOOKUP($A18,'All Running Order'!$A$6:$CZ$64,CR$102,FALSE),"") -> - | CS18: =IFERROR(VLOOKUP($A18,'All Running Order'!$A$6:$CZ$64,CS$102,FALSE),"") ->  | CT18: =IFERROR(VLOOKUP($A18,'All Running Order'!$A$6:$CZ$64,CT$102,FALSE),"") -> - | CU18: =IFERROR(VLOOKUP($A18,'All Running Order'!$A$6:$CZ$64,CU$102,FALSE),"") ->  | CV18: =IFERROR(VLOOKUP($A18,'All Running Order'!$A$6:$CZ$64,CV$102,FALSE),"") -> - | CW18: =IFERROR(VLOOKUP($A18,'All Running Order'!$A$6:$CZ$64,CW$102,FALSE),"") ->  | CX18: =IFERROR(VLOOKUP($A18,'All Running Order'!$A$6:$CZ$64,CX$102,FALSE),"") ->  | CY18: =IFERROR(VLOOKUP($A18,'All Running Order'!$A$6:$CZ$64,CY$102,FALSE),"") -> 0 | CZ18: =IFERROR(VLOOKUP($A18,'All Running Order'!$A$6:$CZ$64,CZ$102,FALSE),"") -> 0
